Workbook

Sheet Intro
G2: Electricity Transmission Network Service Provider
I3: RFM - Depreciation tracking module
L4: Version: | M4: 1
L5: Date: | M5: April 2020
B8: Introduction | J8: Electricity transmission module
C14: This attachment to the RFM is used by the AER to determine the forecast regulatory asset base (RAB) and tax asset base (TAB) depreciation for a transmission network service provider.
C15: It also calculates the actual tax depreciation for use in the main RFM.
C17: INSTRUCTIONS FOR USE
C18: The RFM - depreciation tracking module handbook, which contains information on this depreciation tracking module, is available on the AER website at http://www.aer.gov.au
C20: a. Fill out input cells on the 'RAB input' and 'TAB input' sheets. These input cells are highlighted blue.
C21: This provides the data for the depreciation tracking calculations.
C22: In general, input expenditure data should be valued in nominal dollar terms of the year indicated.
C23: Units and basis for entry are specified where required for each data table.
C24: Not all input cells require an input - be sure to read and follow the instructions contained within the comments for each section heading.
C25: All relevant inputs are to be filled on an ongoing basis, with the details of past expenditure and asset lives to be preserved.
C27: b. The values in the 'Tracking output' sheet
C28: This sheet summarises the key outputs of the year-by-year tracking approach, which includes forecast RAB and TAB depreciation to be input into the PTRM
C29: as well as actual tax depreciation for the current regulatory control period to be input into the RFM.
C31: VERSION RECORD
C33: Version | D33: Date | F33: Description
C34: 1 | D34: April 2020 | F34: Initial module

Sheet RAB input
E2: =IF($F$8='TAB input'!$F$8, $F$8, 'TAB input'!$F$8)&" - RAB input - Elec TNSP "&Intro!$I$3&" - version "& Intro!$M$4 -> TasNetworks T - RAB input - Elec TNSP RFM - Depreciation tracking module - version 1 | J2: Input cells in blue
E4: Year | F4: =IF(LEN($H$9)>4, CONCATENATE(LEFT($H$9, 4)-2 & "-" & IF(AND(RIGHT($H$9, 2)<"12", RIGHT($H$9, 2)>"01"), "0", "") & IF(RIGHT($H$9, 2)="00", "98", IF(RIGHT($H$9, 2)="01", "99", RIGHT($H$9, 2)-2))), $H$9-2) -> 2012-13 | G4: =IF(LEN(F4)>4,CONCATENATE(LEFT(F4,4)+1&"-"&IF(RIGHT(F4, 2)<"09", "0","")&IF(RIGHT(F4, 2)="99", "00", RIGHT(F4,2)+1)),F4+1) -> 2013-14 | H4: =IF(LEN(G4)>4,CONCATENATE(LEFT(G4,4)+1&"-"&IF(RIGHT(G4, 2)<"09", "0","")&IF(RIGHT(G4, 2)="99", "00", RIGHT(G4,2)+1)),G4+1) -> 2014-15 | I4: 2015-16 | J4: 2016-17 | K4: 2017-18 | L4: 2018-19 | M4: 2019-20 | N4: 2020-21 | O4: 2021-22 | P4: 2022-23 | Q4: 2023-24 | R4: 2024-25 | S4: 2025-26 | T4: 2026-27 | U4: 2027-28 | V4: 2028-29 | W4: 2029-30 | X4: 2030-31 | Y4: 2031-32 | Z4: 2032-33 | AA4: 2033-34 | AB4: 2034-35 | AC4: 2035-36 | AD4: 2036-37 | AE4: 2037-38 | AF4: 2038-39 | AG4: 2039-40 | AH4: 2040-41 | AI4: 2041-42 | AJ4: 2042-43 | AK4: 2043-44 | AL4: 2044-45 | AM4: 2045-46 | AN4: 2046-47 | AO4: 2047-48 | AP4: 2048-49 | AQ4: 2049-50 | AR4: 2050-51 | AS4: 2051-52 | AT4: 2052-53 | AU4: 2053-54 | AV4: 2054-55 | AW4: 2055-56 | AX4: 2056-57 | AY4: 2057-58 | AZ4: 2058-59 | BA4: 2059-60 | BB4: 2060-61 | BC4: 2061-62 | BD4: 2062-63 | BE4: 2063-64 | BF4: 2064-65 | BG4: 2065-66 | BH4: 2066-67 | BI4: 2067-68 | BJ4: 2068-69 | BK4: 2069-70 | BL4: 2070-71 | BM4: 2071-72 | BN4: 2072-73 | BO4: 2073-74 | BP4: 2074-75 | BQ4: 2075-76 | BR4: 2076-77 | BS4: 2077-78 | BT4: =IF(LEN(BS4)>4,CONCATENATE(LEFT(BS4,4)+1&"-"&IF(RIGHT(BS4, 2)<"09", "0","")&IF(RIGHT(BS4, 2)="99", "00", RIGHT(BS4,2)+1)),BS4+1) -> 2078-79 | BU4: 2079-80 | BV4: 2080-81 | BW4: 2081-82 | BX4: 2082-83 | BY4: 2083-84 | BZ4: 2084-85
D6: General information
E8: Business name | F8: TasNetworks T
E9: First regulatory year for tracking | H9: 2014-15 | I9: =IF(SUM($11:$11)=COUNTA($H$9:H$9), "Input for next period", "") ->  | J9: =IF(SUM($11:$11)=COUNTA($H$9:I$9), "Input for next period", "") ->  | K9: =IF(SUM($11:$11)=COUNTA($H$9:J$9), "Input for next period", "") ->  | L9: =IF(SUM($11:$11)=COUNTA($H$9:K$9), "Input for next period", "") ->  | M9: =IF(SUM($11:$11)=COUNTA($H$9:L$9), "Input for next period", "") ->  | N9: =IF(SUM($11:$11)=COUNTA($H$9:M$9), "Input for next period", "") ->  | O9: =IF(SUM($11:$11)=COUNTA($H$9:N$9), "Input for next period", "") ->  | P9: =IF(SUM($11:$11)=COUNTA($H$9:O$9), "Input for next period", "") ->  | Q9: =IF(SUM($11:$11)=COUNTA($H$9:P$9), "Input for next period", "") ->  | R9: =IF(SUM($11:$11)=COUNTA($H$9:Q$9), "Input for next period", "") -> Input for next period | S9: =IF(SUM($11:$11)=COUNTA($H$9:R$9), "Input for next period", "") ->  | T9: =IF(SUM($11:$11)=COUNTA($H$9:S$9), "Input for next period", "") ->  | U9: =IF(SUM($11:$11)=COUNTA($H$9:T$9), "Input for next period", "") ->  | V9: =IF(SUM($11:$11)=COUNTA($H$9:U$9), "Input for next period", "") ->  | W9: =IF(SUM($11:$11)=COUNTA($H$9:V$9), "Input for next period", "") ->  | X9: =IF(SUM($11:$11)=COUNTA($H$9:W$9), "Input for next period", "") ->  | Y9: =IF(SUM($11:$11)=COUNTA($H$9:X$9), "Input for next period", "") ->  | Z9: =IF(SUM($11:$11)=COUNTA($H$9:Y$9), "Input for next period", "") ->  | AA9: =IF(SUM($11:$11)=COUNTA($H$9:Z$9), "Input for next period", "") ->  | AB9: =IF(SUM($11:$11)=COUNTA($H$9:AA$9), "Input for next period", "") ->  | AC9: =IF(SUM($11:$11)=COUNTA($H$9:AB$9), "Input for next period", "") ->  | AD9: =IF(SUM($11:$11)=COUNTA($H$9:AC$9), "Input for next period", "") ->  | AE9: =IF(SUM($11:$11)=COUNTA($H$9:AD$9), "Input for next period", "") ->  | AF9: =IF(SUM($11:$11)=COUNTA($H$9:AE$9), "Input for next period", "") ->  | AG9: =IF(SUM($11:$11)=COUNTA($H$9:AF$9), "Input for next period", "") ->  | AH9: =IF(SUM($11:$11)=COUNTA($H$9:AG$9), "Input for next period", "") ->  | AI9: =IF(SUM($11:$11)=COUNTA($H$9:AH$9), "Input for next period", "") ->  | AJ9: =IF(SUM($11:$11)=COUNTA($H$9:AI$9), "Input for next period", "") ->  | AK9: =IF(SUM($11:$11)=COUNTA($H$9:AJ$9), "Input for next period", "") ->  | AL9: =IF(SUM($11:$11)=COUNTA($H$9:AK$9), "Input for next period", "") ->  | AM9: =IF(SUM($11:$11)=COUNTA($H$9:AL$9), "Input for next period", "") ->  | AN9: =IF(SUM($11:$11)=COUNTA($H$9:AM$9), "Input for next period", "") ->  | AO9: =IF(SUM($11:$11)=COUNTA($H$9:AN$9), "Input for next period", "") ->  | AP9: =IF(SUM($11:$11)=COUNTA($H$9:AO$9), "Input for next period", "") ->  | AQ9: =IF(SUM($11:$11)=COUNTA($H$9:AP$9), "Input for next period", "") ->  | AR9: =IF(SUM($11:$11)=COUNTA($H$9:AQ$9), "Input for next period", "") ->  | AS9: =IF(SUM($11:$11)=COUNTA($H$9:AR$9), "Input for next period", "") ->  | AT9: =IF(SUM($11:$11)=COUNTA($H$9:AS$9), "Input for next period", "") ->  | AU9: =IF(SUM($11:$11)=COUNTA($H$9:AT$9), "Input for next period", "") ->  | AV9: =IF(SUM($11:$11)=COUNTA($H$9:AU$9), "Input for next period", "") ->  | AW9: =IF(SUM($11:$11)=COUNTA($H$9:AV$9), "Input for next period", "") ->  | AX9: =IF(SUM($11:$11)=COUNTA($H$9:AW$9), "Input for next period", "") ->  | AY9: =IF(SUM($11:$11)=COUNTA($H$9:AX$9), "Input for next period", "") ->  | AZ9: =IF(SUM($11:$11)=COUNTA($H$9:AY$9), "Input for next period", "") ->  | BA9: =IF(SUM($11:$11)=COUNTA($H$9:AZ$9), "Input for next period", "") ->  | BB9: =IF(SUM($11:$11)=COUNTA($H$9:BA$9), "Input for next period", "") ->  | BC9: =IF(SUM($11:$11)=COUNTA($H$9:BB$9), "Input for next period", "") ->  | BD9: =IF(SUM($11:$11)=COUNTA($H$9:BC$9), "Input for next period", "") ->  | BE9: =IF(SUM($11:$11)=COUNTA($H$9:BD$9), "Input for next period", "") ->  | BF9: =IF(SUM($11:$11)=COUNTA($H$9:BE$9), "Input for next period", "") ->  | BG9: =IF(SUM($11:$11)=COUNTA($H$9:BF$9), "Input for next period", "") ->  | BH9: =IF(SUM($11:$11)=COUNTA($H$9:BG$9), "Input for next period", "") ->  | BI9: =IF(SUM($11:$11)=COUNTA($H$9:BH$9), "Input for next period", "") ->  | BJ9: =IF(SUM($11:$11)=COUNTA($H$9:BI$9), "Input for next period", "") ->  | BK9: =IF(SUM($11:$11)=COUNTA($H$9:BJ$9), "Input for next period", "") ->  | BL9: =IF(SUM($11:$11)=COUNTA($H$9:BK$9), "Input for next period", "") ->  | BM9: =IF(SUM($11:$11)=COUNTA($H$9:BL$9), "Input for next period", "") ->  | BN9: =IF(SUM($11:$11)=COUNTA($H$9:BM$9), "Input for next period", "") ->  | BO9: =IF(SUM($11:$11)=COUNTA($H$9:BN$9), "Input for next period", "") ->  | BP9: =IF(SUM($11:$11)=COUNTA($H$9:BO$9), "Input for next period", "") ->  | BQ9: =IF(SUM($11:$11)=COUNTA($H$9:BP$9), "Input for next period", "") ->  | BR9: =IF(SUM($11:$11)=COUNTA($H$9:BQ$9), "Input for next period", "") ->  | BS9: =IF(SUM($11:$11)=COUNTA($H$9:BR$9), "Input for next period", "") ->  | BT9: =IF(SUM($11:$11)=COUNTA($H$9:BS$9), "Input for next period", "") ->  | BU9: =IF(SUM($11:$11)=COUNTA($H$9:BT$9), "Input for next period", "") ->  | BV9: =IF(SUM($11:$11)=COUNTA($H$9:BU$9), "Input for next period", "") ->  | BW9: =IF(SUM($11:$11)=COUNTA($H$9:BV$9), "Input for next period", "") ->  | BX9: =IF(SUM($11:$11)=COUNTA($H$9:BW$9), "Input for next period", "") ->  | BY9: =IF(SUM($11:$11)=COUNTA($H$9:BX$9), "Input for next period", "") ->  | BZ9: =IF(SUM($11:$11)=COUNTA($H$9:BY$9), "Input for next period", "") -> 
E10: Regulatory period | H10: =CONCATENATE(LEFT(H9,4)&"-"&IF(RIGHT(H9, 2)<"06", "0","")&RIGHT(H9,2)-1+H11) -> 2014-19 | M10: 2019-24
E11: Years in regulatory period | H11: 5 | M11: 5
E13: Actual CPI inflation Rate | F13: 0.02502502503 | G13: 0.029296875 | H13: 0.01717557252 | I13: 0.01688555347 | J13: 0.0147601476 | K13: 0.01909090909 | L13: 0.0178412132 | M13: 0.01840490798 | N13: 0.008605851979 | O13: 0.03498293515 | P13: 0.07831821929 | Q13: 0.041
E14: Actual CPI (one year lagged) | F14: =G14/(1+F13) -> 0.9755859375 | G14: 1 | H14: =G14*(1+G13) -> 1.029296875 | I14: =H14*(1+H13) -> 1.046975638 | J14: 1.064654401 | K14: 1.080368857 | L14: 1.100994081 | M14: 1.120637151 | N14: 1.141262375 | O14: 1.15108391 | P14: 1.191352204 | Q14: 1.284656787 | R14: 1.337327715 | S14: 1.337327715 | T14: 1.337327715 | U14: 1.337327715 | V14: 1.337327715 | W14: 1.337327715 | X14: 1.337327715 | Y14: 1.337327715 | Z14: 1.337327715 | AA14: 1.337327715 | AB14: 1.337327715 | AC14: 1.337327715 | AD14: 1.337327715 | AE14: 1.337327715 | AF14: 1.337327715 | AG14: 1.337327715 | AH14: 1.337327715 | AI14: 1.337327715 | AJ14: 1.337327715 | AK14: 1.337327715 | AL14: 1.337327715 | AM14: 1.337327715 | AN14: 1.337327715 | AO14: 1.337327715 | AP14: 1.337327715 | AQ14: 1.337327715 | AR14: 1.337327715 | AS14: 1.337327715 | AT14: 1.337327715 | AU14: 1.337327715 | AV14: 1.337327715 | AW14: 1.337327715 | AX14: 1.337327715 | AY14: 1.337327715 | AZ14: 1.337327715 | BA14: 1.337327715 | BB14: 1.337327715 | BC14: 1.337327715 | BD14: 1.337327715 | BE14: 1.337327715 | BF14: 1.337327715 | BG14: 1.337327715 | BH14: 1.337327715 | BI14: 1.337327715 | BJ14: 1.337327715 | BK14: 1.337327715 | BL14: 1.337327715 | BM14: 1.337327715 | BN14: 1.337327715 | BO14: 1.337327715 | BP14: 1.337327715 | BQ14: 1.337327715 | BR14: 1.337327715 | BS14: 1.337327715 | BT14: 1.337327715 | BU14: =BT14*(1+BT13) -> 1.337327715 | BV14: 1.337327715 | BW14: 1.337327715 | BX14: 1.337327715 | BY14: 1.337327715 | BZ14: 1.337327715
E16: Nominal vanilla WACC (fixed real time varying) | G16: 0.104926012 | H16: 0.05746810242 | I16: 0.05606357635 | J16: 0.05349907801 | K16: 0.05741437717 | L16: 0.05521252856 | M16: 0.04943516333 | N16: 0.037236855 | O16: 0.06213209675 | P16: 0.1052970817 | Q16: 0.06721290932
E17: Nominal vanilla WACC index | F17: =G17/(1+G16) -> 0.9050379746 | G17: 1 | H17: =G17*(1+H16) -> 1.057468102 | I17: 1.116753546 | J17: 1.176498831 | K17: 1.244046779 | L17: 1.312733747 | M17: 1.377628954 | N17: 1.428927524 | O17: 1.517709787 | P17: 1.677520199 | Q17: 1.790271212
E18: Real vanilla WACC | G18: 0.07347650499 | H18: 0.03961216823 | I18: 0.03852746531 | J18: 0.03817545506 | K18: 0.03760554406 | L18: 0.03671625286 | M18: 0.03046946761 | N18: 0.02838671119 | O18: 0.02623150651 | P18: 0.02501938845 | Q18: 0.02518050847
E19: Real vanilla WACC index | F19: =G19/(1+G18) -> 0.9315527591 | G19: 1 | H19: =G19*(1+H18) -> 1.039612168 | I19: 1.07966579 | J19: 1.120882523 | K19: 1.16303392 | L19: 1.205736167 | M19: 1.242474307 | N19: 1.277744066 | O19: 1.311261218 | P19: 1.344068171 | Q19: 1.377912491 | R19: 1.377912491 | S19: 1.377912491 | T19: 1.377912491 | U19: 1.377912491 | V19: 1.377912491 | W19: 1.377912491 | X19: 1.377912491 | Y19: 1.377912491 | Z19: 1.377912491 | AA19: 1.377912491 | AB19: 1.377912491 | AC19: 1.377912491 | AD19: 1.377912491 | AE19: 1.377912491 | AF19: 1.377912491 | AG19: 1.377912491 | AH19: 1.377912491 | AI19: 1.377912491 | AJ19: 1.377912491 | AK19: 1.377912491 | AL19: 1.377912491 | AM19: 1.377912491 | AN19: 1.377912491 | AO19: 1.377912491 | AP19: 1.377912491 | AQ19: 1.377912491 | AR19: 1.377912491 | AS19: 1.377912491 | AT19: 1.377912491 | AU19: 1.377912491 | AV19: 1.377912491 | AW19: 1.377912491 | AX19: 1.377912491 | AY19: 1.377912491 | AZ19: 1.377912491 | BA19: 1.377912491 | BB19: 1.377912491 | BC19: 1.377912491 | BD19: 1.377912491 | BE19: 1.377912491 | BF19: 1.377912491 | BG19: 1.377912491 | BH19: 1.377912491 | BI19: 1.377912491 | BJ19: 1.377912491 | BK19: 1.377912491 | BL19: 1.377912491 | BM19: 1.377912491 | BN19: 1.377912491 | BO19: 1.377912491 | BP19: 1.377912491 | BQ19: 1.377912491 | BR19: 1.377912491 | BS19: 1.377912491 | BT19: =BS19*(1+BT18) -> 1.377912491 | BU19: 1.377912491 | BV19: 1.377912491 | BW19: 1.377912491 | BX19: 1.377912491 | BY19: 1.377912491 | BZ19: 1.377912491
D21: Starting RAB and actual gross capex - As commissioned ($m, nominal)
E22: Asset class | G22: ="RAB (closing as at "&$G$4&")" -> RAB (closing as at 2013-14) | H22: ="Actual gross capex ("&H4&")" -> Actual gross capex (2014-15) | I22: =IF(COUNTA($H$22:H$22)<SUM($11:$11), "Actual gross capex ("&I4&")", "") -> Actual gross capex (2015-16) | J22: =IF(COUNTA($H$22:I$22)<SUM($11:$11), "Actual gross capex ("&J4&")", "") -> Actual gross capex (2016-17) | K22: =IF(COUNTA($H$22:J$22)<SUM($11:$11), "Actual gross capex ("&K4&")", "") -> Actual gross capex (2017-18) | L22: =IF(COUNTA($H$22:K$22)<SUM($11:$11), "Actual gross capex ("&L4&")", "") -> Actual gross capex (2018-19) | M22: =IF(COUNTA($H$22:L$22)<SUM($11:$11), "Actual gross capex ("&M4&")", "") -> Actual gross capex (2019-20) | N22: =IF(COUNTA($H$22:M$22)<SUM($11:$11), "Actual gross capex ("&N4&")", "") -> Actual gross capex (2020-21) | O22: =IF(COUNTA($H$22:N$22)<SUM($11:$11), "Actual gross capex ("&O4&")", "") -> Actual gross capex (2021-22) | P22: =IF(COUNTA($H$22:O$22)<SUM($11:$11), "Actual gross capex ("&P4&")", "") -> Actual gross capex (2022-23) | Q22: =IF(COUNTA($H$22:P$22)<SUM($11:$11), "Actual gross capex ("&Q4&")", "") -> Actual gross capex (2023-24) | R22: =IF(COUNTA($H$22:Q$22)<SUM($11:$11), "Actual gross capex ("&R4&")", "") ->  | S22: =IF(COUNTA($H$22:R$22)<SUM($11:$11), "Actual gross capex ("&S4&")", "") ->  | T22: =IF(COUNTA($H$22:S$22)<SUM($11:$11), "Actual gross capex ("&T4&")", "") ->  | U22: =IF(COUNTA($H$22:T$22)<SUM($11:$11), "Actual gross capex ("&U4&")", "") ->  | V22: =IF(COUNTA($H$22:U$22)<SUM($11:$11), "Actual gross capex ("&V4&")", "") ->  | W22: =IF(COUNTA($H$22:V$22)<SUM($11:$11), "Actual gross capex ("&W4&")", "") ->  | X22: =IF(COUNTA($H$22:W$22)<SUM($11:$11), "Actual gross capex ("&X4&")", "") ->  | Y22: =IF(COUNTA($H$22:X$22)<SUM($11:$11), "Actual gross capex ("&Y4&")", "") ->  | Z22: =IF(COUNTA($H$22:Y$22)<SUM($11:$11), "Actual gross capex ("&Z4&")", "") ->  | AA22: =IF(COUNTA($H$22:Z$22)<SUM($11:$11), "Actual gross capex ("&AA4&")", "") ->  | AB22: =IF(COUNTA($H$22:AA$22)<SUM($11:$11), "Actual gross capex ("&AB4&")", "") ->  | AC22: =IF(COUNTA($H$22:AB$22)<SUM($11:$11), "Actual gross capex ("&AC4&")", "") ->  | AD22: =IF(COUNTA($H$22:AC$22)<SUM($11:$11), "Actual gross capex ("&AD4&")", "") ->  | AE22: =IF(COUNTA($H$22:AD$22)<SUM($11:$11), "Actual gross capex ("&AE4&")", "") ->  | AF22: =IF(COUNTA($H$22:AE$22)<SUM($11:$11), "Actual gross capex ("&AF4&")", "") ->  | AG22: =IF(COUNTA($H$22:AF$22)<SUM($11:$11), "Actual gross capex ("&AG4&")", "") ->  | AH22: =IF(COUNTA($H$22:AG$22)<SUM($11:$11), "Actual gross capex ("&AH4&")", "") ->  | AI22: =IF(COUNTA($H$22:AH$22)<SUM($11:$11), "Actual gross capex ("&AI4&")", "") ->  | AJ22: =IF(COUNTA($H$22:AI$22)<SUM($11:$11), "Actual gross capex ("&AJ4&")", "") ->  | AK22: =IF(COUNTA($H$22:AJ$22)<SUM($11:$11), "Actual gross capex ("&AK4&")", "") ->  | AL22: =IF(COUNTA($H$22:AK$22)<SUM($11:$11), "Actual gross capex ("&AL4&")", "") ->  | AM22: =IF(COUNTA($H$22:AL$22)<SUM($11:$11), "Actual gross capex ("&AM4&")", "") ->  | AN22: =IF(COUNTA($H$22:AM$22)<SUM($11:$11), "Actual gross capex ("&AN4&")", "") ->  | AO22: =IF(COUNTA($H$22:AN$22)<SUM($11:$11), "Actual gross capex ("&AO4&")", "") ->  | AP22: =IF(COUNTA($H$22:AO$22)<SUM($11:$11), "Actual gross capex ("&AP4&")", "") ->  | AQ22: =IF(COUNTA($H$22:AP$22)<SUM($11:$11), "Actual gross capex ("&AQ4&")", "") ->  | AR22: =IF(COUNTA($H$22:AQ$22)<SUM($11:$11), "Actual gross capex ("&AR4&")", "") ->  | AS22: =IF(COUNTA($H$22:AR$22)<SUM($11:$11), "Actual gross capex ("&AS4&")", "") ->  | AT22: =IF(COUNTA($H$22:AS$22)<SUM($11:$11), "Actual gross capex ("&AT4&")", "") ->  | AU22: =IF(COUNTA($H$22:AT$22)<SUM($11:$11), "Actual gross capex ("&AU4&")", "") ->  | AV22: =IF(COUNTA($H$22:AU$22)<SUM($11:$11), "Actual gross capex ("&AV4&")", "") ->  | AW22: =IF(COUNTA($H$22:AV$22)<SUM($11:$11), "Actual gross capex ("&AW4&")", "") ->  | AX22: =IF(COUNTA($H$22:AW$22)<SUM($11:$11), "Actual gross capex ("&AX4&")", "") ->  | AY22: =IF(COUNTA($H$22:AX$22)<SUM($11:$11), "Actual gross capex ("&AY4&")", "") ->  | AZ22: =IF(COUNTA($H$22:AY$22)<SUM($11:$11), "Actual gross capex ("&AZ4&")", "") ->  | BA22: =IF(COUNTA($H$22:AZ$22)<SUM($11:$11), "Actual gross capex ("&BA4&")", "") ->  | BB22: =IF(COUNTA($H$22:BA$22)<SUM($11:$11), "Actual gross capex ("&BB4&")", "") ->  | BC22: =IF(COUNTA($H$22:BB$22)<SUM($11:$11), "Actual gross capex ("&BC4&")", "") ->  | BD22: =IF(COUNTA($H$22:BC$22)<SUM($11:$11), "Actual gross capex ("&BD4&")", "") ->  | BE22: =IF(COUNTA($H$22:BD$22)<SUM($11:$11), "Actual gross capex ("&BE4&")", "") ->  | BF22: =IF(COUNTA($H$22:BE$22)<SUM($11:$11), "Actual gross capex ("&BF4&")", "") ->  | BG22: =IF(COUNTA($H$22:BF$22)<SUM($11:$11), "Actual gross capex ("&BG4&")", "") ->  | BH22: =IF(COUNTA($H$22:BG$22)<SUM($11:$11), "Actual gross capex ("&BH4&")", "") ->  | BI22: =IF(COUNTA($H$22:BH$22)<SUM($11:$11), "Actual gross capex ("&BI4&")", "") ->  | BJ22: =IF(COUNTA($H$22:BI$22)<SUM($11:$11), "Actual gross capex ("&BJ4&")", "") ->  | BK22: =IF(COUNTA($H$22:BJ$22)<SUM($11:$11), "Actual gross capex ("&BK4&")", "") ->  | BL22: =IF(COUNTA($H$22:BK$22)<SUM($11:$11), "Actual gross capex ("&BL4&")", "") ->  | BM22: =IF(COUNTA($H$22:BL$22)<SUM($11:$11), "Actual gross capex ("&BM4&")", "") ->  | BN22: =IF(COUNTA($H$22:BM$22)<SUM($11:$11), "Actual gross capex ("&BN4&")", "") ->  | BO22: =IF(COUNTA($H$22:BN$22)<SUM($11:$11), "Actual gross capex ("&BO4&")", "") ->  | BP22: =IF(COUNTA($H$22:BO$22)<SUM($11:$11), "Actual gross capex ("&BP4&")", "") ->  | BQ22: =IF(COUNTA($H$22:BP$22)<SUM($11:$11), "Actual gross capex ("&BQ4&")", "") ->  | BR22: =IF(COUNTA($H$22:BQ$22)<SUM($11:$11), "Actual gross capex ("&BR4&")", "") ->  | BS22: =IF(COUNTA($H$22:BR$22)<SUM($11:$11), "Actual gross capex ("&BS4&")", "") ->  | BT22: =IF(COUNTA($H$22:BS$22)<SUM($11:$11), "Actual gross capex ("&BT4&")", "") ->  | BU22: =IF(COUNTA($H$22:BT$22)<SUM($11:$11), "Actual gross capex ("&BU4&")", "") ->  | BV22: =IF(COUNTA($H$22:BU$22)<SUM($11:$11), "Actual gross capex ("&BV4&")", "") ->  | BW22: =IF(COUNTA($H$22:BV$22)<SUM($11:$11), "Actual gross capex ("&BW4&")", "") ->  | BX22: =IF(COUNTA($H$22:BW$22)<SUM($11:$11), "Actual gross capex ("&BX4&")", "") ->  | BY22: =IF(COUNTA($H$22:BX$22)<SUM($11:$11), "Actual gross capex ("&BY4&")", "") ->  | BZ22: =IF(COUNTA($H$22:BY$22)<SUM($11:$11), "Actual gross capex ("&BZ4&")", "") -> 
D24: 1 | E24: Transmission Lines and Cables | G24: 258.5373587 | L24: 0 | M24: 0 | N24: 0 | O24: 0 | P24: 0 | Q24: 0
D25: 2 | E25: Transmission Substations | G25: 329.2422946 | L25: 0 | M25: 0 | N25: 0 | O25: 0 | P25: 0 | Q25: 0
D26: 3 | E26: Protection and Control | G26: 19.7103956 | L26: 0 | M26: 0 | N26: 0 | O26: 0 | P26: 0 | Q26: 0
D27: 4 | E27: Refurbishment | G27: 12.95608944 | L27: 0 | M27: 0 | N27: 0 | O27: 0 | P27: 0 | Q27: 0
D28: 5 | E28: Other | G28: 0.596859599 | L28: 0 | M28: 0 | N28: 0 | O28: 0 | P28: 0 | Q28: 0
D29: 6 | E29: Other - IT | G29: 9.218710442 | L29: 0 | M29: 0 | N29: 0 | O29: 0 | P29: 0 | Q29: 0
D30: 7 | E30: Other - General | G30: 2.084458183 | L30: 0 | M30: 0 | N30: 0 | O30: 0 | P30: 0 | Q30: 0
D31: 8 | E31: Other - Buildings | G31: 25.76282424 | L31: 0 | M31: 0 | N31: 0 | O31: 0 | P31: 0 | Q31: 0
D32: 9 | E32: Land and Easements - pre 2014 | G32: 101.173495 | L32: 0 | M32: 0 | N32: 0 | O32: 0 | P32: 0 | Q32: 0
D33: 10 | E33: Transmission line assets - long life (60) | G33: 195.1658253 | H33: 5.463874937 | I33: 2.657989406 | J33: 4.222796707 | K33: 13.75984449 | L33: 10.2930803 | M33: 15.52417508 | N33: 16.59076771 | O33: 7.044860347 | P33: 1.157154831 | Q33: 6.248175157
D34: 11 | E34: Transmission line assets - medium life (45) | G34: 3.973646916 | H34: 0.7051592292 | I34: 0 | J34: 0 | K34: 0.0006347094845 | L34: 0.30695212 | M34: 0 | N34: 0.05722169 | O34: 6.188666716 | P34: 0.6547902937 | Q34: 5.488806268
D35: 12 | E35: Transmission line assets - short life (10) | G35: 2.39748754 | H35: 0.4790667783 | I35: 0.7834980072 | J35: 1.912213161 | K35: 1.55192495 | L35: 0.05595318 | M35: 0 | N35: 0.21569456 | O35: 0.8628943253 | P35: 0.09129831264 | Q35: 0.7653118189
D36: 13 | E36: Substation assets - long life (60) | G36: 57.29173499 | H36: 3.719915781 | I36: 3.001896919 | J36: 1.060218382 | K36: 0.70000546 | L36: 4.93607978 | M36: 2.16592072 | N36: 0.24092902 | O36: 4.19240161 | P36: 3.32822707 | Q36: 5.499457604
D37: 14 | E37: Substation assets - medium life (45) | G37: 192.635162 | H37: 9.924317596 | I37: 8.850025976 | J37: 3.672561094 | K37: 11.02156469 | L37: 24.8732135 | M37: 18.28764718 | N37: 2.67447141 | O37: 8.587498632 | P37: 7.623019169 | Q37: 11.80552603
D38: 15 | E38: Substation assets - short life (15) | G38: 20.76736752 | H38: 1.865639881 | I38: 1.480802873 | J38: 1.186055079 | K38: 0.1315843443 | L38: 0 | M38: 0.2923475 | N38: 1.86668147 | O38: 0.8198798604 | P38: 0.8636840765 | Q38: 1.023612974
D39: 16 | E39: Protection and control - short life (15) | G39: 82.52276165 | H39: 4.527989532 | I39: 5.51298045 | J39: 1.78333863 | K39: 1.074839851 | L39: 11.8254785 | M39: 14.96935722 | N39: 9.54161816 | O39: 12.16693741 | P39: 6.609879665 | Q39: 10.65358982
D40: 17 | E40: Protection and control - short life (4) | G40: 0.9665868623 | H40: 0 | I40: 0 | J40: 0.1637680185 | K40: 0.02684210383 | L40: 0.03359858 | M40: 0.03318374 | N40: 0.2790538 | O40: 0 | P40: 0 | Q40: 0
D41: 18 | E41: Transmission operations - short life (10) | G41: 7.225069894 | H41: 0.390616446 | I41: 0.7889571329 | J41: 8.760774078 | K41: 7.21366134 | L41: 2.289666343 | M41: 0.5157594498 | N41: 0.03125 | O41: 0 | P41: 0 | Q41: 0
D42: 19 | E42: Transmission operations - short life (4) | G42: 0.3200231926 | H42: 0 | I42: 0.4357019032 | J42: 1.322432886 | K42: 5.893935385 | L42: 2.289244523 | M42: 1.538276695 | N42: 1.465622836 | O42: 0 | P42: 0 | Q42: 0
D43: 20 | E43: Other - medium life (40) | G43: 26.39211089 | H43: 0 | I43: 0.175420762 | J43: 0.2264003792 | K43: 1.155375881 | L43: 1.163429963 | M43: 0.2265623375 | N43: 0.908922603 | O43: 0 | P43: 0.517420344 | Q43: 0
D44: 21 | E44: Other - short life (9) | G44: 2.985290501 | H44: 1.195736149 | I44: 0.09786001173 | J44: 0.5403317371 | K44: 0.6498733841 | L44: 3.494998168 | M44: 1.092094659 | N44: 1.563929725 | O44: 1.672626944 | P44: 5.185275808 | Q44: 8.421066663
D45: 22 | E45: Other - short life (4) | G45: 7.354401878 | H45: 3.069095035 | I45: 0.8083131583 | J45: 0.2499859245 | K45: 0.7322887603 | L45: 0.3101032576 | M45: 1.631661007 | N45: 1.229292628 | O45: 0 | P45: 1.180031512 | Q45: 7.871130407
D46: 23 | E46: Land and Easements | G46: 3.529630658 | H46: 0 | I46: 0.2783793442 | J46: 0 | K46: 0.2497362347 | L46: 0 | M46: 0 | N46: 0 | O46: 0.30194309 | P46: 4.030729187 | Q46: 3.949858893
D47: 24 | E47: Communication assets - long life (45) | G47: 0 | H47: 0 | I47: 0 | J47: 0.02220085579 | K47: 0.1967187022 | L47: 0.02277699 | M47: 0.47793046 | N47: 0.02970796 | O47: 0.1655736093 | P47: 0.6670823218 | Q47: 0.3206117767
D48: 25 | E48: Communication assets - medium life (10) | G48: 0 | H48: 0 | I48: 0 | J48: 2.632293892 | K48: 2.134272524 | L48: 1.28944219 | M48: 0.90988797 | N48: 0.61517319 | O48: 0.4762576202 | P48: 1.688646888 | Q48: 0.5814425786
D49: 26 | E49: Communication assets - short life (5) | G49: 0 | H49: 0 | I49: 0 | J49: 0 | K49: 1.048368387 | L49: 1.30118724 | M49: 0.41465995 | N49: 0.1033646 | O49: 1.0237631 | P49: 0.62303579 | Q49: 0.06695232
D50: 27 | E50: 0 | G50: 0 | L50: 0 | M50: 0 | N50: 0 | O50: 0 | P50: 0 | Q50: 0
D51: 28 | E51: 0 | G51: 0 | L51: 0 | M51: 0 | N51: 0 | O51: 0 | P51: 0 | Q51: 0
D52: 29 | E52: 0 | G52: 0 | L52: 0 | M52: 0 | N52: 0 | O52: 0 | P52: 0 | Q52: 0
D53: 30 | E53: 0 | G53: 0 | L53: 0 | M53: 0 | N53: 0 | O53: 0 | P53: 0 | Q53: 0
D54: 31 | E54: 0 | G54: 0 | L54: 0 | M54: 0 | N54: 0 | O54: 0 | P54: 0 | Q54: 0
D55: 32 | E55: 0 | G55: 0 | L55: 0 | M55: 0 | N55: 0 | O55: 0 | P55: 0 | Q55: 0
D56: 33 | E56: 0 | G56: 0 | L56: 0 | M56: 0 | N56: 0 | O56: 0 | P56: 0 | Q56: 0
D57: 34 | E57: 0 | G57: 0 | L57: 0 | M57: 0 | N57: 0 | O57: 0 | P57: 0 | Q57: 0
D58: 35 | E58: 0 | G58: 0 | L58: 0 | M58: 0 | N58: 0 | O58: 0 | P58: 0 | Q58: 0
D59: 36 | E59: 0 | G59: 0 | L59: 0 | M59: 0 | N59: 0 | O59: 0 | P59: 0 | Q59: 0
D60: 37 | E60: 0 | G60: 0 | L60: 0 | M60: 0 | N60: 0 | O60: 0 | P60: 0 | Q60: 0
D61: 38 | E61: 0 | G61: 0 | L61: 0 | M61: 0 | N61: 0 | O61: 0 | P61: 0 | Q61: 0
D62: 39 | E62: 0 | G62: 0 | L62: 0 | M62: 0 | N62: 0 | O62: 0 | P62: 0 | Q62: 0
D63: 40 | E63: 0 | G63: 0 | L63: 0 | M63: 0 | N63: 0 | O63: 0 | P63: 0 | Q63: 0
D64: 41 | E64: 0 | G64: 0 | L64: 0 | M64: 0 | N64: 0 | O64: 0 | P64: 0 | Q64: 0
D65: 42 | E65: 0 | G65: 0 | L65: 0 | M65: 0 | N65: 0 | O65: 0 | P65: 0 | Q65: 0
D66: 43 | E66: 0 | G66: 0 | L66: 0 | M66: 0 | N66: 0 | O66: 0 | P66: 0 | Q66: 0
D67: 44 | E67: 0 | G67: 0 | L67: 0 | M67: 0 | N67: 0 | O67: 0 | P67: 0 | Q67: 0
D68: 45 | E68: 0 | G68: 0 | L68: 0 | M68: 0 | N68: 0 | O68: 0 | P68: 0 | Q68: 0
D69: 46 | E69: 0 | G69: 0 | L69: 0 | M69: 0 | N69: 0 | O69: 0 | P69: 0 | Q69: 0
D70: 47 | G70: 0 | L70: 0 | M70: 0 | N70: 0 | O70: 0 | P70: 0 | Q70: 0
D71: 48 | G71: 0 | L71: 0 | M71: 0 | N71: 0 | O71: 0 | P71: 0 | Q71: 0
D72: 49 | E72: Buildings | G72: 0 | L72: 0 | M72: 0 | N72: 0 | O72: 0 | P72: 0 | Q72: 0
D73: 50 | E73: Equity raising costs | G73: 0.4437140439 | H73: 0 | I73: 0 | J73: 0 | K73: 0 | L73: 0 | M73: 0 | N73: 0 | O73: 0 | P73: 0 | Q73: 0
E74: Total | G74: =SUM(G24:G73) -> 1363.2533 | H74: =SUM(H24:H73) -> 31.34141136 | I74: 24.87182594 | J74: 27.75537082 | K74: 47.5414712 | L74: 64.48520463 | M74: 58.07946397 | N74: 37.41370136 | O74: 43.50330326 | P74: 34.22027527 | Q74: 62.69554232 | R74: 0 | S74: 0 | T74: 0 | U74: 0 | V74: 0 | W74: 0 | X74: 0 | Y74: 0 | Z74: 0 | AA74: 0 | AB74: 0 | AC74: 0 | AD74: 0 | AE74: 0 | AF74: 0 | AG74: 0 | AH74: 0 | AI74: 0 | AJ74: 0 | AK74: 0 | AL74: 0 | AM74: 0 | AN74: 0 | AO74: 0 | AP74: 0 | AQ74: 0 | AR74: 0 | AS74: 0 | AT74: 0 | AU74: 0 | AV74: 0 | AW74: 0 | AX74: 0 | AY74: 0 | AZ74: 0 | BA74: 0 | BB74: 0 | BC74: 0 | BD74: 0 | BE74: 0 | BF74: 0 | BG74: 0 | BH74: 0 | BI74: 0 | BJ74: 0 | BK74: 0 | BL74: 0 | BM74: 0 | BN74: 0 | BO74: 0 | BP74: 0 | BQ74: 0 | BR74: 0 | BS74: 0 | BT74: =SUM(BT24:BT73) -> 0 | BU74: 0 | BV74: 0 | BW74: 0 | BX74: 0 | BY74: 0 | BZ74: 0
D76: Actual asset disposals - As decommissioned ($m, nominal)
E77: =$E$22 -> Asset class | H77: =IF(H$22="", "", "Actual asset disposals ("&H$4&")") -> Actual asset disposals (2014-15) | I77: Actual asset disposals (2015-16) | J77: Actual asset disposals (2016-17) | K77: Actual asset disposals (2017-18) | L77: Actual asset disposals (2018-19) | M77: Actual asset disposals (2019-20) | N77: Actual asset disposals (2020-21) | O77: Actual asset disposals (2021-22) | P77: Actual asset disposals (2022-23) | Q77: Actual asset disposals (2023-24) | AN77: =IF(AN$22="", "", "Actual asset disposals ("&AN$4&")") -> 
E78: =E24 -> Transmission Lines and Cables | L78: 0 | P78: 0 | Q78: 0
E79: Transmission Substations | L79: 0 | P79: 0 | Q79: 0
E80: Protection and Control | L80: 0 | P80: 0 | Q80: 0
E81: Refurbishment | L81: 0 | P81: 0 | Q81: 0
E82: Other | L82: 0 | P82: 0 | Q82: 0
E83: Other - IT | L83: 0 | P83: 0 | Q83: 0
E84: Other - General | L84: 0 | P84: 0 | Q84: 0
E85: Other - Buildings | L85: 0 | P85: 0 | Q85: 0
E86: Land and Easements - pre 2014 | L86: 0 | P86: 0 | Q86: 0
E87: Transmission line assets - long life (60) | L87: 0 | M87: 0 | N87: 0.01156302 | O87: 0 | P87: 0.06423030443 | Q87: 0.06423030443
E88: Transmission line assets - medium life (45) | L88: 0 | M88: 0 | N88: 0 | O88: 0 | P88: 0.05642410604 | Q88: 0.05642410604
E89: Transmission line assets - short life (10) | L89: 0 | M89: 0 | N89: 0 | O89: 0 | P89: 0.00786729083 | Q89: 0.00786729083
E90: Substation assets - long life (60) | L90: 0 | M90: 0 | N90: 0 | O90: 0 | P90: 0.05652844355 | Q90: 0.05652844355
E91: Substation assets - medium life (45) | L91: 0 | M91: 0 | N91: 0 | O91: 0 | P91: 0.1213495778 | Q91: 0.1213495778
E92: Substation assets - short life (15) | L92: 0 | M92: 0 | N92: 0 | O92: 0 | P92: 0.01052172855 | Q92: 0.01052172855
E93: Protection and control - short life (15) | L93: 0 | M93: 0 | N93: 0.00224763 | O93: 0 | P93: 0.1094982639 | Q93: 0.1094982639
E94: Protection and control - short life (4) | L94: 0 | M94: 0 | N94: 0 | O94: 0 | P94: 0 | Q94: 0
E95: Transmission operations - short life (10) | L95: 0 | M95: 0 | N95: 0 | O95: 0 | P95: 0 | Q95: 0
E96: Transmission operations - short life (4) | L96: 0 | M96: 0 | N96: 0 | O96: 0 | P96: 0 | Q96: 0
E97: Other - medium life (40) | L97: 0 | M97: 0 | N97: 0 | O97: 0 | P97: 0 | Q97: 0
E98: Other - short life (9) | H98: 0.027 | I98: 0.0006 | J98: 0.01478723 | K98: 0.02393291 | L98: 0.06916079348 | M98: 0.02517337674 | N98: 0.007311755436 | O98: 0.1583351949 | P98: 0.03648311851 | Q98: 0.03648311851
E99: Other - short life (4) | L99: 0 | M99: 0 | N99: 0.001172907893 | O99: 0 | P99: 0.118086743 | Q99: 0.118086743
E100: Land and Easements | L100: 0 | M100: 0 | N100: 0 | O100: 0 | P100: 0 | Q100: 0
E101: Communication assets - long life (45) | L101: 0 | M101: 0 | N101: 0 | O101: 0 | P101: 0.003299051431 | Q101: 0.003299051431
E102: Communication assets - medium life (10) | L102: 0 | M102: 0 | N102: 0 | O102: 0 | P102: 0.005981312487 | Q102: 0.005981312487
E103: Communication assets - short life (5) | L103: 0 | M103: 0 | N103: 0 | O103: 0 | P103: 0.0006108818311 | Q103: 0.0006108818311
E104: 0 | L104: 0
E105: 0 | L105: 0
E106: 0 | L106: 0
E107: 0 | L107: 0
E108: 0 | L108: 0
E109: 0 | L109: 0
E110: =E56 -> 0 | L110: 0
E111: 0 | L111: 0
E112: 0 | L112: 0
E113: 0 | L113: 0
E114: 0 | L114: 0
E115: 0 | L115: 0
E116: 0 | L116: 0
E117: 0 | L117: 0
E118: 0 | L118: 0
E119: 0 | L119: 0
E120: 0 | L120: 0
E121: 0 | L121: 0
E122: 0 | L122: 0
E123: 0 | L123: 0
E124: 0 | L124: 0
E125: 0 | L125: 0
... 153 more rows

Sheet TAB input
E2: =IF('RAB input'!$F$8=$F$8, 'RAB input'!$F$8, $F$8)&" - TAB input - Elec TNSP "&Intro!$I$3&" - version "&Intro!$M$4 -> TasNetworks T - TAB input - Elec TNSP RFM - Depreciation tracking module - version 1 | J2: Input cells in blue
E4: Year | F4: =IF(LEN($H$9)>4, CONCATENATE(LEFT($H$9, 4)-2 & "-" & IF(AND(RIGHT($H$9, 2)<"12", RIGHT($H$9, 2)>"01"), "0", "") & IF(RIGHT($H$9, 2)="00", "98", IF(RIGHT($H$9, 2)="01", "99", RIGHT($H$9, 2)-2))), $H$9-2) -> 2012-13 | G4: =IF(LEN(F4)>4,CONCATENATE(LEFT(F4,4)+1&"-"&IF(RIGHT(F4, 2)<"09", "0","")&IF(RIGHT(F4, 2)="99", "00", RIGHT(F4,2)+1)),F4+1) -> 2013-14 | H4: =IF(LEN(G4)>4,CONCATENATE(LEFT(G4,4)+1&"-"&IF(RIGHT(G4, 2)<"09", "0","")&IF(RIGHT(G4, 2)="99", "00", RIGHT(G4,2)+1)),G4+1) -> 2014-15 | I4: 2015-16 | J4: 2016-17 | K4: 2017-18 | L4: 2018-19 | M4: 2019-20 | N4: 2020-21 | O4: 2021-22 | P4: 2022-23 | Q4: 2023-24 | R4: 2024-25 | S4: 2025-26 | T4: 2026-27 | U4: 2027-28 | V4: 2028-29 | W4: 2029-30 | X4: 2030-31 | Y4: 2031-32 | Z4: 2032-33 | AA4: 2033-34 | AB4: 2034-35 | AC4: 2035-36 | AD4: 2036-37 | AE4: 2037-38 | AF4: 2038-39 | AG4: 2039-40 | AH4: 2040-41 | AI4: 2041-42 | AJ4: 2042-43 | AK4: 2043-44 | AL4: 2044-45 | AM4: 2045-46 | AN4: 2046-47 | AO4: 2047-48 | AP4: 2048-49 | AQ4: 2049-50 | AR4: 2050-51 | AS4: 2051-52 | AT4: 2052-53 | AU4: 2053-54 | AV4: 2054-55 | AW4: 2055-56 | AX4: 2056-57 | AY4: 2057-58 | AZ4: 2058-59 | BA4: 2059-60 | BB4: 2060-61 | BC4: 2061-62 | BD4: 2062-63 | BE4: 2063-64 | BF4: 2064-65 | BG4: 2065-66 | BH4: 2066-67 | BI4: 2067-68 | BJ4: 2068-69 | BK4: 2069-70 | BL4: 2070-71 | BM4: 2071-72 | BN4: 2072-73 | BO4: 2073-74 | BP4: 2074-75 | BQ4: 2075-76 | BR4: 2076-77 | BS4: 2077-78 | BT4: =IF(LEN(BS4)>4,CONCATENATE(LEFT(BS4,4)+1&"-"&IF(RIGHT(BS4, 2)<"09", "0","")&IF(RIGHT(BS4, 2)="99", "00", RIGHT(BS4,2)+1)),BS4+1) -> 2078-79 | BU4: 2079-80 | BV4: 2080-81 | BW4: 2081-82 | BX4: 2082-83 | BY4: 2083-84 | BZ4: 2084-85
D6: General information
E8: Business name | F8: ='RAB input'!$F$8 -> TasNetworks T
E9: First regulatory year for tracking | H9: ='RAB input'!H9 -> 2014-15 | I9: =IF(SUM($11:$11)=COUNTA($H$9:H$9), "Input for next period", "") ->  | J9: =IF(SUM($11:$11)=COUNTA($H$9:I$9), "Input for next period", "") ->  | K9: =IF(SUM($11:$11)=COUNTA($H$9:J$9), "Input for next period", "") ->  | L9: =IF(SUM($11:$11)=COUNTA($H$9:K$9), "Input for next period", "") ->  | M9: =IF(SUM($11:$11)=COUNTA($H$9:L$9), "Input for next period", "") ->  | N9: =IF(SUM($11:$11)=COUNTA($H$9:M$9), "Input for next period", "") ->  | O9: =IF(SUM($11:$11)=COUNTA($H$9:N$9), "Input for next period", "") ->  | P9: =IF(SUM($11:$11)=COUNTA($H$9:O$9), "Input for next period", "") ->  | Q9: =IF(SUM($11:$11)=COUNTA($H$9:P$9), "Input for next period", "") ->  | R9: =IF(SUM($11:$11)=COUNTA($H$9:Q$9), "Input for next period", "") -> Input for next period | S9: =IF(SUM($11:$11)=COUNTA($H$9:R$9), "Input for next period", "") ->  | T9: =IF(SUM($11:$11)=COUNTA($H$9:S$9), "Input for next period", "") ->  | U9: =IF(SUM($11:$11)=COUNTA($H$9:T$9), "Input for next period", "") ->  | V9: =IF(SUM($11:$11)=COUNTA($H$9:U$9), "Input for next period", "") ->  | W9: =IF(SUM($11:$11)=COUNTA($H$9:V$9), "Input for next period", "") ->  | X9: =IF(SUM($11:$11)=COUNTA($H$9:W$9), "Input for next period", "") ->  | Y9: =IF(SUM($11:$11)=COUNTA($H$9:X$9), "Input for next period", "") ->  | Z9: =IF(SUM($11:$11)=COUNTA($H$9:Y$9), "Input for next period", "") ->  | AA9: =IF(SUM($11:$11)=COUNTA($H$9:Z$9), "Input for next period", "") ->  | AB9: =IF(SUM($11:$11)=COUNTA($H$9:AA$9), "Input for next period", "") ->  | AC9: =IF(SUM($11:$11)=COUNTA($H$9:AB$9), "Input for next period", "") ->  | AD9: =IF(SUM($11:$11)=COUNTA($H$9:AC$9), "Input for next period", "") ->  | AE9: =IF(SUM($11:$11)=COUNTA($H$9:AD$9), "Input for next period", "") ->  | AF9: =IF(SUM($11:$11)=COUNTA($H$9:AE$9), "Input for next period", "") ->  | AG9: =IF(SUM($11:$11)=COUNTA($H$9:AF$9), "Input for next period", "") ->  | AH9: =IF(SUM($11:$11)=COUNTA($H$9:AG$9), "Input for next period", "") ->  | AI9: =IF(SUM($11:$11)=COUNTA($H$9:AH$9), "Input for next period", "") ->  | AJ9: =IF(SUM($11:$11)=COUNTA($H$9:AI$9), "Input for next period", "") ->  | AK9: =IF(SUM($11:$11)=COUNTA($H$9:AJ$9), "Input for next period", "") ->  | AL9: =IF(SUM($11:$11)=COUNTA($H$9:AK$9), "Input for next period", "") ->  | AM9: =IF(SUM($11:$11)=COUNTA($H$9:AL$9), "Input for next period", "") ->  | AN9: =IF(SUM($11:$11)=COUNTA($H$9:AM$9), "Input for next period", "") ->  | AO9: =IF(SUM($11:$11)=COUNTA($H$9:AN$9), "Input for next period", "") ->  | AP9: =IF(SUM($11:$11)=COUNTA($H$9:AO$9), "Input for next period", "") ->  | AQ9: =IF(SUM($11:$11)=COUNTA($H$9:AP$9), "Input for next period", "") ->  | AR9: =IF(SUM($11:$11)=COUNTA($H$9:AQ$9), "Input for next period", "") ->  | AS9: =IF(SUM($11:$11)=COUNTA($H$9:AR$9), "Input for next period", "") ->  | AT9: =IF(SUM($11:$11)=COUNTA($H$9:AS$9), "Input for next period", "") ->  | AU9: =IF(SUM($11:$11)=COUNTA($H$9:AT$9), "Input for next period", "") ->  | AV9: =IF(SUM($11:$11)=COUNTA($H$9:AU$9), "Input for next period", "") ->  | AW9: =IF(SUM($11:$11)=COUNTA($H$9:AV$9), "Input for next period", "") ->  | AX9: =IF(SUM($11:$11)=COUNTA($H$9:AW$9), "Input for next period", "") ->  | AY9: =IF(SUM($11:$11)=COUNTA($H$9:AX$9), "Input for next period", "") ->  | AZ9: =IF(SUM($11:$11)=COUNTA($H$9:AY$9), "Input for next period", "") ->  | BA9: =IF(SUM($11:$11)=COUNTA($H$9:AZ$9), "Input for next period", "") ->  | BB9: =IF(SUM($11:$11)=COUNTA($H$9:BA$9), "Input for next period", "") ->  | BC9: =IF(SUM($11:$11)=COUNTA($H$9:BB$9), "Input for next period", "") ->  | BD9: =IF(SUM($11:$11)=COUNTA($H$9:BC$9), "Input for next period", "") ->  | BE9: =IF(SUM($11:$11)=COUNTA($H$9:BD$9), "Input for next period", "") ->  | BF9: =IF(SUM($11:$11)=COUNTA($H$9:BE$9), "Input for next period", "") ->  | BG9: =IF(SUM($11:$11)=COUNTA($H$9:BF$9), "Input for next period", "") ->  | BH9: =IF(SUM($11:$11)=COUNTA($H$9:BG$9), "Input for next period", "") ->  | BI9: =IF(SUM($11:$11)=COUNTA($H$9:BH$9), "Input for next period", "") ->  | BJ9: =IF(SUM($11:$11)=COUNTA($H$9:BI$9), "Input for next period", "") ->  | BK9: =IF(SUM($11:$11)=COUNTA($H$9:BJ$9), "Input for next period", "") ->  | BL9: =IF(SUM($11:$11)=COUNTA($H$9:BK$9), "Input for next period", "") ->  | BM9: =IF(SUM($11:$11)=COUNTA($H$9:BL$9), "Input for next period", "") ->  | BN9: =IF(SUM($11:$11)=COUNTA($H$9:BM$9), "Input for next period", "") ->  | BO9: =IF(SUM($11:$11)=COUNTA($H$9:BN$9), "Input for next period", "") ->  | BP9: =IF(SUM($11:$11)=COUNTA($H$9:BO$9), "Input for next period", "") ->  | BQ9: =IF(SUM($11:$11)=COUNTA($H$9:BP$9), "Input for next period", "") ->  | BR9: =IF(SUM($11:$11)=COUNTA($H$9:BQ$9), "Input for next period", "") ->  | BS9: =IF(SUM($11:$11)=COUNTA($H$9:BR$9), "Input for next period", "") ->  | BT9: =IF(SUM($11:$11)=COUNTA($H$9:BS$9), "Input for next period", "") ->  | BU9: =IF(SUM($11:$11)=COUNTA($H$9:BT$9), "Input for next period", "") ->  | BV9: =IF(SUM($11:$11)=COUNTA($H$9:BU$9), "Input for next period", "") ->  | BW9: =IF(SUM($11:$11)=COUNTA($H$9:BV$9), "Input for next period", "") ->  | BX9: =IF(SUM($11:$11)=COUNTA($H$9:BW$9), "Input for next period", "") ->  | BY9: =IF(SUM($11:$11)=COUNTA($H$9:BX$9), "Input for next period", "") ->  | BZ9: =IF(SUM($11:$11)=COUNTA($H$9:BY$9), "Input for next period", "") -> 
E10: Regulatory period | H10: =IFERROR(IF(INDEX('RAB input'!10:10, MATCH(H$4, 'RAB input'!$4:$4, 0))="", "", INDEX('RAB input'!10:10, MATCH(H$4, 'RAB input'!$4:$4, 0))), "") -> 2014-19 | I10: =IFERROR(IF(INDEX('RAB input'!10:10, MATCH(I$4, 'RAB input'!$4:$4, 0))="", "", INDEX('RAB input'!10:10, MATCH(I$4, 'RAB input'!$4:$4, 0))), "") ->  | J10: =IFERROR(IF(INDEX('RAB input'!10:10, MATCH(J$4, 'RAB input'!$4:$4, 0))="", "", INDEX('RAB input'!10:10, MATCH(J$4, 'RAB input'!$4:$4, 0))), "") ->  | K10: =IFERROR(IF(INDEX('RAB input'!10:10, MATCH(K$4, 'RAB input'!$4:$4, 0))="", "", INDEX('RAB input'!10:10, MATCH(K$4, 'RAB input'!$4:$4, 0))), "") ->  | L10: =IFERROR(IF(INDEX('RAB input'!10:10, MATCH(L$4, 'RAB input'!$4:$4, 0))="", "", INDEX('RAB input'!10:10, MATCH(L$4, 'RAB input'!$4:$4, 0))), "") ->  | M10: =IFERROR(IF(INDEX('RAB input'!10:10, MATCH(M$4, 'RAB input'!$4:$4, 0))="", "", INDEX('RAB input'!10:10, MATCH(M$4, 'RAB input'!$4:$4, 0))), "") -> 2019-24 | N10: =IFERROR(IF(INDEX('RAB input'!10:10, MATCH(N$4, 'RAB input'!$4:$4, 0))="", "", INDEX('RAB input'!10:10, MATCH(N$4, 'RAB input'!$4:$4, 0))), "") ->  | O10: =IFERROR(IF(INDEX('RAB input'!10:10, MATCH(O$4, 'RAB input'!$4:$4, 0))="", "", INDEX('RAB input'!10:10, MATCH(O$4, 'RAB input'!$4:$4, 0))), "") ->  | P10: =IFERROR(IF(INDEX('RAB input'!10:10, MATCH(P$4, 'RAB input'!$4:$4, 0))="", "", INDEX('RAB input'!10:10, MATCH(P$4, 'RAB input'!$4:$4, 0))), "") ->  | Q10: =IFERROR(IF(INDEX('RAB input'!10:10, MATCH(Q$4, 'RAB input'!$4:$4, 0))="", "", INDEX('RAB input'!10:10, MATCH(Q$4, 'RAB input'!$4:$4, 0))), "") ->  | R10: =IFERROR(IF(INDEX('RAB input'!10:10, MATCH(R$4, 'RAB input'!$4:$4, 0))="", "", INDEX('RAB input'!10:10, MATCH(R$4, 'RAB input'!$4:$4, 0))), "") ->  | S10: =IFERROR(IF(INDEX('RAB input'!10:10, MATCH(S$4, 'RAB input'!$4:$4, 0))="", "", INDEX('RAB input'!10:10, MATCH(S$4, 'RAB input'!$4:$4, 0))), "") ->  | T10: =IFERROR(IF(INDEX('RAB input'!10:10, MATCH(T$4, 'RAB input'!$4:$4, 0))="", "", INDEX('RAB input'!10:10, MATCH(T$4, 'RAB input'!$4:$4, 0))), "") ->  | U10: =IFERROR(IF(INDEX('RAB input'!10:10, MATCH(U$4, 'RAB input'!$4:$4, 0))="", "", INDEX('RAB input'!10:10, MATCH(U$4, 'RAB input'!$4:$4, 0))), "") ->  | V10: =IFERROR(IF(INDEX('RAB input'!10:10, MATCH(V$4, 'RAB input'!$4:$4, 0))="", "", INDEX('RAB input'!10:10, MATCH(V$4, 'RAB input'!$4:$4, 0))), "") ->  | W10: =IFERROR(IF(INDEX('RAB input'!10:10, MATCH(W$4, 'RAB input'!$4:$4, 0))="", "", INDEX('RAB input'!10:10, MATCH(W$4, 'RAB input'!$4:$4, 0))), "") ->  | X10: =IFERROR(IF(INDEX('RAB input'!10:10, MATCH(X$4, 'RAB input'!$4:$4, 0))="", "", INDEX('RAB input'!10:10, MATCH(X$4, 'RAB input'!$4:$4, 0))), "") ->  | Y10: =IFERROR(IF(INDEX('RAB input'!10:10, MATCH(Y$4, 'RAB input'!$4:$4, 0))="", "", INDEX('RAB input'!10:10, MATCH(Y$4, 'RAB input'!$4:$4, 0))), "") ->  | Z10: =IFERROR(IF(INDEX('RAB input'!10:10, MATCH(Z$4, 'RAB input'!$4:$4, 0))="", "", INDEX('RAB input'!10:10, MATCH(Z$4, 'RAB input'!$4:$4, 0))), "") ->  | AA10: =IFERROR(IF(INDEX('RAB input'!10:10, MATCH(AA$4, 'RAB input'!$4:$4, 0))="", "", INDEX('RAB input'!10:10, MATCH(AA$4, 'RAB input'!$4:$4, 0))), "") ->  | AB10: =IFERROR(IF(INDEX('RAB input'!10:10, MATCH(AB$4, 'RAB input'!$4:$4, 0))="", "", INDEX('RAB input'!10:10, MATCH(AB$4, 'RAB input'!$4:$4, 0))), "") ->  | AC10: =IFERROR(IF(INDEX('RAB input'!10:10, MATCH(AC$4, 'RAB input'!$4:$4, 0))="", "", INDEX('RAB input'!10:10, MATCH(AC$4, 'RAB input'!$4:$4, 0))), "") ->  | AD10: =IFERROR(IF(INDEX('RAB input'!10:10, MATCH(AD$4, 'RAB input'!$4:$4, 0))="", "", INDEX('RAB input'!10:10, MATCH(AD$4, 'RAB input'!$4:$4, 0))), "") ->  | AE10: =IFERROR(IF(INDEX('RAB input'!10:10, MATCH(AE$4, 'RAB input'!$4:$4, 0))="", "", INDEX('RAB input'!10:10, MATCH(AE$4, 'RAB input'!$4:$4, 0))), "") ->  | AF10: =IFERROR(IF(INDEX('RAB input'!10:10, MATCH(AF$4, 'RAB input'!$4:$4, 0))="", "", INDEX('RAB input'!10:10, MATCH(AF$4, 'RAB input'!$4:$4, 0))), "") ->  | AG10: =IFERROR(IF(INDEX('RAB input'!10:10, MATCH(AG$4, 'RAB input'!$4:$4, 0))="", "", INDEX('RAB input'!10:10, MATCH(AG$4, 'RAB input'!$4:$4, 0))), "") ->  | AH10: =IFERROR(IF(INDEX('RAB input'!10:10, MATCH(AH$4, 'RAB input'!$4:$4, 0))="", "", INDEX('RAB input'!10:10, MATCH(AH$4, 'RAB input'!$4:$4, 0))), "") ->  | AI10: =IFERROR(IF(INDEX('RAB input'!10:10, MATCH(AI$4, 'RAB input'!$4:$4, 0))="", "", INDEX('RAB input'!10:10, MATCH(AI$4, 'RAB input'!$4:$4, 0))), "") ->  | AJ10: =IFERROR(IF(INDEX('RAB input'!10:10, MATCH(AJ$4, 'RAB input'!$4:$4, 0))="", "", INDEX('RAB input'!10:10, MATCH(AJ$4, 'RAB input'!$4:$4, 0))), "") ->  | AK10: =IFERROR(IF(INDEX('RAB input'!10:10, MATCH(AK$4, 'RAB input'!$4:$4, 0))="", "", INDEX('RAB input'!10:10, MATCH(AK$4, 'RAB input'!$4:$4, 0))), "") ->  | AL10: =IFERROR(IF(INDEX('RAB input'!10:10, MATCH(AL$4, 'RAB input'!$4:$4, 0))="", "", INDEX('RAB input'!10:10, MATCH(AL$4, 'RAB input'!$4:$4, 0))), "") ->  | AM10: =IFERROR(IF(INDEX('RAB input'!10:10, MATCH(AM$4, 'RAB input'!$4:$4, 0))="", "", INDEX('RAB input'!10:10, MATCH(AM$4, 'RAB input'!$4:$4, 0))), "") ->  | AN10: =IFERROR(IF(INDEX('RAB input'!10:10, MATCH(AN$4, 'RAB input'!$4:$4, 0))="", "", INDEX('RAB input'!10:10, MATCH(AN$4, 'RAB input'!$4:$4, 0))), "") ->  | AO10: =IFERROR(IF(INDEX('RAB input'!10:10, MATCH(AO$4, 'RAB input'!$4:$4, 0))="", "", INDEX('RAB input'!10:10, MATCH(AO$4, 'RAB input'!$4:$4, 0))), "") ->  | AP10: =IFERROR(IF(INDEX('RAB input'!10:10, MATCH(AP$4, 'RAB input'!$4:$4, 0))="", "", INDEX('RAB input'!10:10, MATCH(AP$4, 'RAB input'!$4:$4, 0))), "") ->  | AQ10: =IFERROR(IF(INDEX('RAB input'!10:10, MATCH(AQ$4, 'RAB input'!$4:$4, 0))="", "", INDEX('RAB input'!10:10, MATCH(AQ$4, 'RAB input'!$4:$4, 0))), "") ->  | AR10: =IFERROR(IF(INDEX('RAB input'!10:10, MATCH(AR$4, 'RAB input'!$4:$4, 0))="", "", INDEX('RAB input'!10:10, MATCH(AR$4, 'RAB input'!$4:$4, 0))), "") ->  | AS10: =IFERROR(IF(INDEX('RAB input'!10:10, MATCH(AS$4, 'RAB input'!$4:$4, 0))="", "", INDEX('RAB input'!10:10, MATCH(AS$4, 'RAB input'!$4:$4, 0))), "") ->  | AT10: =IFERROR(IF(INDEX('RAB input'!10:10, MATCH(AT$4, 'RAB input'!$4:$4, 0))="", "", INDEX('RAB input'!10:10, MATCH(AT$4, 'RAB input'!$4:$4, 0))), "") ->  | AU10: =IFERROR(IF(INDEX('RAB input'!10:10, MATCH(AU$4, 'RAB input'!$4:$4, 0))="", "", INDEX('RAB input'!10:10, MATCH(AU$4, 'RAB input'!$4:$4, 0))), "") ->  | AV10: =IFERROR(IF(INDEX('RAB input'!10:10, MATCH(AV$4, 'RAB input'!$4:$4, 0))="", "", INDEX('RAB input'!10:10, MATCH(AV$4, 'RAB input'!$4:$4, 0))), "") ->  | AW10: =IFERROR(IF(INDEX('RAB input'!10:10, MATCH(AW$4, 'RAB input'!$4:$4, 0))="", "", INDEX('RAB input'!10:10, MATCH(AW$4, 'RAB input'!$4:$4, 0))), "") ->  | AX10: =IFERROR(IF(INDEX('RAB input'!10:10, MATCH(AX$4, 'RAB input'!$4:$4, 0))="", "", INDEX('RAB input'!10:10, MATCH(AX$4, 'RAB input'!$4:$4, 0))), "") ->  | AY10: =IFERROR(IF(INDEX('RAB input'!10:10, MATCH(AY$4, 'RAB input'!$4:$4, 0))="", "", INDEX('RAB input'!10:10, MATCH(AY$4, 'RAB input'!$4:$4, 0))), "") ->  | AZ10: =IFERROR(IF(INDEX('RAB input'!10:10, MATCH(AZ$4, 'RAB input'!$4:$4, 0))="", "", INDEX('RAB input'!10:10, MATCH(AZ$4, 'RAB input'!$4:$4, 0))), "") ->  | BA10: =IFERROR(IF(INDEX('RAB input'!10:10, MATCH(BA$4, 'RAB input'!$4:$4, 0))="", "", INDEX('RAB input'!10:10, MATCH(BA$4, 'RAB input'!$4:$4, 0))), "") ->  | BB10: =IFERROR(IF(INDEX('RAB input'!10:10, MATCH(BB$4, 'RAB input'!$4:$4, 0))="", "", INDEX('RAB input'!10:10, MATCH(BB$4, 'RAB input'!$4:$4, 0))), "") ->  | BC10: =IFERROR(IF(INDEX('RAB input'!10:10, MATCH(BC$4, 'RAB input'!$4:$4, 0))="", "", INDEX('RAB input'!10:10, MATCH(BC$4, 'RAB input'!$4:$4, 0))), "") ->  | BD10: =IFERROR(IF(INDEX('RAB input'!10:10, MATCH(BD$4, 'RAB input'!$4:$4, 0))="", "", INDEX('RAB input'!10:10, MATCH(BD$4, 'RAB input'!$4:$4, 0))), "") ->  | BE10: =IFERROR(IF(INDEX('RAB input'!10:10, MATCH(BE$4, 'RAB input'!$4:$4, 0))="", "", INDEX('RAB input'!10:10, MATCH(BE$4, 'RAB input'!$4:$4, 0))), "") ->  | BF10: =IFERROR(IF(INDEX('RAB input'!10:10, MATCH(BF$4, 'RAB input'!$4:$4, 0))="", "", INDEX('RAB input'!10:10, MATCH(BF$4, 'RAB input'!$4:$4, 0))), "") ->  | BG10: =IFERROR(IF(INDEX('RAB input'!10:10, MATCH(BG$4, 'RAB input'!$4:$4, 0))="", "", INDEX('RAB input'!10:10, MATCH(BG$4, 'RAB input'!$4:$4, 0))), "") ->  | BH10: =IFERROR(IF(INDEX('RAB input'!10:10, MATCH(BH$4, 'RAB input'!$4:$4, 0))="", "", INDEX('RAB input'!10:10, MATCH(BH$4, 'RAB input'!$4:$4, 0))), "") ->  | BI10: =IFERROR(IF(INDEX('RAB input'!10:10, MATCH(BI$4, 'RAB input'!$4:$4, 0))="", "", INDEX('RAB input'!10:10, MATCH(BI$4, 'RAB input'!$4:$4, 0))), "") ->  | BJ10: =IFERROR(IF(INDEX('RAB input'!10:10, MATCH(BJ$4, 'RAB input'!$4:$4, 0))="", "", INDEX('RAB input'!10:10, MATCH(BJ$4, 'RAB input'!$4:$4, 0))), "") ->  | BK10: =IFERROR(IF(INDEX('RAB input'!10:10, MATCH(BK$4, 'RAB input'!$4:$4, 0))="", "", INDEX('RAB input'!10:10, MATCH(BK$4, 'RAB input'!$4:$4, 0))), "") ->  | BL10: =IFERROR(IF(INDEX('RAB input'!10:10, MATCH(BL$4, 'RAB input'!$4:$4, 0))="", "", INDEX('RAB input'!10:10, MATCH(BL$4, 'RAB input'!$4:$4, 0))), "") ->  | BM10: =IFERROR(IF(INDEX('RAB input'!10:10, MATCH(BM$4, 'RAB input'!$4:$4, 0))="", "", INDEX('RAB input'!10:10, MATCH(BM$4, 'RAB input'!$4:$4, 0))), "") ->  | BN10: =IFERROR(IF(INDEX('RAB input'!10:10, MATCH(BN$4, 'RAB input'!$4:$4, 0))="", "", INDEX('RAB input'!10:10, MATCH(BN$4, 'RAB input'!$4:$4, 0))), "") ->  | BO10: =IFERROR(IF(INDEX('RAB input'!10:10, MATCH(BO$4, 'RAB input'!$4:$4, 0))="", "", INDEX('RAB input'!10:10, MATCH(BO$4, 'RAB input'!$4:$4, 0))), "") ->  | BP10: =IFERROR(IF(INDEX('RAB input'!10:10, MATCH(BP$4, 'RAB input'!$4:$4, 0))="", "", INDEX('RAB input'!10:10, MATCH(BP$4, 'RAB input'!$4:$4, 0))), "") ->  | BQ10: =IFERROR(IF(INDEX('RAB input'!10:10, MATCH(BQ$4, 'RAB input'!$4:$4, 0))="", "", INDEX('RAB input'!10:10, MATCH(BQ$4, 'RAB input'!$4:$4, 0))), "") ->  | BR10: =IFERROR(IF(INDEX('RAB input'!10:10, MATCH(BR$4, 'RAB input'!$4:$4, 0))="", "", INDEX('RAB input'!10:10, MATCH(BR$4, 'RAB input'!$4:$4, 0))), "") ->  | BS10: =IFERROR(IF(INDEX('RAB input'!10:10, MATCH(BS$4, 'RAB input'!$4:$4, 0))="", "", INDEX('RAB input'!10:10, MATCH(BS$4, 'RAB input'!$4:$4, 0))), "") ->  | BT10: =IFERROR(IF(INDEX('RAB input'!10:10, MATCH(BT$4, 'RAB input'!$4:$4, 0))="", "", INDEX('RAB input'!10:10, MATCH(BT$4, 'RAB input'!$4:$4, 0))), "") ->  | BU10: =IFERROR(IF(INDEX('RAB input'!10:10, MATCH(BU$4, 'RAB input'!$4:$4, 0))="", "", INDEX('RAB input'!10:10, MATCH(BU$4, 'RAB input'!$4:$4, 0))), "") ->  | BV10: =IFERROR(IF(INDEX('RAB input'!10:10, MATCH(BV$4, 'RAB input'!$4:$4, 0))="", "", INDEX('RAB input'!10:10, MATCH(BV$4, 'RAB input'!$4:$4, 0))), "") ->  | BW10: =IFERROR(IF(INDEX('RAB input'!10:10, MATCH(BW$4, 'RAB input'!$4:$4, 0))="", "", INDEX('RAB input'!10:10, MATCH(BW$4, 'RAB input'!$4:$4, 0))), "") ->  | BX10: =IFERROR(IF(INDEX('RAB input'!10:10, MATCH(BX$4, 'RAB input'!$4:$4, 0))="", "", INDEX('RAB input'!10:10, MATCH(BX$4, 'RAB input'!$4:$4, 0))), "") ->  | BY10: =IFERROR(IF(INDEX('RAB input'!10:10, MATCH(BY$4, 'RAB input'!$4:$4, 0))="", "", INDEX('RAB input'!10:10, MATCH(BY$4, 'RAB input'!$4:$4, 0))), "") ->  | BZ10: =IFERROR(IF(INDEX('RAB input'!10:10, MATCH(BZ$4, 'RAB input'!$4:$4, 0))="", "", INDEX('RAB input'!10:10, MATCH(BZ$4, 'RAB input'!$4:$4, 0))), "") -> 
E11: Years in regulatory period | H11: =IFERROR(IF(INDEX('RAB input'!11:11, MATCH(H$4, 'RAB input'!$4:$4, 0))="", "", INDEX('RAB input'!11:11, MATCH(H$4, 'RAB input'!$4:$4, 0))), "") -> 5 | I11: =IFERROR(IF(INDEX('RAB input'!11:11, MATCH(I$4, 'RAB input'!$4:$4, 0))="", "", INDEX('RAB input'!11:11, MATCH(I$4, 'RAB input'!$4:$4, 0))), "") ->  | J11: =IFERROR(IF(INDEX('RAB input'!11:11, MATCH(J$4, 'RAB input'!$4:$4, 0))="", "", INDEX('RAB input'!11:11, MATCH(J$4, 'RAB input'!$4:$4, 0))), "") ->  | K11: =IFERROR(IF(INDEX('RAB input'!11:11, MATCH(K$4, 'RAB input'!$4:$4, 0))="", "", INDEX('RAB input'!11:11, MATCH(K$4, 'RAB input'!$4:$4, 0))), "") ->  | L11: =IFERROR(IF(INDEX('RAB input'!11:11, MATCH(L$4, 'RAB input'!$4:$4, 0))="", "", INDEX('RAB input'!11:11, MATCH(L$4, 'RAB input'!$4:$4, 0))), "") ->  | M11: =IFERROR(IF(INDEX('RAB input'!11:11, MATCH(M$4, 'RAB input'!$4:$4, 0))="", "", INDEX('RAB input'!11:11, MATCH(M$4, 'RAB input'!$4:$4, 0))), "") -> 5 | N11: =IFERROR(IF(INDEX('RAB input'!11:11, MATCH(N$4, 'RAB input'!$4:$4, 0))="", "", INDEX('RAB input'!11:11, MATCH(N$4, 'RAB input'!$4:$4, 0))), "") ->  | O11: =IFERROR(IF(INDEX('RAB input'!11:11, MATCH(O$4, 'RAB input'!$4:$4, 0))="", "", INDEX('RAB input'!11:11, MATCH(O$4, 'RAB input'!$4:$4, 0))), "") ->  | P11: =IFERROR(IF(INDEX('RAB input'!11:11, MATCH(P$4, 'RAB input'!$4:$4, 0))="", "", INDEX('RAB input'!11:11, MATCH(P$4, 'RAB input'!$4:$4, 0))), "") ->  | Q11: =IFERROR(IF(INDEX('RAB input'!11:11, MATCH(Q$4, 'RAB input'!$4:$4, 0))="", "", INDEX('RAB input'!11:11, MATCH(Q$4, 'RAB input'!$4:$4, 0))), "") ->  | R11: =IFERROR(IF(INDEX('RAB input'!11:11, MATCH(R$4, 'RAB input'!$4:$4, 0))="", "", INDEX('RAB input'!11:11, MATCH(R$4, 'RAB input'!$4:$4, 0))), "") ->  | S11: =IFERROR(IF(INDEX('RAB input'!11:11, MATCH(S$4, 'RAB input'!$4:$4, 0))="", "", INDEX('RAB input'!11:11, MATCH(S$4, 'RAB input'!$4:$4, 0))), "") ->  | T11: =IFERROR(IF(INDEX('RAB input'!11:11, MATCH(T$4, 'RAB input'!$4:$4, 0))="", "", INDEX('RAB input'!11:11, MATCH(T$4, 'RAB input'!$4:$4, 0))), "") ->  | U11: =IFERROR(IF(INDEX('RAB input'!11:11, MATCH(U$4, 'RAB input'!$4:$4, 0))="", "", INDEX('RAB input'!11:11, MATCH(U$4, 'RAB input'!$4:$4, 0))), "") ->  | V11: =IFERROR(IF(INDEX('RAB input'!11:11, MATCH(V$4, 'RAB input'!$4:$4, 0))="", "", INDEX('RAB input'!11:11, MATCH(V$4, 'RAB input'!$4:$4, 0))), "") ->  | W11: =IFERROR(IF(INDEX('RAB input'!11:11, MATCH(W$4, 'RAB input'!$4:$4, 0))="", "", INDEX('RAB input'!11:11, MATCH(W$4, 'RAB input'!$4:$4, 0))), "") ->  | X11: =IFERROR(IF(INDEX('RAB input'!11:11, MATCH(X$4, 'RAB input'!$4:$4, 0))="", "", INDEX('RAB input'!11:11, MATCH(X$4, 'RAB input'!$4:$4, 0))), "") ->  | Y11: =IFERROR(IF(INDEX('RAB input'!11:11, MATCH(Y$4, 'RAB input'!$4:$4, 0))="", "", INDEX('RAB input'!11:11, MATCH(Y$4, 'RAB input'!$4:$4, 0))), "") ->  | Z11: =IFERROR(IF(INDEX('RAB input'!11:11, MATCH(Z$4, 'RAB input'!$4:$4, 0))="", "", INDEX('RAB input'!11:11, MATCH(Z$4, 'RAB input'!$4:$4, 0))), "") ->  | AA11: =IFERROR(IF(INDEX('RAB input'!11:11, MATCH(AA$4, 'RAB input'!$4:$4, 0))="", "", INDEX('RAB input'!11:11, MATCH(AA$4, 'RAB input'!$4:$4, 0))), "") ->  | AB11: =IFERROR(IF(INDEX('RAB input'!11:11, MATCH(AB$4, 'RAB input'!$4:$4, 0))="", "", INDEX('RAB input'!11:11, MATCH(AB$4, 'RAB input'!$4:$4, 0))), "") ->  | AC11: =IFERROR(IF(INDEX('RAB input'!11:11, MATCH(AC$4, 'RAB input'!$4:$4, 0))="", "", INDEX('RAB input'!11:11, MATCH(AC$4, 'RAB input'!$4:$4, 0))), "") ->  | AD11: =IFERROR(IF(INDEX('RAB input'!11:11, MATCH(AD$4, 'RAB input'!$4:$4, 0))="", "", INDEX('RAB input'!11:11, MATCH(AD$4, 'RAB input'!$4:$4, 0))), "") ->  | AE11: =IFERROR(IF(INDEX('RAB input'!11:11, MATCH(AE$4, 'RAB input'!$4:$4, 0))="", "", INDEX('RAB input'!11:11, MATCH(AE$4, 'RAB input'!$4:$4, 0))), "") ->  | AF11: =IFERROR(IF(INDEX('RAB input'!11:11, MATCH(AF$4, 'RAB input'!$4:$4, 0))="", "", INDEX('RAB input'!11:11, MATCH(AF$4, 'RAB input'!$4:$4, 0))), "") ->  | AG11: =IFERROR(IF(INDEX('RAB input'!11:11, MATCH(AG$4, 'RAB input'!$4:$4, 0))="", "", INDEX('RAB input'!11:11, MATCH(AG$4, 'RAB input'!$4:$4, 0))), "") ->  | AH11: =IFERROR(IF(INDEX('RAB input'!11:11, MATCH(AH$4, 'RAB input'!$4:$4, 0))="", "", INDEX('RAB input'!11:11, MATCH(AH$4, 'RAB input'!$4:$4, 0))), "") ->  | AI11: =IFERROR(IF(INDEX('RAB input'!11:11, MATCH(AI$4, 'RAB input'!$4:$4, 0))="", "", INDEX('RAB input'!11:11, MATCH(AI$4, 'RAB input'!$4:$4, 0))), "") ->  | AJ11: =IFERROR(IF(INDEX('RAB input'!11:11, MATCH(AJ$4, 'RAB input'!$4:$4, 0))="", "", INDEX('RAB input'!11:11, MATCH(AJ$4, 'RAB input'!$4:$4, 0))), "") ->  | AK11: =IFERROR(IF(INDEX('RAB input'!11:11, MATCH(AK$4, 'RAB input'!$4:$4, 0))="", "", INDEX('RAB input'!11:11, MATCH(AK$4, 'RAB input'!$4:$4, 0))), "") ->  | AL11: =IFERROR(IF(INDEX('RAB input'!11:11, MATCH(AL$4, 'RAB input'!$4:$4, 0))="", "", INDEX('RAB input'!11:11, MATCH(AL$4, 'RAB input'!$4:$4, 0))), "") ->  | AM11: =IFERROR(IF(INDEX('RAB input'!11:11, MATCH(AM$4, 'RAB input'!$4:$4, 0))="", "", INDEX('RAB input'!11:11, MATCH(AM$4, 'RAB input'!$4:$4, 0))), "") ->  | AN11: =IFERROR(IF(INDEX('RAB input'!11:11, MATCH(AN$4, 'RAB input'!$4:$4, 0))="", "", INDEX('RAB input'!11:11, MATCH(AN$4, 'RAB input'!$4:$4, 0))), "") ->  | AO11: =IFERROR(IF(INDEX('RAB input'!11:11, MATCH(AO$4, 'RAB input'!$4:$4, 0))="", "", INDEX('RAB input'!11:11, MATCH(AO$4, 'RAB input'!$4:$4, 0))), "") ->  | AP11: =IFERROR(IF(INDEX('RAB input'!11:11, MATCH(AP$4, 'RAB input'!$4:$4, 0))="", "", INDEX('RAB input'!11:11, MATCH(AP$4, 'RAB input'!$4:$4, 0))), "") ->  | AQ11: =IFERROR(IF(INDEX('RAB input'!11:11, MATCH(AQ$4, 'RAB input'!$4:$4, 0))="", "", INDEX('RAB input'!11:11, MATCH(AQ$4, 'RAB input'!$4:$4, 0))), "") ->  | AR11: =IFERROR(IF(INDEX('RAB input'!11:11, MATCH(AR$4, 'RAB input'!$4:$4, 0))="", "", INDEX('RAB input'!11:11, MATCH(AR$4, 'RAB input'!$4:$4, 0))), "") ->  | AS11: =IFERROR(IF(INDEX('RAB input'!11:11, MATCH(AS$4, 'RAB input'!$4:$4, 0))="", "", INDEX('RAB input'!11:11, MATCH(AS$4, 'RAB input'!$4:$4, 0))), "") ->  | AT11: =IFERROR(IF(INDEX('RAB input'!11:11, MATCH(AT$4, 'RAB input'!$4:$4, 0))="", "", INDEX('RAB input'!11:11, MATCH(AT$4, 'RAB input'!$4:$4, 0))), "") ->  | AU11: =IFERROR(IF(INDEX('RAB input'!11:11, MATCH(AU$4, 'RAB input'!$4:$4, 0))="", "", INDEX('RAB input'!11:11, MATCH(AU$4, 'RAB input'!$4:$4, 0))), "") ->  | AV11: =IFERROR(IF(INDEX('RAB input'!11:11, MATCH(AV$4, 'RAB input'!$4:$4, 0))="", "", INDEX('RAB input'!11:11, MATCH(AV$4, 'RAB input'!$4:$4, 0))), "") ->  | AW11: =IFERROR(IF(INDEX('RAB input'!11:11, MATCH(AW$4, 'RAB input'!$4:$4, 0))="", "", INDEX('RAB input'!11:11, MATCH(AW$4, 'RAB input'!$4:$4, 0))), "") ->  | AX11: =IFERROR(IF(INDEX('RAB input'!11:11, MATCH(AX$4, 'RAB input'!$4:$4, 0))="", "", INDEX('RAB input'!11:11, MATCH(AX$4, 'RAB input'!$4:$4, 0))), "") ->  | AY11: =IFERROR(IF(INDEX('RAB input'!11:11, MATCH(AY$4, 'RAB input'!$4:$4, 0))="", "", INDEX('RAB input'!11:11, MATCH(AY$4, 'RAB input'!$4:$4, 0))), "") ->  | AZ11: =IFERROR(IF(INDEX('RAB input'!11:11, MATCH(AZ$4, 'RAB input'!$4:$4, 0))="", "", INDEX('RAB input'!11:11, MATCH(AZ$4, 'RAB input'!$4:$4, 0))), "") ->  | BA11: =IFERROR(IF(INDEX('RAB input'!11:11, MATCH(BA$4, 'RAB input'!$4:$4, 0))="", "", INDEX('RAB input'!11:11, MATCH(BA$4, 'RAB input'!$4:$4, 0))), "") ->  | BB11: =IFERROR(IF(INDEX('RAB input'!11:11, MATCH(BB$4, 'RAB input'!$4:$4, 0))="", "", INDEX('RAB input'!11:11, MATCH(BB$4, 'RAB input'!$4:$4, 0))), "") ->  | BC11: =IFERROR(IF(INDEX('RAB input'!11:11, MATCH(BC$4, 'RAB input'!$4:$4, 0))="", "", INDEX('RAB input'!11:11, MATCH(BC$4, 'RAB input'!$4:$4, 0))), "") ->  | BD11: =IFERROR(IF(INDEX('RAB input'!11:11, MATCH(BD$4, 'RAB input'!$4:$4, 0))="", "", INDEX('RAB input'!11:11, MATCH(BD$4, 'RAB input'!$4:$4, 0))), "") ->  | BE11: =IFERROR(IF(INDEX('RAB input'!11:11, MATCH(BE$4, 'RAB input'!$4:$4, 0))="", "", INDEX('RAB input'!11:11, MATCH(BE$4, 'RAB input'!$4:$4, 0))), "") ->  | BF11: =IFERROR(IF(INDEX('RAB input'!11:11, MATCH(BF$4, 'RAB input'!$4:$4, 0))="", "", INDEX('RAB input'!11:11, MATCH(BF$4, 'RAB input'!$4:$4, 0))), "") ->  | BG11: =IFERROR(IF(INDEX('RAB input'!11:11, MATCH(BG$4, 'RAB input'!$4:$4, 0))="", "", INDEX('RAB input'!11:11, MATCH(BG$4, 'RAB input'!$4:$4, 0))), "") ->  | BH11: =IFERROR(IF(INDEX('RAB input'!11:11, MATCH(BH$4, 'RAB input'!$4:$4, 0))="", "", INDEX('RAB input'!11:11, MATCH(BH$4, 'RAB input'!$4:$4, 0))), "") ->  | BI11: =IFERROR(IF(INDEX('RAB input'!11:11, MATCH(BI$4, 'RAB input'!$4:$4, 0))="", "", INDEX('RAB input'!11:11, MATCH(BI$4, 'RAB input'!$4:$4, 0))), "") ->  | BJ11: =IFERROR(IF(INDEX('RAB input'!11:11, MATCH(BJ$4, 'RAB input'!$4:$4, 0))="", "", INDEX('RAB input'!11:11, MATCH(BJ$4, 'RAB input'!$4:$4, 0))), "") ->  | BK11: =IFERROR(IF(INDEX('RAB input'!11:11, MATCH(BK$4, 'RAB input'!$4:$4, 0))="", "", INDEX('RAB input'!11:11, MATCH(BK$4, 'RAB input'!$4:$4, 0))), "") ->  | BL11: =IFERROR(IF(INDEX('RAB input'!11:11, MATCH(BL$4, 'RAB input'!$4:$4, 0))="", "", INDEX('RAB input'!11:11, MATCH(BL$4, 'RAB input'!$4:$4, 0))), "") ->  | BM11: =IFERROR(IF(INDEX('RAB input'!11:11, MATCH(BM$4, 'RAB input'!$4:$4, 0))="", "", INDEX('RAB input'!11:11, MATCH(BM$4, 'RAB input'!$4:$4, 0))), "") ->  | BN11: =IFERROR(IF(INDEX('RAB input'!11:11, MATCH(BN$4, 'RAB input'!$4:$4, 0))="", "", INDEX('RAB input'!11:11, MATCH(BN$4, 'RAB input'!$4:$4, 0))), "") ->  | BO11: =IFERROR(IF(INDEX('RAB input'!11:11, MATCH(BO$4, 'RAB input'!$4:$4, 0))="", "", INDEX('RAB input'!11:11, MATCH(BO$4, 'RAB input'!$4:$4, 0))), "") ->  | BP11: =IFERROR(IF(INDEX('RAB input'!11:11, MATCH(BP$4, 'RAB input'!$4:$4, 0))="", "", INDEX('RAB input'!11:11, MATCH(BP$4, 'RAB input'!$4:$4, 0))), "") ->  | BQ11: =IFERROR(IF(INDEX('RAB input'!11:11, MATCH(BQ$4, 'RAB input'!$4:$4, 0))="", "", INDEX('RAB input'!11:11, MATCH(BQ$4, 'RAB input'!$4:$4, 0))), "") ->  | BR11: =IFERROR(IF(INDEX('RAB input'!11:11, MATCH(BR$4, 'RAB input'!$4:$4, 0))="", "", INDEX('RAB input'!11:11, MATCH(BR$4, 'RAB input'!$4:$4, 0))), "") ->  | BS11: =IFERROR(IF(INDEX('RAB input'!11:11, MATCH(BS$4, 'RAB input'!$4:$4, 0))="", "", INDEX('RAB input'!11:11, MATCH(BS$4, 'RAB input'!$4:$4, 0))), "") ->  | BT11: =IFERROR(IF(INDEX('RAB input'!11:11, MATCH(BT$4, 'RAB input'!$4:$4, 0))="", "", INDEX('RAB input'!11:11, MATCH(BT$4, 'RAB input'!$4:$4, 0))), "") ->  | BU11: =IFERROR(IF(INDEX('RAB input'!11:11, MATCH(BU$4, 'RAB input'!$4:$4, 0))="", "", INDEX('RAB input'!11:11, MATCH(BU$4, 'RAB input'!$4:$4, 0))), "") ->  | BV11: =IFERROR(IF(INDEX('RAB input'!11:11, MATCH(BV$4, 'RAB input'!$4:$4, 0))="", "", INDEX('RAB input'!11:11, MATCH(BV$4, 'RAB input'!$4:$4, 0))), "") ->  | BW11: =IFERROR(IF(INDEX('RAB input'!11:11, MATCH(BW$4, 'RAB input'!$4:$4, 0))="", "", INDEX('RAB input'!11:11, MATCH(BW$4, 'RAB input'!$4:$4, 0))), "") ->  | BX11: =IFERROR(IF(INDEX('RAB input'!11:11, MATCH(BX$4, 'RAB input'!$4:$4, 0))="", "", INDEX('RAB input'!11:11, MATCH(BX$4, 'RAB input'!$4:$4, 0))), "") ->  | BY11: =IFERROR(IF(INDEX('RAB input'!11:11, MATCH(BY$4, 'RAB input'!$4:$4, 0))="", "", INDEX('RAB input'!11:11, MATCH(BY$4, 'RAB input'!$4:$4, 0))), "") ->  | BZ11: =IFERROR(IF(INDEX('RAB input'!11:11, MATCH(BZ$4, 'RAB input'!$4:$4, 0))="", "", INDEX('RAB input'!11:11, MATCH(BZ$4, 'RAB input'!$4:$4, 0))), "") -> 
G12: =IF(OR(G$446:G$495="DV"), "DV input required", "") ->  | H12: =IF(AND(OR(H$446:H$495="DV"), H$13=""), "DV input required", "") ->  | I12: =IF(COUNTA($H$12:H$12)<SUM($11:$11), IF(AND(I$446:I$495=""), IF(AND(H$13<>"", I$13=""), "DV input required", H$12), IF(AND(OR(I$446:I$495="DV"), I$13=""), "DV input required", "")), "") ->  | J12: =IF(COUNTA($H$12:I$12)<SUM($11:$11), IF(AND(J$446:J$495=""), IF(AND(I$13<>"", J$13=""), "DV input required", I$12), IF(AND(OR(J$446:J$495="DV"), J$13=""), "DV input required", "")), "") ->  | K12: =IF(COUNTA($H$12:J$12)<SUM($11:$11), IF(AND(K$446:K$495=""), IF(AND(J$13<>"", K$13=""), "DV input required", J$12), IF(AND(OR(K$446:K$495="DV"), K$13=""), "DV input required", "")), "") ->  | L12: =IF(COUNTA($H$12:K$12)<SUM($11:$11), IF(AND(L$446:L$495=""), IF(AND(K$13<>"", L$13=""), "DV input required", K$12), IF(AND(OR(L$446:L$495="DV"), L$13=""), "DV input required", "")), "") ->  | M12: =IF(COUNTA($H$12:L$12)<SUM($11:$11), IF(AND(M$446:M$495=""), IF(AND(L$13<>"", M$13=""), "DV input required", L$12), IF(AND(OR(M$446:M$495="DV"), M$13=""), "DV input required", "")), "") ->  | N12: =IF(COUNTA($H$12:M$12)<SUM($11:$11), IF(AND(N$446:N$495=""), IF(AND(M$13<>"", N$13=""), "DV input required", M$12), IF(AND(OR(N$446:N$495="DV"), N$13=""), "DV input required", "")), "") ->  | O12: =IF(COUNTA($H$12:N$12)<SUM($11:$11), IF(AND(O$446:O$495=""), IF(AND(N$13<>"", O$13=""), "DV input required", N$12), IF(AND(OR(O$446:O$495="DV"), O$13=""), "DV input required", "")), "") ->  | P12: =IF(COUNTA($H$12:O$12)<SUM($11:$11), IF(AND(P$446:P$495=""), IF(AND(O$13<>"", P$13=""), "DV input required", O$12), IF(AND(OR(P$446:P$495="DV"), P$13=""), "DV input required", "")), "") ->  | Q12: =IF(COUNTA($H$12:P$12)<SUM($11:$11), IF(AND(Q$446:Q$495=""), IF(AND(P$13<>"", Q$13=""), "DV input required", P$12), IF(AND(OR(Q$446:Q$495="DV"), Q$13=""), "DV input required", "")), "") ->  | R12: =IF(COUNTA($H$12:Q$12)<SUM($11:$11), IF(AND(R$446:R$495=""), IF(AND(Q$13<>"", R$13=""), "DV input required", Q$12), IF(AND(OR(R$446:R$495="DV"), R$13=""), "DV input required", "")), "") ->  | S12: =IF(COUNTA($H$12:R$12)<SUM($11:$11), IF(AND(S$446:S$495=""), IF(AND(R$13<>"", S$13=""), "DV input required", R$12), IF(AND(OR(S$446:S$495="DV"), S$13=""), "DV input required", "")), "") ->  | T12: =IF(COUNTA($H$12:S$12)<SUM($11:$11), IF(AND(T$446:T$495=""), IF(AND(S$13<>"", T$13=""), "DV input required", S$12), IF(AND(OR(T$446:T$495="DV"), T$13=""), "DV input required", "")), "") ->  | U12: =IF(COUNTA($H$12:T$12)<SUM($11:$11), IF(AND(U$446:U$495=""), IF(AND(T$13<>"", U$13=""), "DV input required", T$12), IF(AND(OR(U$446:U$495="DV"), U$13=""), "DV input required", "")), "") ->  | V12: =IF(COUNTA($H$12:U$12)<SUM($11:$11), IF(AND(V$446:V$495=""), IF(AND(U$13<>"", V$13=""), "DV input required", U$12), IF(AND(OR(V$446:V$495="DV"), V$13=""), "DV input required", "")), "") ->  | W12: =IF(COUNTA($H$12:V$12)<SUM($11:$11), IF(AND(W$446:W$495=""), IF(AND(V$13<>"", W$13=""), "DV input required", V$12), IF(AND(OR(W$446:W$495="DV"), W$13=""), "DV input required", "")), "") ->  | X12: =IF(COUNTA($H$12:W$12)<SUM($11:$11), IF(AND(X$446:X$495=""), IF(AND(W$13<>"", X$13=""), "DV input required", W$12), IF(AND(OR(X$446:X$495="DV"), X$13=""), "DV input required", "")), "") ->  | Y12: =IF(COUNTA($H$12:X$12)<SUM($11:$11), IF(AND(Y$446:Y$495=""), IF(AND(X$13<>"", Y$13=""), "DV input required", X$12), IF(AND(OR(Y$446:Y$495="DV"), Y$13=""), "DV input required", "")), "") ->  | Z12: =IF(COUNTA($H$12:Y$12)<SUM($11:$11), IF(AND(Z$446:Z$495=""), IF(AND(Y$13<>"", Z$13=""), "DV input required", Y$12), IF(AND(OR(Z$446:Z$495="DV"), Z$13=""), "DV input required", "")), "") ->  | AA12: =IF(COUNTA($H$12:Z$12)<SUM($11:$11), IF(AND(AA$446:AA$495=""), IF(AND(Z$13<>"", AA$13=""), "DV input required", Z$12), IF(AND(OR(AA$446:AA$495="DV"), AA$13=""), "DV input required", "")), "") ->  | AB12: =IF(COUNTA($H$12:AA$12)<SUM($11:$11), IF(AND(AB$446:AB$495=""), IF(AND(AA$13<>"", AB$13=""), "DV input required", AA$12), IF(AND(OR(AB$446:AB$495="DV"), AB$13=""), "DV input required", "")), "") ->  | AC12: =IF(COUNTA($H$12:AB$12)<SUM($11:$11), IF(AND(AC$446:AC$495=""), IF(AND(AB$13<>"", AC$13=""), "DV input required", AB$12), IF(AND(OR(AC$446:AC$495="DV"), AC$13=""), "DV input required", "")), "") ->  | AD12: =IF(COUNTA($H$12:AC$12)<SUM($11:$11), IF(AND(AD$446:AD$495=""), IF(AND(AC$13<>"", AD$13=""), "DV input required", AC$12), IF(AND(OR(AD$446:AD$495="DV"), AD$13=""), "DV input required", "")), "") ->  | AE12: =IF(COUNTA($H$12:AD$12)<SUM($11:$11), IF(AND(AE$446:AE$495=""), IF(AND(AD$13<>"", AE$13=""), "DV input required", AD$12), IF(AND(OR(AE$446:AE$495="DV"), AE$13=""), "DV input required", "")), "") ->  | AF12: =IF(COUNTA($H$12:AE$12)<SUM($11:$11), IF(AND(AF$446:AF$495=""), IF(AND(AE$13<>"", AF$13=""), "DV input required", AE$12), IF(AND(OR(AF$446:AF$495="DV"), AF$13=""), "DV input required", "")), "") ->  | AG12: =IF(COUNTA($H$12:AF$12)<SUM($11:$11), IF(AND(AG$446:AG$495=""), IF(AND(AF$13<>"", AG$13=""), "DV input required", AF$12), IF(AND(OR(AG$446:AG$495="DV"), AG$13=""), "DV input required", "")), "") ->  | AH12: =IF(COUNTA($H$12:AG$12)<SUM($11:$11), IF(AND(AH$446:AH$495=""), IF(AND(AG$13<>"", AH$13=""), "DV input required", AG$12), IF(AND(OR(AH$446:AH$495="DV"), AH$13=""), "DV input required", "")), "") ->  | AI12: =IF(COUNTA($H$12:AH$12)<SUM($11:$11), IF(AND(AI$446:AI$495=""), IF(AND(AH$13<>"", AI$13=""), "DV input required", AH$12), IF(AND(OR(AI$446:AI$495="DV"), AI$13=""), "DV input required", "")), "") ->  | AJ12: =IF(COUNTA($H$12:AI$12)<SUM($11:$11), IF(AND(AJ$446:AJ$495=""), IF(AND(AI$13<>"", AJ$13=""), "DV input required", AI$12), IF(AND(OR(AJ$446:AJ$495="DV"), AJ$13=""), "DV input required", "")), "") ->  | AK12: =IF(COUNTA($H$12:AJ$12)<SUM($11:$11), IF(AND(AK$446:AK$495=""), IF(AND(AJ$13<>"", AK$13=""), "DV input required", AJ$12), IF(AND(OR(AK$446:AK$495="DV"), AK$13=""), "DV input required", "")), "") ->  | AL12: =IF(COUNTA($H$12:AK$12)<SUM($11:$11), IF(AND(AL$446:AL$495=""), IF(AND(AK$13<>"", AL$13=""), "DV input required", AK$12), IF(AND(OR(AL$446:AL$495="DV"), AL$13=""), "DV input required", "")), "") ->  | AM12: =IF(COUNTA($H$12:AL$12)<SUM($11:$11), IF(AND(AM$446:AM$495=""), IF(AND(AL$13<>"", AM$13=""), "DV input required", AL$12), IF(AND(OR(AM$446:AM$495="DV"), AM$13=""), "DV input required", "")), "") ->  | AN12: =IF(COUNTA($H$12:AM$12)<SUM($11:$11), IF(AND(AN$446:AN$495=""), IF(AND(AM$13<>"", AN$13=""), "DV input required", AM$12), IF(AND(OR(AN$446:AN$495="DV"), AN$13=""), "DV input required", "")), "") ->  | AO12: =IF(COUNTA($H$12:AN$12)<SUM($11:$11), IF(AND(AO$446:AO$495=""), IF(AND(AN$13<>"", AO$13=""), "DV input required", AN$12), IF(AND(OR(AO$446:AO$495="DV"), AO$13=""), "DV input required", "")), "") ->  | AP12: =IF(COUNTA($H$12:AO$12)<SUM($11:$11), IF(AND(AP$446:AP$495=""), IF(AND(AO$13<>"", AP$13=""), "DV input required", AO$12), IF(AND(OR(AP$446:AP$495="DV"), AP$13=""), "DV input required", "")), "") ->  | AQ12: =IF(COUNTA($H$12:AP$12)<SUM($11:$11), IF(AND(AQ$446:AQ$495=""), IF(AND(AP$13<>"", AQ$13=""), "DV input required", AP$12), IF(AND(OR(AQ$446:AQ$495="DV"), AQ$13=""), "DV input required", "")), "") ->  | AR12: =IF(COUNTA($H$12:AQ$12)<SUM($11:$11), IF(AND(AR$446:AR$495=""), IF(AND(AQ$13<>"", AR$13=""), "DV input required", AQ$12), IF(AND(OR(AR$446:AR$495="DV"), AR$13=""), "DV input required", "")), "") ->  | AS12: =IF(COUNTA($H$12:AR$12)<SUM($11:$11), IF(AND(AS$446:AS$495=""), IF(AND(AR$13<>"", AS$13=""), "DV input required", AR$12), IF(AND(OR(AS$446:AS$495="DV"), AS$13=""), "DV input required", "")), "") ->  | AT12: =IF(COUNTA($H$12:AS$12)<SUM($11:$11), IF(AND(AT$446:AT$495=""), IF(AND(AS$13<>"", AT$13=""), "DV input required", AS$12), IF(AND(OR(AT$446:AT$495="DV"), AT$13=""), "DV input required", "")), "") ->  | AU12: =IF(COUNTA($H$12:AT$12)<SUM($11:$11), IF(AND(AU$446:AU$495=""), IF(AND(AT$13<>"", AU$13=""), "DV input required", AT$12), IF(AND(OR(AU$446:AU$495="DV"), AU$13=""), "DV input required", "")), "") ->  | AV12: =IF(COUNTA($H$12:AU$12)<SUM($11:$11), IF(AND(AV$446:AV$495=""), IF(AND(AU$13<>"", AV$13=""), "DV input required", AU$12), IF(AND(OR(AV$446:AV$495="DV"), AV$13=""), "DV input required", "")), "") ->  | AW12: =IF(COUNTA($H$12:AV$12)<SUM($11:$11), IF(AND(AW$446:AW$495=""), IF(AND(AV$13<>"", AW$13=""), "DV input required", AV$12), IF(AND(OR(AW$446:AW$495="DV"), AW$13=""), "DV input required", "")), "") ->  | AX12: =IF(COUNTA($H$12:AW$12)<SUM($11:$11), IF(AND(AX$446:AX$495=""), IF(AND(AW$13<>"", AX$13=""), "DV input required", AW$12), IF(AND(OR(AX$446:AX$495="DV"), AX$13=""), "DV input required", "")), "") ->  | AY12: =IF(COUNTA($H$12:AX$12)<SUM($11:$11), IF(AND(AY$446:AY$495=""), IF(AND(AX$13<>"", AY$13=""), "DV input required", AX$12), IF(AND(OR(AY$446:AY$495="DV"), AY$13=""), "DV input required", "")), "") ->  | AZ12: =IF(COUNTA($H$12:AY$12)<SUM($11:$11), IF(AND(AZ$446:AZ$495=""), IF(AND(AY$13<>"", AZ$13=""), "DV input required", AY$12), IF(AND(OR(AZ$446:AZ$495="DV"), AZ$13=""), "DV input required", "")), "") ->  | BA12: =IF(COUNTA($H$12:AZ$12)<SUM($11:$11), IF(AND(BA$446:BA$495=""), IF(AND(AZ$13<>"", BA$13=""), "DV input required", AZ$12), IF(AND(OR(BA$446:BA$495="DV"), BA$13=""), "DV input required", "")), "") ->  | BB12: =IF(COUNTA($H$12:BA$12)<SUM($11:$11), IF(AND(BB$446:BB$495=""), IF(AND(BA$13<>"", BB$13=""), "DV input required", BA$12), IF(AND(OR(BB$446:BB$495="DV"), BB$13=""), "DV input required", "")), "") ->  | BC12: =IF(COUNTA($H$12:BB$12)<SUM($11:$11), IF(AND(BC$446:BC$495=""), IF(AND(BB$13<>"", BC$13=""), "DV input required", BB$12), IF(AND(OR(BC$446:BC$495="DV"), BC$13=""), "DV input required", "")), "") ->  | BD12: =IF(COUNTA($H$12:BC$12)<SUM($11:$11), IF(AND(BD$446:BD$495=""), IF(AND(BC$13<>"", BD$13=""), "DV input required", BC$12), IF(AND(OR(BD$446:BD$495="DV"), BD$13=""), "DV input required", "")), "") ->  | BE12: =IF(COUNTA($H$12:BD$12)<SUM($11:$11), IF(AND(BE$446:BE$495=""), IF(AND(BD$13<>"", BE$13=""), "DV input required", BD$12), IF(AND(OR(BE$446:BE$495="DV"), BE$13=""), "DV input required", "")), "") ->  | BF12: =IF(COUNTA($H$12:BE$12)<SUM($11:$11), IF(AND(BF$446:BF$495=""), IF(AND(BE$13<>"", BF$13=""), "DV input required", BE$12), IF(AND(OR(BF$446:BF$495="DV"), BF$13=""), "DV input required", "")), "") ->  | BG12: =IF(COUNTA($H$12:BF$12)<SUM($11:$11), IF(AND(BG$446:BG$495=""), IF(AND(BF$13<>"", BG$13=""), "DV input required", BF$12), IF(AND(OR(BG$446:BG$495="DV"), BG$13=""), "DV input required", "")), "") ->  | BH12: =IF(COUNTA($H$12:BG$12)<SUM($11:$11), IF(AND(BH$446:BH$495=""), IF(AND(BG$13<>"", BH$13=""), "DV input required", BG$12), IF(AND(OR(BH$446:BH$495="DV"), BH$13=""), "DV input required", "")), "") ->  | BI12: =IF(COUNTA($H$12:BH$12)<SUM($11:$11), IF(AND(BI$446:BI$495=""), IF(AND(BH$13<>"", BI$13=""), "DV input required", BH$12), IF(AND(OR(BI$446:BI$495="DV"), BI$13=""), "DV input required", "")), "") ->  | BJ12: =IF(COUNTA($H$12:BI$12)<SUM($11:$11), IF(AND(BJ$446:BJ$495=""), IF(AND(BI$13<>"", BJ$13=""), "DV input required", BI$12), IF(AND(OR(BJ$446:BJ$495="DV"), BJ$13=""), "DV input required", "")), "") ->  | BK12: =IF(COUNTA($H$12:BJ$12)<SUM($11:$11), IF(AND(BK$446:BK$495=""), IF(AND(BJ$13<>"", BK$13=""), "DV input required", BJ$12), IF(AND(OR(BK$446:BK$495="DV"), BK$13=""), "DV input required", "")), "") ->  | BL12: =IF(COUNTA($H$12:BK$12)<SUM($11:$11), IF(AND(BL$446:BL$495=""), IF(AND(BK$13<>"", BL$13=""), "DV input required", BK$12), IF(AND(OR(BL$446:BL$495="DV"), BL$13=""), "DV input required", "")), "") ->  | BM12: =IF(COUNTA($H$12:BL$12)<SUM($11:$11), IF(AND(BM$446:BM$495=""), IF(AND(BL$13<>"", BM$13=""), "DV input required", BL$12), IF(AND(OR(BM$446:BM$495="DV"), BM$13=""), "DV input required", "")), "") ->  | BN12: =IF(COUNTA($H$12:BM$12)<SUM($11:$11), IF(AND(BN$446:BN$495=""), IF(AND(BM$13<>"", BN$13=""), "DV input required", BM$12), IF(AND(OR(BN$446:BN$495="DV"), BN$13=""), "DV input required", "")), "") ->  | BO12: =IF(COUNTA($H$12:BN$12)<SUM($11:$11), IF(AND(BO$446:BO$495=""), IF(AND(BN$13<>"", BO$13=""), "DV input required", BN$12), IF(AND(OR(BO$446:BO$495="DV"), BO$13=""), "DV input required", "")), "") ->  | BP12: =IF(COUNTA($H$12:BO$12)<SUM($11:$11), IF(AND(BP$446:BP$495=""), IF(AND(BO$13<>"", BP$13=""), "DV input required", BO$12), IF(AND(OR(BP$446:BP$495="DV"), BP$13=""), "DV input required", "")), "") ->  | BQ12: =IF(COUNTA($H$12:BP$12)<SUM($11:$11), IF(AND(BQ$446:BQ$495=""), IF(AND(BP$13<>"", BQ$13=""), "DV input required", BP$12), IF(AND(OR(BQ$446:BQ$495="DV"), BQ$13=""), "DV input required", "")), "") ->  | BR12: =IF(COUNTA($H$12:BQ$12)<SUM($11:$11), IF(AND(BR$446:BR$495=""), IF(AND(BQ$13<>"", BR$13=""), "DV input required", BQ$12), IF(AND(OR(BR$446:BR$495="DV"), BR$13=""), "DV input required", "")), "") ->  | BS12: =IF(COUNTA($H$12:BR$12)<SUM($11:$11), IF(AND(BS$446:BS$495=""), IF(AND(BR$13<>"", BS$13=""), "DV input required", BR$12), IF(AND(OR(BS$446:BS$495="DV"), BS$13=""), "DV input required", "")), "") ->  | BT12: =IF(COUNTA($H$12:BS$12)<SUM($11:$11), IF(AND(BT$446:BT$495=""), IF(AND(BS$13<>"", BT$13=""), "DV input required", BS$12), IF(AND(OR(BT$446:BT$495="DV"), BT$13=""), "DV input required", "")), "") ->  | BU12: =IF(COUNTA($H$12:BT$12)<SUM($11:$11), IF(AND(BU$446:BU$495=""), IF(AND(BT$13<>"", BU$13=""), "DV input required", BT$12), IF(AND(OR(BU$446:BU$495="DV"), BU$13=""), "DV input required", "")), "") ->  | BV12: =IF(COUNTA($H$12:BU$12)<SUM($11:$11), IF(AND(BV$446:BV$495=""), IF(AND(BU$13<>"", BV$13=""), "DV input required", BU$12), IF(AND(OR(BV$446:BV$495="DV"), BV$13=""), "DV input required", "")), "") ->  | BW12: =IF(COUNTA($H$12:BV$12)<SUM($11:$11), IF(AND(BW$446:BW$495=""), IF(AND(BV$13<>"", BW$13=""), "DV input required", BV$12), IF(AND(OR(BW$446:BW$495="DV"), BW$13=""), "DV input required", "")), "") ->  | BX12: =IF(COUNTA($H$12:BW$12)<SUM($11:$11), IF(AND(BX$446:BX$495=""), IF(AND(BW$13<>"", BX$13=""), "DV input required", BW$12), IF(AND(OR(BX$446:BX$495="DV"), BX$13=""), "DV input required", "")), "") ->  | BY12: =IF(COUNTA($H$12:BX$12)<SUM($11:$11), IF(AND(BY$446:BY$495=""), IF(AND(BX$13<>"", BY$13=""), "DV input required", BX$12), IF(AND(OR(BY$446:BY$495="DV"), BY$13=""), "DV input required", "")), "") ->  | BZ12: =IF(COUNTA($H$12:BY$12)<SUM($11:$11), IF(AND(BZ$446:BZ$495=""), IF(AND(BY$13<>"", BZ$13=""), "DV input required", BY$12), IF(AND(OR(BZ$446:BZ$495="DV"), BZ$13=""), "DV input required", "")), "") -> 
E13: Diminishing value multiplier | M13: 2 | N13: 2 | O13: 2 | P13: 2 | Q13: 2
D15: Starting TAB and actual gross capex - As commissioned ($m, nominal)
E16: Asset Class | G16: ="TAB (opening as at "&$H$4&")" -> TAB (opening as at 2014-15) | H16: ="Actual gross capex ("&H$4&")" -> Actual gross capex (2014-15) | I16: =IF(COUNTA($H$16:H$16)<SUM($11:$11), "Actual gross capex ("&I$4&")", "") -> Actual gross capex (2015-16) | J16: =IF(COUNTA($H$16:I$16)<SUM($11:$11), "Actual gross capex ("&J$4&")", "") -> Actual gross capex (2016-17) | K16: =IF(COUNTA($H$16:J$16)<SUM($11:$11), "Actual gross capex ("&K$4&")", "") -> Actual gross capex (2017-18) | L16: =IF(COUNTA($H$16:K$16)<SUM($11:$11), "Actual gross capex ("&L$4&")", "") -> Actual gross capex (2018-19) | M16: =IF(COUNTA($H$16:L$16)<SUM($11:$11), "Actual gross capex ("&M$4&")", "") -> Actual gross capex (2019-20) | N16: =IF(COUNTA($H$16:M$16)<SUM($11:$11), "Actual gross capex ("&N$4&")", "") -> Actual gross capex (2020-21) | O16: =IF(COUNTA($H$16:N$16)<SUM($11:$11), "Actual gross capex ("&O$4&")", "") -> Actual gross capex (2021-22) | P16: =IF(COUNTA($H$16:O$16)<SUM($11:$11), "Actual gross capex ("&P$4&")", "") -> Actual gross capex (2022-23) | Q16: =IF(COUNTA($H$16:P$16)<SUM($11:$11), "Actual gross capex ("&Q$4&")", "") -> Actual gross capex (2023-24) | R16: =IF(COUNTA($H$16:Q$16)<SUM($11:$11), "Actual gross capex ("&R$4&")", "") ->  | S16: =IF(COUNTA($H$16:R$16)<SUM($11:$11), "Actual gross capex ("&S$4&")", "") ->  | T16: =IF(COUNTA($H$16:S$16)<SUM($11:$11), "Actual gross capex ("&T$4&")", "") ->  | U16: =IF(COUNTA($H$16:T$16)<SUM($11:$11), "Actual gross capex ("&U$4&")", "") ->  | V16: =IF(COUNTA($H$16:U$16)<SUM($11:$11), "Actual gross capex ("&V$4&")", "") ->  | W16: =IF(COUNTA($H$16:V$16)<SUM($11:$11), "Actual gross capex ("&W$4&")", "") ->  | X16: =IF(COUNTA($H$16:W$16)<SUM($11:$11), "Actual gross capex ("&X$4&")", "") ->  | Y16: =IF(COUNTA($H$16:X$16)<SUM($11:$11), "Actual gross capex ("&Y$4&")", "") ->  | Z16: =IF(COUNTA($H$16:Y$16)<SUM($11:$11), "Actual gross capex ("&Z$4&")", "") ->  | AA16: =IF(COUNTA($H$16:Z$16)<SUM($11:$11), "Actual gross capex ("&AA$4&")", "") ->  | AB16: =IF(COUNTA($H$16:AA$16)<SUM($11:$11), "Actual gross capex ("&AB$4&")", "") ->  | AC16: =IF(COUNTA($H$16:AB$16)<SUM($11:$11), "Actual gross capex ("&AC$4&")", "") ->  | AD16: =IF(COUNTA($H$16:AC$16)<SUM($11:$11), "Actual gross capex ("&AD$4&")", "") ->  | AE16: =IF(COUNTA($H$16:AD$16)<SUM($11:$11), "Actual gross capex ("&AE$4&")", "") ->  | AF16: =IF(COUNTA($H$16:AE$16)<SUM($11:$11), "Actual gross capex ("&AF$4&")", "") ->  | AG16: =IF(COUNTA($H$16:AF$16)<SUM($11:$11), "Actual gross capex ("&AG$4&")", "") ->  | AH16: =IF(COUNTA($H$16:AG$16)<SUM($11:$11), "Actual gross capex ("&AH$4&")", "") ->  | AI16: =IF(COUNTA($H$16:AH$16)<SUM($11:$11), "Actual gross capex ("&AI$4&")", "") ->  | AJ16: =IF(COUNTA($H$16:AI$16)<SUM($11:$11), "Actual gross capex ("&AJ$4&")", "") ->  | AK16: =IF(COUNTA($H$16:AJ$16)<SUM($11:$11), "Actual gross capex ("&AK$4&")", "") ->  | AL16: =IF(COUNTA($H$16:AK$16)<SUM($11:$11), "Actual gross capex ("&AL$4&")", "") ->  | AM16: =IF(COUNTA($H$16:AL$16)<SUM($11:$11), "Actual gross capex ("&AM$4&")", "") ->  | AN16: =IF(COUNTA($H$16:AM$16)<SUM($11:$11), "Actual gross capex ("&AN$4&")", "") ->  | AO16: =IF(COUNTA($H$16:AN$16)<SUM($11:$11), "Actual gross capex ("&AO$4&")", "") ->  | AP16: =IF(COUNTA($H$16:AO$16)<SUM($11:$11), "Actual gross capex ("&AP$4&")", "") ->  | AQ16: =IF(COUNTA($H$16:AP$16)<SUM($11:$11), "Actual gross capex ("&AQ$4&")", "") ->  | AR16: =IF(COUNTA($H$16:AQ$16)<SUM($11:$11), "Actual gross capex ("&AR$4&")", "") ->  | AS16: =IF(COUNTA($H$16:AR$16)<SUM($11:$11), "Actual gross capex ("&AS$4&")", "") ->  | AT16: =IF(COUNTA($H$16:AS$16)<SUM($11:$11), "Actual gross capex ("&AT$4&")", "") ->  | AU16: =IF(COUNTA($H$16:AT$16)<SUM($11:$11), "Actual gross capex ("&AU$4&")", "") ->  | AV16: =IF(COUNTA($H$16:AU$16)<SUM($11:$11), "Actual gross capex ("&AV$4&")", "") ->  | AW16: =IF(COUNTA($H$16:AV$16)<SUM($11:$11), "Actual gross capex ("&AW$4&")", "") ->  | AX16: =IF(COUNTA($H$16:AW$16)<SUM($11:$11), "Actual gross capex ("&AX$4&")", "") ->  | AY16: =IF(COUNTA($H$16:AX$16)<SUM($11:$11), "Actual gross capex ("&AY$4&")", "") ->  | AZ16: =IF(COUNTA($H$16:AY$16)<SUM($11:$11), "Actual gross capex ("&AZ$4&")", "") ->  | BA16: =IF(COUNTA($H$16:AZ$16)<SUM($11:$11), "Actual gross capex ("&BA$4&")", "") ->  | BB16: =IF(COUNTA($H$16:BA$16)<SUM($11:$11), "Actual gross capex ("&BB$4&")", "") ->  | BC16: =IF(COUNTA($H$16:BB$16)<SUM($11:$11), "Actual gross capex ("&BC$4&")", "") ->  | BD16: =IF(COUNTA($H$16:BC$16)<SUM($11:$11), "Actual gross capex ("&BD$4&")", "") ->  | BE16: =IF(COUNTA($H$16:BD$16)<SUM($11:$11), "Actual gross capex ("&BE$4&")", "") ->  | BF16: =IF(COUNTA($H$16:BE$16)<SUM($11:$11), "Actual gross capex ("&BF$4&")", "") ->  | BG16: =IF(COUNTA($H$16:BF$16)<SUM($11:$11), "Actual gross capex ("&BG$4&")", "") ->  | BH16: =IF(COUNTA($H$16:BG$16)<SUM($11:$11), "Actual gross capex ("&BH$4&")", "") ->  | BI16: =IF(COUNTA($H$16:BH$16)<SUM($11:$11), "Actual gross capex ("&BI$4&")", "") ->  | BJ16: =IF(COUNTA($H$16:BI$16)<SUM($11:$11), "Actual gross capex ("&BJ$4&")", "") ->  | BK16: =IF(COUNTA($H$16:BJ$16)<SUM($11:$11), "Actual gross capex ("&BK$4&")", "") ->  | BL16: =IF(COUNTA($H$16:BK$16)<SUM($11:$11), "Actual gross capex ("&BL$4&")", "") ->  | BM16: =IF(COUNTA($H$16:BL$16)<SUM($11:$11), "Actual gross capex ("&BM$4&")", "") ->  | BN16: =IF(COUNTA($H$16:BM$16)<SUM($11:$11), "Actual gross capex ("&BN$4&")", "") ->  | BO16: =IF(COUNTA($H$16:BN$16)<SUM($11:$11), "Actual gross capex ("&BO$4&")", "") ->  | BP16: =IF(COUNTA($H$16:BO$16)<SUM($11:$11), "Actual gross capex ("&BP$4&")", "") ->  | BQ16: =IF(COUNTA($H$16:BP$16)<SUM($11:$11), "Actual gross capex ("&BQ$4&")", "") ->  | BR16: =IF(COUNTA($H$16:BQ$16)<SUM($11:$11), "Actual gross capex ("&BR$4&")", "") ->  | BS16: =IF(COUNTA($H$16:BR$16)<SUM($11:$11), "Actual gross capex ("&BS$4&")", "") ->  | BT16: =IF(COUNTA($H$16:BS$16)<SUM($11:$11), "Actual gross capex ("&BT$4&")", "") ->  | BU16: =IF(COUNTA($H$16:BT$16)<SUM($11:$11), "Actual gross capex ("&BU$4&")", "") ->  | BV16: =IF(COUNTA($H$16:BU$16)<SUM($11:$11), "Actual gross capex ("&BV$4&")", "") ->  | BW16: =IF(COUNTA($H$16:BV$16)<SUM($11:$11), "Actual gross capex ("&BW$4&")", "") ->  | BX16: =IF(COUNTA($H$16:BW$16)<SUM($11:$11), "Actual gross capex ("&BX$4&")", "") ->  | BY16: =IF(COUNTA($H$16:BX$16)<SUM($11:$11), "Actual gross capex ("&BY$4&")", "") ->  | BZ16: =IF(COUNTA($H$16:BY$16)<SUM($11:$11), "Actual gross capex ("&BZ$4&")", "") -> 
D18: 1 | E18: ='RAB input'!E24 -> Transmission Lines and Cables | G18: 195.9204974 | H18: =INDEX('RAB input'!$H$24:$XFD$73, MATCH($E18, 'RAB input'!$E$24:$E$73, 0), MATCH(H$4, RAB_years, 0)) -> 0 | I18: =INDEX('RAB input'!$H$24:$XFD$73, MATCH($E18, 'RAB input'!$E$24:$E$73, 0), MATCH(I$4, RAB_years, 0)) -> 0 | J18: =INDEX('RAB input'!$H$24:$XFD$73, MATCH($E18, 'RAB input'!$E$24:$E$73, 0), MATCH(J$4, RAB_years, 0)) -> 0 | K18: =INDEX('RAB input'!$H$24:$XFD$73, MATCH($E18, 'RAB input'!$E$24:$E$73, 0), MATCH(K$4, RAB_years, 0)) -> 0 | L18: =INDEX('RAB input'!$H$24:$XFD$73, MATCH($E18, 'RAB input'!$E$24:$E$73, 0), MATCH(L$4, RAB_years, 0)) -> 0 | M18: =INDEX('RAB input'!$H$24:$XFD$73, MATCH($E18, 'RAB input'!$E$24:$E$73, 0), MATCH(M$4, RAB_years, 0)) -> 0 | N18: =INDEX('RAB input'!$H$24:$XFD$73, MATCH($E18, 'RAB input'!$E$24:$E$73, 0), MATCH(N$4, RAB_years, 0)) -> 0 | O18: =INDEX('RAB input'!$H$24:$XFD$73, MATCH($E18, 'RAB input'!$E$24:$E$73, 0), MATCH(O$4, RAB_years, 0)) -> 0 | P18: =INDEX('RAB input'!$H$24:$XFD$73, MATCH($E18, 'RAB input'!$E$24:$E$73, 0), MATCH(P$4, RAB_years, 0)) -> 0 | Q18: =INDEX('RAB input'!$H$24:$XFD$73, MATCH($E18, 'RAB input'!$E$24:$E$73, 0), MATCH(Q$4, RAB_years, 0)) -> 0 | R18: =INDEX('RAB input'!$H$24:$XFD$73, MATCH($E18, 'RAB input'!$E$24:$E$73, 0), MATCH(R$4, RAB_years, 0)) -> 0 | S18: =INDEX('RAB input'!$H$24:$XFD$73, MATCH($E18, 'RAB input'!$E$24:$E$73, 0), MATCH(S$4, RAB_years, 0)) -> 0 | T18: =INDEX('RAB input'!$H$24:$XFD$73, MATCH($E18, 'RAB input'!$E$24:$E$73, 0), MATCH(T$4, RAB_years, 0)) -> 0 | U18: =INDEX('RAB input'!$H$24:$XFD$73, MATCH($E18, 'RAB input'!$E$24:$E$73, 0), MATCH(U$4, RAB_years, 0)) -> 0 | V18: =INDEX('RAB input'!$H$24:$XFD$73, MATCH($E18, 'RAB input'!$E$24:$E$73, 0), MATCH(V$4, RAB_years, 0)) -> 0 | W18: =INDEX('RAB input'!$H$24:$XFD$73, MATCH($E18, 'RAB input'!$E$24:$E$73, 0), MATCH(W$4, RAB_years, 0)) -> 0 | X18: =INDEX('RAB input'!$H$24:$XFD$73, MATCH($E18, 'RAB input'!$E$24:$E$73, 0), MATCH(X$4, RAB_years, 0)) -> 0 | Y18: =INDEX('RAB input'!$H$24:$XFD$73, MATCH($E18, 'RAB input'!$E$24:$E$73, 0), MATCH(Y$4, RAB_years, 0)) -> 0 | Z18: =INDEX('RAB input'!$H$24:$XFD$73, MATCH($E18, 'RAB input'!$E$24:$E$73, 0), MATCH(Z$4, RAB_years, 0)) -> 0 | AA18: =INDEX('RAB input'!$H$24:$XFD$73, MATCH($E18, 'RAB input'!$E$24:$E$73, 0), MATCH(AA$4, RAB_years, 0)) -> 0 | AB18: =INDEX('RAB input'!$H$24:$XFD$73, MATCH($E18, 'RAB input'!$E$24:$E$73, 0), MATCH(AB$4, RAB_years, 0)) -> 0 | AC18: =INDEX('RAB input'!$H$24:$XFD$73, MATCH($E18, 'RAB input'!$E$24:$E$73, 0), MATCH(AC$4, RAB_years, 0)) -> 0 | AD18: =INDEX('RAB input'!$H$24:$XFD$73, MATCH($E18, 'RAB input'!$E$24:$E$73, 0), MATCH(AD$4, RAB_years, 0)) -> 0 | AE18: =INDEX('RAB input'!$H$24:$XFD$73, MATCH($E18, 'RAB input'!$E$24:$E$73, 0), MATCH(AE$4, RAB_years, 0)) -> 0 | AF18: =INDEX('RAB input'!$H$24:$XFD$73, MATCH($E18, 'RAB input'!$E$24:$E$73, 0), MATCH(AF$4, RAB_years, 0)) -> 0 | AG18: =INDEX('RAB input'!$H$24:$XFD$73, MATCH($E18, 'RAB input'!$E$24:$E$73, 0), MATCH(AG$4, RAB_years, 0)) -> 0 | AH18: =INDEX('RAB input'!$H$24:$XFD$73, MATCH($E18, 'RAB input'!$E$24:$E$73, 0), MATCH(AH$4, RAB_years, 0)) -> 0 | AI18: =INDEX('RAB input'!$H$24:$XFD$73, MATCH($E18, 'RAB input'!$E$24:$E$73, 0), MATCH(AI$4, RAB_years, 0)) -> 0 | AJ18: =INDEX('RAB input'!$H$24:$XFD$73, MATCH($E18, 'RAB input'!$E$24:$E$73, 0), MATCH(AJ$4, RAB_years, 0)) -> 0 | AK18: =INDEX('RAB input'!$H$24:$XFD$73, MATCH($E18, 'RAB input'!$E$24:$E$73, 0), MATCH(AK$4, RAB_years, 0)) -> 0 | AL18: =INDEX('RAB input'!$H$24:$XFD$73, MATCH($E18, 'RAB input'!$E$24:$E$73, 0), MATCH(AL$4, RAB_years, 0)) -> 0 | AM18: =INDEX('RAB input'!$H$24:$XFD$73, MATCH($E18, 'RAB input'!$E$24:$E$73, 0), MATCH(AM$4, RAB_years, 0)) -> 0 | AN18: =INDEX('RAB input'!$H$24:$XFD$73, MATCH($E18, 'RAB input'!$E$24:$E$73, 0), MATCH(AN$4, RAB_years, 0)) -> 0 | AO18: =INDEX('RAB input'!$H$24:$XFD$73, MATCH($E18, 'RAB input'!$E$24:$E$73, 0), MATCH(AO$4, RAB_years, 0)) -> 0 | AP18: =INDEX('RAB input'!$H$24:$XFD$73, MATCH($E18, 'RAB input'!$E$24:$E$73, 0), MATCH(AP$4, RAB_years, 0)) -> 0 | AQ18: =INDEX('RAB input'!$H$24:$XFD$73, MATCH($E18, 'RAB input'!$E$24:$E$73, 0), MATCH(AQ$4, RAB_years, 0)) -> 0 | AR18: =INDEX('RAB input'!$H$24:$XFD$73, MATCH($E18, 'RAB input'!$E$24:$E$73, 0), MATCH(AR$4, RAB_years, 0)) -> 0 | AS18: =INDEX('RAB input'!$H$24:$XFD$73, MATCH($E18, 'RAB input'!$E$24:$E$73, 0), MATCH(AS$4, RAB_years, 0)) -> 0 | AT18: =INDEX('RAB input'!$H$24:$XFD$73, MATCH($E18, 'RAB input'!$E$24:$E$73, 0), MATCH(AT$4, RAB_years, 0)) -> 0 | AU18: =INDEX('RAB input'!$H$24:$XFD$73, MATCH($E18, 'RAB input'!$E$24:$E$73, 0), MATCH(AU$4, RAB_years, 0)) -> 0 | AV18: =INDEX('RAB input'!$H$24:$XFD$73, MATCH($E18, 'RAB input'!$E$24:$E$73, 0), MATCH(AV$4, RAB_years, 0)) -> 0 | AW18: =INDEX('RAB input'!$H$24:$XFD$73, MATCH($E18, 'RAB input'!$E$24:$E$73, 0), MATCH(AW$4, RAB_years, 0)) -> 0 | AX18: =INDEX('RAB input'!$H$24:$XFD$73, MATCH($E18, 'RAB input'!$E$24:$E$73, 0), MATCH(AX$4, RAB_years, 0)) -> 0 | AY18: =INDEX('RAB input'!$H$24:$XFD$73, MATCH($E18, 'RAB input'!$E$24:$E$73, 0), MATCH(AY$4, RAB_years, 0)) -> 0 | AZ18: =INDEX('RAB input'!$H$24:$XFD$73, MATCH($E18, 'RAB input'!$E$24:$E$73, 0), MATCH(AZ$4, RAB_years, 0)) -> 0 | BA18: =INDEX('RAB input'!$H$24:$XFD$73, MATCH($E18, 'RAB input'!$E$24:$E$73, 0), MATCH(BA$4, RAB_years, 0)) -> 0 | BB18: =INDEX('RAB input'!$H$24:$XFD$73, MATCH($E18, 'RAB input'!$E$24:$E$73, 0), MATCH(BB$4, RAB_years, 0)) -> 0 | BC18: =INDEX('RAB input'!$H$24:$XFD$73, MATCH($E18, 'RAB input'!$E$24:$E$73, 0), MATCH(BC$4, RAB_years, 0)) -> 0 | BD18: =INDEX('RAB input'!$H$24:$XFD$73, MATCH($E18, 'RAB input'!$E$24:$E$73, 0), MATCH(BD$4, RAB_years, 0)) -> 0 | BE18: =INDEX('RAB input'!$H$24:$XFD$73, MATCH($E18, 'RAB input'!$E$24:$E$73, 0), MATCH(BE$4, RAB_years, 0)) -> 0 | BF18: =INDEX('RAB input'!$H$24:$XFD$73, MATCH($E18, 'RAB input'!$E$24:$E$73, 0), MATCH(BF$4, RAB_years, 0)) -> 0 | BG18: =INDEX('RAB input'!$H$24:$XFD$73, MATCH($E18, 'RAB input'!$E$24:$E$73, 0), MATCH(BG$4, RAB_years, 0)) -> 0 | BH18: =INDEX('RAB input'!$H$24:$XFD$73, MATCH($E18, 'RAB input'!$E$24:$E$73, 0), MATCH(BH$4, RAB_years, 0)) -> 0 | BI18: =INDEX('RAB input'!$H$24:$XFD$73, MATCH($E18, 'RAB input'!$E$24:$E$73, 0), MATCH(BI$4, RAB_years, 0)) -> 0 | BJ18: =INDEX('RAB input'!$H$24:$XFD$73, MATCH($E18, 'RAB input'!$E$24:$E$73, 0), MATCH(BJ$4, RAB_years, 0)) -> 0 | BK18: =INDEX('RAB input'!$H$24:$XFD$73, MATCH($E18, 'RAB input'!$E$24:$E$73, 0), MATCH(BK$4, RAB_years, 0)) -> 0 | BL18: =INDEX('RAB input'!$H$24:$XFD$73, MATCH($E18, 'RAB input'!$E$24:$E$73, 0), MATCH(BL$4, RAB_years, 0)) -> 0 | BM18: =INDEX('RAB input'!$H$24:$XFD$73, MATCH($E18, 'RAB input'!$E$24:$E$73, 0), MATCH(BM$4, RAB_years, 0)) -> 0 | BN18: =INDEX('RAB input'!$H$24:$XFD$73, MATCH($E18, 'RAB input'!$E$24:$E$73, 0), MATCH(BN$4, RAB_years, 0)) -> 0 | BO18: =INDEX('RAB input'!$H$24:$XFD$73, MATCH($E18, 'RAB input'!$E$24:$E$73, 0), MATCH(BO$4, RAB_years, 0)) -> 0 | BP18: =INDEX('RAB input'!$H$24:$XFD$73, MATCH($E18, 'RAB input'!$E$24:$E$73, 0), MATCH(BP$4, RAB_years, 0)) -> 0 | BQ18: =INDEX('RAB input'!$H$24:$XFD$73, MATCH($E18, 'RAB input'!$E$24:$E$73, 0), MATCH(BQ$4, RAB_years, 0)) -> 0 | BR18: =INDEX('RAB input'!$H$24:$XFD$73, MATCH($E18, 'RAB input'!$E$24:$E$73, 0), MATCH(BR$4, RAB_years, 0)) -> 0 | BS18: =INDEX('RAB input'!$H$24:$XFD$73, MATCH($E18, 'RAB input'!$E$24:$E$73, 0), MATCH(BS$4, RAB_years, 0)) -> 0 | BT18: =INDEX('RAB input'!$H$24:$XFD$73, MATCH($E18, 'RAB input'!$E$24:$E$73, 0), MATCH(BT$4, RAB_years, 0)) -> 0 | BU18: =INDEX('RAB input'!$H$24:$XFD$73, MATCH($E18, 'RAB input'!$E$24:$E$73, 0), MATCH(BU$4, RAB_years, 0)) -> 0 | BV18: =INDEX('RAB input'!$H$24:$XFD$73, MATCH($E18, 'RAB input'!$E$24:$E$73, 0), MATCH(BV$4, RAB_years, 0)) -> 0 | BW18: =INDEX('RAB input'!$H$24:$XFD$73, MATCH($E18, 'RAB input'!$E$24:$E$73, 0), MATCH(BW$4, RAB_years, 0)) -> 0 | BX18: =INDEX('RAB input'!$H$24:$XFD$73, MATCH($E18, 'RAB input'!$E$24:$E$73, 0), MATCH(BX$4, RAB_years, 0)) -> 0 | BY18: =INDEX('RAB input'!$H$24:$XFD$73, MATCH($E18, 'RAB input'!$E$24:$E$73, 0), MATCH(BY$4, RAB_years, 0)) -> 0 | BZ18: =INDEX('RAB input'!$H$24:$XFD$73, MATCH($E18, 'RAB input'!$E$24:$E$73, 0), MATCH(BZ$4, RAB_years, 0)) -> 0
D19: 2 | E19: ='RAB input'!E25 -> Transmission Substations | G19: 261.6347009 | H19: =INDEX('RAB input'!$H$24:$XFD$73, MATCH($E19, 'RAB input'!$E$24:$E$73, 0), MATCH(H$4, RAB_years, 0)) -> 0 | I19: =INDEX('RAB input'!$H$24:$XFD$73, MATCH($E19, 'RAB input'!$E$24:$E$73, 0), MATCH(I$4, RAB_years, 0)) -> 0 | J19: =INDEX('RAB input'!$H$24:$XFD$73, MATCH($E19, 'RAB input'!$E$24:$E$73, 0), MATCH(J$4, RAB_years, 0)) -> 0 | K19: =INDEX('RAB input'!$H$24:$XFD$73, MATCH($E19, 'RAB input'!$E$24:$E$73, 0), MATCH(K$4, RAB_years, 0)) -> 0 | L19: =INDEX('RAB input'!$H$24:$XFD$73, MATCH($E19, 'RAB input'!$E$24:$E$73, 0), MATCH(L$4, RAB_years, 0)) -> 0 | M19: =INDEX('RAB input'!$H$24:$XFD$73, MATCH($E19, 'RAB input'!$E$24:$E$73, 0), MATCH(M$4, RAB_years, 0)) -> 0 | N19: =INDEX('RAB input'!$H$24:$XFD$73, MATCH($E19, 'RAB input'!$E$24:$E$73, 0), MATCH(N$4, RAB_years, 0)) -> 0 | O19: =INDEX('RAB input'!$H$24:$XFD$73, MATCH($E19, 'RAB input'!$E$24:$E$73, 0), MATCH(O$4, RAB_years, 0)) -> 0 | P19: =INDEX('RAB input'!$H$24:$XFD$73, MATCH($E19, 'RAB input'!$E$24:$E$73, 0), MATCH(P$4, RAB_years, 0)) -> 0 | Q19: =INDEX('RAB input'!$H$24:$XFD$73, MATCH($E19, 'RAB input'!$E$24:$E$73, 0), MATCH(Q$4, RAB_years, 0)) -> 0 | R19: =INDEX('RAB input'!$H$24:$XFD$73, MATCH($E19, 'RAB input'!$E$24:$E$73, 0), MATCH(R$4, RAB_years, 0)) -> 0 | S19: =INDEX('RAB input'!$H$24:$XFD$73, MATCH($E19, 'RAB input'!$E$24:$E$73, 0), MATCH(S$4, RAB_years, 0)) -> 0 | T19: =INDEX('RAB input'!$H$24:$XFD$73, MATCH($E19, 'RAB input'!$E$24:$E$73, 0), MATCH(T$4, RAB_years, 0)) -> 0 | U19: =INDEX('RAB input'!$H$24:$XFD$73, MATCH($E19, 'RAB input'!$E$24:$E$73, 0), MATCH(U$4, RAB_years, 0)) -> 0 | V19: =INDEX('RAB input'!$H$24:$XFD$73, MATCH($E19, 'RAB input'!$E$24:$E$73, 0), MATCH(V$4, RAB_years, 0)) -> 0 | W19: =INDEX('RAB input'!$H$24:$XFD$73, MATCH($E19, 'RAB input'!$E$24:$E$73, 0), MATCH(W$4, RAB_years, 0)) -> 0 | X19: =INDEX('RAB input'!$H$24:$XFD$73, MATCH($E19, 'RAB input'!$E$24:$E$73, 0), MATCH(X$4, RAB_years, 0)) -> 0 | Y19: =INDEX('RAB input'!$H$24:$XFD$73, MATCH($E19, 'RAB input'!$E$24:$E$73, 0), MATCH(Y$4, RAB_years, 0)) -> 0 | Z19: =INDEX('RAB input'!$H$24:$XFD$73, MATCH($E19, 'RAB input'!$E$24:$E$73, 0), MATCH(Z$4, RAB_years, 0)) -> 0 | AA19: =INDEX('RAB input'!$H$24:$XFD$73, MATCH($E19, 'RAB input'!$E$24:$E$73, 0), MATCH(AA$4, RAB_years, 0)) -> 0 | AB19: =INDEX('RAB input'!$H$24:$XFD$73, MATCH($E19, 'RAB input'!$E$24:$E$73, 0), MATCH(AB$4, RAB_years, 0)) -> 0 | AC19: =INDEX('RAB input'!$H$24:$XFD$73, MATCH($E19, 'RAB input'!$E$24:$E$73, 0), MATCH(AC$4, RAB_years, 0)) -> 0 | AD19: =INDEX('RAB input'!$H$24:$XFD$73, MATCH($E19, 'RAB input'!$E$24:$E$73, 0), MATCH(AD$4, RAB_years, 0)) -> 0 | AE19: =INDEX('RAB input'!$H$24:$XFD$73, MATCH($E19, 'RAB input'!$E$24:$E$73, 0), MATCH(AE$4, RAB_years, 0)) -> 0 | AF19: =INDEX('RAB input'!$H$24:$XFD$73, MATCH($E19, 'RAB input'!$E$24:$E$73, 0), MATCH(AF$4, RAB_years, 0)) -> 0 | AG19: =INDEX('RAB input'!$H$24:$XFD$73, MATCH($E19, 'RAB input'!$E$24:$E$73, 0), MATCH(AG$4, RAB_years, 0)) -> 0 | AH19: =INDEX('RAB input'!$H$24:$XFD$73, MATCH($E19, 'RAB input'!$E$24:$E$73, 0), MATCH(AH$4, RAB_years, 0)) -> 0 | AI19: =INDEX('RAB input'!$H$24:$XFD$73, MATCH($E19, 'RAB input'!$E$24:$E$73, 0), MATCH(AI$4, RAB_years, 0)) -> 0 | AJ19: =INDEX('RAB input'!$H$24:$XFD$73, MATCH($E19, 'RAB input'!$E$24:$E$73, 0), MATCH(AJ$4, RAB_years, 0)) -> 0 | AK19: =INDEX('RAB input'!$H$24:$XFD$73, MATCH($E19, 'RAB input'!$E$24:$E$73, 0), MATCH(AK$4, RAB_years, 0)) -> 0 | AL19: =INDEX('RAB input'!$H$24:$XFD$73, MATCH($E19, 'RAB input'!$E$24:$E$73, 0), MATCH(AL$4, RAB_years, 0)) -> 0 | AM19: =INDEX('RAB input'!$H$24:$XFD$73, MATCH($E19, 'RAB input'!$E$24:$E$73, 0), MATCH(AM$4, RAB_years, 0)) -> 0 | AN19: =INDEX('RAB input'!$H$24:$XFD$73, MATCH($E19, 'RAB input'!$E$24:$E$73, 0), MATCH(AN$4, RAB_years, 0)) -> 0 | AO19: =INDEX('RAB input'!$H$24:$XFD$73, MATCH($E19, 'RAB input'!$E$24:$E$73, 0), MATCH(AO$4, RAB_years, 0)) -> 0 | AP19: =INDEX('RAB input'!$H$24:$XFD$73, MATCH($E19, 'RAB input'!$E$24:$E$73, 0), MATCH(AP$4, RAB_years, 0)) -> 0 | AQ19: =INDEX('RAB input'!$H$24:$XFD$73, MATCH($E19, 'RAB input'!$E$24:$E$73, 0), MATCH(AQ$4, RAB_years, 0)) -> 0 | AR19: =INDEX('RAB input'!$H$24:$XFD$73, MATCH($E19, 'RAB input'!$E$24:$E$73, 0), MATCH(AR$4, RAB_years, 0)) -> 0 | AS19: =INDEX('RAB input'!$H$24:$XFD$73, MATCH($E19, 'RAB input'!$E$24:$E$73, 0), MATCH(AS$4, RAB_years, 0)) -> 0 | AT19: =INDEX('RAB input'!$H$24:$XFD$73, MATCH($E19, 'RAB input'!$E$24:$E$73, 0), MATCH(AT$4, RAB_years, 0)) -> 0 | AU19: =INDEX('RAB input'!$H$24:$XFD$73, MATCH($E19, 'RAB input'!$E$24:$E$73, 0), MATCH(AU$4, RAB_years, 0)) -> 0 | AV19: =INDEX('RAB input'!$H$24:$XFD$73, MATCH($E19, 'RAB input'!$E$24:$E$73, 0), MATCH(AV$4, RAB_years, 0)) -> 0 | AW19: =INDEX('RAB input'!$H$24:$XFD$73, MATCH($E19, 'RAB input'!$E$24:$E$73, 0), MATCH(AW$4, RAB_years, 0)) -> 0 | AX19: =INDEX('RAB input'!$H$24:$XFD$73, MATCH($E19, 'RAB input'!$E$24:$E$73, 0), MATCH(AX$4, RAB_years, 0)) -> 0 | AY19: =INDEX('RAB input'!$H$24:$XFD$73, MATCH($E19, 'RAB input'!$E$24:$E$73, 0), MATCH(AY$4, RAB_years, 0)) -> 0 | AZ19: =INDEX('RAB input'!$H$24:$XFD$73, MATCH($E19, 'RAB input'!$E$24:$E$73, 0), MATCH(AZ$4, RAB_years, 0)) -> 0 | BA19: =INDEX('RAB input'!$H$24:$XFD$73, MATCH($E19, 'RAB input'!$E$24:$E$73, 0), MATCH(BA$4, RAB_years, 0)) -> 0 | BB19: =INDEX('RAB input'!$H$24:$XFD$73, MATCH($E19, 'RAB input'!$E$24:$E$73, 0), MATCH(BB$4, RAB_years, 0)) -> 0 | BC19: =INDEX('RAB input'!$H$24:$XFD$73, MATCH($E19, 'RAB input'!$E$24:$E$73, 0), MATCH(BC$4, RAB_years, 0)) -> 0 | BD19: =INDEX('RAB input'!$H$24:$XFD$73, MATCH($E19, 'RAB input'!$E$24:$E$73, 0), MATCH(BD$4, RAB_years, 0)) -> 0 | BE19: =INDEX('RAB input'!$H$24:$XFD$73, MATCH($E19, 'RAB input'!$E$24:$E$73, 0), MATCH(BE$4, RAB_years, 0)) -> 0 | BF19: =INDEX('RAB input'!$H$24:$XFD$73, MATCH($E19, 'RAB input'!$E$24:$E$73, 0), MATCH(BF$4, RAB_years, 0)) -> 0 | BG19: =INDEX('RAB input'!$H$24:$XFD$73, MATCH($E19, 'RAB input'!$E$24:$E$73, 0), MATCH(BG$4, RAB_years, 0)) -> 0 | BH19: =INDEX('RAB input'!$H$24:$XFD$73, MATCH($E19, 'RAB input'!$E$24:$E$73, 0), MATCH(BH$4, RAB_years, 0)) -> 0 | BI19: =INDEX('RAB input'!$H$24:$XFD$73, MATCH($E19, 'RAB input'!$E$24:$E$73, 0), MATCH(BI$4, RAB_years, 0)) -> 0 | BJ19: =INDEX('RAB input'!$H$24:$XFD$73, MATCH($E19, 'RAB input'!$E$24:$E$73, 0), MATCH(BJ$4, RAB_years, 0)) -> 0 | BK19: =INDEX('RAB input'!$H$24:$XFD$73, MATCH($E19, 'RAB input'!$E$24:$E$73, 0), MATCH(BK$4, RAB_years, 0)) -> 0 | BL19: =INDEX('RAB input'!$H$24:$XFD$73, MATCH($E19, 'RAB input'!$E$24:$E$73, 0), MATCH(BL$4, RAB_years, 0)) -> 0 | BM19: =INDEX('RAB input'!$H$24:$XFD$73, MATCH($E19, 'RAB input'!$E$24:$E$73, 0), MATCH(BM$4, RAB_years, 0)) -> 0 | BN19: =INDEX('RAB input'!$H$24:$XFD$73, MATCH($E19, 'RAB input'!$E$24:$E$73, 0), MATCH(BN$4, RAB_years, 0)) -> 0 | BO19: =INDEX('RAB input'!$H$24:$XFD$73, MATCH($E19, 'RAB input'!$E$24:$E$73, 0), MATCH(BO$4, RAB_years, 0)) -> 0 | BP19: =INDEX('RAB input'!$H$24:$XFD$73, MATCH($E19, 'RAB input'!$E$24:$E$73, 0), MATCH(BP$4, RAB_years, 0)) -> 0 | BQ19: =INDEX('RAB input'!$H$24:$XFD$73, MATCH($E19, 'RAB input'!$E$24:$E$73, 0), MATCH(BQ$4, RAB_years, 0)) -> 0 | BR19: =INDEX('RAB input'!$H$24:$XFD$73, MATCH($E19, 'RAB input'!$E$24:$E$73, 0), MATCH(BR$4, RAB_years, 0)) -> 0 | BS19: =INDEX('RAB input'!$H$24:$XFD$73, MATCH($E19, 'RAB input'!$E$24:$E$73, 0), MATCH(BS$4, RAB_years, 0)) -> 0 | BT19: =INDEX('RAB input'!$H$24:$XFD$73, MATCH($E19, 'RAB input'!$E$24:$E$73, 0), MATCH(BT$4, RAB_years, 0)) -> 0 | BU19: =INDEX('RAB input'!$H$24:$XFD$73, MATCH($E19, 'RAB input'!$E$24:$E$73, 0), MATCH(BU$4, RAB_years, 0)) -> 0 | BV19: =INDEX('RAB input'!$H$24:$XFD$73, MATCH($E19, 'RAB input'!$E$24:$E$73, 0), MATCH(BV$4, RAB_years, 0)) -> 0 | BW19: =INDEX('RAB input'!$H$24:$XFD$73, MATCH($E19, 'RAB input'!$E$24:$E$73, 0), MATCH(BW$4, RAB_years, 0)) -> 0 | BX19: =INDEX('RAB input'!$H$24:$XFD$73, MATCH($E19, 'RAB input'!$E$24:$E$73, 0), MATCH(BX$4, RAB_years, 0)) -> 0 | BY19: =INDEX('RAB input'!$H$24:$XFD$73, MATCH($E19, 'RAB input'!$E$24:$E$73, 0), MATCH(BY$4, RAB_years, 0)) -> 0 | BZ19: =INDEX('RAB input'!$H$24:$XFD$73, MATCH($E19, 'RAB input'!$E$24:$E$73, 0), MATCH(BZ$4, RAB_years, 0)) -> 0
D20: 3 | E20: ='RAB input'!E26 -> Protection and Control | G20: 17.1168527 | H20: =INDEX('RAB input'!$H$24:$XFD$73, MATCH($E20, 'RAB input'!$E$24:$E$73, 0), MATCH(H$4, RAB_years, 0)) -> 0 | I20: =INDEX('RAB input'!$H$24:$XFD$73, MATCH($E20, 'RAB input'!$E$24:$E$73, 0), MATCH(I$4, RAB_years, 0)) -> 0 | J20: =INDEX('RAB input'!$H$24:$XFD$73, MATCH($E20, 'RAB input'!$E$24:$E$73, 0), MATCH(J$4, RAB_years, 0)) -> 0 | K20: =INDEX('RAB input'!$H$24:$XFD$73, MATCH($E20, 'RAB input'!$E$24:$E$73, 0), MATCH(K$4, RAB_years, 0)) -> 0 | L20: =INDEX('RAB input'!$H$24:$XFD$73, MATCH($E20, 'RAB input'!$E$24:$E$73, 0), MATCH(L$4, RAB_years, 0)) -> 0 | M20: =INDEX('RAB input'!$H$24:$XFD$73, MATCH($E20, 'RAB input'!$E$24:$E$73, 0), MATCH(M$4, RAB_years, 0)) -> 0 | N20: =INDEX('RAB input'!$H$24:$XFD$73, MATCH($E20, 'RAB input'!$E$24:$E$73, 0), MATCH(N$4, RAB_years, 0)) -> 0 | O20: =INDEX('RAB input'!$H$24:$XFD$73, MATCH($E20, 'RAB input'!$E$24:$E$73, 0), MATCH(O$4, RAB_years, 0)) -> 0 | P20: =INDEX('RAB input'!$H$24:$XFD$73, MATCH($E20, 'RAB input'!$E$24:$E$73, 0), MATCH(P$4, RAB_years, 0)) -> 0 | Q20: =INDEX('RAB input'!$H$24:$XFD$73, MATCH($E20, 'RAB input'!$E$24:$E$73, 0), MATCH(Q$4, RAB_years, 0)) -> 0 | R20: =INDEX('RAB input'!$H$24:$XFD$73, MATCH($E20, 'RAB input'!$E$24:$E$73, 0), MATCH(R$4, RAB_years, 0)) -> 0 | S20: =INDEX('RAB input'!$H$24:$XFD$73, MATCH($E20, 'RAB input'!$E$24:$E$73, 0), MATCH(S$4, RAB_years, 0)) -> 0 | T20: =INDEX('RAB input'!$H$24:$XFD$73, MATCH($E20, 'RAB input'!$E$24:$E$73, 0), MATCH(T$4, RAB_years, 0)) -> 0 | U20: =INDEX('RAB input'!$H$24:$XFD$73, MATCH($E20, 'RAB input'!$E$24:$E$73, 0), MATCH(U$4, RAB_years, 0)) -> 0 | V20: =INDEX('RAB input'!$H$24:$XFD$73, MATCH($E20, 'RAB input'!$E$24:$E$73, 0), MATCH(V$4, RAB_years, 0)) -> 0 | W20: =INDEX('RAB input'!$H$24:$XFD$73, MATCH($E20, 'RAB input'!$E$24:$E$73, 0), MATCH(W$4, RAB_years, 0)) -> 0 | X20: =INDEX('RAB input'!$H$24:$XFD$73, MATCH($E20, 'RAB input'!$E$24:$E$73, 0), MATCH(X$4, RAB_years, 0)) -> 0 | Y20: =INDEX('RAB input'!$H$24:$XFD$73, MATCH($E20, 'RAB input'!$E$24:$E$73, 0), MATCH(Y$4, RAB_years, 0)) -> 0 | Z20: =INDEX('RAB input'!$H$24:$XFD$73, MATCH($E20, 'RAB input'!$E$24:$E$73, 0), MATCH(Z$4, RAB_years, 0)) -> 0 | AA20: =INDEX('RAB input'!$H$24:$XFD$73, MATCH($E20, 'RAB input'!$E$24:$E$73, 0), MATCH(AA$4, RAB_years, 0)) -> 0 | AB20: =INDEX('RAB input'!$H$24:$XFD$73, MATCH($E20, 'RAB input'!$E$24:$E$73, 0), MATCH(AB$4, RAB_years, 0)) -> 0 | AC20: =INDEX('RAB input'!$H$24:$XFD$73, MATCH($E20, 'RAB input'!$E$24:$E$73, 0), MATCH(AC$4, RAB_years, 0)) -> 0 | AD20: =INDEX('RAB input'!$H$24:$XFD$73, MATCH($E20, 'RAB input'!$E$24:$E$73, 0), MATCH(AD$4, RAB_years, 0)) -> 0 | AE20: =INDEX('RAB input'!$H$24:$XFD$73, MATCH($E20, 'RAB input'!$E$24:$E$73, 0), MATCH(AE$4, RAB_years, 0)) -> 0 | AF20: =INDEX('RAB input'!$H$24:$XFD$73, MATCH($E20, 'RAB input'!$E$24:$E$73, 0), MATCH(AF$4, RAB_years, 0)) -> 0 | AG20: =INDEX('RAB input'!$H$24:$XFD$73, MATCH($E20, 'RAB input'!$E$24:$E$73, 0), MATCH(AG$4, RAB_years, 0)) -> 0 | AH20: =INDEX('RAB input'!$H$24:$XFD$73, MATCH($E20, 'RAB input'!$E$24:$E$73, 0), MATCH(AH$4, RAB_years, 0)) -> 0 | AI20: =INDEX('RAB input'!$H$24:$XFD$73, MATCH($E20, 'RAB input'!$E$24:$E$73, 0), MATCH(AI$4, RAB_years, 0)) -> 0 | AJ20: =INDEX('RAB input'!$H$24:$XFD$73, MATCH($E20, 'RAB input'!$E$24:$E$73, 0), MATCH(AJ$4, RAB_years, 0)) -> 0 | AK20: =INDEX('RAB input'!$H$24:$XFD$73, MATCH($E20, 'RAB input'!$E$24:$E$73, 0), MATCH(AK$4, RAB_years, 0)) -> 0 | AL20: =INDEX('RAB input'!$H$24:$XFD$73, MATCH($E20, 'RAB input'!$E$24:$E$73, 0), MATCH(AL$4, RAB_years, 0)) -> 0 | AM20: =INDEX('RAB input'!$H$24:$XFD$73, MATCH($E20, 'RAB input'!$E$24:$E$73, 0), MATCH(AM$4, RAB_years, 0)) -> 0 | AN20: =INDEX('RAB input'!$H$24:$XFD$73, MATCH($E20, 'RAB input'!$E$24:$E$73, 0), MATCH(AN$4, RAB_years, 0)) -> 0 | AO20: =INDEX('RAB input'!$H$24:$XFD$73, MATCH($E20, 'RAB input'!$E$24:$E$73, 0), MATCH(AO$4, RAB_years, 0)) -> 0 | AP20: =INDEX('RAB input'!$H$24:$XFD$73, MATCH($E20, 'RAB input'!$E$24:$E$73, 0), MATCH(AP$4, RAB_years, 0)) -> 0 | AQ20: =INDEX('RAB input'!$H$24:$XFD$73, MATCH($E20, 'RAB input'!$E$24:$E$73, 0), MATCH(AQ$4, RAB_years, 0)) -> 0 | AR20: =INDEX('RAB input'!$H$24:$XFD$73, MATCH($E20, 'RAB input'!$E$24:$E$73, 0), MATCH(AR$4, RAB_years, 0)) -> 0 | AS20: =INDEX('RAB input'!$H$24:$XFD$73, MATCH($E20, 'RAB input'!$E$24:$E$73, 0), MATCH(AS$4, RAB_years, 0)) -> 0 | AT20: =INDEX('RAB input'!$H$24:$XFD$73, MATCH($E20, 'RAB input'!$E$24:$E$73, 0), MATCH(AT$4, RAB_years, 0)) -> 0 | AU20: =INDEX('RAB input'!$H$24:$XFD$73, MATCH($E20, 'RAB input'!$E$24:$E$73, 0), MATCH(AU$4, RAB_years, 0)) -> 0 | AV20: =INDEX('RAB input'!$H$24:$XFD$73, MATCH($E20, 'RAB input'!$E$24:$E$73, 0), MATCH(AV$4, RAB_years, 0)) -> 0 | AW20: =INDEX('RAB input'!$H$24:$XFD$73, MATCH($E20, 'RAB input'!$E$24:$E$73, 0), MATCH(AW$4, RAB_years, 0)) -> 0 | AX20: =INDEX('RAB input'!$H$24:$XFD$73, MATCH($E20, 'RAB input'!$E$24:$E$73, 0), MATCH(AX$4, RAB_years, 0)) -> 0 | AY20: =INDEX('RAB input'!$H$24:$XFD$73, MATCH($E20, 'RAB input'!$E$24:$E$73, 0), MATCH(AY$4, RAB_years, 0)) -> 0 | AZ20: =INDEX('RAB input'!$H$24:$XFD$73, MATCH($E20, 'RAB input'!$E$24:$E$73, 0), MATCH(AZ$4, RAB_years, 0)) -> 0 | BA20: =INDEX('RAB input'!$H$24:$XFD$73, MATCH($E20, 'RAB input'!$E$24:$E$73, 0), MATCH(BA$4, RAB_years, 0)) -> 0 | BB20: =INDEX('RAB input'!$H$24:$XFD$73, MATCH($E20, 'RAB input'!$E$24:$E$73, 0), MATCH(BB$4, RAB_years, 0)) -> 0 | BC20: =INDEX('RAB input'!$H$24:$XFD$73, MATCH($E20, 'RAB input'!$E$24:$E$73, 0), MATCH(BC$4, RAB_years, 0)) -> 0 | BD20: =INDEX('RAB input'!$H$24:$XFD$73, MATCH($E20, 'RAB input'!$E$24:$E$73, 0), MATCH(BD$4, RAB_years, 0)) -> 0 | BE20: =INDEX('RAB input'!$H$24:$XFD$73, MATCH($E20, 'RAB input'!$E$24:$E$73, 0), MATCH(BE$4, RAB_years, 0)) -> 0 | BF20: =INDEX('RAB input'!$H$24:$XFD$73, MATCH($E20, 'RAB input'!$E$24:$E$73, 0), MATCH(BF$4, RAB_years, 0)) -> 0 | BG20: =INDEX('RAB input'!$H$24:$XFD$73, MATCH($E20, 'RAB input'!$E$24:$E$73, 0), MATCH(BG$4, RAB_years, 0)) -> 0 | BH20: =INDEX('RAB input'!$H$24:$XFD$73, MATCH($E20, 'RAB input'!$E$24:$E$73, 0), MATCH(BH$4, RAB_years, 0)) -> 0 | BI20: =INDEX('RAB input'!$H$24:$XFD$73, MATCH($E20, 'RAB input'!$E$24:$E$73, 0), MATCH(BI$4, RAB_years, 0)) -> 0 | BJ20: =INDEX('RAB input'!$H$24:$XFD$73, MATCH($E20, 'RAB input'!$E$24:$E$73, 0), MATCH(BJ$4, RAB_years, 0)) -> 0 | BK20: =INDEX('RAB input'!$H$24:$XFD$73, MATCH($E20, 'RAB input'!$E$24:$E$73, 0), MATCH(BK$4, RAB_years, 0)) -> 0 | BL20: =INDEX('RAB input'!$H$24:$XFD$73, MATCH($E20, 'RAB input'!$E$24:$E$73, 0), MATCH(BL$4, RAB_years, 0)) -> 0 | BM20: =INDEX('RAB input'!$H$24:$XFD$73, MATCH($E20, 'RAB input'!$E$24:$E$73, 0), MATCH(BM$4, RAB_years, 0)) -> 0 | BN20: =INDEX('RAB input'!$H$24:$XFD$73, MATCH($E20, 'RAB input'!$E$24:$E$73, 0), MATCH(BN$4, RAB_years, 0)) -> 0 | BO20: =INDEX('RAB input'!$H$24:$XFD$73, MATCH($E20, 'RAB input'!$E$24:$E$73, 0), MATCH(BO$4, RAB_years, 0)) -> 0 | BP20: =INDEX('RAB input'!$H$24:$XFD$73, MATCH($E20, 'RAB input'!$E$24:$E$73, 0), MATCH(BP$4, RAB_years, 0)) -> 0 | BQ20: =INDEX('RAB input'!$H$24:$XFD$73, MATCH($E20, 'RAB input'!$E$24:$E$73, 0), MATCH(BQ$4, RAB_years, 0)) -> 0 | BR20: =INDEX('RAB input'!$H$24:$XFD$73, MATCH($E20, 'RAB input'!$E$24:$E$73, 0), MATCH(BR$4, RAB_years, 0)) -> 0 | BS20: =INDEX('RAB input'!$H$24:$XFD$73, MATCH($E20, 'RAB input'!$E$24:$E$73, 0), MATCH(BS$4, RAB_years, 0)) -> 0 | BT20: =INDEX('RAB input'!$H$24:$XFD$73, MATCH($E20, 'RAB input'!$E$24:$E$73, 0), MATCH(BT$4, RAB_years, 0)) -> 0 | BU20: =INDEX('RAB input'!$H$24:$XFD$73, MATCH($E20, 'RAB input'!$E$24:$E$73, 0), MATCH(BU$4, RAB_years, 0)) -> 0 | BV20: =INDEX('RAB input'!$H$24:$XFD$73, MATCH($E20, 'RAB input'!$E$24:$E$73, 0), MATCH(BV$4, RAB_years, 0)) -> 0 | BW20: =INDEX('RAB input'!$H$24:$XFD$73, MATCH($E20, 'RAB input'!$E$24:$E$73, 0), MATCH(BW$4, RAB_years, 0)) -> 0 | BX20: =INDEX('RAB input'!$H$24:$XFD$73, MATCH($E20, 'RAB input'!$E$24:$E$73, 0), MATCH(BX$4, RAB_years, 0)) -> 0 | BY20: =INDEX('RAB input'!$H$24:$XFD$73, MATCH($E20, 'RAB input'!$E$24:$E$73, 0), MATCH(BY$4, RAB_years, 0)) -> 0 | BZ20: =INDEX('RAB input'!$H$24:$XFD$73, MATCH($E20, 'RAB input'!$E$24:$E$73, 0), MATCH(BZ$4, RAB_years, 0)) -> 0
D21: 4 | E21: ='RAB input'!E27 -> Refurbishment | G21: 11.27318929 | H21: =INDEX('RAB input'!$H$24:$XFD$73, MATCH($E21, 'RAB input'!$E$24:$E$73, 0), MATCH(H$4, RAB_years, 0)) -> 0 | I21: =INDEX('RAB input'!$H$24:$XFD$73, MATCH($E21, 'RAB input'!$E$24:$E$73, 0), MATCH(I$4, RAB_years, 0)) -> 0 | J21: =INDEX('RAB input'!$H$24:$XFD$73, MATCH($E21, 'RAB input'!$E$24:$E$73, 0), MATCH(J$4, RAB_years, 0)) -> 0 | K21: =INDEX('RAB input'!$H$24:$XFD$73, MATCH($E21, 'RAB input'!$E$24:$E$73, 0), MATCH(K$4, RAB_years, 0)) -> 0 | L21: =INDEX('RAB input'!$H$24:$XFD$73, MATCH($E21, 'RAB input'!$E$24:$E$73, 0), MATCH(L$4, RAB_years, 0)) -> 0 | M21: =INDEX('RAB input'!$H$24:$XFD$73, MATCH($E21, 'RAB input'!$E$24:$E$73, 0), MATCH(M$4, RAB_years, 0)) -> 0 | N21: =INDEX('RAB input'!$H$24:$XFD$73, MATCH($E21, 'RAB input'!$E$24:$E$73, 0), MATCH(N$4, RAB_years, 0)) -> 0 | O21: =INDEX('RAB input'!$H$24:$XFD$73, MATCH($E21, 'RAB input'!$E$24:$E$73, 0), MATCH(O$4, RAB_years, 0)) -> 0 | P21: =INDEX('RAB input'!$H$24:$XFD$73, MATCH($E21, 'RAB input'!$E$24:$E$73, 0), MATCH(P$4, RAB_years, 0)) -> 0 | Q21: =INDEX('RAB input'!$H$24:$XFD$73, MATCH($E21, 'RAB input'!$E$24:$E$73, 0), MATCH(Q$4, RAB_years, 0)) -> 0 | R21: =INDEX('RAB input'!$H$24:$XFD$73, MATCH($E21, 'RAB input'!$E$24:$E$73, 0), MATCH(R$4, RAB_years, 0)) -> 0 | S21: =INDEX('RAB input'!$H$24:$XFD$73, MATCH($E21, 'RAB input'!$E$24:$E$73, 0), MATCH(S$4, RAB_years, 0)) -> 0 | T21: =INDEX('RAB input'!$H$24:$XFD$73, MATCH($E21, 'RAB input'!$E$24:$E$73, 0), MATCH(T$4, RAB_years, 0)) -> 0 | U21: =INDEX('RAB input'!$H$24:$XFD$73, MATCH($E21, 'RAB input'!$E$24:$E$73, 0), MATCH(U$4, RAB_years, 0)) -> 0 | V21: =INDEX('RAB input'!$H$24:$XFD$73, MATCH($E21, 'RAB input'!$E$24:$E$73, 0), MATCH(V$4, RAB_years, 0)) -> 0 | W21: =INDEX('RAB input'!$H$24:$XFD$73, MATCH($E21, 'RAB input'!$E$24:$E$73, 0), MATCH(W$4, RAB_years, 0)) -> 0 | X21: =INDEX('RAB input'!$H$24:$XFD$73, MATCH($E21, 'RAB input'!$E$24:$E$73, 0), MATCH(X$4, RAB_years, 0)) -> 0 | Y21: =INDEX('RAB input'!$H$24:$XFD$73, MATCH($E21, 'RAB input'!$E$24:$E$73, 0), MATCH(Y$4, RAB_years, 0)) -> 0 | Z21: =INDEX('RAB input'!$H$24:$XFD$73, MATCH($E21, 'RAB input'!$E$24:$E$73, 0), MATCH(Z$4, RAB_years, 0)) -> 0 | AA21: =INDEX('RAB input'!$H$24:$XFD$73, MATCH($E21, 'RAB input'!$E$24:$E$73, 0), MATCH(AA$4, RAB_years, 0)) -> 0 | AB21: =INDEX('RAB input'!$H$24:$XFD$73, MATCH($E21, 'RAB input'!$E$24:$E$73, 0), MATCH(AB$4, RAB_years, 0)) -> 0 | AC21: =INDEX('RAB input'!$H$24:$XFD$73, MATCH($E21, 'RAB input'!$E$24:$E$73, 0), MATCH(AC$4, RAB_years, 0)) -> 0 | AD21: =INDEX('RAB input'!$H$24:$XFD$73, MATCH($E21, 'RAB input'!$E$24:$E$73, 0), MATCH(AD$4, RAB_years, 0)) -> 0 | AE21: =INDEX('RAB input'!$H$24:$XFD$73, MATCH($E21, 'RAB input'!$E$24:$E$73, 0), MATCH(AE$4, RAB_years, 0)) -> 0 | AF21: =INDEX('RAB input'!$H$24:$XFD$73, MATCH($E21, 'RAB input'!$E$24:$E$73, 0), MATCH(AF$4, RAB_years, 0)) -> 0 | AG21: =INDEX('RAB input'!$H$24:$XFD$73, MATCH($E21, 'RAB input'!$E$24:$E$73, 0), MATCH(AG$4, RAB_years, 0)) -> 0 | AH21: =INDEX('RAB input'!$H$24:$XFD$73, MATCH($E21, 'RAB input'!$E$24:$E$73, 0), MATCH(AH$4, RAB_years, 0)) -> 0 | AI21: =INDEX('RAB input'!$H$24:$XFD$73, MATCH($E21, 'RAB input'!$E$24:$E$73, 0), MATCH(AI$4, RAB_years, 0)) -> 0 | AJ21: =INDEX('RAB input'!$H$24:$XFD$73, MATCH($E21, 'RAB input'!$E$24:$E$73, 0), MATCH(AJ$4, RAB_years, 0)) -> 0 | AK21: =INDEX('RAB input'!$H$24:$XFD$73, MATCH($E21, 'RAB input'!$E$24:$E$73, 0), MATCH(AK$4, RAB_years, 0)) -> 0 | AL21: =INDEX('RAB input'!$H$24:$XFD$73, MATCH($E21, 'RAB input'!$E$24:$E$73, 0), MATCH(AL$4, RAB_years, 0)) -> 0 | AM21: =INDEX('RAB input'!$H$24:$XFD$73, MATCH($E21, 'RAB input'!$E$24:$E$73, 0), MATCH(AM$4, RAB_years, 0)) -> 0 | AN21: =INDEX('RAB input'!$H$24:$XFD$73, MATCH($E21, 'RAB input'!$E$24:$E$73, 0), MATCH(AN$4, RAB_years, 0)) -> 0 | AO21: =INDEX('RAB input'!$H$24:$XFD$73, MATCH($E21, 'RAB input'!$E$24:$E$73, 0), MATCH(AO$4, RAB_years, 0)) -> 0 | AP21: =INDEX('RAB input'!$H$24:$XFD$73, MATCH($E21, 'RAB input'!$E$24:$E$73, 0), MATCH(AP$4, RAB_years, 0)) -> 0 | AQ21: =INDEX('RAB input'!$H$24:$XFD$73, MATCH($E21, 'RAB input'!$E$24:$E$73, 0), MATCH(AQ$4, RAB_years, 0)) -> 0 | AR21: =INDEX('RAB input'!$H$24:$XFD$73, MATCH($E21, 'RAB input'!$E$24:$E$73, 0), MATCH(AR$4, RAB_years, 0)) -> 0 | AS21: =INDEX('RAB input'!$H$24:$XFD$73, MATCH($E21, 'RAB input'!$E$24:$E$73, 0), MATCH(AS$4, RAB_years, 0)) -> 0 | AT21: =INDEX('RAB input'!$H$24:$XFD$73, MATCH($E21, 'RAB input'!$E$24:$E$73, 0), MATCH(AT$4, RAB_years, 0)) -> 0 | AU21: =INDEX('RAB input'!$H$24:$XFD$73, MATCH($E21, 'RAB input'!$E$24:$E$73, 0), MATCH(AU$4, RAB_years, 0)) -> 0 | AV21: =INDEX('RAB input'!$H$24:$XFD$73, MATCH($E21, 'RAB input'!$E$24:$E$73, 0), MATCH(AV$4, RAB_years, 0)) -> 0 | AW21: =INDEX('RAB input'!$H$24:$XFD$73, MATCH($E21, 'RAB input'!$E$24:$E$73, 0), MATCH(AW$4, RAB_years, 0)) -> 0 | AX21: =INDEX('RAB input'!$H$24:$XFD$73, MATCH($E21, 'RAB input'!$E$24:$E$73, 0), MATCH(AX$4, RAB_years, 0)) -> 0 | AY21: =INDEX('RAB input'!$H$24:$XFD$73, MATCH($E21, 'RAB input'!$E$24:$E$73, 0), MATCH(AY$4, RAB_years, 0)) -> 0 | AZ21: =INDEX('RAB input'!$H$24:$XFD$73, MATCH($E21, 'RAB input'!$E$24:$E$73, 0), MATCH(AZ$4, RAB_years, 0)) -> 0 | BA21: =INDEX('RAB input'!$H$24:$XFD$73, MATCH($E21, 'RAB input'!$E$24:$E$73, 0), MATCH(BA$4, RAB_years, 0)) -> 0 | BB21: =INDEX('RAB input'!$H$24:$XFD$73, MATCH($E21, 'RAB input'!$E$24:$E$73, 0), MATCH(BB$4, RAB_years, 0)) -> 0 | BC21: =INDEX('RAB input'!$H$24:$XFD$73, MATCH($E21, 'RAB input'!$E$24:$E$73, 0), MATCH(BC$4, RAB_years, 0)) -> 0 | BD21: =INDEX('RAB input'!$H$24:$XFD$73, MATCH($E21, 'RAB input'!$E$24:$E$73, 0), MATCH(BD$4, RAB_years, 0)) -> 0 | BE21: =INDEX('RAB input'!$H$24:$XFD$73, MATCH($E21, 'RAB input'!$E$24:$E$73, 0), MATCH(BE$4, RAB_years, 0)) -> 0 | BF21: =INDEX('RAB input'!$H$24:$XFD$73, MATCH($E21, 'RAB input'!$E$24:$E$73, 0), MATCH(BF$4, RAB_years, 0)) -> 0 | BG21: =INDEX('RAB input'!$H$24:$XFD$73, MATCH($E21, 'RAB input'!$E$24:$E$73, 0), MATCH(BG$4, RAB_years, 0)) -> 0 | BH21: =INDEX('RAB input'!$H$24:$XFD$73, MATCH($E21, 'RAB input'!$E$24:$E$73, 0), MATCH(BH$4, RAB_years, 0)) -> 0 | BI21: =INDEX('RAB input'!$H$24:$XFD$73, MATCH($E21, 'RAB input'!$E$24:$E$73, 0), MATCH(BI$4, RAB_years, 0)) -> 0 | BJ21: =INDEX('RAB input'!$H$24:$XFD$73, MATCH($E21, 'RAB input'!$E$24:$E$73, 0), MATCH(BJ$4, RAB_years, 0)) -> 0 | BK21: =INDEX('RAB input'!$H$24:$XFD$73, MATCH($E21, 'RAB input'!$E$24:$E$73, 0), MATCH(BK$4, RAB_years, 0)) -> 0 | BL21: =INDEX('RAB input'!$H$24:$XFD$73, MATCH($E21, 'RAB input'!$E$24:$E$73, 0), MATCH(BL$4, RAB_years, 0)) -> 0 | BM21: =INDEX('RAB input'!$H$24:$XFD$73, MATCH($E21, 'RAB input'!$E$24:$E$73, 0), MATCH(BM$4, RAB_years, 0)) -> 0 | BN21: =INDEX('RAB input'!$H$24:$XFD$73, MATCH($E21, 'RAB input'!$E$24:$E$73, 0), MATCH(BN$4, RAB_years, 0)) -> 0 | BO21: =INDEX('RAB input'!$H$24:$XFD$73, MATCH($E21, 'RAB input'!$E$24:$E$73, 0), MATCH(BO$4, RAB_years, 0)) -> 0 | BP21: =INDEX('RAB input'!$H$24:$XFD$73, MATCH($E21, 'RAB input'!$E$24:$E$73, 0), MATCH(BP$4, RAB_years, 0)) -> 0 | BQ21: =INDEX('RAB input'!$H$24:$XFD$73, MATCH($E21, 'RAB input'!$E$24:$E$73, 0), MATCH(BQ$4, RAB_years, 0)) -> 0 | BR21: =INDEX('RAB input'!$H$24:$XFD$73, MATCH($E21, 'RAB input'!$E$24:$E$73, 0), MATCH(BR$4, RAB_years, 0)) -> 0 | BS21: =INDEX('RAB input'!$H$24:$XFD$73, MATCH($E21, 'RAB input'!$E$24:$E$73, 0), MATCH(BS$4, RAB_years, 0)) -> 0 | BT21: =INDEX('RAB input'!$H$24:$XFD$73, MATCH($E21, 'RAB input'!$E$24:$E$73, 0), MATCH(BT$4, RAB_years, 0)) -> 0 | BU21: =INDEX('RAB input'!$H$24:$XFD$73, MATCH($E21, 'RAB input'!$E$24:$E$73, 0), MATCH(BU$4, RAB_years, 0)) -> 0 | BV21: =INDEX('RAB input'!$H$24:$XFD$73, MATCH($E21, 'RAB input'!$E$24:$E$73, 0), MATCH(BV$4, RAB_years, 0)) -> 0 | BW21: =INDEX('RAB input'!$H$24:$XFD$73, MATCH($E21, 'RAB input'!$E$24:$E$73, 0), MATCH(BW$4, RAB_years, 0)) -> 0 | BX21: =INDEX('RAB input'!$H$24:$XFD$73, MATCH($E21, 'RAB input'!$E$24:$E$73, 0), MATCH(BX$4, RAB_years, 0)) -> 0 | BY21: =INDEX('RAB input'!$H$24:$XFD$73, MATCH($E21, 'RAB input'!$E$24:$E$73, 0), MATCH(BY$4, RAB_years, 0)) -> 0 | BZ21: =INDEX('RAB input'!$H$24:$XFD$73, MATCH($E21, 'RAB input'!$E$24:$E$73, 0), MATCH(BZ$4, RAB_years, 0)) -> 0
D22: 5 | E22: ='RAB input'!E28 -> Other | G22: 0.4181310852 | H22: =INDEX('RAB input'!$H$24:$XFD$73, MATCH($E22, 'RAB input'!$E$24:$E$73, 0), MATCH(H$4, RAB_years, 0)) -> 0 | I22: =INDEX('RAB input'!$H$24:$XFD$73, MATCH($E22, 'RAB input'!$E$24:$E$73, 0), MATCH(I$4, RAB_years, 0)) -> 0 | J22: =INDEX('RAB input'!$H$24:$XFD$73, MATCH($E22, 'RAB input'!$E$24:$E$73, 0), MATCH(J$4, RAB_years, 0)) -> 0 | K22: =INDEX('RAB input'!$H$24:$XFD$73, MATCH($E22, 'RAB input'!$E$24:$E$73, 0), MATCH(K$4, RAB_years, 0)) -> 0 | L22: =INDEX('RAB input'!$H$24:$XFD$73, MATCH($E22, 'RAB input'!$E$24:$E$73, 0), MATCH(L$4, RAB_years, 0)) -> 0 | M22: =INDEX('RAB input'!$H$24:$XFD$73, MATCH($E22, 'RAB input'!$E$24:$E$73, 0), MATCH(M$4, RAB_years, 0)) -> 0 | N22: =INDEX('RAB input'!$H$24:$XFD$73, MATCH($E22, 'RAB input'!$E$24:$E$73, 0), MATCH(N$4, RAB_years, 0)) -> 0 | O22: =INDEX('RAB input'!$H$24:$XFD$73, MATCH($E22, 'RAB input'!$E$24:$E$73, 0), MATCH(O$4, RAB_years, 0)) -> 0 | P22: =INDEX('RAB input'!$H$24:$XFD$73, MATCH($E22, 'RAB input'!$E$24:$E$73, 0), MATCH(P$4, RAB_years, 0)) -> 0 | Q22: =INDEX('RAB input'!$H$24:$XFD$73, MATCH($E22, 'RAB input'!$E$24:$E$73, 0), MATCH(Q$4, RAB_years, 0)) -> 0 | R22: =INDEX('RAB input'!$H$24:$XFD$73, MATCH($E22, 'RAB input'!$E$24:$E$73, 0), MATCH(R$4, RAB_years, 0)) -> 0 | S22: =INDEX('RAB input'!$H$24:$XFD$73, MATCH($E22, 'RAB input'!$E$24:$E$73, 0), MATCH(S$4, RAB_years, 0)) -> 0 | T22: =INDEX('RAB input'!$H$24:$XFD$73, MATCH($E22, 'RAB input'!$E$24:$E$73, 0), MATCH(T$4, RAB_years, 0)) -> 0 | U22: =INDEX('RAB input'!$H$24:$XFD$73, MATCH($E22, 'RAB input'!$E$24:$E$73, 0), MATCH(U$4, RAB_years, 0)) -> 0 | V22: =INDEX('RAB input'!$H$24:$XFD$73, MATCH($E22, 'RAB input'!$E$24:$E$73, 0), MATCH(V$4, RAB_years, 0)) -> 0 | W22: =INDEX('RAB input'!$H$24:$XFD$73, MATCH($E22, 'RAB input'!$E$24:$E$73, 0), MATCH(W$4, RAB_years, 0)) -> 0 | X22: =INDEX('RAB input'!$H$24:$XFD$73, MATCH($E22, 'RAB input'!$E$24:$E$73, 0), MATCH(X$4, RAB_years, 0)) -> 0 | Y22: =INDEX('RAB input'!$H$24:$XFD$73, MATCH($E22, 'RAB input'!$E$24:$E$73, 0), MATCH(Y$4, RAB_years, 0)) -> 0 | Z22: =INDEX('RAB input'!$H$24:$XFD$73, MATCH($E22, 'RAB input'!$E$24:$E$73, 0), MATCH(Z$4, RAB_years, 0)) -> 0 | AA22: =INDEX('RAB input'!$H$24:$XFD$73, MATCH($E22, 'RAB input'!$E$24:$E$73, 0), MATCH(AA$4, RAB_years, 0)) -> 0 | AB22: =INDEX('RAB input'!$H$24:$XFD$73, MATCH($E22, 'RAB input'!$E$24:$E$73, 0), MATCH(AB$4, RAB_years, 0)) -> 0 | AC22: =INDEX('RAB input'!$H$24:$XFD$73, MATCH($E22, 'RAB input'!$E$24:$E$73, 0), MATCH(AC$4, RAB_years, 0)) -> 0 | AD22: =INDEX('RAB input'!$H$24:$XFD$73, MATCH($E22, 'RAB input'!$E$24:$E$73, 0), MATCH(AD$4, RAB_years, 0)) -> 0 | AE22: =INDEX('RAB input'!$H$24:$XFD$73, MATCH($E22, 'RAB input'!$E$24:$E$73, 0), MATCH(AE$4, RAB_years, 0)) -> 0 | AF22: =INDEX('RAB input'!$H$24:$XFD$73, MATCH($E22, 'RAB input'!$E$24:$E$73, 0), MATCH(AF$4, RAB_years, 0)) -> 0 | AG22: =INDEX('RAB input'!$H$24:$XFD$73, MATCH($E22, 'RAB input'!$E$24:$E$73, 0), MATCH(AG$4, RAB_years, 0)) -> 0 | AH22: =INDEX('RAB input'!$H$24:$XFD$73, MATCH($E22, 'RAB input'!$E$24:$E$73, 0), MATCH(AH$4, RAB_years, 0)) -> 0 | AI22: =INDEX('RAB input'!$H$24:$XFD$73, MATCH($E22, 'RAB input'!$E$24:$E$73, 0), MATCH(AI$4, RAB_years, 0)) -> 0 | AJ22: =INDEX('RAB input'!$H$24:$XFD$73, MATCH($E22, 'RAB input'!$E$24:$E$73, 0), MATCH(AJ$4, RAB_years, 0)) -> 0 | AK22: =INDEX('RAB input'!$H$24:$XFD$73, MATCH($E22, 'RAB input'!$E$24:$E$73, 0), MATCH(AK$4, RAB_years, 0)) -> 0 | AL22: =INDEX('RAB input'!$H$24:$XFD$73, MATCH($E22, 'RAB input'!$E$24:$E$73, 0), MATCH(AL$4, RAB_years, 0)) -> 0 | AM22: =INDEX('RAB input'!$H$24:$XFD$73, MATCH($E22, 'RAB input'!$E$24:$E$73, 0), MATCH(AM$4, RAB_years, 0)) -> 0 | AN22: =INDEX('RAB input'!$H$24:$XFD$73, MATCH($E22, 'RAB input'!$E$24:$E$73, 0), MATCH(AN$4, RAB_years, 0)) -> 0 | AO22: =INDEX('RAB input'!$H$24:$XFD$73, MATCH($E22, 'RAB input'!$E$24:$E$73, 0), MATCH(AO$4, RAB_years, 0)) -> 0 | AP22: =INDEX('RAB input'!$H$24:$XFD$73, MATCH($E22, 'RAB input'!$E$24:$E$73, 0), MATCH(AP$4, RAB_years, 0)) -> 0 | AQ22: =INDEX('RAB input'!$H$24:$XFD$73, MATCH($E22, 'RAB input'!$E$24:$E$73, 0), MATCH(AQ$4, RAB_years, 0)) -> 0 | AR22: =INDEX('RAB input'!$H$24:$XFD$73, MATCH($E22, 'RAB input'!$E$24:$E$73, 0), MATCH(AR$4, RAB_years, 0)) -> 0 | AS22: =INDEX('RAB input'!$H$24:$XFD$73, MATCH($E22, 'RAB input'!$E$24:$E$73, 0), MATCH(AS$4, RAB_years, 0)) -> 0 | AT22: =INDEX('RAB input'!$H$24:$XFD$73, MATCH($E22, 'RAB input'!$E$24:$E$73, 0), MATCH(AT$4, RAB_years, 0)) -> 0 | AU22: =INDEX('RAB input'!$H$24:$XFD$73, MATCH($E22, 'RAB input'!$E$24:$E$73, 0), MATCH(AU$4, RAB_years, 0)) -> 0 | AV22: =INDEX('RAB input'!$H$24:$XFD$73, MATCH($E22, 'RAB input'!$E$24:$E$73, 0), MATCH(AV$4, RAB_years, 0)) -> 0 | AW22: =INDEX('RAB input'!$H$24:$XFD$73, MATCH($E22, 'RAB input'!$E$24:$E$73, 0), MATCH(AW$4, RAB_years, 0)) -> 0 | AX22: =INDEX('RAB input'!$H$24:$XFD$73, MATCH($E22, 'RAB input'!$E$24:$E$73, 0), MATCH(AX$4, RAB_years, 0)) -> 0 | AY22: =INDEX('RAB input'!$H$24:$XFD$73, MATCH($E22, 'RAB input'!$E$24:$E$73, 0), MATCH(AY$4, RAB_years, 0)) -> 0 | AZ22: =INDEX('RAB input'!$H$24:$XFD$73, MATCH($E22, 'RAB input'!$E$24:$E$73, 0), MATCH(AZ$4, RAB_years, 0)) -> 0 | BA22: =INDEX('RAB input'!$H$24:$XFD$73, MATCH($E22, 'RAB input'!$E$24:$E$73, 0), MATCH(BA$4, RAB_years, 0)) -> 0 | BB22: =INDEX('RAB input'!$H$24:$XFD$73, MATCH($E22, 'RAB input'!$E$24:$E$73, 0), MATCH(BB$4, RAB_years, 0)) -> 0 | BC22: =INDEX('RAB input'!$H$24:$XFD$73, MATCH($E22, 'RAB input'!$E$24:$E$73, 0), MATCH(BC$4, RAB_years, 0)) -> 0 | BD22: =INDEX('RAB input'!$H$24:$XFD$73, MATCH($E22, 'RAB input'!$E$24:$E$73, 0), MATCH(BD$4, RAB_years, 0)) -> 0 | BE22: =INDEX('RAB input'!$H$24:$XFD$73, MATCH($E22, 'RAB input'!$E$24:$E$73, 0), MATCH(BE$4, RAB_years, 0)) -> 0 | BF22: =INDEX('RAB input'!$H$24:$XFD$73, MATCH($E22, 'RAB input'!$E$24:$E$73, 0), MATCH(BF$4, RAB_years, 0)) -> 0 | BG22: =INDEX('RAB input'!$H$24:$XFD$73, MATCH($E22, 'RAB input'!$E$24:$E$73, 0), MATCH(BG$4, RAB_years, 0)) -> 0 | BH22: =INDEX('RAB input'!$H$24:$XFD$73, MATCH($E22, 'RAB input'!$E$24:$E$73, 0), MATCH(BH$4, RAB_years, 0)) -> 0 | BI22: =INDEX('RAB input'!$H$24:$XFD$73, MATCH($E22, 'RAB input'!$E$24:$E$73, 0), MATCH(BI$4, RAB_years, 0)) -> 0 | BJ22: =INDEX('RAB input'!$H$24:$XFD$73, MATCH($E22, 'RAB input'!$E$24:$E$73, 0), MATCH(BJ$4, RAB_years, 0)) -> 0 | BK22: =INDEX('RAB input'!$H$24:$XFD$73, MATCH($E22, 'RAB input'!$E$24:$E$73, 0), MATCH(BK$4, RAB_years, 0)) -> 0 | BL22: =INDEX('RAB input'!$H$24:$XFD$73, MATCH($E22, 'RAB input'!$E$24:$E$73, 0), MATCH(BL$4, RAB_years, 0)) -> 0 | BM22: =INDEX('RAB input'!$H$24:$XFD$73, MATCH($E22, 'RAB input'!$E$24:$E$73, 0), MATCH(BM$4, RAB_years, 0)) -> 0 | BN22: =INDEX('RAB input'!$H$24:$XFD$73, MATCH($E22, 'RAB input'!$E$24:$E$73, 0), MATCH(BN$4, RAB_years, 0)) -> 0 | BO22: =INDEX('RAB input'!$H$24:$XFD$73, MATCH($E22, 'RAB input'!$E$24:$E$73, 0), MATCH(BO$4, RAB_years, 0)) -> 0 | BP22: =INDEX('RAB input'!$H$24:$XFD$73, MATCH($E22, 'RAB input'!$E$24:$E$73, 0), MATCH(BP$4, RAB_years, 0)) -> 0 | BQ22: =INDEX('RAB input'!$H$24:$XFD$73, MATCH($E22, 'RAB input'!$E$24:$E$73, 0), MATCH(BQ$4, RAB_years, 0)) -> 0 | BR22: =INDEX('RAB input'!$H$24:$XFD$73, MATCH($E22, 'RAB input'!$E$24:$E$73, 0), MATCH(BR$4, RAB_years, 0)) -> 0 | BS22: =INDEX('RAB input'!$H$24:$XFD$73, MATCH($E22, 'RAB input'!$E$24:$E$73, 0), MATCH(BS$4, RAB_years, 0)) -> 0 | BT22: =INDEX('RAB input'!$H$24:$XFD$73, MATCH($E22, 'RAB input'!$E$24:$E$73, 0), MATCH(BT$4, RAB_years, 0)) -> 0 | BU22: =INDEX('RAB input'!$H$24:$XFD$73, MATCH($E22, 'RAB input'!$E$24:$E$73, 0), MATCH(BU$4, RAB_years, 0)) -> 0 | BV22: =INDEX('RAB input'!$H$24:$XFD$73, MATCH($E22, 'RAB input'!$E$24:$E$73, 0), MATCH(BV$4, RAB_years, 0)) -> 0 | BW22: =INDEX('RAB input'!$H$24:$XFD$73, MATCH($E22, 'RAB input'!$E$24:$E$73, 0), MATCH(BW$4, RAB_years, 0)) -> 0 | BX22: =INDEX('RAB input'!$H$24:$XFD$73, MATCH($E22, 'RAB input'!$E$24:$E$73, 0), MATCH(BX$4, RAB_years, 0)) -> 0 | BY22: =INDEX('RAB input'!$H$24:$XFD$73, MATCH($E22, 'RAB input'!$E$24:$E$73, 0), MATCH(BY$4, RAB_years, 0)) -> 0 | BZ22: =INDEX('RAB input'!$H$24:$XFD$73, MATCH($E22, 'RAB input'!$E$24:$E$73, 0), MATCH(BZ$4, RAB_years, 0)) -> 0
D23: 6 | E23: ='RAB input'!E29 -> Other - IT | G23: 4.972600956 | H23: =INDEX('RAB input'!$H$24:$XFD$73, MATCH($E23, 'RAB input'!$E$24:$E$73, 0), MATCH(H$4, RAB_years, 0)) -> 0 | I23: =INDEX('RAB input'!$H$24:$XFD$73, MATCH($E23, 'RAB input'!$E$24:$E$73, 0), MATCH(I$4, RAB_years, 0)) -> 0 | J23: =INDEX('RAB input'!$H$24:$XFD$73, MATCH($E23, 'RAB input'!$E$24:$E$73, 0), MATCH(J$4, RAB_years, 0)) -> 0 | K23: =INDEX('RAB input'!$H$24:$XFD$73, MATCH($E23, 'RAB input'!$E$24:$E$73, 0), MATCH(K$4, RAB_years, 0)) -> 0 | L23: =INDEX('RAB input'!$H$24:$XFD$73, MATCH($E23, 'RAB input'!$E$24:$E$73, 0), MATCH(L$4, RAB_years, 0)) -> 0 | M23: =INDEX('RAB input'!$H$24:$XFD$73, MATCH($E23, 'RAB input'!$E$24:$E$73, 0), MATCH(M$4, RAB_years, 0)) -> 0 | N23: =INDEX('RAB input'!$H$24:$XFD$73, MATCH($E23, 'RAB input'!$E$24:$E$73, 0), MATCH(N$4, RAB_years, 0)) -> 0 | O23: =INDEX('RAB input'!$H$24:$XFD$73, MATCH($E23, 'RAB input'!$E$24:$E$73, 0), MATCH(O$4, RAB_years, 0)) -> 0 | P23: =INDEX('RAB input'!$H$24:$XFD$73, MATCH($E23, 'RAB input'!$E$24:$E$73, 0), MATCH(P$4, RAB_years, 0)) -> 0 | Q23: =INDEX('RAB input'!$H$24:$XFD$73, MATCH($E23, 'RAB input'!$E$24:$E$73, 0), MATCH(Q$4, RAB_years, 0)) -> 0 | R23: =INDEX('RAB input'!$H$24:$XFD$73, MATCH($E23, 'RAB input'!$E$24:$E$73, 0), MATCH(R$4, RAB_years, 0)) -> 0 | S23: =INDEX('RAB input'!$H$24:$XFD$73, MATCH($E23, 'RAB input'!$E$24:$E$73, 0), MATCH(S$4, RAB_years, 0)) -> 0 | T23: =INDEX('RAB input'!$H$24:$XFD$73, MATCH($E23, 'RAB input'!$E$24:$E$73, 0), MATCH(T$4, RAB_years, 0)) -> 0 | U23: =INDEX('RAB input'!$H$24:$XFD$73, MATCH($E23, 'RAB input'!$E$24:$E$73, 0), MATCH(U$4, RAB_years, 0)) -> 0 | V23: =INDEX('RAB input'!$H$24:$XFD$73, MATCH($E23, 'RAB input'!$E$24:$E$73, 0), MATCH(V$4, RAB_years, 0)) -> 0 | W23: =INDEX('RAB input'!$H$24:$XFD$73, MATCH($E23, 'RAB input'!$E$24:$E$73, 0), MATCH(W$4, RAB_years, 0)) -> 0 | X23: =INDEX('RAB input'!$H$24:$XFD$73, MATCH($E23, 'RAB input'!$E$24:$E$73, 0), MATCH(X$4, RAB_years, 0)) -> 0 | Y23: =INDEX('RAB input'!$H$24:$XFD$73, MATCH($E23, 'RAB input'!$E$24:$E$73, 0), MATCH(Y$4, RAB_years, 0)) -> 0 | Z23: =INDEX('RAB input'!$H$24:$XFD$73, MATCH($E23, 'RAB input'!$E$24:$E$73, 0), MATCH(Z$4, RAB_years, 0)) -> 0 | AA23: =INDEX('RAB input'!$H$24:$XFD$73, MATCH($E23, 'RAB input'!$E$24:$E$73, 0), MATCH(AA$4, RAB_years, 0)) -> 0 | AB23: =INDEX('RAB input'!$H$24:$XFD$73, MATCH($E23, 'RAB input'!$E$24:$E$73, 0), MATCH(AB$4, RAB_years, 0)) -> 0 | AC23: =INDEX('RAB input'!$H$24:$XFD$73, MATCH($E23, 'RAB input'!$E$24:$E$73, 0), MATCH(AC$4, RAB_years, 0)) -> 0 | AD23: =INDEX('RAB input'!$H$24:$XFD$73, MATCH($E23, 'RAB input'!$E$24:$E$73, 0), MATCH(AD$4, RAB_years, 0)) -> 0 | AE23: =INDEX('RAB input'!$H$24:$XFD$73, MATCH($E23, 'RAB input'!$E$24:$E$73, 0), MATCH(AE$4, RAB_years, 0)) -> 0 | AF23: =INDEX('RAB input'!$H$24:$XFD$73, MATCH($E23, 'RAB input'!$E$24:$E$73, 0), MATCH(AF$4, RAB_years, 0)) -> 0 | AG23: =INDEX('RAB input'!$H$24:$XFD$73, MATCH($E23, 'RAB input'!$E$24:$E$73, 0), MATCH(AG$4, RAB_years, 0)) -> 0 | AH23: =INDEX('RAB input'!$H$24:$XFD$73, MATCH($E23, 'RAB input'!$E$24:$E$73, 0), MATCH(AH$4, RAB_years, 0)) -> 0 | AI23: =INDEX('RAB input'!$H$24:$XFD$73, MATCH($E23, 'RAB input'!$E$24:$E$73, 0), MATCH(AI$4, RAB_years, 0)) -> 0 | AJ23: =INDEX('RAB input'!$H$24:$XFD$73, MATCH($E23, 'RAB input'!$E$24:$E$73, 0), MATCH(AJ$4, RAB_years, 0)) -> 0 | AK23: =INDEX('RAB input'!$H$24:$XFD$73, MATCH($E23, 'RAB input'!$E$24:$E$73, 0), MATCH(AK$4, RAB_years, 0)) -> 0 | AL23: =INDEX('RAB input'!$H$24:$XFD$73, MATCH($E23, 'RAB input'!$E$24:$E$73, 0), MATCH(AL$4, RAB_years, 0)) -> 0 | AM23: =INDEX('RAB input'!$H$24:$XFD$73, MATCH($E23, 'RAB input'!$E$24:$E$73, 0), MATCH(AM$4, RAB_years, 0)) -> 0 | AN23: =INDEX('RAB input'!$H$24:$XFD$73, MATCH($E23, 'RAB input'!$E$24:$E$73, 0), MATCH(AN$4, RAB_years, 0)) -> 0 | AO23: =INDEX('RAB input'!$H$24:$XFD$73, MATCH($E23, 'RAB input'!$E$24:$E$73, 0), MATCH(AO$4, RAB_years, 0)) -> 0 | AP23: =INDEX('RAB input'!$H$24:$XFD$73, MATCH($E23, 'RAB input'!$E$24:$E$73, 0), MATCH(AP$4, RAB_years, 0)) -> 0 | AQ23: =INDEX('RAB input'!$H$24:$XFD$73, MATCH($E23, 'RAB input'!$E$24:$E$73, 0), MATCH(AQ$4, RAB_years, 0)) -> 0 | AR23: =INDEX('RAB input'!$H$24:$XFD$73, MATCH($E23, 'RAB input'!$E$24:$E$73, 0), MATCH(AR$4, RAB_years, 0)) -> 0 | AS23: =INDEX('RAB input'!$H$24:$XFD$73, MATCH($E23, 'RAB input'!$E$24:$E$73, 0), MATCH(AS$4, RAB_years, 0)) -> 0 | AT23: =INDEX('RAB input'!$H$24:$XFD$73, MATCH($E23, 'RAB input'!$E$24:$E$73, 0), MATCH(AT$4, RAB_years, 0)) -> 0 | AU23: =INDEX('RAB input'!$H$24:$XFD$73, MATCH($E23, 'RAB input'!$E$24:$E$73, 0), MATCH(AU$4, RAB_years, 0)) -> 0 | AV23: =INDEX('RAB input'!$H$24:$XFD$73, MATCH($E23, 'RAB input'!$E$24:$E$73, 0), MATCH(AV$4, RAB_years, 0)) -> 0 | AW23: =INDEX('RAB input'!$H$24:$XFD$73, MATCH($E23, 'RAB input'!$E$24:$E$73, 0), MATCH(AW$4, RAB_years, 0)) -> 0 | AX23: =INDEX('RAB input'!$H$24:$XFD$73, MATCH($E23, 'RAB input'!$E$24:$E$73, 0), MATCH(AX$4, RAB_years, 0)) -> 0 | AY23: =INDEX('RAB input'!$H$24:$XFD$73, MATCH($E23, 'RAB input'!$E$24:$E$73, 0), MATCH(AY$4, RAB_years, 0)) -> 0 | AZ23: =INDEX('RAB input'!$H$24:$XFD$73, MATCH($E23, 'RAB input'!$E$24:$E$73, 0), MATCH(AZ$4, RAB_years, 0)) -> 0 | BA23: =INDEX('RAB input'!$H$24:$XFD$73, MATCH($E23, 'RAB input'!$E$24:$E$73, 0), MATCH(BA$4, RAB_years, 0)) -> 0 | BB23: =INDEX('RAB input'!$H$24:$XFD$73, MATCH($E23, 'RAB input'!$E$24:$E$73, 0), MATCH(BB$4, RAB_years, 0)) -> 0 | BC23: =INDEX('RAB input'!$H$24:$XFD$73, MATCH($E23, 'RAB input'!$E$24:$E$73, 0), MATCH(BC$4, RAB_years, 0)) -> 0 | BD23: =INDEX('RAB input'!$H$24:$XFD$73, MATCH($E23, 'RAB input'!$E$24:$E$73, 0), MATCH(BD$4, RAB_years, 0)) -> 0 | BE23: =INDEX('RAB input'!$H$24:$XFD$73, MATCH($E23, 'RAB input'!$E$24:$E$73, 0), MATCH(BE$4, RAB_years, 0)) -> 0 | BF23: =INDEX('RAB input'!$H$24:$XFD$73, MATCH($E23, 'RAB input'!$E$24:$E$73, 0), MATCH(BF$4, RAB_years, 0)) -> 0 | BG23: =INDEX('RAB input'!$H$24:$XFD$73, MATCH($E23, 'RAB input'!$E$24:$E$73, 0), MATCH(BG$4, RAB_years, 0)) -> 0 | BH23: =INDEX('RAB input'!$H$24:$XFD$73, MATCH($E23, 'RAB input'!$E$24:$E$73, 0), MATCH(BH$4, RAB_years, 0)) -> 0 | BI23: =INDEX('RAB input'!$H$24:$XFD$73, MATCH($E23, 'RAB input'!$E$24:$E$73, 0), MATCH(BI$4, RAB_years, 0)) -> 0 | BJ23: =INDEX('RAB input'!$H$24:$XFD$73, MATCH($E23, 'RAB input'!$E$24:$E$73, 0), MATCH(BJ$4, RAB_years, 0)) -> 0 | BK23: =INDEX('RAB input'!$H$24:$XFD$73, MATCH($E23, 'RAB input'!$E$24:$E$73, 0), MATCH(BK$4, RAB_years, 0)) -> 0 | BL23: =INDEX('RAB input'!$H$24:$XFD$73, MATCH($E23, 'RAB input'!$E$24:$E$73, 0), MATCH(BL$4, RAB_years, 0)) -> 0 | BM23: =INDEX('RAB input'!$H$24:$XFD$73, MATCH($E23, 'RAB input'!$E$24:$E$73, 0), MATCH(BM$4, RAB_years, 0)) -> 0 | BN23: =INDEX('RAB input'!$H$24:$XFD$73, MATCH($E23, 'RAB input'!$E$24:$E$73, 0), MATCH(BN$4, RAB_years, 0)) -> 0 | BO23: =INDEX('RAB input'!$H$24:$XFD$73, MATCH($E23, 'RAB input'!$E$24:$E$73, 0), MATCH(BO$4, RAB_years, 0)) -> 0 | BP23: =INDEX('RAB input'!$H$24:$XFD$73, MATCH($E23, 'RAB input'!$E$24:$E$73, 0), MATCH(BP$4, RAB_years, 0)) -> 0 | BQ23: =INDEX('RAB input'!$H$24:$XFD$73, MATCH($E23, 'RAB input'!$E$24:$E$73, 0), MATCH(BQ$4, RAB_years, 0)) -> 0 | BR23: =INDEX('RAB input'!$H$24:$XFD$73, MATCH($E23, 'RAB input'!$E$24:$E$73, 0), MATCH(BR$4, RAB_years, 0)) -> 0 | BS23: =INDEX('RAB input'!$H$24:$XFD$73, MATCH($E23, 'RAB input'!$E$24:$E$73, 0), MATCH(BS$4, RAB_years, 0)) -> 0 | BT23: =INDEX('RAB input'!$H$24:$XFD$73, MATCH($E23, 'RAB input'!$E$24:$E$73, 0), MATCH(BT$4, RAB_years, 0)) -> 0 | BU23: =INDEX('RAB input'!$H$24:$XFD$73, MATCH($E23, 'RAB input'!$E$24:$E$73, 0), MATCH(BU$4, RAB_years, 0)) -> 0 | BV23: =INDEX('RAB input'!$H$24:$XFD$73, MATCH($E23, 'RAB input'!$E$24:$E$73, 0), MATCH(BV$4, RAB_years, 0)) -> 0 | BW23: =INDEX('RAB input'!$H$24:$XFD$73, MATCH($E23, 'RAB input'!$E$24:$E$73, 0), MATCH(BW$4, RAB_years, 0)) -> 0 | BX23: =INDEX('RAB input'!$H$24:$XFD$73, MATCH($E23, 'RAB input'!$E$24:$E$73, 0), MATCH(BX$4, RAB_years, 0)) -> 0 | BY23: =INDEX('RAB input'!$H$24:$XFD$73, MATCH($E23, 'RAB input'!$E$24:$E$73, 0), MATCH(BY$4, RAB_years, 0)) -> 0 | BZ23: =INDEX('RAB input'!$H$24:$XFD$73, MATCH($E23, 'RAB input'!$E$24:$E$73, 0), MATCH(BZ$4, RAB_years, 0)) -> 0
D24: 7 | E24: ='RAB input'!E30 -> Other - General | G24: 1.211523 | H24: =INDEX('RAB input'!$H$24:$XFD$73, MATCH($E24, 'RAB input'!$E$24:$E$73, 0), MATCH(H$4, RAB_years, 0)) -> 0 | I24: =INDEX('RAB input'!$H$24:$XFD$73, MATCH($E24, 'RAB input'!$E$24:$E$73, 0), MATCH(I$4, RAB_years, 0)) -> 0 | J24: =INDEX('RAB input'!$H$24:$XFD$73, MATCH($E24, 'RAB input'!$E$24:$E$73, 0), MATCH(J$4, RAB_years, 0)) -> 0 | K24: =INDEX('RAB input'!$H$24:$XFD$73, MATCH($E24, 'RAB input'!$E$24:$E$73, 0), MATCH(K$4, RAB_years, 0)) -> 0 | L24: =INDEX('RAB input'!$H$24:$XFD$73, MATCH($E24, 'RAB input'!$E$24:$E$73, 0), MATCH(L$4, RAB_years, 0)) -> 0 | M24: =INDEX('RAB input'!$H$24:$XFD$73, MATCH($E24, 'RAB input'!$E$24:$E$73, 0), MATCH(M$4, RAB_years, 0)) -> 0 | N24: =INDEX('RAB input'!$H$24:$XFD$73, MATCH($E24, 'RAB input'!$E$24:$E$73, 0), MATCH(N$4, RAB_years, 0)) -> 0 | O24: =INDEX('RAB input'!$H$24:$XFD$73, MATCH($E24, 'RAB input'!$E$24:$E$73, 0), MATCH(O$4, RAB_years, 0)) -> 0 | P24: =INDEX('RAB input'!$H$24:$XFD$73, MATCH($E24, 'RAB input'!$E$24:$E$73, 0), MATCH(P$4, RAB_years, 0)) -> 0 | Q24: =INDEX('RAB input'!$H$24:$XFD$73, MATCH($E24, 'RAB input'!$E$24:$E$73, 0), MATCH(Q$4, RAB_years, 0)) -> 0 | R24: =INDEX('RAB input'!$H$24:$XFD$73, MATCH($E24, 'RAB input'!$E$24:$E$73, 0), MATCH(R$4, RAB_years, 0)) -> 0 | S24: =INDEX('RAB input'!$H$24:$XFD$73, MATCH($E24, 'RAB input'!$E$24:$E$73, 0), MATCH(S$4, RAB_years, 0)) -> 0 | T24: =INDEX('RAB input'!$H$24:$XFD$73, MATCH($E24, 'RAB input'!$E$24:$E$73, 0), MATCH(T$4, RAB_years, 0)) -> 0 | U24: =INDEX('RAB input'!$H$24:$XFD$73, MATCH($E24, 'RAB input'!$E$24:$E$73, 0), MATCH(U$4, RAB_years, 0)) -> 0 | V24: =INDEX('RAB input'!$H$24:$XFD$73, MATCH($E24, 'RAB input'!$E$24:$E$73, 0), MATCH(V$4, RAB_years, 0)) -> 0 | W24: =INDEX('RAB input'!$H$24:$XFD$73, MATCH($E24, 'RAB input'!$E$24:$E$73, 0), MATCH(W$4, RAB_years, 0)) -> 0 | X24: =INDEX('RAB input'!$H$24:$XFD$73, MATCH($E24, 'RAB input'!$E$24:$E$73, 0), MATCH(X$4, RAB_years, 0)) -> 0 | Y24: =INDEX('RAB input'!$H$24:$XFD$73, MATCH($E24, 'RAB input'!$E$24:$E$73, 0), MATCH(Y$4, RAB_years, 0)) -> 0 | Z24: =INDEX('RAB input'!$H$24:$XFD$73, MATCH($E24, 'RAB input'!$E$24:$E$73, 0), MATCH(Z$4, RAB_years, 0)) -> 0 | AA24: =INDEX('RAB input'!$H$24:$XFD$73, MATCH($E24, 'RAB input'!$E$24:$E$73, 0), MATCH(AA$4, RAB_years, 0)) -> 0 | AB24: =INDEX('RAB input'!$H$24:$XFD$73, MATCH($E24, 'RAB input'!$E$24:$E$73, 0), MATCH(AB$4, RAB_years, 0)) -> 0 | AC24: =INDEX('RAB input'!$H$24:$XFD$73, MATCH($E24, 'RAB input'!$E$24:$E$73, 0), MATCH(AC$4, RAB_years, 0)) -> 0 | AD24: =INDEX('RAB input'!$H$24:$XFD$73, MATCH($E24, 'RAB input'!$E$24:$E$73, 0), MATCH(AD$4, RAB_years, 0)) -> 0 | AE24: =INDEX('RAB input'!$H$24:$XFD$73, MATCH($E24, 'RAB input'!$E$24:$E$73, 0), MATCH(AE$4, RAB_years, 0)) -> 0 | AF24: =INDEX('RAB input'!$H$24:$XFD$73, MATCH($E24, 'RAB input'!$E$24:$E$73, 0), MATCH(AF$4, RAB_years, 0)) -> 0 | AG24: =INDEX('RAB input'!$H$24:$XFD$73, MATCH($E24, 'RAB input'!$E$24:$E$73, 0), MATCH(AG$4, RAB_years, 0)) -> 0 | AH24: =INDEX('RAB input'!$H$24:$XFD$73, MATCH($E24, 'RAB input'!$E$24:$E$73, 0), MATCH(AH$4, RAB_years, 0)) -> 0 | AI24: =INDEX('RAB input'!$H$24:$XFD$73, MATCH($E24, 'RAB input'!$E$24:$E$73, 0), MATCH(AI$4, RAB_years, 0)) -> 0 | AJ24: =INDEX('RAB input'!$H$24:$XFD$73, MATCH($E24, 'RAB input'!$E$24:$E$73, 0), MATCH(AJ$4, RAB_years, 0)) -> 0 | AK24: =INDEX('RAB input'!$H$24:$XFD$73, MATCH($E24, 'RAB input'!$E$24:$E$73, 0), MATCH(AK$4, RAB_years, 0)) -> 0 | AL24: =INDEX('RAB input'!$H$24:$XFD$73, MATCH($E24, 'RAB input'!$E$24:$E$73, 0), MATCH(AL$4, RAB_years, 0)) -> 0 | AM24: =INDEX('RAB input'!$H$24:$XFD$73, MATCH($E24, 'RAB input'!$E$24:$E$73, 0), MATCH(AM$4, RAB_years, 0)) -> 0 | AN24: =INDEX('RAB input'!$H$24:$XFD$73, MATCH($E24, 'RAB input'!$E$24:$E$73, 0), MATCH(AN$4, RAB_years, 0)) -> 0 | AO24: =INDEX('RAB input'!$H$24:$XFD$73, MATCH($E24, 'RAB input'!$E$24:$E$73, 0), MATCH(AO$4, RAB_years, 0)) -> 0 | AP24: =INDEX('RAB input'!$H$24:$XFD$73, MATCH($E24, 'RAB input'!$E$24:$E$73, 0), MATCH(AP$4, RAB_years, 0)) -> 0 | AQ24: =INDEX('RAB input'!$H$24:$XFD$73, MATCH($E24, 'RAB input'!$E$24:$E$73, 0), MATCH(AQ$4, RAB_years, 0)) -> 0 | AR24: =INDEX('RAB input'!$H$24:$XFD$73, MATCH($E24, 'RAB input'!$E$24:$E$73, 0), MATCH(AR$4, RAB_years, 0)) -> 0 | AS24: =INDEX('RAB input'!$H$24:$XFD$73, MATCH($E24, 'RAB input'!$E$24:$E$73, 0), MATCH(AS$4, RAB_years, 0)) -> 0 | AT24: =INDEX('RAB input'!$H$24:$XFD$73, MATCH($E24, 'RAB input'!$E$24:$E$73, 0), MATCH(AT$4, RAB_years, 0)) -> 0 | AU24: =INDEX('RAB input'!$H$24:$XFD$73, MATCH($E24, 'RAB input'!$E$24:$E$73, 0), MATCH(AU$4, RAB_years, 0)) -> 0 | AV24: =INDEX('RAB input'!$H$24:$XFD$73, MATCH($E24, 'RAB input'!$E$24:$E$73, 0), MATCH(AV$4, RAB_years, 0)) -> 0 | AW24: =INDEX('RAB input'!$H$24:$XFD$73, MATCH($E24, 'RAB input'!$E$24:$E$73, 0), MATCH(AW$4, RAB_years, 0)) -> 0 | AX24: =INDEX('RAB input'!$H$24:$XFD$73, MATCH($E24, 'RAB input'!$E$24:$E$73, 0), MATCH(AX$4, RAB_years, 0)) -> 0 | AY24: =INDEX('RAB input'!$H$24:$XFD$73, MATCH($E24, 'RAB input'!$E$24:$E$73, 0), MATCH(AY$4, RAB_years, 0)) -> 0 | AZ24: =INDEX('RAB input'!$H$24:$XFD$73, MATCH($E24, 'RAB input'!$E$24:$E$73, 0), MATCH(AZ$4, RAB_years, 0)) -> 0 | BA24: =INDEX('RAB input'!$H$24:$XFD$73, MATCH($E24, 'RAB input'!$E$24:$E$73, 0), MATCH(BA$4, RAB_years, 0)) -> 0 | BB24: =INDEX('RAB input'!$H$24:$XFD$73, MATCH($E24, 'RAB input'!$E$24:$E$73, 0), MATCH(BB$4, RAB_years, 0)) -> 0 | BC24: =INDEX('RAB input'!$H$24:$XFD$73, MATCH($E24, 'RAB input'!$E$24:$E$73, 0), MATCH(BC$4, RAB_years, 0)) -> 0 | BD24: =INDEX('RAB input'!$H$24:$XFD$73, MATCH($E24, 'RAB input'!$E$24:$E$73, 0), MATCH(BD$4, RAB_years, 0)) -> 0 | BE24: =INDEX('RAB input'!$H$24:$XFD$73, MATCH($E24, 'RAB input'!$E$24:$E$73, 0), MATCH(BE$4, RAB_years, 0)) -> 0 | BF24: =INDEX('RAB input'!$H$24:$XFD$73, MATCH($E24, 'RAB input'!$E$24:$E$73, 0), MATCH(BF$4, RAB_years, 0)) -> 0 | BG24: =INDEX('RAB input'!$H$24:$XFD$73, MATCH($E24, 'RAB input'!$E$24:$E$73, 0), MATCH(BG$4, RAB_years, 0)) -> 0 | BH24: =INDEX('RAB input'!$H$24:$XFD$73, MATCH($E24, 'RAB input'!$E$24:$E$73, 0), MATCH(BH$4, RAB_years, 0)) -> 0 | BI24: =INDEX('RAB input'!$H$24:$XFD$73, MATCH($E24, 'RAB input'!$E$24:$E$73, 0), MATCH(BI$4, RAB_years, 0)) -> 0 | BJ24: =INDEX('RAB input'!$H$24:$XFD$73, MATCH($E24, 'RAB input'!$E$24:$E$73, 0), MATCH(BJ$4, RAB_years, 0)) -> 0 | BK24: =INDEX('RAB input'!$H$24:$XFD$73, MATCH($E24, 'RAB input'!$E$24:$E$73, 0), MATCH(BK$4, RAB_years, 0)) -> 0 | BL24: =INDEX('RAB input'!$H$24:$XFD$73, MATCH($E24, 'RAB input'!$E$24:$E$73, 0), MATCH(BL$4, RAB_years, 0)) -> 0 | BM24: =INDEX('RAB input'!$H$24:$XFD$73, MATCH($E24, 'RAB input'!$E$24:$E$73, 0), MATCH(BM$4, RAB_years, 0)) -> 0 | BN24: =INDEX('RAB input'!$H$24:$XFD$73, MATCH($E24, 'RAB input'!$E$24:$E$73, 0), MATCH(BN$4, RAB_years, 0)) -> 0 | BO24: =INDEX('RAB input'!$H$24:$XFD$73, MATCH($E24, 'RAB input'!$E$24:$E$73, 0), MATCH(BO$4, RAB_years, 0)) -> 0 | BP24: =INDEX('RAB input'!$H$24:$XFD$73, MATCH($E24, 'RAB input'!$E$24:$E$73, 0), MATCH(BP$4, RAB_years, 0)) -> 0 | BQ24: =INDEX('RAB input'!$H$24:$XFD$73, MATCH($E24, 'RAB input'!$E$24:$E$73, 0), MATCH(BQ$4, RAB_years, 0)) -> 0 | BR24: =INDEX('RAB input'!$H$24:$XFD$73, MATCH($E24, 'RAB input'!$E$24:$E$73, 0), MATCH(BR$4, RAB_years, 0)) -> 0 | BS24: =INDEX('RAB input'!$H$24:$XFD$73, MATCH($E24, 'RAB input'!$E$24:$E$73, 0), MATCH(BS$4, RAB_years, 0)) -> 0 | BT24: =INDEX('RAB input'!$H$24:$XFD$73, MATCH($E24, 'RAB input'!$E$24:$E$73, 0), MATCH(BT$4, RAB_years, 0)) -> 0 | BU24: =INDEX('RAB input'!$H$24:$XFD$73, MATCH($E24, 'RAB input'!$E$24:$E$73, 0), MATCH(BU$4, RAB_years, 0)) -> 0 | BV24: =INDEX('RAB input'!$H$24:$XFD$73, MATCH($E24, 'RAB input'!$E$24:$E$73, 0), MATCH(BV$4, RAB_years, 0)) -> 0 | BW24: =INDEX('RAB input'!$H$24:$XFD$73, MATCH($E24, 'RAB input'!$E$24:$E$73, 0), MATCH(BW$4, RAB_years, 0)) -> 0 | BX24: =INDEX('RAB input'!$H$24:$XFD$73, MATCH($E24, 'RAB input'!$E$24:$E$73, 0), MATCH(BX$4, RAB_years, 0)) -> 0 | BY24: =INDEX('RAB input'!$H$24:$XFD$73, MATCH($E24, 'RAB input'!$E$24:$E$73, 0), MATCH(BY$4, RAB_years, 0)) -> 0 | BZ24: =INDEX('RAB input'!$H$24:$XFD$73, MATCH($E24, 'RAB input'!$E$24:$E$73, 0), MATCH(BZ$4, RAB_years, 0)) -> 0
D25: 8 | E25: ='RAB input'!E31 -> Other - Buildings | G25: 21.10145032 | H25: =INDEX('RAB input'!$H$24:$XFD$73, MATCH($E25, 'RAB input'!$E$24:$E$73, 0), MATCH(H$4, RAB_years, 0)) -> 0 | I25: =INDEX('RAB input'!$H$24:$XFD$73, MATCH($E25, 'RAB input'!$E$24:$E$73, 0), MATCH(I$4, RAB_years, 0)) -> 0 | J25: =INDEX('RAB input'!$H$24:$XFD$73, MATCH($E25, 'RAB input'!$E$24:$E$73, 0), MATCH(J$4, RAB_years, 0)) -> 0 | K25: =INDEX('RAB input'!$H$24:$XFD$73, MATCH($E25, 'RAB input'!$E$24:$E$73, 0), MATCH(K$4, RAB_years, 0)) -> 0 | L25: =INDEX('RAB input'!$H$24:$XFD$73, MATCH($E25, 'RAB input'!$E$24:$E$73, 0), MATCH(L$4, RAB_years, 0)) -> 0 | M25: =INDEX('RAB input'!$H$24:$XFD$73, MATCH($E25, 'RAB input'!$E$24:$E$73, 0), MATCH(M$4, RAB_years, 0)) -> 0 | N25: =INDEX('RAB input'!$H$24:$XFD$73, MATCH($E25, 'RAB input'!$E$24:$E$73, 0), MATCH(N$4, RAB_years, 0)) -> 0 | O25: =INDEX('RAB input'!$H$24:$XFD$73, MATCH($E25, 'RAB input'!$E$24:$E$73, 0), MATCH(O$4, RAB_years, 0)) -> 0 | P25: =INDEX('RAB input'!$H$24:$XFD$73, MATCH($E25, 'RAB input'!$E$24:$E$73, 0), MATCH(P$4, RAB_years, 0)) -> 0 | Q25: =INDEX('RAB input'!$H$24:$XFD$73, MATCH($E25, 'RAB input'!$E$24:$E$73, 0), MATCH(Q$4, RAB_years, 0)) -> 0 | R25: =INDEX('RAB input'!$H$24:$XFD$73, MATCH($E25, 'RAB input'!$E$24:$E$73, 0), MATCH(R$4, RAB_years, 0)) -> 0 | S25: =INDEX('RAB input'!$H$24:$XFD$73, MATCH($E25, 'RAB input'!$E$24:$E$73, 0), MATCH(S$4, RAB_years, 0)) -> 0 | T25: =INDEX('RAB input'!$H$24:$XFD$73, MATCH($E25, 'RAB input'!$E$24:$E$73, 0), MATCH(T$4, RAB_years, 0)) -> 0 | U25: =INDEX('RAB input'!$H$24:$XFD$73, MATCH($E25, 'RAB input'!$E$24:$E$73, 0), MATCH(U$4, RAB_years, 0)) -> 0 | V25: =INDEX('RAB input'!$H$24:$XFD$73, MATCH($E25, 'RAB input'!$E$24:$E$73, 0), MATCH(V$4, RAB_years, 0)) -> 0 | W25: =INDEX('RAB input'!$H$24:$XFD$73, MATCH($E25, 'RAB input'!$E$24:$E$73, 0), MATCH(W$4, RAB_years, 0)) -> 0 | X25: =INDEX('RAB input'!$H$24:$XFD$73, MATCH($E25, 'RAB input'!$E$24:$E$73, 0), MATCH(X$4, RAB_years, 0)) -> 0 | Y25: =INDEX('RAB input'!$H$24:$XFD$73, MATCH($E25, 'RAB input'!$E$24:$E$73, 0), MATCH(Y$4, RAB_years, 0)) -> 0 | Z25: =INDEX('RAB input'!$H$24:$XFD$73, MATCH($E25, 'RAB input'!$E$24:$E$73, 0), MATCH(Z$4, RAB_years, 0)) -> 0 | AA25: =INDEX('RAB input'!$H$24:$XFD$73, MATCH($E25, 'RAB input'!$E$24:$E$73, 0), MATCH(AA$4, RAB_years, 0)) -> 0 | AB25: =INDEX('RAB input'!$H$24:$XFD$73, MATCH($E25, 'RAB input'!$E$24:$E$73, 0), MATCH(AB$4, RAB_years, 0)) -> 0 | AC25: =INDEX('RAB input'!$H$24:$XFD$73, MATCH($E25, 'RAB input'!$E$24:$E$73, 0), MATCH(AC$4, RAB_years, 0)) -> 0 | AD25: =INDEX('RAB input'!$H$24:$XFD$73, MATCH($E25, 'RAB input'!$E$24:$E$73, 0), MATCH(AD$4, RAB_years, 0)) -> 0 | AE25: =INDEX('RAB input'!$H$24:$XFD$73, MATCH($E25, 'RAB input'!$E$24:$E$73, 0), MATCH(AE$4, RAB_years, 0)) -> 0 | AF25: =INDEX('RAB input'!$H$24:$XFD$73, MATCH($E25, 'RAB input'!$E$24:$E$73, 0), MATCH(AF$4, RAB_years, 0)) -> 0 | AG25: =INDEX('RAB input'!$H$24:$XFD$73, MATCH($E25, 'RAB input'!$E$24:$E$73, 0), MATCH(AG$4, RAB_years, 0)) -> 0 | AH25: =INDEX('RAB input'!$H$24:$XFD$73, MATCH($E25, 'RAB input'!$E$24:$E$73, 0), MATCH(AH$4, RAB_years, 0)) -> 0 | AI25: =INDEX('RAB input'!$H$24:$XFD$73, MATCH($E25, 'RAB input'!$E$24:$E$73, 0), MATCH(AI$4, RAB_years, 0)) -> 0 | AJ25: =INDEX('RAB input'!$H$24:$XFD$73, MATCH($E25, 'RAB input'!$E$24:$E$73, 0), MATCH(AJ$4, RAB_years, 0)) -> 0 | AK25: =INDEX('RAB input'!$H$24:$XFD$73, MATCH($E25, 'RAB input'!$E$24:$E$73, 0), MATCH(AK$4, RAB_years, 0)) -> 0 | AL25: =INDEX('RAB input'!$H$24:$XFD$73, MATCH($E25, 'RAB input'!$E$24:$E$73, 0), MATCH(AL$4, RAB_years, 0)) -> 0 | AM25: =INDEX('RAB input'!$H$24:$XFD$73, MATCH($E25, 'RAB input'!$E$24:$E$73, 0), MATCH(AM$4, RAB_years, 0)) -> 0 | AN25: =INDEX('RAB input'!$H$24:$XFD$73, MATCH($E25, 'RAB input'!$E$24:$E$73, 0), MATCH(AN$4, RAB_years, 0)) -> 0 | AO25: =INDEX('RAB input'!$H$24:$XFD$73, MATCH($E25, 'RAB input'!$E$24:$E$73, 0), MATCH(AO$4, RAB_years, 0)) -> 0 | AP25: =INDEX('RAB input'!$H$24:$XFD$73, MATCH($E25, 'RAB input'!$E$24:$E$73, 0), MATCH(AP$4, RAB_years, 0)) -> 0 | AQ25: =INDEX('RAB input'!$H$24:$XFD$73, MATCH($E25, 'RAB input'!$E$24:$E$73, 0), MATCH(AQ$4, RAB_years, 0)) -> 0 | AR25: =INDEX('RAB input'!$H$24:$XFD$73, MATCH($E25, 'RAB input'!$E$24:$E$73, 0), MATCH(AR$4, RAB_years, 0)) -> 0 | AS25: =INDEX('RAB input'!$H$24:$XFD$73, MATCH($E25, 'RAB input'!$E$24:$E$73, 0), MATCH(AS$4, RAB_years, 0)) -> 0 | AT25: =INDEX('RAB input'!$H$24:$XFD$73, MATCH($E25, 'RAB input'!$E$24:$E$73, 0), MATCH(AT$4, RAB_years, 0)) -> 0 | AU25: =INDEX('RAB input'!$H$24:$XFD$73, MATCH($E25, 'RAB input'!$E$24:$E$73, 0), MATCH(AU$4, RAB_years, 0)) -> 0 | AV25: =INDEX('RAB input'!$H$24:$XFD$73, MATCH($E25, 'RAB input'!$E$24:$E$73, 0), MATCH(AV$4, RAB_years, 0)) -> 0 | AW25: =INDEX('RAB input'!$H$24:$XFD$73, MATCH($E25, 'RAB input'!$E$24:$E$73, 0), MATCH(AW$4, RAB_years, 0)) -> 0 | AX25: =INDEX('RAB input'!$H$24:$XFD$73, MATCH($E25, 'RAB input'!$E$24:$E$73, 0), MATCH(AX$4, RAB_years, 0)) -> 0 | AY25: =INDEX('RAB input'!$H$24:$XFD$73, MATCH($E25, 'RAB input'!$E$24:$E$73, 0), MATCH(AY$4, RAB_years, 0)) -> 0 | AZ25: =INDEX('RAB input'!$H$24:$XFD$73, MATCH($E25, 'RAB input'!$E$24:$E$73, 0), MATCH(AZ$4, RAB_years, 0)) -> 0 | BA25: =INDEX('RAB input'!$H$24:$XFD$73, MATCH($E25, 'RAB input'!$E$24:$E$73, 0), MATCH(BA$4, RAB_years, 0)) -> 0 | BB25: =INDEX('RAB input'!$H$24:$XFD$73, MATCH($E25, 'RAB input'!$E$24:$E$73, 0), MATCH(BB$4, RAB_years, 0)) -> 0 | BC25: =INDEX('RAB input'!$H$24:$XFD$73, MATCH($E25, 'RAB input'!$E$24:$E$73, 0), MATCH(BC$4, RAB_years, 0)) -> 0 | BD25: =INDEX('RAB input'!$H$24:$XFD$73, MATCH($E25, 'RAB input'!$E$24:$E$73, 0), MATCH(BD$4, RAB_years, 0)) -> 0 | BE25: =INDEX('RAB input'!$H$24:$XFD$73, MATCH($E25, 'RAB input'!$E$24:$E$73, 0), MATCH(BE$4, RAB_years, 0)) -> 0 | BF25: =INDEX('RAB input'!$H$24:$XFD$73, MATCH($E25, 'RAB input'!$E$24:$E$73, 0), MATCH(BF$4, RAB_years, 0)) -> 0 | BG25: =INDEX('RAB input'!$H$24:$XFD$73, MATCH($E25, 'RAB input'!$E$24:$E$73, 0), MATCH(BG$4, RAB_years, 0)) -> 0 | BH25: =INDEX('RAB input'!$H$24:$XFD$73, MATCH($E25, 'RAB input'!$E$24:$E$73, 0), MATCH(BH$4, RAB_years, 0)) -> 0 | BI25: =INDEX('RAB input'!$H$24:$XFD$73, MATCH($E25, 'RAB input'!$E$24:$E$73, 0), MATCH(BI$4, RAB_years, 0)) -> 0 | BJ25: =INDEX('RAB input'!$H$24:$XFD$73, MATCH($E25, 'RAB input'!$E$24:$E$73, 0), MATCH(BJ$4, RAB_years, 0)) -> 0 | BK25: =INDEX('RAB input'!$H$24:$XFD$73, MATCH($E25, 'RAB input'!$E$24:$E$73, 0), MATCH(BK$4, RAB_years, 0)) -> 0 | BL25: =INDEX('RAB input'!$H$24:$XFD$73, MATCH($E25, 'RAB input'!$E$24:$E$73, 0), MATCH(BL$4, RAB_years, 0)) -> 0 | BM25: =INDEX('RAB input'!$H$24:$XFD$73, MATCH($E25, 'RAB input'!$E$24:$E$73, 0), MATCH(BM$4, RAB_years, 0)) -> 0 | BN25: =INDEX('RAB input'!$H$24:$XFD$73, MATCH($E25, 'RAB input'!$E$24:$E$73, 0), MATCH(BN$4, RAB_years, 0)) -> 0 | BO25: =INDEX('RAB input'!$H$24:$XFD$73, MATCH($E25, 'RAB input'!$E$24:$E$73, 0), MATCH(BO$4, RAB_years, 0)) -> 0 | BP25: =INDEX('RAB input'!$H$24:$XFD$73, MATCH($E25, 'RAB input'!$E$24:$E$73, 0), MATCH(BP$4, RAB_years, 0)) -> 0 | BQ25: =INDEX('RAB input'!$H$24:$XFD$73, MATCH($E25, 'RAB input'!$E$24:$E$73, 0), MATCH(BQ$4, RAB_years, 0)) -> 0 | BR25: =INDEX('RAB input'!$H$24:$XFD$73, MATCH($E25, 'RAB input'!$E$24:$E$73, 0), MATCH(BR$4, RAB_years, 0)) -> 0 | BS25: =INDEX('RAB input'!$H$24:$XFD$73, MATCH($E25, 'RAB input'!$E$24:$E$73, 0), MATCH(BS$4, RAB_years, 0)) -> 0 | BT25: =INDEX('RAB input'!$H$24:$XFD$73, MATCH($E25, 'RAB input'!$E$24:$E$73, 0), MATCH(BT$4, RAB_years, 0)) -> 0 | BU25: =INDEX('RAB input'!$H$24:$XFD$73, MATCH($E25, 'RAB input'!$E$24:$E$73, 0), MATCH(BU$4, RAB_years, 0)) -> 0 | BV25: =INDEX('RAB input'!$H$24:$XFD$73, MATCH($E25, 'RAB input'!$E$24:$E$73, 0), MATCH(BV$4, RAB_years, 0)) -> 0 | BW25: =INDEX('RAB input'!$H$24:$XFD$73, MATCH($E25, 'RAB input'!$E$24:$E$73, 0), MATCH(BW$4, RAB_years, 0)) -> 0 | BX25: =INDEX('RAB input'!$H$24:$XFD$73, MATCH($E25, 'RAB input'!$E$24:$E$73, 0), MATCH(BX$4, RAB_years, 0)) -> 0 | BY25: =INDEX('RAB input'!$H$24:$XFD$73, MATCH($E25, 'RAB input'!$E$24:$E$73, 0), MATCH(BY$4, RAB_years, 0)) -> 0 | BZ25: =INDEX('RAB input'!$H$24:$XFD$73, MATCH($E25, 'RAB input'!$E$24:$E$73, 0), MATCH(BZ$4, RAB_years, 0)) -> 0
D26: 9 | E26: ='RAB input'!E32 -> Land and Easements - pre 2014 | G26: 75.29865189 | H26: =INDEX('RAB input'!$H$24:$XFD$73, MATCH($E26, 'RAB input'!$E$24:$E$73, 0), MATCH(H$4, RAB_years, 0)) -> 0 | I26: =INDEX('RAB input'!$H$24:$XFD$73, MATCH($E26, 'RAB input'!$E$24:$E$73, 0), MATCH(I$4, RAB_years, 0)) -> 0 | J26: =INDEX('RAB input'!$H$24:$XFD$73, MATCH($E26, 'RAB input'!$E$24:$E$73, 0), MATCH(J$4, RAB_years, 0)) -> 0 | K26: =INDEX('RAB input'!$H$24:$XFD$73, MATCH($E26, 'RAB input'!$E$24:$E$73, 0), MATCH(K$4, RAB_years, 0)) -> 0 | L26: =INDEX('RAB input'!$H$24:$XFD$73, MATCH($E26, 'RAB input'!$E$24:$E$73, 0), MATCH(L$4, RAB_years, 0)) -> 0 | M26: =INDEX('RAB input'!$H$24:$XFD$73, MATCH($E26, 'RAB input'!$E$24:$E$73, 0), MATCH(M$4, RAB_years, 0)) -> 0 | N26: =INDEX('RAB input'!$H$24:$XFD$73, MATCH($E26, 'RAB input'!$E$24:$E$73, 0), MATCH(N$4, RAB_years, 0)) -> 0 | O26: =INDEX('RAB input'!$H$24:$XFD$73, MATCH($E26, 'RAB input'!$E$24:$E$73, 0), MATCH(O$4, RAB_years, 0)) -> 0 | P26: =INDEX('RAB input'!$H$24:$XFD$73, MATCH($E26, 'RAB input'!$E$24:$E$73, 0), MATCH(P$4, RAB_years, 0)) -> 0 | Q26: =INDEX('RAB input'!$H$24:$XFD$73, MATCH($E26, 'RAB input'!$E$24:$E$73, 0), MATCH(Q$4, RAB_years, 0)) -> 0 | R26: =INDEX('RAB input'!$H$24:$XFD$73, MATCH($E26, 'RAB input'!$E$24:$E$73, 0), MATCH(R$4, RAB_years, 0)) -> 0 | S26: =INDEX('RAB input'!$H$24:$XFD$73, MATCH($E26, 'RAB input'!$E$24:$E$73, 0), MATCH(S$4, RAB_years, 0)) -> 0 | T26: =INDEX('RAB input'!$H$24:$XFD$73, MATCH($E26, 'RAB input'!$E$24:$E$73, 0), MATCH(T$4, RAB_years, 0)) -> 0 | U26: =INDEX('RAB input'!$H$24:$XFD$73, MATCH($E26, 'RAB input'!$E$24:$E$73, 0), MATCH(U$4, RAB_years, 0)) -> 0 | V26: =INDEX('RAB input'!$H$24:$XFD$73, MATCH($E26, 'RAB input'!$E$24:$E$73, 0), MATCH(V$4, RAB_years, 0)) -> 0 | W26: =INDEX('RAB input'!$H$24:$XFD$73, MATCH($E26, 'RAB input'!$E$24:$E$73, 0), MATCH(W$4, RAB_years, 0)) -> 0 | X26: =INDEX('RAB input'!$H$24:$XFD$73, MATCH($E26, 'RAB input'!$E$24:$E$73, 0), MATCH(X$4, RAB_years, 0)) -> 0 | Y26: =INDEX('RAB input'!$H$24:$XFD$73, MATCH($E26, 'RAB input'!$E$24:$E$73, 0), MATCH(Y$4, RAB_years, 0)) -> 0 | Z26: =INDEX('RAB input'!$H$24:$XFD$73, MATCH($E26, 'RAB input'!$E$24:$E$73, 0), MATCH(Z$4, RAB_years, 0)) -> 0 | AA26: =INDEX('RAB input'!$H$24:$XFD$73, MATCH($E26, 'RAB input'!$E$24:$E$73, 0), MATCH(AA$4, RAB_years, 0)) -> 0 | AB26: =INDEX('RAB input'!$H$24:$XFD$73, MATCH($E26, 'RAB input'!$E$24:$E$73, 0), MATCH(AB$4, RAB_years, 0)) -> 0 | AC26: =INDEX('RAB input'!$H$24:$XFD$73, MATCH($E26, 'RAB input'!$E$24:$E$73, 0), MATCH(AC$4, RAB_years, 0)) -> 0 | AD26: =INDEX('RAB input'!$H$24:$XFD$73, MATCH($E26, 'RAB input'!$E$24:$E$73, 0), MATCH(AD$4, RAB_years, 0)) -> 0 | AE26: =INDEX('RAB input'!$H$24:$XFD$73, MATCH($E26, 'RAB input'!$E$24:$E$73, 0), MATCH(AE$4, RAB_years, 0)) -> 0 | AF26: =INDEX('RAB input'!$H$24:$XFD$73, MATCH($E26, 'RAB input'!$E$24:$E$73, 0), MATCH(AF$4, RAB_years, 0)) -> 0 | AG26: =INDEX('RAB input'!$H$24:$XFD$73, MATCH($E26, 'RAB input'!$E$24:$E$73, 0), MATCH(AG$4, RAB_years, 0)) -> 0 | AH26: =INDEX('RAB input'!$H$24:$XFD$73, MATCH($E26, 'RAB input'!$E$24:$E$73, 0), MATCH(AH$4, RAB_years, 0)) -> 0 | AI26: =INDEX('RAB input'!$H$24:$XFD$73, MATCH($E26, 'RAB input'!$E$24:$E$73, 0), MATCH(AI$4, RAB_years, 0)) -> 0 | AJ26: =INDEX('RAB input'!$H$24:$XFD$73, MATCH($E26, 'RAB input'!$E$24:$E$73, 0), MATCH(AJ$4, RAB_years, 0)) -> 0 | AK26: =INDEX('RAB input'!$H$24:$XFD$73, MATCH($E26, 'RAB input'!$E$24:$E$73, 0), MATCH(AK$4, RAB_years, 0)) -> 0 | AL26: =INDEX('RAB input'!$H$24:$XFD$73, MATCH($E26, 'RAB input'!$E$24:$E$73, 0), MATCH(AL$4, RAB_years, 0)) -> 0 | AM26: =INDEX('RAB input'!$H$24:$XFD$73, MATCH($E26, 'RAB input'!$E$24:$E$73, 0), MATCH(AM$4, RAB_years, 0)) -> 0 | AN26: =INDEX('RAB input'!$H$24:$XFD$73, MATCH($E26, 'RAB input'!$E$24:$E$73, 0), MATCH(AN$4, RAB_years, 0)) -> 0 | AO26: =INDEX('RAB input'!$H$24:$XFD$73, MATCH($E26, 'RAB input'!$E$24:$E$73, 0), MATCH(AO$4, RAB_years, 0)) -> 0 | AP26: =INDEX('RAB input'!$H$24:$XFD$73, MATCH($E26, 'RAB input'!$E$24:$E$73, 0), MATCH(AP$4, RAB_years, 0)) -> 0 | AQ26: =INDEX('RAB input'!$H$24:$XFD$73, MATCH($E26, 'RAB input'!$E$24:$E$73, 0), MATCH(AQ$4, RAB_years, 0)) -> 0 | AR26: =INDEX('RAB input'!$H$24:$XFD$73, MATCH($E26, 'RAB input'!$E$24:$E$73, 0), MATCH(AR$4, RAB_years, 0)) -> 0 | AS26: =INDEX('RAB input'!$H$24:$XFD$73, MATCH($E26, 'RAB input'!$E$24:$E$73, 0), MATCH(AS$4, RAB_years, 0)) -> 0 | AT26: =INDEX('RAB input'!$H$24:$XFD$73, MATCH($E26, 'RAB input'!$E$24:$E$73, 0), MATCH(AT$4, RAB_years, 0)) -> 0 | AU26: =INDEX('RAB input'!$H$24:$XFD$73, MATCH($E26, 'RAB input'!$E$24:$E$73, 0), MATCH(AU$4, RAB_years, 0)) -> 0 | AV26: =INDEX('RAB input'!$H$24:$XFD$73, MATCH($E26, 'RAB input'!$E$24:$E$73, 0), MATCH(AV$4, RAB_years, 0)) -> 0 | AW26: =INDEX('RAB input'!$H$24:$XFD$73, MATCH($E26, 'RAB input'!$E$24:$E$73, 0), MATCH(AW$4, RAB_years, 0)) -> 0 | AX26: =INDEX('RAB input'!$H$24:$XFD$73, MATCH($E26, 'RAB input'!$E$24:$E$73, 0), MATCH(AX$4, RAB_years, 0)) -> 0 | AY26: =INDEX('RAB input'!$H$24:$XFD$73, MATCH($E26, 'RAB input'!$E$24:$E$73, 0), MATCH(AY$4, RAB_years, 0)) -> 0 | AZ26: =INDEX('RAB input'!$H$24:$XFD$73, MATCH($E26, 'RAB input'!$E$24:$E$73, 0), MATCH(AZ$4, RAB_years, 0)) -> 0 | BA26: =INDEX('RAB input'!$H$24:$XFD$73, MATCH($E26, 'RAB input'!$E$24:$E$73, 0), MATCH(BA$4, RAB_years, 0)) -> 0 | BB26: =INDEX('RAB input'!$H$24:$XFD$73, MATCH($E26, 'RAB input'!$E$24:$E$73, 0), MATCH(BB$4, RAB_years, 0)) -> 0 | BC26: =INDEX('RAB input'!$H$24:$XFD$73, MATCH($E26, 'RAB input'!$E$24:$E$73, 0), MATCH(BC$4, RAB_years, 0)) -> 0 | BD26: =INDEX('RAB input'!$H$24:$XFD$73, MATCH($E26, 'RAB input'!$E$24:$E$73, 0), MATCH(BD$4, RAB_years, 0)) -> 0 | BE26: =INDEX('RAB input'!$H$24:$XFD$73, MATCH($E26, 'RAB input'!$E$24:$E$73, 0), MATCH(BE$4, RAB_years, 0)) -> 0 | BF26: =INDEX('RAB input'!$H$24:$XFD$73, MATCH($E26, 'RAB input'!$E$24:$E$73, 0), MATCH(BF$4, RAB_years, 0)) -> 0 | BG26: =INDEX('RAB input'!$H$24:$XFD$73, MATCH($E26, 'RAB input'!$E$24:$E$73, 0), MATCH(BG$4, RAB_years, 0)) -> 0 | BH26: =INDEX('RAB input'!$H$24:$XFD$73, MATCH($E26, 'RAB input'!$E$24:$E$73, 0), MATCH(BH$4, RAB_years, 0)) -> 0 | BI26: =INDEX('RAB input'!$H$24:$XFD$73, MATCH($E26, 'RAB input'!$E$24:$E$73, 0), MATCH(BI$4, RAB_years, 0)) -> 0 | BJ26: =INDEX('RAB input'!$H$24:$XFD$73, MATCH($E26, 'RAB input'!$E$24:$E$73, 0), MATCH(BJ$4, RAB_years, 0)) -> 0 | BK26: =INDEX('RAB input'!$H$24:$XFD$73, MATCH($E26, 'RAB input'!$E$24:$E$73, 0), MATCH(BK$4, RAB_years, 0)) -> 0 | BL26: =INDEX('RAB input'!$H$24:$XFD$73, MATCH($E26, 'RAB input'!$E$24:$E$73, 0), MATCH(BL$4, RAB_years, 0)) -> 0 | BM26: =INDEX('RAB input'!$H$24:$XFD$73, MATCH($E26, 'RAB input'!$E$24:$E$73, 0), MATCH(BM$4, RAB_years, 0)) -> 0 | BN26: =INDEX('RAB input'!$H$24:$XFD$73, MATCH($E26, 'RAB input'!$E$24:$E$73, 0), MATCH(BN$4, RAB_years, 0)) -> 0 | BO26: =INDEX('RAB input'!$H$24:$XFD$73, MATCH($E26, 'RAB input'!$E$24:$E$73, 0), MATCH(BO$4, RAB_years, 0)) -> 0 | BP26: =INDEX('RAB input'!$H$24:$XFD$73, MATCH($E26, 'RAB input'!$E$24:$E$73, 0), MATCH(BP$4, RAB_years, 0)) -> 0 | BQ26: =INDEX('RAB input'!$H$24:$XFD$73, MATCH($E26, 'RAB input'!$E$24:$E$73, 0), MATCH(BQ$4, RAB_years, 0)) -> 0 | BR26: =INDEX('RAB input'!$H$24:$XFD$73, MATCH($E26, 'RAB input'!$E$24:$E$73, 0), MATCH(BR$4, RAB_years, 0)) -> 0 | BS26: =INDEX('RAB input'!$H$24:$XFD$73, MATCH($E26, 'RAB input'!$E$24:$E$73, 0), MATCH(BS$4, RAB_years, 0)) -> 0 | BT26: =INDEX('RAB input'!$H$24:$XFD$73, MATCH($E26, 'RAB input'!$E$24:$E$73, 0), MATCH(BT$4, RAB_years, 0)) -> 0 | BU26: =INDEX('RAB input'!$H$24:$XFD$73, MATCH($E26, 'RAB input'!$E$24:$E$73, 0), MATCH(BU$4, RAB_years, 0)) -> 0 | BV26: =INDEX('RAB input'!$H$24:$XFD$73, MATCH($E26, 'RAB input'!$E$24:$E$73, 0), MATCH(BV$4, RAB_years, 0)) -> 0 | BW26: =INDEX('RAB input'!$H$24:$XFD$73, MATCH($E26, 'RAB input'!$E$24:$E$73, 0), MATCH(BW$4, RAB_years, 0)) -> 0 | BX26: =INDEX('RAB input'!$H$24:$XFD$73, MATCH($E26, 'RAB input'!$E$24:$E$73, 0), MATCH(BX$4, RAB_years, 0)) -> 0 | BY26: =INDEX('RAB input'!$H$24:$XFD$73, MATCH($E26, 'RAB input'!$E$24:$E$73, 0), MATCH(BY$4, RAB_years, 0)) -> 0 | BZ26: =INDEX('RAB input'!$H$24:$XFD$73, MATCH($E26, 'RAB input'!$E$24:$E$73, 0), MATCH(BZ$4, RAB_years, 0)) -> 0
D27: 10 | E27: ='RAB input'!E33 -> Transmission line assets - long life (60) | G27: 176.7571353 | H27: =INDEX('RAB input'!$H$24:$XFD$73, MATCH($E27, 'RAB input'!$E$24:$E$73, 0), MATCH(H$4, RAB_years, 0)) -> 5.463874937 | I27: =INDEX('RAB input'!$H$24:$XFD$73, MATCH($E27, 'RAB input'!$E$24:$E$73, 0), MATCH(I$4, RAB_years, 0)) -> 2.657989406 | J27: =INDEX('RAB input'!$H$24:$XFD$73, MATCH($E27, 'RAB input'!$E$24:$E$73, 0), MATCH(J$4, RAB_years, 0)) -> 4.222796707 | K27: =INDEX('RAB input'!$H$24:$XFD$73, MATCH($E27, 'RAB input'!$E$24:$E$73, 0), MATCH(K$4, RAB_years, 0)) -> 13.75984449 | L27: =INDEX('RAB input'!$H$24:$XFD$73, MATCH($E27, 'RAB input'!$E$24:$E$73, 0), MATCH(L$4, RAB_years, 0)) -> 10.2930803 | M27: =INDEX('RAB input'!$H$24:$XFD$73, MATCH($E27, 'RAB input'!$E$24:$E$73, 0), MATCH(M$4, RAB_years, 0)) -> 15.52417508 | N27: =INDEX('RAB input'!$H$24:$XFD$73, MATCH($E27, 'RAB input'!$E$24:$E$73, 0), MATCH(N$4, RAB_years, 0)) -> 16.59076771 | O27: =INDEX('RAB input'!$H$24:$XFD$73, MATCH($E27, 'RAB input'!$E$24:$E$73, 0), MATCH(O$4, RAB_years, 0)) -> 7.044860347 | P27: =INDEX('RAB input'!$H$24:$XFD$73, MATCH($E27, 'RAB input'!$E$24:$E$73, 0), MATCH(P$4, RAB_years, 0)) -> 1.157154831 | Q27: =INDEX('RAB input'!$H$24:$XFD$73, MATCH($E27, 'RAB input'!$E$24:$E$73, 0), MATCH(Q$4, RAB_years, 0)) -> 6.248175157 | R27: =INDEX('RAB input'!$H$24:$XFD$73, MATCH($E27, 'RAB input'!$E$24:$E$73, 0), MATCH(R$4, RAB_years, 0)) -> 0 | S27: =INDEX('RAB input'!$H$24:$XFD$73, MATCH($E27, 'RAB input'!$E$24:$E$73, 0), MATCH(S$4, RAB_years, 0)) -> 0 | T27: =INDEX('RAB input'!$H$24:$XFD$73, MATCH($E27, 'RAB input'!$E$24:$E$73, 0), MATCH(T$4, RAB_years, 0)) -> 0 | U27: =INDEX('RAB input'!$H$24:$XFD$73, MATCH($E27, 'RAB input'!$E$24:$E$73, 0), MATCH(U$4, RAB_years, 0)) -> 0 | V27: =INDEX('RAB input'!$H$24:$XFD$73, MATCH($E27, 'RAB input'!$E$24:$E$73, 0), MATCH(V$4, RAB_years, 0)) -> 0 | W27: =INDEX('RAB input'!$H$24:$XFD$73, MATCH($E27, 'RAB input'!$E$24:$E$73, 0), MATCH(W$4, RAB_years, 0)) -> 0 | X27: =INDEX('RAB input'!$H$24:$XFD$73, MATCH($E27, 'RAB input'!$E$24:$E$73, 0), MATCH(X$4, RAB_years, 0)) -> 0 | Y27: =INDEX('RAB input'!$H$24:$XFD$73, MATCH($E27, 'RAB input'!$E$24:$E$73, 0), MATCH(Y$4, RAB_years, 0)) -> 0 | Z27: =INDEX('RAB input'!$H$24:$XFD$73, MATCH($E27, 'RAB input'!$E$24:$E$73, 0), MATCH(Z$4, RAB_years, 0)) -> 0 | AA27: =INDEX('RAB input'!$H$24:$XFD$73, MATCH($E27, 'RAB input'!$E$24:$E$73, 0), MATCH(AA$4, RAB_years, 0)) -> 0 | AB27: =INDEX('RAB input'!$H$24:$XFD$73, MATCH($E27, 'RAB input'!$E$24:$E$73, 0), MATCH(AB$4, RAB_years, 0)) -> 0 | AC27: =INDEX('RAB input'!$H$24:$XFD$73, MATCH($E27, 'RAB input'!$E$24:$E$73, 0), MATCH(AC$4, RAB_years, 0)) -> 0 | AD27: =INDEX('RAB input'!$H$24:$XFD$73, MATCH($E27, 'RAB input'!$E$24:$E$73, 0), MATCH(AD$4, RAB_years, 0)) -> 0 | AE27: =INDEX('RAB input'!$H$24:$XFD$73, MATCH($E27, 'RAB input'!$E$24:$E$73, 0), MATCH(AE$4, RAB_years, 0)) -> 0 | AF27: =INDEX('RAB input'!$H$24:$XFD$73, MATCH($E27, 'RAB input'!$E$24:$E$73, 0), MATCH(AF$4, RAB_years, 0)) -> 0 | AG27: =INDEX('RAB input'!$H$24:$XFD$73, MATCH($E27, 'RAB input'!$E$24:$E$73, 0), MATCH(AG$4, RAB_years, 0)) -> 0 | AH27: =INDEX('RAB input'!$H$24:$XFD$73, MATCH($E27, 'RAB input'!$E$24:$E$73, 0), MATCH(AH$4, RAB_years, 0)) -> 0 | AI27: =INDEX('RAB input'!$H$24:$XFD$73, MATCH($E27, 'RAB input'!$E$24:$E$73, 0), MATCH(AI$4, RAB_years, 0)) -> 0 | AJ27: =INDEX('RAB input'!$H$24:$XFD$73, MATCH($E27, 'RAB input'!$E$24:$E$73, 0), MATCH(AJ$4, RAB_years, 0)) -> 0 | AK27: =INDEX('RAB input'!$H$24:$XFD$73, MATCH($E27, 'RAB input'!$E$24:$E$73, 0), MATCH(AK$4, RAB_years, 0)) -> 0 | AL27: =INDEX('RAB input'!$H$24:$XFD$73, MATCH($E27, 'RAB input'!$E$24:$E$73, 0), MATCH(AL$4, RAB_years, 0)) -> 0 | AM27: =INDEX('RAB input'!$H$24:$XFD$73, MATCH($E27, 'RAB input'!$E$24:$E$73, 0), MATCH(AM$4, RAB_years, 0)) -> 0 | AN27: =INDEX('RAB input'!$H$24:$XFD$73, MATCH($E27, 'RAB input'!$E$24:$E$73, 0), MATCH(AN$4, RAB_years, 0)) -> 0 | AO27: =INDEX('RAB input'!$H$24:$XFD$73, MATCH($E27, 'RAB input'!$E$24:$E$73, 0), MATCH(AO$4, RAB_years, 0)) -> 0 | AP27: =INDEX('RAB input'!$H$24:$XFD$73, MATCH($E27, 'RAB input'!$E$24:$E$73, 0), MATCH(AP$4, RAB_years, 0)) -> 0 | AQ27: =INDEX('RAB input'!$H$24:$XFD$73, MATCH($E27, 'RAB input'!$E$24:$E$73, 0), MATCH(AQ$4, RAB_years, 0)) -> 0 | AR27: =INDEX('RAB input'!$H$24:$XFD$73, MATCH($E27, 'RAB input'!$E$24:$E$73, 0), MATCH(AR$4, RAB_years, 0)) -> 0 | AS27: =INDEX('RAB input'!$H$24:$XFD$73, MATCH($E27, 'RAB input'!$E$24:$E$73, 0), MATCH(AS$4, RAB_years, 0)) -> 0 | AT27: =INDEX('RAB input'!$H$24:$XFD$73, MATCH($E27, 'RAB input'!$E$24:$E$73, 0), MATCH(AT$4, RAB_years, 0)) -> 0 | AU27: =INDEX('RAB input'!$H$24:$XFD$73, MATCH($E27, 'RAB input'!$E$24:$E$73, 0), MATCH(AU$4, RAB_years, 0)) -> 0 | AV27: =INDEX('RAB input'!$H$24:$XFD$73, MATCH($E27, 'RAB input'!$E$24:$E$73, 0), MATCH(AV$4, RAB_years, 0)) -> 0 | AW27: =INDEX('RAB input'!$H$24:$XFD$73, MATCH($E27, 'RAB input'!$E$24:$E$73, 0), MATCH(AW$4, RAB_years, 0)) -> 0 | AX27: =INDEX('RAB input'!$H$24:$XFD$73, MATCH($E27, 'RAB input'!$E$24:$E$73, 0), MATCH(AX$4, RAB_years, 0)) -> 0 | AY27: =INDEX('RAB input'!$H$24:$XFD$73, MATCH($E27, 'RAB input'!$E$24:$E$73, 0), MATCH(AY$4, RAB_years, 0)) -> 0 | AZ27: =INDEX('RAB input'!$H$24:$XFD$73, MATCH($E27, 'RAB input'!$E$24:$E$73, 0), MATCH(AZ$4, RAB_years, 0)) -> 0 | BA27: =INDEX('RAB input'!$H$24:$XFD$73, MATCH($E27, 'RAB input'!$E$24:$E$73, 0), MATCH(BA$4, RAB_years, 0)) -> 0 | BB27: =INDEX('RAB input'!$H$24:$XFD$73, MATCH($E27, 'RAB input'!$E$24:$E$73, 0), MATCH(BB$4, RAB_years, 0)) -> 0 | BC27: =INDEX('RAB input'!$H$24:$XFD$73, MATCH($E27, 'RAB input'!$E$24:$E$73, 0), MATCH(BC$4, RAB_years, 0)) -> 0 | BD27: =INDEX('RAB input'!$H$24:$XFD$73, MATCH($E27, 'RAB input'!$E$24:$E$73, 0), MATCH(BD$4, RAB_years, 0)) -> 0 | BE27: =INDEX('RAB input'!$H$24:$XFD$73, MATCH($E27, 'RAB input'!$E$24:$E$73, 0), MATCH(BE$4, RAB_years, 0)) -> 0 | BF27: =INDEX('RAB input'!$H$24:$XFD$73, MATCH($E27, 'RAB input'!$E$24:$E$73, 0), MATCH(BF$4, RAB_years, 0)) -> 0 | BG27: =INDEX('RAB input'!$H$24:$XFD$73, MATCH($E27, 'RAB input'!$E$24:$E$73, 0), MATCH(BG$4, RAB_years, 0)) -> 0 | BH27: =INDEX('RAB input'!$H$24:$XFD$73, MATCH($E27, 'RAB input'!$E$24:$E$73, 0), MATCH(BH$4, RAB_years, 0)) -> 0 | BI27: =INDEX('RAB input'!$H$24:$XFD$73, MATCH($E27, 'RAB input'!$E$24:$E$73, 0), MATCH(BI$4, RAB_years, 0)) -> 0 | BJ27: =INDEX('RAB input'!$H$24:$XFD$73, MATCH($E27, 'RAB input'!$E$24:$E$73, 0), MATCH(BJ$4, RAB_years, 0)) -> 0 | BK27: =INDEX('RAB input'!$H$24:$XFD$73, MATCH($E27, 'RAB input'!$E$24:$E$73, 0), MATCH(BK$4, RAB_years, 0)) -> 0 | BL27: =INDEX('RAB input'!$H$24:$XFD$73, MATCH($E27, 'RAB input'!$E$24:$E$73, 0), MATCH(BL$4, RAB_years, 0)) -> 0 | BM27: =INDEX('RAB input'!$H$24:$XFD$73, MATCH($E27, 'RAB input'!$E$24:$E$73, 0), MATCH(BM$4, RAB_years, 0)) -> 0 | BN27: =INDEX('RAB input'!$H$24:$XFD$73, MATCH($E27, 'RAB input'!$E$24:$E$73, 0), MATCH(BN$4, RAB_years, 0)) -> 0 | BO27: =INDEX('RAB input'!$H$24:$XFD$73, MATCH($E27, 'RAB input'!$E$24:$E$73, 0), MATCH(BO$4, RAB_years, 0)) -> 0 | BP27: =INDEX('RAB input'!$H$24:$XFD$73, MATCH($E27, 'RAB input'!$E$24:$E$73, 0), MATCH(BP$4, RAB_years, 0)) -> 0 | BQ27: =INDEX('RAB input'!$H$24:$XFD$73, MATCH($E27, 'RAB input'!$E$24:$E$73, 0), MATCH(BQ$4, RAB_years, 0)) -> 0 | BR27: =INDEX('RAB input'!$H$24:$XFD$73, MATCH($E27, 'RAB input'!$E$24:$E$73, 0), MATCH(BR$4, RAB_years, 0)) -> 0 | BS27: =INDEX('RAB input'!$H$24:$XFD$73, MATCH($E27, 'RAB input'!$E$24:$E$73, 0), MATCH(BS$4, RAB_years, 0)) -> 0 | BT27: =INDEX('RAB input'!$H$24:$XFD$73, MATCH($E27, 'RAB input'!$E$24:$E$73, 0), MATCH(BT$4, RAB_years, 0)) -> 0 | BU27: =INDEX('RAB input'!$H$24:$XFD$73, MATCH($E27, 'RAB input'!$E$24:$E$73, 0), MATCH(BU$4, RAB_years, 0)) -> 0 | BV27: =INDEX('RAB input'!$H$24:$XFD$73, MATCH($E27, 'RAB input'!$E$24:$E$73, 0), MATCH(BV$4, RAB_years, 0)) -> 0 | BW27: =INDEX('RAB input'!$H$24:$XFD$73, MATCH($E27, 'RAB input'!$E$24:$E$73, 0), MATCH(BW$4, RAB_years, 0)) -> 0 | BX27: =INDEX('RAB input'!$H$24:$XFD$73, MATCH($E27, 'RAB input'!$E$24:$E$73, 0), MATCH(BX$4, RAB_years, 0)) -> 0 | BY27: =INDEX('RAB input'!$H$24:$XFD$73, MATCH($E27, 'RAB input'!$E$24:$E$73, 0), MATCH(BY$4, RAB_years, 0)) -> 0 | BZ27: =INDEX('RAB input'!$H$24:$XFD$73, MATCH($E27, 'RAB input'!$E$24:$E$73, 0), MATCH(BZ$4, RAB_years, 0)) -> 0
D28: 11 | E28: ='RAB input'!E34 -> Transmission line assets - medium life (45) | G28: 3.758047556 | H28: =INDEX('RAB input'!$H$24:$XFD$73, MATCH($E28, 'RAB input'!$E$24:$E$73, 0), MATCH(H$4, RAB_years, 0)) -> 0.7051592292 | I28: =INDEX('RAB input'!$H$24:$XFD$73, MATCH($E28, 'RAB input'!$E$24:$E$73, 0), MATCH(I$4, RAB_years, 0)) -> 0 | J28: =INDEX('RAB input'!$H$24:$XFD$73, MATCH($E28, 'RAB input'!$E$24:$E$73, 0), MATCH(J$4, RAB_years, 0)) -> 0 | K28: =INDEX('RAB input'!$H$24:$XFD$73, MATCH($E28, 'RAB input'!$E$24:$E$73, 0), MATCH(K$4, RAB_years, 0)) -> 0.0006347094845 | L28: =INDEX('RAB input'!$H$24:$XFD$73, MATCH($E28, 'RAB input'!$E$24:$E$73, 0), MATCH(L$4, RAB_years, 0)) -> 0.30695212 | M28: =INDEX('RAB input'!$H$24:$XFD$73, MATCH($E28, 'RAB input'!$E$24:$E$73, 0), MATCH(M$4, RAB_years, 0)) -> 0 | N28: =INDEX('RAB input'!$H$24:$XFD$73, MATCH($E28, 'RAB input'!$E$24:$E$73, 0), MATCH(N$4, RAB_years, 0)) -> 0.05722169 | O28: =INDEX('RAB input'!$H$24:$XFD$73, MATCH($E28, 'RAB input'!$E$24:$E$73, 0), MATCH(O$4, RAB_years, 0)) -> 6.188666716 | P28: =INDEX('RAB input'!$H$24:$XFD$73, MATCH($E28, 'RAB input'!$E$24:$E$73, 0), MATCH(P$4, RAB_years, 0)) -> 0.6547902937 | Q28: =INDEX('RAB input'!$H$24:$XFD$73, MATCH($E28, 'RAB input'!$E$24:$E$73, 0), MATCH(Q$4, RAB_years, 0)) -> 5.488806268 | R28: =INDEX('RAB input'!$H$24:$XFD$73, MATCH($E28, 'RAB input'!$E$24:$E$73, 0), MATCH(R$4, RAB_years, 0)) -> 0 | S28: =INDEX('RAB input'!$H$24:$XFD$73, MATCH($E28, 'RAB input'!$E$24:$E$73, 0), MATCH(S$4, RAB_years, 0)) -> 0 | T28: =INDEX('RAB input'!$H$24:$XFD$73, MATCH($E28, 'RAB input'!$E$24:$E$73, 0), MATCH(T$4, RAB_years, 0)) -> 0 | U28: =INDEX('RAB input'!$H$24:$XFD$73, MATCH($E28, 'RAB input'!$E$24:$E$73, 0), MATCH(U$4, RAB_years, 0)) -> 0 | V28: =INDEX('RAB input'!$H$24:$XFD$73, MATCH($E28, 'RAB input'!$E$24:$E$73, 0), MATCH(V$4, RAB_years, 0)) -> 0 | W28: =INDEX('RAB input'!$H$24:$XFD$73, MATCH($E28, 'RAB input'!$E$24:$E$73, 0), MATCH(W$4, RAB_years, 0)) -> 0 | X28: =INDEX('RAB input'!$H$24:$XFD$73, MATCH($E28, 'RAB input'!$E$24:$E$73, 0), MATCH(X$4, RAB_years, 0)) -> 0 | Y28: =INDEX('RAB input'!$H$24:$XFD$73, MATCH($E28, 'RAB input'!$E$24:$E$73, 0), MATCH(Y$4, RAB_years, 0)) -> 0 | Z28: =INDEX('RAB input'!$H$24:$XFD$73, MATCH($E28, 'RAB input'!$E$24:$E$73, 0), MATCH(Z$4, RAB_years, 0)) -> 0 | AA28: =INDEX('RAB input'!$H$24:$XFD$73, MATCH($E28, 'RAB input'!$E$24:$E$73, 0), MATCH(AA$4, RAB_years, 0)) -> 0 | AB28: =INDEX('RAB input'!$H$24:$XFD$73, MATCH($E28, 'RAB input'!$E$24:$E$73, 0), MATCH(AB$4, RAB_years, 0)) -> 0 | AC28: =INDEX('RAB input'!$H$24:$XFD$73, MATCH($E28, 'RAB input'!$E$24:$E$73, 0), MATCH(AC$4, RAB_years, 0)) -> 0 | AD28: =INDEX('RAB input'!$H$24:$XFD$73, MATCH($E28, 'RAB input'!$E$24:$E$73, 0), MATCH(AD$4, RAB_years, 0)) -> 0 | AE28: =INDEX('RAB input'!$H$24:$XFD$73, MATCH($E28, 'RAB input'!$E$24:$E$73, 0), MATCH(AE$4, RAB_years, 0)) -> 0 | AF28: =INDEX('RAB input'!$H$24:$XFD$73, MATCH($E28, 'RAB input'!$E$24:$E$73, 0), MATCH(AF$4, RAB_years, 0)) -> 0 | AG28: =INDEX('RAB input'!$H$24:$XFD$73, MATCH($E28, 'RAB input'!$E$24:$E$73, 0), MATCH(AG$4, RAB_years, 0)) -> 0 | AH28: =INDEX('RAB input'!$H$24:$XFD$73, MATCH($E28, 'RAB input'!$E$24:$E$73, 0), MATCH(AH$4, RAB_years, 0)) -> 0 | AI28: =INDEX('RAB input'!$H$24:$XFD$73, MATCH($E28, 'RAB input'!$E$24:$E$73, 0), MATCH(AI$4, RAB_years, 0)) -> 0 | AJ28: =INDEX('RAB input'!$H$24:$XFD$73, MATCH($E28, 'RAB input'!$E$24:$E$73, 0), MATCH(AJ$4, RAB_years, 0)) -> 0 | AK28: =INDEX('RAB input'!$H$24:$XFD$73, MATCH($E28, 'RAB input'!$E$24:$E$73, 0), MATCH(AK$4, RAB_years, 0)) -> 0 | AL28: =INDEX('RAB input'!$H$24:$XFD$73, MATCH($E28, 'RAB input'!$E$24:$E$73, 0), MATCH(AL$4, RAB_years, 0)) -> 0 | AM28: =INDEX('RAB input'!$H$24:$XFD$73, MATCH($E28, 'RAB input'!$E$24:$E$73, 0), MATCH(AM$4, RAB_years, 0)) -> 0 | AN28: =INDEX('RAB input'!$H$24:$XFD$73, MATCH($E28, 'RAB input'!$E$24:$E$73, 0), MATCH(AN$4, RAB_years, 0)) -> 0 | AO28: =INDEX('RAB input'!$H$24:$XFD$73, MATCH($E28, 'RAB input'!$E$24:$E$73, 0), MATCH(AO$4, RAB_years, 0)) -> 0 | AP28: =INDEX('RAB input'!$H$24:$XFD$73, MATCH($E28, 'RAB input'!$E$24:$E$73, 0), MATCH(AP$4, RAB_years, 0)) -> 0 | AQ28: =INDEX('RAB input'!$H$24:$XFD$73, MATCH($E28, 'RAB input'!$E$24:$E$73, 0), MATCH(AQ$4, RAB_years, 0)) -> 0 | AR28: =INDEX('RAB input'!$H$24:$XFD$73, MATCH($E28, 'RAB input'!$E$24:$E$73, 0), MATCH(AR$4, RAB_years, 0)) -> 0 | AS28: =INDEX('RAB input'!$H$24:$XFD$73, MATCH($E28, 'RAB input'!$E$24:$E$73, 0), MATCH(AS$4, RAB_years, 0)) -> 0 | AT28: =INDEX('RAB input'!$H$24:$XFD$73, MATCH($E28, 'RAB input'!$E$24:$E$73, 0), MATCH(AT$4, RAB_years, 0)) -> 0 | AU28: =INDEX('RAB input'!$H$24:$XFD$73, MATCH($E28, 'RAB input'!$E$24:$E$73, 0), MATCH(AU$4, RAB_years, 0)) -> 0 | AV28: =INDEX('RAB input'!$H$24:$XFD$73, MATCH($E28, 'RAB input'!$E$24:$E$73, 0), MATCH(AV$4, RAB_years, 0)) -> 0 | AW28: =INDEX('RAB input'!$H$24:$XFD$73, MATCH($E28, 'RAB input'!$E$24:$E$73, 0), MATCH(AW$4, RAB_years, 0)) -> 0 | AX28: =INDEX('RAB input'!$H$24:$XFD$73, MATCH($E28, 'RAB input'!$E$24:$E$73, 0), MATCH(AX$4, RAB_years, 0)) -> 0 | AY28: =INDEX('RAB input'!$H$24:$XFD$73, MATCH($E28, 'RAB input'!$E$24:$E$73, 0), MATCH(AY$4, RAB_years, 0)) -> 0 | AZ28: =INDEX('RAB input'!$H$24:$XFD$73, MATCH($E28, 'RAB input'!$E$24:$E$73, 0), MATCH(AZ$4, RAB_years, 0)) -> 0 | BA28: =INDEX('RAB input'!$H$24:$XFD$73, MATCH($E28, 'RAB input'!$E$24:$E$73, 0), MATCH(BA$4, RAB_years, 0)) -> 0 | BB28: =INDEX('RAB input'!$H$24:$XFD$73, MATCH($E28, 'RAB input'!$E$24:$E$73, 0), MATCH(BB$4, RAB_years, 0)) -> 0 | BC28: =INDEX('RAB input'!$H$24:$XFD$73, MATCH($E28, 'RAB input'!$E$24:$E$73, 0), MATCH(BC$4, RAB_years, 0)) -> 0 | BD28: =INDEX('RAB input'!$H$24:$XFD$73, MATCH($E28, 'RAB input'!$E$24:$E$73, 0), MATCH(BD$4, RAB_years, 0)) -> 0 | BE28: =INDEX('RAB input'!$H$24:$XFD$73, MATCH($E28, 'RAB input'!$E$24:$E$73, 0), MATCH(BE$4, RAB_years, 0)) -> 0 | BF28: =INDEX('RAB input'!$H$24:$XFD$73, MATCH($E28, 'RAB input'!$E$24:$E$73, 0), MATCH(BF$4, RAB_years, 0)) -> 0 | BG28: =INDEX('RAB input'!$H$24:$XFD$73, MATCH($E28, 'RAB input'!$E$24:$E$73, 0), MATCH(BG$4, RAB_years, 0)) -> 0 | BH28: =INDEX('RAB input'!$H$24:$XFD$73, MATCH($E28, 'RAB input'!$E$24:$E$73, 0), MATCH(BH$4, RAB_years, 0)) -> 0 | BI28: =INDEX('RAB input'!$H$24:$XFD$73, MATCH($E28, 'RAB input'!$E$24:$E$73, 0), MATCH(BI$4, RAB_years, 0)) -> 0 | BJ28: =INDEX('RAB input'!$H$24:$XFD$73, MATCH($E28, 'RAB input'!$E$24:$E$73, 0), MATCH(BJ$4, RAB_years, 0)) -> 0 | BK28: =INDEX('RAB input'!$H$24:$XFD$73, MATCH($E28, 'RAB input'!$E$24:$E$73, 0), MATCH(BK$4, RAB_years, 0)) -> 0 | BL28: =INDEX('RAB input'!$H$24:$XFD$73, MATCH($E28, 'RAB input'!$E$24:$E$73, 0), MATCH(BL$4, RAB_years, 0)) -> 0 | BM28: =INDEX('RAB input'!$H$24:$XFD$73, MATCH($E28, 'RAB input'!$E$24:$E$73, 0), MATCH(BM$4, RAB_years, 0)) -> 0 | BN28: =INDEX('RAB input'!$H$24:$XFD$73, MATCH($E28, 'RAB input'!$E$24:$E$73, 0), MATCH(BN$4, RAB_years, 0)) -> 0 | BO28: =INDEX('RAB input'!$H$24:$XFD$73, MATCH($E28, 'RAB input'!$E$24:$E$73, 0), MATCH(BO$4, RAB_years, 0)) -> 0 | BP28: =INDEX('RAB input'!$H$24:$XFD$73, MATCH($E28, 'RAB input'!$E$24:$E$73, 0), MATCH(BP$4, RAB_years, 0)) -> 0 | BQ28: =INDEX('RAB input'!$H$24:$XFD$73, MATCH($E28, 'RAB input'!$E$24:$E$73, 0), MATCH(BQ$4, RAB_years, 0)) -> 0 | BR28: =INDEX('RAB input'!$H$24:$XFD$73, MATCH($E28, 'RAB input'!$E$24:$E$73, 0), MATCH(BR$4, RAB_years, 0)) -> 0 | BS28: =INDEX('RAB input'!$H$24:$XFD$73, MATCH($E28, 'RAB input'!$E$24:$E$73, 0), MATCH(BS$4, RAB_years, 0)) -> 0 | BT28: =INDEX('RAB input'!$H$24:$XFD$73, MATCH($E28, 'RAB input'!$E$24:$E$73, 0), MATCH(BT$4, RAB_years, 0)) -> 0 | BU28: =INDEX('RAB input'!$H$24:$XFD$73, MATCH($E28, 'RAB input'!$E$24:$E$73, 0), MATCH(BU$4, RAB_years, 0)) -> 0 | BV28: =INDEX('RAB input'!$H$24:$XFD$73, MATCH($E28, 'RAB input'!$E$24:$E$73, 0), MATCH(BV$4, RAB_years, 0)) -> 0 | BW28: =INDEX('RAB input'!$H$24:$XFD$73, MATCH($E28, 'RAB input'!$E$24:$E$73, 0), MATCH(BW$4, RAB_years, 0)) -> 0 | BX28: =INDEX('RAB input'!$H$24:$XFD$73, MATCH($E28, 'RAB input'!$E$24:$E$73, 0), MATCH(BX$4, RAB_years, 0)) -> 0 | BY28: =INDEX('RAB input'!$H$24:$XFD$73, MATCH($E28, 'RAB input'!$E$24:$E$73, 0), MATCH(BY$4, RAB_years, 0)) -> 0 | BZ28: =INDEX('RAB input'!$H$24:$XFD$73, MATCH($E28, 'RAB input'!$E$24:$E$73, 0), MATCH(BZ$4, RAB_years, 0)) -> 0
D29: 12 | E29: ='RAB input'!E35 -> Transmission line assets - short life (10) | G29: 2.202651898 | H29: =INDEX('RAB input'!$H$24:$XFD$73, MATCH($E29, 'RAB input'!$E$24:$E$73, 0), MATCH(H$4, RAB_years, 0)) -> 0.4790667783 | I29: =INDEX('RAB input'!$H$24:$XFD$73, MATCH($E29, 'RAB input'!$E$24:$E$73, 0), MATCH(I$4, RAB_years, 0)) -> 0.7834980072 | J29: =INDEX('RAB input'!$H$24:$XFD$73, MATCH($E29, 'RAB input'!$E$24:$E$73, 0), MATCH(J$4, RAB_years, 0)) -> 1.912213161 | K29: =INDEX('RAB input'!$H$24:$XFD$73, MATCH($E29, 'RAB input'!$E$24:$E$73, 0), MATCH(K$4, RAB_years, 0)) -> 1.55192495 | L29: =INDEX('RAB input'!$H$24:$XFD$73, MATCH($E29, 'RAB input'!$E$24:$E$73, 0), MATCH(L$4, RAB_years, 0)) -> 0.05595318 | M29: =INDEX('RAB input'!$H$24:$XFD$73, MATCH($E29, 'RAB input'!$E$24:$E$73, 0), MATCH(M$4, RAB_years, 0)) -> 0 | N29: =INDEX('RAB input'!$H$24:$XFD$73, MATCH($E29, 'RAB input'!$E$24:$E$73, 0), MATCH(N$4, RAB_years, 0)) -> 0.21569456 | O29: =INDEX('RAB input'!$H$24:$XFD$73, MATCH($E29, 'RAB input'!$E$24:$E$73, 0), MATCH(O$4, RAB_years, 0)) -> 0.8628943253 | P29: =INDEX('RAB input'!$H$24:$XFD$73, MATCH($E29, 'RAB input'!$E$24:$E$73, 0), MATCH(P$4, RAB_years, 0)) -> 0.09129831264 | Q29: =INDEX('RAB input'!$H$24:$XFD$73, MATCH($E29, 'RAB input'!$E$24:$E$73, 0), MATCH(Q$4, RAB_years, 0)) -> 0.7653118189 | R29: =INDEX('RAB input'!$H$24:$XFD$73, MATCH($E29, 'RAB input'!$E$24:$E$73, 0), MATCH(R$4, RAB_years, 0)) -> 0 | S29: =INDEX('RAB input'!$H$24:$XFD$73, MATCH($E29, 'RAB input'!$E$24:$E$73, 0), MATCH(S$4, RAB_years, 0)) -> 0 | T29: =INDEX('RAB input'!$H$24:$XFD$73, MATCH($E29, 'RAB input'!$E$24:$E$73, 0), MATCH(T$4, RAB_years, 0)) -> 0 | U29: =INDEX('RAB input'!$H$24:$XFD$73, MATCH($E29, 'RAB input'!$E$24:$E$73, 0), MATCH(U$4, RAB_years, 0)) -> 0 | V29: =INDEX('RAB input'!$H$24:$XFD$73, MATCH($E29, 'RAB input'!$E$24:$E$73, 0), MATCH(V$4, RAB_years, 0)) -> 0 | W29: =INDEX('RAB input'!$H$24:$XFD$73, MATCH($E29, 'RAB input'!$E$24:$E$73, 0), MATCH(W$4, RAB_years, 0)) -> 0 | X29: =INDEX('RAB input'!$H$24:$XFD$73, MATCH($E29, 'RAB input'!$E$24:$E$73, 0), MATCH(X$4, RAB_years, 0)) -> 0 | Y29: =INDEX('RAB input'!$H$24:$XFD$73, MATCH($E29, 'RAB input'!$E$24:$E$73, 0), MATCH(Y$4, RAB_years, 0)) -> 0 | Z29: =INDEX('RAB input'!$H$24:$XFD$73, MATCH($E29, 'RAB input'!$E$24:$E$73, 0), MATCH(Z$4, RAB_years, 0)) -> 0 | AA29: =INDEX('RAB input'!$H$24:$XFD$73, MATCH($E29, 'RAB input'!$E$24:$E$73, 0), MATCH(AA$4, RAB_years, 0)) -> 0 | AB29: =INDEX('RAB input'!$H$24:$XFD$73, MATCH($E29, 'RAB input'!$E$24:$E$73, 0), MATCH(AB$4, RAB_years, 0)) -> 0 | AC29: =INDEX('RAB input'!$H$24:$XFD$73, MATCH($E29, 'RAB input'!$E$24:$E$73, 0), MATCH(AC$4, RAB_years, 0)) -> 0 | AD29: =INDEX('RAB input'!$H$24:$XFD$73, MATCH($E29, 'RAB input'!$E$24:$E$73, 0), MATCH(AD$4, RAB_years, 0)) -> 0 | AE29: =INDEX('RAB input'!$H$24:$XFD$73, MATCH($E29, 'RAB input'!$E$24:$E$73, 0), MATCH(AE$4, RAB_years, 0)) -> 0 | AF29: =INDEX('RAB input'!$H$24:$XFD$73, MATCH($E29, 'RAB input'!$E$24:$E$73, 0), MATCH(AF$4, RAB_years, 0)) -> 0 | AG29: =INDEX('RAB input'!$H$24:$XFD$73, MATCH($E29, 'RAB input'!$E$24:$E$73, 0), MATCH(AG$4, RAB_years, 0)) -> 0 | AH29: =INDEX('RAB input'!$H$24:$XFD$73, MATCH($E29, 'RAB input'!$E$24:$E$73, 0), MATCH(AH$4, RAB_years, 0)) -> 0 | AI29: =INDEX('RAB input'!$H$24:$XFD$73, MATCH($E29, 'RAB input'!$E$24:$E$73, 0), MATCH(AI$4, RAB_years, 0)) -> 0 | AJ29: =INDEX('RAB input'!$H$24:$XFD$73, MATCH($E29, 'RAB input'!$E$24:$E$73, 0), MATCH(AJ$4, RAB_years, 0)) -> 0 | AK29: =INDEX('RAB input'!$H$24:$XFD$73, MATCH($E29, 'RAB input'!$E$24:$E$73, 0), MATCH(AK$4, RAB_years, 0)) -> 0 | AL29: =INDEX('RAB input'!$H$24:$XFD$73, MATCH($E29, 'RAB input'!$E$24:$E$73, 0), MATCH(AL$4, RAB_years, 0)) -> 0 | AM29: =INDEX('RAB input'!$H$24:$XFD$73, MATCH($E29, 'RAB input'!$E$24:$E$73, 0), MATCH(AM$4, RAB_years, 0)) -> 0 | AN29: =INDEX('RAB input'!$H$24:$XFD$73, MATCH($E29, 'RAB input'!$E$24:$E$73, 0), MATCH(AN$4, RAB_years, 0)) -> 0 | AO29: =INDEX('RAB input'!$H$24:$XFD$73, MATCH($E29, 'RAB input'!$E$24:$E$73, 0), MATCH(AO$4, RAB_years, 0)) -> 0 | AP29: =INDEX('RAB input'!$H$24:$XFD$73, MATCH($E29, 'RAB input'!$E$24:$E$73, 0), MATCH(AP$4, RAB_years, 0)) -> 0 | AQ29: =INDEX('RAB input'!$H$24:$XFD$73, MATCH($E29, 'RAB input'!$E$24:$E$73, 0), MATCH(AQ$4, RAB_years, 0)) -> 0 | AR29: =INDEX('RAB input'!$H$24:$XFD$73, MATCH($E29, 'RAB input'!$E$24:$E$73, 0), MATCH(AR$4, RAB_years, 0)) -> 0 | AS29: =INDEX('RAB input'!$H$24:$XFD$73, MATCH($E29, 'RAB input'!$E$24:$E$73, 0), MATCH(AS$4, RAB_years, 0)) -> 0 | AT29: =INDEX('RAB input'!$H$24:$XFD$73, MATCH($E29, 'RAB input'!$E$24:$E$73, 0), MATCH(AT$4, RAB_years, 0)) -> 0 | AU29: =INDEX('RAB input'!$H$24:$XFD$73, MATCH($E29, 'RAB input'!$E$24:$E$73, 0), MATCH(AU$4, RAB_years, 0)) -> 0 | AV29: =INDEX('RAB input'!$H$24:$XFD$73, MATCH($E29, 'RAB input'!$E$24:$E$73, 0), MATCH(AV$4, RAB_years, 0)) -> 0 | AW29: =INDEX('RAB input'!$H$24:$XFD$73, MATCH($E29, 'RAB input'!$E$24:$E$73, 0), MATCH(AW$4, RAB_years, 0)) -> 0 | AX29: =INDEX('RAB input'!$H$24:$XFD$73, MATCH($E29, 'RAB input'!$E$24:$E$73, 0), MATCH(AX$4, RAB_years, 0)) -> 0 | AY29: =INDEX('RAB input'!$H$24:$XFD$73, MATCH($E29, 'RAB input'!$E$24:$E$73, 0), MATCH(AY$4, RAB_years, 0)) -> 0 | AZ29: =INDEX('RAB input'!$H$24:$XFD$73, MATCH($E29, 'RAB input'!$E$24:$E$73, 0), MATCH(AZ$4, RAB_years, 0)) -> 0 | BA29: =INDEX('RAB input'!$H$24:$XFD$73, MATCH($E29, 'RAB input'!$E$24:$E$73, 0), MATCH(BA$4, RAB_years, 0)) -> 0 | BB29: =INDEX('RAB input'!$H$24:$XFD$73, MATCH($E29, 'RAB input'!$E$24:$E$73, 0), MATCH(BB$4, RAB_years, 0)) -> 0 | BC29: =INDEX('RAB input'!$H$24:$XFD$73, MATCH($E29, 'RAB input'!$E$24:$E$73, 0), MATCH(BC$4, RAB_years, 0)) -> 0 | BD29: =INDEX('RAB input'!$H$24:$XFD$73, MATCH($E29, 'RAB input'!$E$24:$E$73, 0), MATCH(BD$4, RAB_years, 0)) -> 0 | BE29: =INDEX('RAB input'!$H$24:$XFD$73, MATCH($E29, 'RAB input'!$E$24:$E$73, 0), MATCH(BE$4, RAB_years, 0)) -> 0 | BF29: =INDEX('RAB input'!$H$24:$XFD$73, MATCH($E29, 'RAB input'!$E$24:$E$73, 0), MATCH(BF$4, RAB_years, 0)) -> 0 | BG29: =INDEX('RAB input'!$H$24:$XFD$73, MATCH($E29, 'RAB input'!$E$24:$E$73, 0), MATCH(BG$4, RAB_years, 0)) -> 0 | BH29: =INDEX('RAB input'!$H$24:$XFD$73, MATCH($E29, 'RAB input'!$E$24:$E$73, 0), MATCH(BH$4, RAB_years, 0)) -> 0 | BI29: =INDEX('RAB input'!$H$24:$XFD$73, MATCH($E29, 'RAB input'!$E$24:$E$73, 0), MATCH(BI$4, RAB_years, 0)) -> 0 | BJ29: =INDEX('RAB input'!$H$24:$XFD$73, MATCH($E29, 'RAB input'!$E$24:$E$73, 0), MATCH(BJ$4, RAB_years, 0)) -> 0 | BK29: =INDEX('RAB input'!$H$24:$XFD$73, MATCH($E29, 'RAB input'!$E$24:$E$73, 0), MATCH(BK$4, RAB_years, 0)) -> 0 | BL29: =INDEX('RAB input'!$H$24:$XFD$73, MATCH($E29, 'RAB input'!$E$24:$E$73, 0), MATCH(BL$4, RAB_years, 0)) -> 0 | BM29: =INDEX('RAB input'!$H$24:$XFD$73, MATCH($E29, 'RAB input'!$E$24:$E$73, 0), MATCH(BM$4, RAB_years, 0)) -> 0 | BN29: =INDEX('RAB input'!$H$24:$XFD$73, MATCH($E29, 'RAB input'!$E$24:$E$73, 0), MATCH(BN$4, RAB_years, 0)) -> 0 | BO29: =INDEX('RAB input'!$H$24:$XFD$73, MATCH($E29, 'RAB input'!$E$24:$E$73, 0), MATCH(BO$4, RAB_years, 0)) -> 0 | BP29: =INDEX('RAB input'!$H$24:$XFD$73, MATCH($E29, 'RAB input'!$E$24:$E$73, 0), MATCH(BP$4, RAB_years, 0)) -> 0 | BQ29: =INDEX('RAB input'!$H$24:$XFD$73, MATCH($E29, 'RAB input'!$E$24:$E$73, 0), MATCH(BQ$4, RAB_years, 0)) -> 0 | BR29: =INDEX('RAB input'!$H$24:$XFD$73, MATCH($E29, 'RAB input'!$E$24:$E$73, 0), MATCH(BR$4, RAB_years, 0)) -> 0 | BS29: =INDEX('RAB input'!$H$24:$XFD$73, MATCH($E29, 'RAB input'!$E$24:$E$73, 0), MATCH(BS$4, RAB_years, 0)) -> 0 | BT29: =INDEX('RAB input'!$H$24:$XFD$73, MATCH($E29, 'RAB input'!$E$24:$E$73, 0), MATCH(BT$4, RAB_years, 0)) -> 0 | BU29: =INDEX('RAB input'!$H$24:$XFD$73, MATCH($E29, 'RAB input'!$E$24:$E$73, 0), MATCH(BU$4, RAB_years, 0)) -> 0 | BV29: =INDEX('RAB input'!$H$24:$XFD$73, MATCH($E29, 'RAB input'!$E$24:$E$73, 0), MATCH(BV$4, RAB_years, 0)) -> 0 | BW29: =INDEX('RAB input'!$H$24:$XFD$73, MATCH($E29, 'RAB input'!$E$24:$E$73, 0), MATCH(BW$4, RAB_years, 0)) -> 0 | BX29: =INDEX('RAB input'!$H$24:$XFD$73, MATCH($E29, 'RAB input'!$E$24:$E$73, 0), MATCH(BX$4, RAB_years, 0)) -> 0 | BY29: =INDEX('RAB input'!$H$24:$XFD$73, MATCH($E29, 'RAB input'!$E$24:$E$73, 0), MATCH(BY$4, RAB_years, 0)) -> 0 | BZ29: =INDEX('RAB input'!$H$24:$XFD$73, MATCH($E29, 'RAB input'!$E$24:$E$73, 0), MATCH(BZ$4, RAB_years, 0)) -> 0
D30: 13 | E30: ='RAB input'!E36 -> Substation assets - long life (60) | G30: 52.01764132 | H30: =INDEX('RAB input'!$H$24:$XFD$73, MATCH($E30, 'RAB input'!$E$24:$E$73, 0), MATCH(H$4, RAB_years, 0)) -> 3.719915781 | I30: =INDEX('RAB input'!$H$24:$XFD$73, MATCH($E30, 'RAB input'!$E$24:$E$73, 0), MATCH(I$4, RAB_years, 0)) -> 3.001896919 | J30: =INDEX('RAB input'!$H$24:$XFD$73, MATCH($E30, 'RAB input'!$E$24:$E$73, 0), MATCH(J$4, RAB_years, 0)) -> 1.060218382 | K30: =INDEX('RAB input'!$H$24:$XFD$73, MATCH($E30, 'RAB input'!$E$24:$E$73, 0), MATCH(K$4, RAB_years, 0)) -> 0.70000546 | L30: =INDEX('RAB input'!$H$24:$XFD$73, MATCH($E30, 'RAB input'!$E$24:$E$73, 0), MATCH(L$4, RAB_years, 0)) -> 4.93607978 | M30: =INDEX('RAB input'!$H$24:$XFD$73, MATCH($E30, 'RAB input'!$E$24:$E$73, 0), MATCH(M$4, RAB_years, 0)) -> 2.16592072 | N30: =INDEX('RAB input'!$H$24:$XFD$73, MATCH($E30, 'RAB input'!$E$24:$E$73, 0), MATCH(N$4, RAB_years, 0)) -> 0.24092902 | O30: =INDEX('RAB input'!$H$24:$XFD$73, MATCH($E30, 'RAB input'!$E$24:$E$73, 0), MATCH(O$4, RAB_years, 0)) -> 4.19240161 | P30: =INDEX('RAB input'!$H$24:$XFD$73, MATCH($E30, 'RAB input'!$E$24:$E$73, 0), MATCH(P$4, RAB_years, 0)) -> 3.32822707 | Q30: =INDEX('RAB input'!$H$24:$XFD$73, MATCH($E30, 'RAB input'!$E$24:$E$73, 0), MATCH(Q$4, RAB_years, 0)) -> 5.499457604 | R30: =INDEX('RAB input'!$H$24:$XFD$73, MATCH($E30, 'RAB input'!$E$24:$E$73, 0), MATCH(R$4, RAB_years, 0)) -> 0 | S30: =INDEX('RAB input'!$H$24:$XFD$73, MATCH($E30, 'RAB input'!$E$24:$E$73, 0), MATCH(S$4, RAB_years, 0)) -> 0 | T30: =INDEX('RAB input'!$H$24:$XFD$73, MATCH($E30, 'RAB input'!$E$24:$E$73, 0), MATCH(T$4, RAB_years, 0)) -> 0 | U30: =INDEX('RAB input'!$H$24:$XFD$73, MATCH($E30, 'RAB input'!$E$24:$E$73, 0), MATCH(U$4, RAB_years, 0)) -> 0 | V30: =INDEX('RAB input'!$H$24:$XFD$73, MATCH($E30, 'RAB input'!$E$24:$E$73, 0), MATCH(V$4, RAB_years, 0)) -> 0 | W30: =INDEX('RAB input'!$H$24:$XFD$73, MATCH($E30, 'RAB input'!$E$24:$E$73, 0), MATCH(W$4, RAB_years, 0)) -> 0 | X30: =INDEX('RAB input'!$H$24:$XFD$73, MATCH($E30, 'RAB input'!$E$24:$E$73, 0), MATCH(X$4, RAB_years, 0)) -> 0 | Y30: =INDEX('RAB input'!$H$24:$XFD$73, MATCH($E30, 'RAB input'!$E$24:$E$73, 0), MATCH(Y$4, RAB_years, 0)) -> 0 | Z30: =INDEX('RAB input'!$H$24:$XFD$73, MATCH($E30, 'RAB input'!$E$24:$E$73, 0), MATCH(Z$4, RAB_years, 0)) -> 0 | AA30: =INDEX('RAB input'!$H$24:$XFD$73, MATCH($E30, 'RAB input'!$E$24:$E$73, 0), MATCH(AA$4, RAB_years, 0)) -> 0 | AB30: =INDEX('RAB input'!$H$24:$XFD$73, MATCH($E30, 'RAB input'!$E$24:$E$73, 0), MATCH(AB$4, RAB_years, 0)) -> 0 | AC30: =INDEX('RAB input'!$H$24:$XFD$73, MATCH($E30, 'RAB input'!$E$24:$E$73, 0), MATCH(AC$4, RAB_years, 0)) -> 0 | AD30: =INDEX('RAB input'!$H$24:$XFD$73, MATCH($E30, 'RAB input'!$E$24:$E$73, 0), MATCH(AD$4, RAB_years, 0)) -> 0 | AE30: =INDEX('RAB input'!$H$24:$XFD$73, MATCH($E30, 'RAB input'!$E$24:$E$73, 0), MATCH(AE$4, RAB_years, 0)) -> 0 | AF30: =INDEX('RAB input'!$H$24:$XFD$73, MATCH($E30, 'RAB input'!$E$24:$E$73, 0), MATCH(AF$4, RAB_years, 0)) -> 0 | AG30: =INDEX('RAB input'!$H$24:$XFD$73, MATCH($E30, 'RAB input'!$E$24:$E$73, 0), MATCH(AG$4, RAB_years, 0)) -> 0 | AH30: =INDEX('RAB input'!$H$24:$XFD$73, MATCH($E30, 'RAB input'!$E$24:$E$73, 0), MATCH(AH$4, RAB_years, 0)) -> 0 | AI30: =INDEX('RAB input'!$H$24:$XFD$73, MATCH($E30, 'RAB input'!$E$24:$E$73, 0), MATCH(AI$4, RAB_years, 0)) -> 0 | AJ30: =INDEX('RAB input'!$H$24:$XFD$73, MATCH($E30, 'RAB input'!$E$24:$E$73, 0), MATCH(AJ$4, RAB_years, 0)) -> 0 | AK30: =INDEX('RAB input'!$H$24:$XFD$73, MATCH($E30, 'RAB input'!$E$24:$E$73, 0), MATCH(AK$4, RAB_years, 0)) -> 0 | AL30: =INDEX('RAB input'!$H$24:$XFD$73, MATCH($E30, 'RAB input'!$E$24:$E$73, 0), MATCH(AL$4, RAB_years, 0)) -> 0 | AM30: =INDEX('RAB input'!$H$24:$XFD$73, MATCH($E30, 'RAB input'!$E$24:$E$73, 0), MATCH(AM$4, RAB_years, 0)) -> 0 | AN30: =INDEX('RAB input'!$H$24:$XFD$73, MATCH($E30, 'RAB input'!$E$24:$E$73, 0), MATCH(AN$4, RAB_years, 0)) -> 0 | AO30: =INDEX('RAB input'!$H$24:$XFD$73, MATCH($E30, 'RAB input'!$E$24:$E$73, 0), MATCH(AO$4, RAB_years, 0)) -> 0 | AP30: =INDEX('RAB input'!$H$24:$XFD$73, MATCH($E30, 'RAB input'!$E$24:$E$73, 0), MATCH(AP$4, RAB_years, 0)) -> 0 | AQ30: =INDEX('RAB input'!$H$24:$XFD$73, MATCH($E30, 'RAB input'!$E$24:$E$73, 0), MATCH(AQ$4, RAB_years, 0)) -> 0 | AR30: =INDEX('RAB input'!$H$24:$XFD$73, MATCH($E30, 'RAB input'!$E$24:$E$73, 0), MATCH(AR$4, RAB_years, 0)) -> 0 | AS30: =INDEX('RAB input'!$H$24:$XFD$73, MATCH($E30, 'RAB input'!$E$24:$E$73, 0), MATCH(AS$4, RAB_years, 0)) -> 0 | AT30: =INDEX('RAB input'!$H$24:$XFD$73, MATCH($E30, 'RAB input'!$E$24:$E$73, 0), MATCH(AT$4, RAB_years, 0)) -> 0 | AU30: =INDEX('RAB input'!$H$24:$XFD$73, MATCH($E30, 'RAB input'!$E$24:$E$73, 0), MATCH(AU$4, RAB_years, 0)) -> 0 | AV30: =INDEX('RAB input'!$H$24:$XFD$73, MATCH($E30, 'RAB input'!$E$24:$E$73, 0), MATCH(AV$4, RAB_years, 0)) -> 0 | AW30: =INDEX('RAB input'!$H$24:$XFD$73, MATCH($E30, 'RAB input'!$E$24:$E$73, 0), MATCH(AW$4, RAB_years, 0)) -> 0 | AX30: =INDEX('RAB input'!$H$24:$XFD$73, MATCH($E30, 'RAB input'!$E$24:$E$73, 0), MATCH(AX$4, RAB_years, 0)) -> 0 | AY30: =INDEX('RAB input'!$H$24:$XFD$73, MATCH($E30, 'RAB input'!$E$24:$E$73, 0), MATCH(AY$4, RAB_years, 0)) -> 0 | AZ30: =INDEX('RAB input'!$H$24:$XFD$73, MATCH($E30, 'RAB input'!$E$24:$E$73, 0), MATCH(AZ$4, RAB_years, 0)) -> 0 | BA30: =INDEX('RAB input'!$H$24:$XFD$73, MATCH($E30, 'RAB input'!$E$24:$E$73, 0), MATCH(BA$4, RAB_years, 0)) -> 0 | BB30: =INDEX('RAB input'!$H$24:$XFD$73, MATCH($E30, 'RAB input'!$E$24:$E$73, 0), MATCH(BB$4, RAB_years, 0)) -> 0 | BC30: =INDEX('RAB input'!$H$24:$XFD$73, MATCH($E30, 'RAB input'!$E$24:$E$73, 0), MATCH(BC$4, RAB_years, 0)) -> 0 | BD30: =INDEX('RAB input'!$H$24:$XFD$73, MATCH($E30, 'RAB input'!$E$24:$E$73, 0), MATCH(BD$4, RAB_years, 0)) -> 0 | BE30: =INDEX('RAB input'!$H$24:$XFD$73, MATCH($E30, 'RAB input'!$E$24:$E$73, 0), MATCH(BE$4, RAB_years, 0)) -> 0 | BF30: =INDEX('RAB input'!$H$24:$XFD$73, MATCH($E30, 'RAB input'!$E$24:$E$73, 0), MATCH(BF$4, RAB_years, 0)) -> 0 | BG30: =INDEX('RAB input'!$H$24:$XFD$73, MATCH($E30, 'RAB input'!$E$24:$E$73, 0), MATCH(BG$4, RAB_years, 0)) -> 0 | BH30: =INDEX('RAB input'!$H$24:$XFD$73, MATCH($E30, 'RAB input'!$E$24:$E$73, 0), MATCH(BH$4, RAB_years, 0)) -> 0 | BI30: =INDEX('RAB input'!$H$24:$XFD$73, MATCH($E30, 'RAB input'!$E$24:$E$73, 0), MATCH(BI$4, RAB_years, 0)) -> 0 | BJ30: =INDEX('RAB input'!$H$24:$XFD$73, MATCH($E30, 'RAB input'!$E$24:$E$73, 0), MATCH(BJ$4, RAB_years, 0)) -> 0 | BK30: =INDEX('RAB input'!$H$24:$XFD$73, MATCH($E30, 'RAB input'!$E$24:$E$73, 0), MATCH(BK$4, RAB_years, 0)) -> 0 | BL30: =INDEX('RAB input'!$H$24:$XFD$73, MATCH($E30, 'RAB input'!$E$24:$E$73, 0), MATCH(BL$4, RAB_years, 0)) -> 0 | BM30: =INDEX('RAB input'!$H$24:$XFD$73, MATCH($E30, 'RAB input'!$E$24:$E$73, 0), MATCH(BM$4, RAB_years, 0)) -> 0 | BN30: =INDEX('RAB input'!$H$24:$XFD$73, MATCH($E30, 'RAB input'!$E$24:$E$73, 0), MATCH(BN$4, RAB_years, 0)) -> 0 | BO30: =INDEX('RAB input'!$H$24:$XFD$73, MATCH($E30, 'RAB input'!$E$24:$E$73, 0), MATCH(BO$4, RAB_years, 0)) -> 0 | BP30: =INDEX('RAB input'!$H$24:$XFD$73, MATCH($E30, 'RAB input'!$E$24:$E$73, 0), MATCH(BP$4, RAB_years, 0)) -> 0 | BQ30: =INDEX('RAB input'!$H$24:$XFD$73, MATCH($E30, 'RAB input'!$E$24:$E$73, 0), MATCH(BQ$4, RAB_years, 0)) -> 0 | BR30: =INDEX('RAB input'!$H$24:$XFD$73, MATCH($E30, 'RAB input'!$E$24:$E$73, 0), MATCH(BR$4, RAB_years, 0)) -> 0 | BS30: =INDEX('RAB input'!$H$24:$XFD$73, MATCH($E30, 'RAB input'!$E$24:$E$73, 0), MATCH(BS$4, RAB_years, 0)) -> 0 | BT30: =INDEX('RAB input'!$H$24:$XFD$73, MATCH($E30, 'RAB input'!$E$24:$E$73, 0), MATCH(BT$4, RAB_years, 0)) -> 0 | BU30: =INDEX('RAB input'!$H$24:$XFD$73, MATCH($E30, 'RAB input'!$E$24:$E$73, 0), MATCH(BU$4, RAB_years, 0)) -> 0 | BV30: =INDEX('RAB input'!$H$24:$XFD$73, MATCH($E30, 'RAB input'!$E$24:$E$73, 0), MATCH(BV$4, RAB_years, 0)) -> 0 | BW30: =INDEX('RAB input'!$H$24:$XFD$73, MATCH($E30, 'RAB input'!$E$24:$E$73, 0), MATCH(BW$4, RAB_years, 0)) -> 0 | BX30: =INDEX('RAB input'!$H$24:$XFD$73, MATCH($E30, 'RAB input'!$E$24:$E$73, 0), MATCH(BX$4, RAB_years, 0)) -> 0 | BY30: =INDEX('RAB input'!$H$24:$XFD$73, MATCH($E30, 'RAB input'!$E$24:$E$73, 0), MATCH(BY$4, RAB_years, 0)) -> 0 | BZ30: =INDEX('RAB input'!$H$24:$XFD$73, MATCH($E30, 'RAB input'!$E$24:$E$73, 0), MATCH(BZ$4, RAB_years, 0)) -> 0
D31: 14 | E31: ='RAB input'!E37 -> Substation assets - medium life (45) | G31: 175.3623719 | H31: =INDEX('RAB input'!$H$24:$XFD$73, MATCH($E31, 'RAB input'!$E$24:$E$73, 0), MATCH(H$4, RAB_years, 0)) -> 9.924317596 | I31: =INDEX('RAB input'!$H$24:$XFD$73, MATCH($E31, 'RAB input'!$E$24:$E$73, 0), MATCH(I$4, RAB_years, 0)) -> 8.850025976 | J31: =INDEX('RAB input'!$H$24:$XFD$73, MATCH($E31, 'RAB input'!$E$24:$E$73, 0), MATCH(J$4, RAB_years, 0)) -> 3.672561094 | K31: =INDEX('RAB input'!$H$24:$XFD$73, MATCH($E31, 'RAB input'!$E$24:$E$73, 0), MATCH(K$4, RAB_years, 0)) -> 11.02156469 | L31: =INDEX('RAB input'!$H$24:$XFD$73, MATCH($E31, 'RAB input'!$E$24:$E$73, 0), MATCH(L$4, RAB_years, 0)) -> 24.8732135 | M31: =INDEX('RAB input'!$H$24:$XFD$73, MATCH($E31, 'RAB input'!$E$24:$E$73, 0), MATCH(M$4, RAB_years, 0)) -> 18.28764718 | N31: =INDEX('RAB input'!$H$24:$XFD$73, MATCH($E31, 'RAB input'!$E$24:$E$73, 0), MATCH(N$4, RAB_years, 0)) -> 2.67447141 | O31: =INDEX('RAB input'!$H$24:$XFD$73, MATCH($E31, 'RAB input'!$E$24:$E$73, 0), MATCH(O$4, RAB_years, 0)) -> 8.587498632 | P31: =INDEX('RAB input'!$H$24:$XFD$73, MATCH($E31, 'RAB input'!$E$24:$E$73, 0), MATCH(P$4, RAB_years, 0)) -> 7.623019169 | Q31: =INDEX('RAB input'!$H$24:$XFD$73, MATCH($E31, 'RAB input'!$E$24:$E$73, 0), MATCH(Q$4, RAB_years, 0)) -> 11.80552603 | R31: =INDEX('RAB input'!$H$24:$XFD$73, MATCH($E31, 'RAB input'!$E$24:$E$73, 0), MATCH(R$4, RAB_years, 0)) -> 0 | S31: =INDEX('RAB input'!$H$24:$XFD$73, MATCH($E31, 'RAB input'!$E$24:$E$73, 0), MATCH(S$4, RAB_years, 0)) -> 0 | T31: =INDEX('RAB input'!$H$24:$XFD$73, MATCH($E31, 'RAB input'!$E$24:$E$73, 0), MATCH(T$4, RAB_years, 0)) -> 0 | U31: =INDEX('RAB input'!$H$24:$XFD$73, MATCH($E31, 'RAB input'!$E$24:$E$73, 0), MATCH(U$4, RAB_years, 0)) -> 0 | V31: =INDEX('RAB input'!$H$24:$XFD$73, MATCH($E31, 'RAB input'!$E$24:$E$73, 0), MATCH(V$4, RAB_years, 0)) -> 0 | W31: =INDEX('RAB input'!$H$24:$XFD$73, MATCH($E31, 'RAB input'!$E$24:$E$73, 0), MATCH(W$4, RAB_years, 0)) -> 0 | X31: =INDEX('RAB input'!$H$24:$XFD$73, MATCH($E31, 'RAB input'!$E$24:$E$73, 0), MATCH(X$4, RAB_years, 0)) -> 0 | Y31: =INDEX('RAB input'!$H$24:$XFD$73, MATCH($E31, 'RAB input'!$E$24:$E$73, 0), MATCH(Y$4, RAB_years, 0)) -> 0 | Z31: =INDEX('RAB input'!$H$24:$XFD$73, MATCH($E31, 'RAB input'!$E$24:$E$73, 0), MATCH(Z$4, RAB_years, 0)) -> 0 | AA31: =INDEX('RAB input'!$H$24:$XFD$73, MATCH($E31, 'RAB input'!$E$24:$E$73, 0), MATCH(AA$4, RAB_years, 0)) -> 0 | AB31: =INDEX('RAB input'!$H$24:$XFD$73, MATCH($E31, 'RAB input'!$E$24:$E$73, 0), MATCH(AB$4, RAB_years, 0)) -> 0 | AC31: =INDEX('RAB input'!$H$24:$XFD$73, MATCH($E31, 'RAB input'!$E$24:$E$73, 0), MATCH(AC$4, RAB_years, 0)) -> 0 | AD31: =INDEX('RAB input'!$H$24:$XFD$73, MATCH($E31, 'RAB input'!$E$24:$E$73, 0), MATCH(AD$4, RAB_years, 0)) -> 0 | AE31: =INDEX('RAB input'!$H$24:$XFD$73, MATCH($E31, 'RAB input'!$E$24:$E$73, 0), MATCH(AE$4, RAB_years, 0)) -> 0 | AF31: =INDEX('RAB input'!$H$24:$XFD$73, MATCH($E31, 'RAB input'!$E$24:$E$73, 0), MATCH(AF$4, RAB_years, 0)) -> 0 | AG31: =INDEX('RAB input'!$H$24:$XFD$73, MATCH($E31, 'RAB input'!$E$24:$E$73, 0), MATCH(AG$4, RAB_years, 0)) -> 0 | AH31: =INDEX('RAB input'!$H$24:$XFD$73, MATCH($E31, 'RAB input'!$E$24:$E$73, 0), MATCH(AH$4, RAB_years, 0)) -> 0 | AI31: =INDEX('RAB input'!$H$24:$XFD$73, MATCH($E31, 'RAB input'!$E$24:$E$73, 0), MATCH(AI$4, RAB_years, 0)) -> 0 | AJ31: =INDEX('RAB input'!$H$24:$XFD$73, MATCH($E31, 'RAB input'!$E$24:$E$73, 0), MATCH(AJ$4, RAB_years, 0)) -> 0 | AK31: =INDEX('RAB input'!$H$24:$XFD$73, MATCH($E31, 'RAB input'!$E$24:$E$73, 0), MATCH(AK$4, RAB_years, 0)) -> 0 | AL31: =INDEX('RAB input'!$H$24:$XFD$73, MATCH($E31, 'RAB input'!$E$24:$E$73, 0), MATCH(AL$4, RAB_years, 0)) -> 0 | AM31: =INDEX('RAB input'!$H$24:$XFD$73, MATCH($E31, 'RAB input'!$E$24:$E$73, 0), MATCH(AM$4, RAB_years, 0)) -> 0 | AN31: =INDEX('RAB input'!$H$24:$XFD$73, MATCH($E31, 'RAB input'!$E$24:$E$73, 0), MATCH(AN$4, RAB_years, 0)) -> 0 | AO31: =INDEX('RAB input'!$H$24:$XFD$73, MATCH($E31, 'RAB input'!$E$24:$E$73, 0), MATCH(AO$4, RAB_years, 0)) -> 0 | AP31: =INDEX('RAB input'!$H$24:$XFD$73, MATCH($E31, 'RAB input'!$E$24:$E$73, 0), MATCH(AP$4, RAB_years, 0)) -> 0 | AQ31: =INDEX('RAB input'!$H$24:$XFD$73, MATCH($E31, 'RAB input'!$E$24:$E$73, 0), MATCH(AQ$4, RAB_years, 0)) -> 0 | AR31: =INDEX('RAB input'!$H$24:$XFD$73, MATCH($E31, 'RAB input'!$E$24:$E$73, 0), MATCH(AR$4, RAB_years, 0)) -> 0 | AS31: =INDEX('RAB input'!$H$24:$XFD$73, MATCH($E31, 'RAB input'!$E$24:$E$73, 0), MATCH(AS$4, RAB_years, 0)) -> 0 | AT31: =INDEX('RAB input'!$H$24:$XFD$73, MATCH($E31, 'RAB input'!$E$24:$E$73, 0), MATCH(AT$4, RAB_years, 0)) -> 0 | AU31: =INDEX('RAB input'!$H$24:$XFD$73, MATCH($E31, 'RAB input'!$E$24:$E$73, 0), MATCH(AU$4, RAB_years, 0)) -> 0 | AV31: =INDEX('RAB input'!$H$24:$XFD$73, MATCH($E31, 'RAB input'!$E$24:$E$73, 0), MATCH(AV$4, RAB_years, 0)) -> 0 | AW31: =INDEX('RAB input'!$H$24:$XFD$73, MATCH($E31, 'RAB input'!$E$24:$E$73, 0), MATCH(AW$4, RAB_years, 0)) -> 0 | AX31: =INDEX('RAB input'!$H$24:$XFD$73, MATCH($E31, 'RAB input'!$E$24:$E$73, 0), MATCH(AX$4, RAB_years, 0)) -> 0 | AY31: =INDEX('RAB input'!$H$24:$XFD$73, MATCH($E31, 'RAB input'!$E$24:$E$73, 0), MATCH(AY$4, RAB_years, 0)) -> 0 | AZ31: =INDEX('RAB input'!$H$24:$XFD$73, MATCH($E31, 'RAB input'!$E$24:$E$73, 0), MATCH(AZ$4, RAB_years, 0)) -> 0 | BA31: =INDEX('RAB input'!$H$24:$XFD$73, MATCH($E31, 'RAB input'!$E$24:$E$73, 0), MATCH(BA$4, RAB_years, 0)) -> 0 | BB31: =INDEX('RAB input'!$H$24:$XFD$73, MATCH($E31, 'RAB input'!$E$24:$E$73, 0), MATCH(BB$4, RAB_years, 0)) -> 0 | BC31: =INDEX('RAB input'!$H$24:$XFD$73, MATCH($E31, 'RAB input'!$E$24:$E$73, 0), MATCH(BC$4, RAB_years, 0)) -> 0 | BD31: =INDEX('RAB input'!$H$24:$XFD$73, MATCH($E31, 'RAB input'!$E$24:$E$73, 0), MATCH(BD$4, RAB_years, 0)) -> 0 | BE31: =INDEX('RAB input'!$H$24:$XFD$73, MATCH($E31, 'RAB input'!$E$24:$E$73, 0), MATCH(BE$4, RAB_years, 0)) -> 0 | BF31: =INDEX('RAB input'!$H$24:$XFD$73, MATCH($E31, 'RAB input'!$E$24:$E$73, 0), MATCH(BF$4, RAB_years, 0)) -> 0 | BG31: =INDEX('RAB input'!$H$24:$XFD$73, MATCH($E31, 'RAB input'!$E$24:$E$73, 0), MATCH(BG$4, RAB_years, 0)) -> 0 | BH31: =INDEX('RAB input'!$H$24:$XFD$73, MATCH($E31, 'RAB input'!$E$24:$E$73, 0), MATCH(BH$4, RAB_years, 0)) -> 0 | BI31: =INDEX('RAB input'!$H$24:$XFD$73, MATCH($E31, 'RAB input'!$E$24:$E$73, 0), MATCH(BI$4, RAB_years, 0)) -> 0 | BJ31: =INDEX('RAB input'!$H$24:$XFD$73, MATCH($E31, 'RAB input'!$E$24:$E$73, 0), MATCH(BJ$4, RAB_years, 0)) -> 0 | BK31: =INDEX('RAB input'!$H$24:$XFD$73, MATCH($E31, 'RAB input'!$E$24:$E$73, 0), MATCH(BK$4, RAB_years, 0)) -> 0 | BL31: =INDEX('RAB input'!$H$24:$XFD$73, MATCH($E31, 'RAB input'!$E$24:$E$73, 0), MATCH(BL$4, RAB_years, 0)) -> 0 | BM31: =INDEX('RAB input'!$H$24:$XFD$73, MATCH($E31, 'RAB input'!$E$24:$E$73, 0), MATCH(BM$4, RAB_years, 0)) -> 0 | BN31: =INDEX('RAB input'!$H$24:$XFD$73, MATCH($E31, 'RAB input'!$E$24:$E$73, 0), MATCH(BN$4, RAB_years, 0)) -> 0 | BO31: =INDEX('RAB input'!$H$24:$XFD$73, MATCH($E31, 'RAB input'!$E$24:$E$73, 0), MATCH(BO$4, RAB_years, 0)) -> 0 | BP31: =INDEX('RAB input'!$H$24:$XFD$73, MATCH($E31, 'RAB input'!$E$24:$E$73, 0), MATCH(BP$4, RAB_years, 0)) -> 0 | BQ31: =INDEX('RAB input'!$H$24:$XFD$73, MATCH($E31, 'RAB input'!$E$24:$E$73, 0), MATCH(BQ$4, RAB_years, 0)) -> 0 | BR31: =INDEX('RAB input'!$H$24:$XFD$73, MATCH($E31, 'RAB input'!$E$24:$E$73, 0), MATCH(BR$4, RAB_years, 0)) -> 0 | BS31: =INDEX('RAB input'!$H$24:$XFD$73, MATCH($E31, 'RAB input'!$E$24:$E$73, 0), MATCH(BS$4, RAB_years, 0)) -> 0 | BT31: =INDEX('RAB input'!$H$24:$XFD$73, MATCH($E31, 'RAB input'!$E$24:$E$73, 0), MATCH(BT$4, RAB_years, 0)) -> 0 | BU31: =INDEX('RAB input'!$H$24:$XFD$73, MATCH($E31, 'RAB input'!$E$24:$E$73, 0), MATCH(BU$4, RAB_years, 0)) -> 0 | BV31: =INDEX('RAB input'!$H$24:$XFD$73, MATCH($E31, 'RAB input'!$E$24:$E$73, 0), MATCH(BV$4, RAB_years, 0)) -> 0 | BW31: =INDEX('RAB input'!$H$24:$XFD$73, MATCH($E31, 'RAB input'!$E$24:$E$73, 0), MATCH(BW$4, RAB_years, 0)) -> 0 | BX31: =INDEX('RAB input'!$H$24:$XFD$73, MATCH($E31, 'RAB input'!$E$24:$E$73, 0), MATCH(BX$4, RAB_years, 0)) -> 0 | BY31: =INDEX('RAB input'!$H$24:$XFD$73, MATCH($E31, 'RAB input'!$E$24:$E$73, 0), MATCH(BY$4, RAB_years, 0)) -> 0 | BZ31: =INDEX('RAB input'!$H$24:$XFD$73, MATCH($E31, 'RAB input'!$E$24:$E$73, 0), MATCH(BZ$4, RAB_years, 0)) -> 0
D32: 15 | E32: ='RAB input'!E38 -> Substation assets - short life (15) | G32: 18.60047487 | H32: =INDEX('RAB input'!$H$24:$XFD$73, MATCH($E32, 'RAB input'!$E$24:$E$73, 0), MATCH(H$4, RAB_years, 0)) -> 1.865639881 | I32: =INDEX('RAB input'!$H$24:$XFD$73, MATCH($E32, 'RAB input'!$E$24:$E$73, 0), MATCH(I$4, RAB_years, 0)) -> 1.480802873 | J32: =INDEX('RAB input'!$H$24:$XFD$73, MATCH($E32, 'RAB input'!$E$24:$E$73, 0), MATCH(J$4, RAB_years, 0)) -> 1.186055079 | K32: =INDEX('RAB input'!$H$24:$XFD$73, MATCH($E32, 'RAB input'!$E$24:$E$73, 0), MATCH(K$4, RAB_years, 0)) -> 0.1315843443 | L32: =INDEX('RAB input'!$H$24:$XFD$73, MATCH($E32, 'RAB input'!$E$24:$E$73, 0), MATCH(L$4, RAB_years, 0)) -> 0 | M32: =INDEX('RAB input'!$H$24:$XFD$73, MATCH($E32, 'RAB input'!$E$24:$E$73, 0), MATCH(M$4, RAB_years, 0)) -> 0.2923475 | N32: =INDEX('RAB input'!$H$24:$XFD$73, MATCH($E32, 'RAB input'!$E$24:$E$73, 0), MATCH(N$4, RAB_years, 0)) -> 1.86668147 | O32: =INDEX('RAB input'!$H$24:$XFD$73, MATCH($E32, 'RAB input'!$E$24:$E$73, 0), MATCH(O$4, RAB_years, 0)) -> 0.8198798604 | P32: =INDEX('RAB input'!$H$24:$XFD$73, MATCH($E32, 'RAB input'!$E$24:$E$73, 0), MATCH(P$4, RAB_years, 0)) -> 0.8636840765 | Q32: =INDEX('RAB input'!$H$24:$XFD$73, MATCH($E32, 'RAB input'!$E$24:$E$73, 0), MATCH(Q$4, RAB_years, 0)) -> 1.023612974 | R32: =INDEX('RAB input'!$H$24:$XFD$73, MATCH($E32, 'RAB input'!$E$24:$E$73, 0), MATCH(R$4, RAB_years, 0)) -> 0 | S32: =INDEX('RAB input'!$H$24:$XFD$73, MATCH($E32, 'RAB input'!$E$24:$E$73, 0), MATCH(S$4, RAB_years, 0)) -> 0 | T32: =INDEX('RAB input'!$H$24:$XFD$73, MATCH($E32, 'RAB input'!$E$24:$E$73, 0), MATCH(T$4, RAB_years, 0)) -> 0 | U32: =INDEX('RAB input'!$H$24:$XFD$73, MATCH($E32, 'RAB input'!$E$24:$E$73, 0), MATCH(U$4, RAB_years, 0)) -> 0 | V32: =INDEX('RAB input'!$H$24:$XFD$73, MATCH($E32, 'RAB input'!$E$24:$E$73, 0), MATCH(V$4, RAB_years, 0)) -> 0 | W32: =INDEX('RAB input'!$H$24:$XFD$73, MATCH($E32, 'RAB input'!$E$24:$E$73, 0), MATCH(W$4, RAB_years, 0)) -> 0 | X32: =INDEX('RAB input'!$H$24:$XFD$73, MATCH($E32, 'RAB input'!$E$24:$E$73, 0), MATCH(X$4, RAB_years, 0)) -> 0 | Y32: =INDEX('RAB input'!$H$24:$XFD$73, MATCH($E32, 'RAB input'!$E$24:$E$73, 0), MATCH(Y$4, RAB_years, 0)) -> 0 | Z32: =INDEX('RAB input'!$H$24:$XFD$73, MATCH($E32, 'RAB input'!$E$24:$E$73, 0), MATCH(Z$4, RAB_years, 0)) -> 0 | AA32: =INDEX('RAB input'!$H$24:$XFD$73, MATCH($E32, 'RAB input'!$E$24:$E$73, 0), MATCH(AA$4, RAB_years, 0)) -> 0 | AB32: =INDEX('RAB input'!$H$24:$XFD$73, MATCH($E32, 'RAB input'!$E$24:$E$73, 0), MATCH(AB$4, RAB_years, 0)) -> 0 | AC32: =INDEX('RAB input'!$H$24:$XFD$73, MATCH($E32, 'RAB input'!$E$24:$E$73, 0), MATCH(AC$4, RAB_years, 0)) -> 0 | AD32: =INDEX('RAB input'!$H$24:$XFD$73, MATCH($E32, 'RAB input'!$E$24:$E$73, 0), MATCH(AD$4, RAB_years, 0)) -> 0 | AE32: =INDEX('RAB input'!$H$24:$XFD$73, MATCH($E32, 'RAB input'!$E$24:$E$73, 0), MATCH(AE$4, RAB_years, 0)) -> 0 | AF32: =INDEX('RAB input'!$H$24:$XFD$73, MATCH($E32, 'RAB input'!$E$24:$E$73, 0), MATCH(AF$4, RAB_years, 0)) -> 0 | AG32: =INDEX('RAB input'!$H$24:$XFD$73, MATCH($E32, 'RAB input'!$E$24:$E$73, 0), MATCH(AG$4, RAB_years, 0)) -> 0 | AH32: =INDEX('RAB input'!$H$24:$XFD$73, MATCH($E32, 'RAB input'!$E$24:$E$73, 0), MATCH(AH$4, RAB_years, 0)) -> 0 | AI32: =INDEX('RAB input'!$H$24:$XFD$73, MATCH($E32, 'RAB input'!$E$24:$E$73, 0), MATCH(AI$4, RAB_years, 0)) -> 0 | AJ32: =INDEX('RAB input'!$H$24:$XFD$73, MATCH($E32, 'RAB input'!$E$24:$E$73, 0), MATCH(AJ$4, RAB_years, 0)) -> 0 | AK32: =INDEX('RAB input'!$H$24:$XFD$73, MATCH($E32, 'RAB input'!$E$24:$E$73, 0), MATCH(AK$4, RAB_years, 0)) -> 0 | AL32: =INDEX('RAB input'!$H$24:$XFD$73, MATCH($E32, 'RAB input'!$E$24:$E$73, 0), MATCH(AL$4, RAB_years, 0)) -> 0 | AM32: =INDEX('RAB input'!$H$24:$XFD$73, MATCH($E32, 'RAB input'!$E$24:$E$73, 0), MATCH(AM$4, RAB_years, 0)) -> 0 | AN32: =INDEX('RAB input'!$H$24:$XFD$73, MATCH($E32, 'RAB input'!$E$24:$E$73, 0), MATCH(AN$4, RAB_years, 0)) -> 0 | AO32: =INDEX('RAB input'!$H$24:$XFD$73, MATCH($E32, 'RAB input'!$E$24:$E$73, 0), MATCH(AO$4, RAB_years, 0)) -> 0 | AP32: =INDEX('RAB input'!$H$24:$XFD$73, MATCH($E32, 'RAB input'!$E$24:$E$73, 0), MATCH(AP$4, RAB_years, 0)) -> 0 | AQ32: =INDEX('RAB input'!$H$24:$XFD$73, MATCH($E32, 'RAB input'!$E$24:$E$73, 0), MATCH(AQ$4, RAB_years, 0)) -> 0 | AR32: =INDEX('RAB input'!$H$24:$XFD$73, MATCH($E32, 'RAB input'!$E$24:$E$73, 0), MATCH(AR$4, RAB_years, 0)) -> 0 | AS32: =INDEX('RAB input'!$H$24:$XFD$73, MATCH($E32, 'RAB input'!$E$24:$E$73, 0), MATCH(AS$4, RAB_years, 0)) -> 0 | AT32: =INDEX('RAB input'!$H$24:$XFD$73, MATCH($E32, 'RAB input'!$E$24:$E$73, 0), MATCH(AT$4, RAB_years, 0)) -> 0 | AU32: =INDEX('RAB input'!$H$24:$XFD$73, MATCH($E32, 'RAB input'!$E$24:$E$73, 0), MATCH(AU$4, RAB_years, 0)) -> 0 | AV32: =INDEX('RAB input'!$H$24:$XFD$73, MATCH($E32, 'RAB input'!$E$24:$E$73, 0), MATCH(AV$4, RAB_years, 0)) -> 0 | AW32: =INDEX('RAB input'!$H$24:$XFD$73, MATCH($E32, 'RAB input'!$E$24:$E$73, 0), MATCH(AW$4, RAB_years, 0)) -> 0 | AX32: =INDEX('RAB input'!$H$24:$XFD$73, MATCH($E32, 'RAB input'!$E$24:$E$73, 0), MATCH(AX$4, RAB_years, 0)) -> 0 | AY32: =INDEX('RAB input'!$H$24:$XFD$73, MATCH($E32, 'RAB input'!$E$24:$E$73, 0), MATCH(AY$4, RAB_years, 0)) -> 0 | AZ32: =INDEX('RAB input'!$H$24:$XFD$73, MATCH($E32, 'RAB input'!$E$24:$E$73, 0), MATCH(AZ$4, RAB_years, 0)) -> 0 | BA32: =INDEX('RAB input'!$H$24:$XFD$73, MATCH($E32, 'RAB input'!$E$24:$E$73, 0), MATCH(BA$4, RAB_years, 0)) -> 0 | BB32: =INDEX('RAB input'!$H$24:$XFD$73, MATCH($E32, 'RAB input'!$E$24:$E$73, 0), MATCH(BB$4, RAB_years, 0)) -> 0 | BC32: =INDEX('RAB input'!$H$24:$XFD$73, MATCH($E32, 'RAB input'!$E$24:$E$73, 0), MATCH(BC$4, RAB_years, 0)) -> 0 | BD32: =INDEX('RAB input'!$H$24:$XFD$73, MATCH($E32, 'RAB input'!$E$24:$E$73, 0), MATCH(BD$4, RAB_years, 0)) -> 0 | BE32: =INDEX('RAB input'!$H$24:$XFD$73, MATCH($E32, 'RAB input'!$E$24:$E$73, 0), MATCH(BE$4, RAB_years, 0)) -> 0 | BF32: =INDEX('RAB input'!$H$24:$XFD$73, MATCH($E32, 'RAB input'!$E$24:$E$73, 0), MATCH(BF$4, RAB_years, 0)) -> 0 | BG32: =INDEX('RAB input'!$H$24:$XFD$73, MATCH($E32, 'RAB input'!$E$24:$E$73, 0), MATCH(BG$4, RAB_years, 0)) -> 0 | BH32: =INDEX('RAB input'!$H$24:$XFD$73, MATCH($E32, 'RAB input'!$E$24:$E$73, 0), MATCH(BH$4, RAB_years, 0)) -> 0 | BI32: =INDEX('RAB input'!$H$24:$XFD$73, MATCH($E32, 'RAB input'!$E$24:$E$73, 0), MATCH(BI$4, RAB_years, 0)) -> 0 | BJ32: =INDEX('RAB input'!$H$24:$XFD$73, MATCH($E32, 'RAB input'!$E$24:$E$73, 0), MATCH(BJ$4, RAB_years, 0)) -> 0 | BK32: =INDEX('RAB input'!$H$24:$XFD$73, MATCH($E32, 'RAB input'!$E$24:$E$73, 0), MATCH(BK$4, RAB_years, 0)) -> 0 | BL32: =INDEX('RAB input'!$H$24:$XFD$73, MATCH($E32, 'RAB input'!$E$24:$E$73, 0), MATCH(BL$4, RAB_years, 0)) -> 0 | BM32: =INDEX('RAB input'!$H$24:$XFD$73, MATCH($E32, 'RAB input'!$E$24:$E$73, 0), MATCH(BM$4, RAB_years, 0)) -> 0 | BN32: =INDEX('RAB input'!$H$24:$XFD$73, MATCH($E32, 'RAB input'!$E$24:$E$73, 0), MATCH(BN$4, RAB_years, 0)) -> 0 | BO32: =INDEX('RAB input'!$H$24:$XFD$73, MATCH($E32, 'RAB input'!$E$24:$E$73, 0), MATCH(BO$4, RAB_years, 0)) -> 0 | BP32: =INDEX('RAB input'!$H$24:$XFD$73, MATCH($E32, 'RAB input'!$E$24:$E$73, 0), MATCH(BP$4, RAB_years, 0)) -> 0 | BQ32: =INDEX('RAB input'!$H$24:$XFD$73, MATCH($E32, 'RAB input'!$E$24:$E$73, 0), MATCH(BQ$4, RAB_years, 0)) -> 0 | BR32: =INDEX('RAB input'!$H$24:$XFD$73, MATCH($E32, 'RAB input'!$E$24:$E$73, 0), MATCH(BR$4, RAB_years, 0)) -> 0 | BS32: =INDEX('RAB input'!$H$24:$XFD$73, MATCH($E32, 'RAB input'!$E$24:$E$73, 0), MATCH(BS$4, RAB_years, 0)) -> 0 | BT32: =INDEX('RAB input'!$H$24:$XFD$73, MATCH($E32, 'RAB input'!$E$24:$E$73, 0), MATCH(BT$4, RAB_years, 0)) -> 0 | BU32: =INDEX('RAB input'!$H$24:$XFD$73, MATCH($E32, 'RAB input'!$E$24:$E$73, 0), MATCH(BU$4, RAB_years, 0)) -> 0 | BV32: =INDEX('RAB input'!$H$24:$XFD$73, MATCH($E32, 'RAB input'!$E$24:$E$73, 0), MATCH(BV$4, RAB_years, 0)) -> 0 | BW32: =INDEX('RAB input'!$H$24:$XFD$73, MATCH($E32, 'RAB input'!$E$24:$E$73, 0), MATCH(BW$4, RAB_years, 0)) -> 0 | BX32: =INDEX('RAB input'!$H$24:$XFD$73, MATCH($E32, 'RAB input'!$E$24:$E$73, 0), MATCH(BX$4, RAB_years, 0)) -> 0 | BY32: =INDEX('RAB input'!$H$24:$XFD$73, MATCH($E32, 'RAB input'!$E$24:$E$73, 0), MATCH(BY$4, RAB_years, 0)) -> 0 | BZ32: =INDEX('RAB input'!$H$24:$XFD$73, MATCH($E32, 'RAB input'!$E$24:$E$73, 0), MATCH(BZ$4, RAB_years, 0)) -> 0
D33: 16 | E33: ='RAB input'!E39 -> Protection and control - short life (15) | G33: 75.60684195 | H33: =INDEX('RAB input'!$H$24:$XFD$73, MATCH($E33, 'RAB input'!$E$24:$E$73, 0), MATCH(H$4, RAB_years, 0)) -> 4.527989532 | I33: =INDEX('RAB input'!$H$24:$XFD$73, MATCH($E33, 'RAB input'!$E$24:$E$73, 0), MATCH(I$4, RAB_years, 0)) -> 5.51298045 | J33: =INDEX('RAB input'!$H$24:$XFD$73, MATCH($E33, 'RAB input'!$E$24:$E$73, 0), MATCH(J$4, RAB_years, 0)) -> 1.78333863 | K33: =INDEX('RAB input'!$H$24:$XFD$73, MATCH($E33, 'RAB input'!$E$24:$E$73, 0), MATCH(K$4, RAB_years, 0)) -> 1.074839851 | L33: =INDEX('RAB input'!$H$24:$XFD$73, MATCH($E33, 'RAB input'!$E$24:$E$73, 0), MATCH(L$4, RAB_years, 0)) -> 11.8254785 | M33: =INDEX('RAB input'!$H$24:$XFD$73, MATCH($E33, 'RAB input'!$E$24:$E$73, 0), MATCH(M$4, RAB_years, 0)) -> 14.96935722 | N33: =INDEX('RAB input'!$H$24:$XFD$73, MATCH($E33, 'RAB input'!$E$24:$E$73, 0), MATCH(N$4, RAB_years, 0)) -> 9.54161816 | O33: =INDEX('RAB input'!$H$24:$XFD$73, MATCH($E33, 'RAB input'!$E$24:$E$73, 0), MATCH(O$4, RAB_years, 0)) -> 12.16693741 | P33: =INDEX('RAB input'!$H$24:$XFD$73, MATCH($E33, 'RAB input'!$E$24:$E$73, 0), MATCH(P$4, RAB_years, 0)) -> 6.609879665 | Q33: =INDEX('RAB input'!$H$24:$XFD$73, MATCH($E33, 'RAB input'!$E$24:$E$73, 0), MATCH(Q$4, RAB_years, 0)) -> 10.65358982 | R33: =INDEX('RAB input'!$H$24:$XFD$73, MATCH($E33, 'RAB input'!$E$24:$E$73, 0), MATCH(R$4, RAB_years, 0)) -> 0 | S33: =INDEX('RAB input'!$H$24:$XFD$73, MATCH($E33, 'RAB input'!$E$24:$E$73, 0), MATCH(S$4, RAB_years, 0)) -> 0 | T33: =INDEX('RAB input'!$H$24:$XFD$73, MATCH($E33, 'RAB input'!$E$24:$E$73, 0), MATCH(T$4, RAB_years, 0)) -> 0 | U33: =INDEX('RAB input'!$H$24:$XFD$73, MATCH($E33, 'RAB input'!$E$24:$E$73, 0), MATCH(U$4, RAB_years, 0)) -> 0 | V33: =INDEX('RAB input'!$H$24:$XFD$73, MATCH($E33, 'RAB input'!$E$24:$E$73, 0), MATCH(V$4, RAB_years, 0)) -> 0 | W33: =INDEX('RAB input'!$H$24:$XFD$73, MATCH($E33, 'RAB input'!$E$24:$E$73, 0), MATCH(W$4, RAB_years, 0)) -> 0 | X33: =INDEX('RAB input'!$H$24:$XFD$73, MATCH($E33, 'RAB input'!$E$24:$E$73, 0), MATCH(X$4, RAB_years, 0)) -> 0 | Y33: =INDEX('RAB input'!$H$24:$XFD$73, MATCH($E33, 'RAB input'!$E$24:$E$73, 0), MATCH(Y$4, RAB_years, 0)) -> 0 | Z33: =INDEX('RAB input'!$H$24:$XFD$73, MATCH($E33, 'RAB input'!$E$24:$E$73, 0), MATCH(Z$4, RAB_years, 0)) -> 0 | AA33: =INDEX('RAB input'!$H$24:$XFD$73, MATCH($E33, 'RAB input'!$E$24:$E$73, 0), MATCH(AA$4, RAB_years, 0)) -> 0 | AB33: =INDEX('RAB input'!$H$24:$XFD$73, MATCH($E33, 'RAB input'!$E$24:$E$73, 0), MATCH(AB$4, RAB_years, 0)) -> 0 | AC33: =INDEX('RAB input'!$H$24:$XFD$73, MATCH($E33, 'RAB input'!$E$24:$E$73, 0), MATCH(AC$4, RAB_years, 0)) -> 0 | AD33: =INDEX('RAB input'!$H$24:$XFD$73, MATCH($E33, 'RAB input'!$E$24:$E$73, 0), MATCH(AD$4, RAB_years, 0)) -> 0 | AE33: =INDEX('RAB input'!$H$24:$XFD$73, MATCH($E33, 'RAB input'!$E$24:$E$73, 0), MATCH(AE$4, RAB_years, 0)) -> 0 | AF33: =INDEX('RAB input'!$H$24:$XFD$73, MATCH($E33, 'RAB input'!$E$24:$E$73, 0), MATCH(AF$4, RAB_years, 0)) -> 0 | AG33: =INDEX('RAB input'!$H$24:$XFD$73, MATCH($E33, 'RAB input'!$E$24:$E$73, 0), MATCH(AG$4, RAB_years, 0)) -> 0 | AH33: =INDEX('RAB input'!$H$24:$XFD$73, MATCH($E33, 'RAB input'!$E$24:$E$73, 0), MATCH(AH$4, RAB_years, 0)) -> 0 | AI33: =INDEX('RAB input'!$H$24:$XFD$73, MATCH($E33, 'RAB input'!$E$24:$E$73, 0), MATCH(AI$4, RAB_years, 0)) -> 0 | AJ33: =INDEX('RAB input'!$H$24:$XFD$73, MATCH($E33, 'RAB input'!$E$24:$E$73, 0), MATCH(AJ$4, RAB_years, 0)) -> 0 | AK33: =INDEX('RAB input'!$H$24:$XFD$73, MATCH($E33, 'RAB input'!$E$24:$E$73, 0), MATCH(AK$4, RAB_years, 0)) -> 0 | AL33: =INDEX('RAB input'!$H$24:$XFD$73, MATCH($E33, 'RAB input'!$E$24:$E$73, 0), MATCH(AL$4, RAB_years, 0)) -> 0 | AM33: =INDEX('RAB input'!$H$24:$XFD$73, MATCH($E33, 'RAB input'!$E$24:$E$73, 0), MATCH(AM$4, RAB_years, 0)) -> 0 | AN33: =INDEX('RAB input'!$H$24:$XFD$73, MATCH($E33, 'RAB input'!$E$24:$E$73, 0), MATCH(AN$4, RAB_years, 0)) -> 0 | AO33: =INDEX('RAB input'!$H$24:$XFD$73, MATCH($E33, 'RAB input'!$E$24:$E$73, 0), MATCH(AO$4, RAB_years, 0)) -> 0 | AP33: =INDEX('RAB input'!$H$24:$XFD$73, MATCH($E33, 'RAB input'!$E$24:$E$73, 0), MATCH(AP$4, RAB_years, 0)) -> 0 | AQ33: =INDEX('RAB input'!$H$24:$XFD$73, MATCH($E33, 'RAB input'!$E$24:$E$73, 0), MATCH(AQ$4, RAB_years, 0)) -> 0 | AR33: =INDEX('RAB input'!$H$24:$XFD$73, MATCH($E33, 'RAB input'!$E$24:$E$73, 0), MATCH(AR$4, RAB_years, 0)) -> 0 | AS33: =INDEX('RAB input'!$H$24:$XFD$73, MATCH($E33, 'RAB input'!$E$24:$E$73, 0), MATCH(AS$4, RAB_years, 0)) -> 0 | AT33: =INDEX('RAB input'!$H$24:$XFD$73, MATCH($E33, 'RAB input'!$E$24:$E$73, 0), MATCH(AT$4, RAB_years, 0)) -> 0 | AU33: =INDEX('RAB input'!$H$24:$XFD$73, MATCH($E33, 'RAB input'!$E$24:$E$73, 0), MATCH(AU$4, RAB_years, 0)) -> 0 | AV33: =INDEX('RAB input'!$H$24:$XFD$73, MATCH($E33, 'RAB input'!$E$24:$E$73, 0), MATCH(AV$4, RAB_years, 0)) -> 0 | AW33: =INDEX('RAB input'!$H$24:$XFD$73, MATCH($E33, 'RAB input'!$E$24:$E$73, 0), MATCH(AW$4, RAB_years, 0)) -> 0 | AX33: =INDEX('RAB input'!$H$24:$XFD$73, MATCH($E33, 'RAB input'!$E$24:$E$73, 0), MATCH(AX$4, RAB_years, 0)) -> 0 | AY33: =INDEX('RAB input'!$H$24:$XFD$73, MATCH($E33, 'RAB input'!$E$24:$E$73, 0), MATCH(AY$4, RAB_years, 0)) -> 0 | AZ33: =INDEX('RAB input'!$H$24:$XFD$73, MATCH($E33, 'RAB input'!$E$24:$E$73, 0), MATCH(AZ$4, RAB_years, 0)) -> 0 | BA33: =INDEX('RAB input'!$H$24:$XFD$73, MATCH($E33, 'RAB input'!$E$24:$E$73, 0), MATCH(BA$4, RAB_years, 0)) -> 0 | BB33: =INDEX('RAB input'!$H$24:$XFD$73, MATCH($E33, 'RAB input'!$E$24:$E$73, 0), MATCH(BB$4, RAB_years, 0)) -> 0 | BC33: =INDEX('RAB input'!$H$24:$XFD$73, MATCH($E33, 'RAB input'!$E$24:$E$73, 0), MATCH(BC$4, RAB_years, 0)) -> 0 | BD33: =INDEX('RAB input'!$H$24:$XFD$73, MATCH($E33, 'RAB input'!$E$24:$E$73, 0), MATCH(BD$4, RAB_years, 0)) -> 0 | BE33: =INDEX('RAB input'!$H$24:$XFD$73, MATCH($E33, 'RAB input'!$E$24:$E$73, 0), MATCH(BE$4, RAB_years, 0)) -> 0 | BF33: =INDEX('RAB input'!$H$24:$XFD$73, MATCH($E33, 'RAB input'!$E$24:$E$73, 0), MATCH(BF$4, RAB_years, 0)) -> 0 | BG33: =INDEX('RAB input'!$H$24:$XFD$73, MATCH($E33, 'RAB input'!$E$24:$E$73, 0), MATCH(BG$4, RAB_years, 0)) -> 0 | BH33: =INDEX('RAB input'!$H$24:$XFD$73, MATCH($E33, 'RAB input'!$E$24:$E$73, 0), MATCH(BH$4, RAB_years, 0)) -> 0 | BI33: =INDEX('RAB input'!$H$24:$XFD$73, MATCH($E33, 'RAB input'!$E$24:$E$73, 0), MATCH(BI$4, RAB_years, 0)) -> 0 | BJ33: =INDEX('RAB input'!$H$24:$XFD$73, MATCH($E33, 'RAB input'!$E$24:$E$73, 0), MATCH(BJ$4, RAB_years, 0)) -> 0 | BK33: =INDEX('RAB input'!$H$24:$XFD$73, MATCH($E33, 'RAB input'!$E$24:$E$73, 0), MATCH(BK$4, RAB_years, 0)) -> 0 | BL33: =INDEX('RAB input'!$H$24:$XFD$73, MATCH($E33, 'RAB input'!$E$24:$E$73, 0), MATCH(BL$4, RAB_years, 0)) -> 0 | BM33: =INDEX('RAB input'!$H$24:$XFD$73, MATCH($E33, 'RAB input'!$E$24:$E$73, 0), MATCH(BM$4, RAB_years, 0)) -> 0 | BN33: =INDEX('RAB input'!$H$24:$XFD$73, MATCH($E33, 'RAB input'!$E$24:$E$73, 0), MATCH(BN$4, RAB_years, 0)) -> 0 | BO33: =INDEX('RAB input'!$H$24:$XFD$73, MATCH($E33, 'RAB input'!$E$24:$E$73, 0), MATCH(BO$4, RAB_years, 0)) -> 0 | BP33: =INDEX('RAB input'!$H$24:$XFD$73, MATCH($E33, 'RAB input'!$E$24:$E$73, 0), MATCH(BP$4, RAB_years, 0)) -> 0 | BQ33: =INDEX('RAB input'!$H$24:$XFD$73, MATCH($E33, 'RAB input'!$E$24:$E$73, 0), MATCH(BQ$4, RAB_years, 0)) -> 0 | BR33: =INDEX('RAB input'!$H$24:$XFD$73, MATCH($E33, 'RAB input'!$E$24:$E$73, 0), MATCH(BR$4, RAB_years, 0)) -> 0 | BS33: =INDEX('RAB input'!$H$24:$XFD$73, MATCH($E33, 'RAB input'!$E$24:$E$73, 0), MATCH(BS$4, RAB_years, 0)) -> 0 | BT33: =INDEX('RAB input'!$H$24:$XFD$73, MATCH($E33, 'RAB input'!$E$24:$E$73, 0), MATCH(BT$4, RAB_years, 0)) -> 0 | BU33: =INDEX('RAB input'!$H$24:$XFD$73, MATCH($E33, 'RAB input'!$E$24:$E$73, 0), MATCH(BU$4, RAB_years, 0)) -> 0 | BV33: =INDEX('RAB input'!$H$24:$XFD$73, MATCH($E33, 'RAB input'!$E$24:$E$73, 0), MATCH(BV$4, RAB_years, 0)) -> 0 | BW33: =INDEX('RAB input'!$H$24:$XFD$73, MATCH($E33, 'RAB input'!$E$24:$E$73, 0), MATCH(BW$4, RAB_years, 0)) -> 0 | BX33: =INDEX('RAB input'!$H$24:$XFD$73, MATCH($E33, 'RAB input'!$E$24:$E$73, 0), MATCH(BX$4, RAB_years, 0)) -> 0 | BY33: =INDEX('RAB input'!$H$24:$XFD$73, MATCH($E33, 'RAB input'!$E$24:$E$73, 0), MATCH(BY$4, RAB_years, 0)) -> 0 | BZ33: =INDEX('RAB input'!$H$24:$XFD$73, MATCH($E33, 'RAB input'!$E$24:$E$73, 0), MATCH(BZ$4, RAB_years, 0)) -> 0
D34: 17 | E34: ='RAB input'!E40 -> Protection and control - short life (4) | G34: 0.87480725 | H34: =INDEX('RAB input'!$H$24:$XFD$73, MATCH($E34, 'RAB input'!$E$24:$E$73, 0), MATCH(H$4, RAB_years, 0)) -> 0 | I34: =INDEX('RAB input'!$H$24:$XFD$73, MATCH($E34, 'RAB input'!$E$24:$E$73, 0), MATCH(I$4, RAB_years, 0)) -> 0 | J34: =INDEX('RAB input'!$H$24:$XFD$73, MATCH($E34, 'RAB input'!$E$24:$E$73, 0), MATCH(J$4, RAB_years, 0)) -> 0.1637680185 | K34: =INDEX('RAB input'!$H$24:$XFD$73, MATCH($E34, 'RAB input'!$E$24:$E$73, 0), MATCH(K$4, RAB_years, 0)) -> 0.02684210383 | L34: =INDEX('RAB input'!$H$24:$XFD$73, MATCH($E34, 'RAB input'!$E$24:$E$73, 0), MATCH(L$4, RAB_years, 0)) -> 0.03359858 | M34: =INDEX('RAB input'!$H$24:$XFD$73, MATCH($E34, 'RAB input'!$E$24:$E$73, 0), MATCH(M$4, RAB_years, 0)) -> 0.03318374 | N34: =INDEX('RAB input'!$H$24:$XFD$73, MATCH($E34, 'RAB input'!$E$24:$E$73, 0), MATCH(N$4, RAB_years, 0)) -> 0.2790538 | O34: =INDEX('RAB input'!$H$24:$XFD$73, MATCH($E34, 'RAB input'!$E$24:$E$73, 0), MATCH(O$4, RAB_years, 0)) -> 0 | P34: =INDEX('RAB input'!$H$24:$XFD$73, MATCH($E34, 'RAB input'!$E$24:$E$73, 0), MATCH(P$4, RAB_years, 0)) -> 0 | Q34: =INDEX('RAB input'!$H$24:$XFD$73, MATCH($E34, 'RAB input'!$E$24:$E$73, 0), MATCH(Q$4, RAB_years, 0)) -> 0 | R34: =INDEX('RAB input'!$H$24:$XFD$73, MATCH($E34, 'RAB input'!$E$24:$E$73, 0), MATCH(R$4, RAB_years, 0)) -> 0 | S34: =INDEX('RAB input'!$H$24:$XFD$73, MATCH($E34, 'RAB input'!$E$24:$E$73, 0), MATCH(S$4, RAB_years, 0)) -> 0 | T34: =INDEX('RAB input'!$H$24:$XFD$73, MATCH($E34, 'RAB input'!$E$24:$E$73, 0), MATCH(T$4, RAB_years, 0)) -> 0 | U34: =INDEX('RAB input'!$H$24:$XFD$73, MATCH($E34, 'RAB input'!$E$24:$E$73, 0), MATCH(U$4, RAB_years, 0)) -> 0 | V34: =INDEX('RAB input'!$H$24:$XFD$73, MATCH($E34, 'RAB input'!$E$24:$E$73, 0), MATCH(V$4, RAB_years, 0)) -> 0 | W34: =INDEX('RAB input'!$H$24:$XFD$73, MATCH($E34, 'RAB input'!$E$24:$E$73, 0), MATCH(W$4, RAB_years, 0)) -> 0 | X34: =INDEX('RAB input'!$H$24:$XFD$73, MATCH($E34, 'RAB input'!$E$24:$E$73, 0), MATCH(X$4, RAB_years, 0)) -> 0 | Y34: =INDEX('RAB input'!$H$24:$XFD$73, MATCH($E34, 'RAB input'!$E$24:$E$73, 0), MATCH(Y$4, RAB_years, 0)) -> 0 | Z34: =INDEX('RAB input'!$H$24:$XFD$73, MATCH($E34, 'RAB input'!$E$24:$E$73, 0), MATCH(Z$4, RAB_years, 0)) -> 0 | AA34: =INDEX('RAB input'!$H$24:$XFD$73, MATCH($E34, 'RAB input'!$E$24:$E$73, 0), MATCH(AA$4, RAB_years, 0)) -> 0 | AB34: =INDEX('RAB input'!$H$24:$XFD$73, MATCH($E34, 'RAB input'!$E$24:$E$73, 0), MATCH(AB$4, RAB_years, 0)) -> 0 | AC34: =INDEX('RAB input'!$H$24:$XFD$73, MATCH($E34, 'RAB input'!$E$24:$E$73, 0), MATCH(AC$4, RAB_years, 0)) -> 0 | AD34: =INDEX('RAB input'!$H$24:$XFD$73, MATCH($E34, 'RAB input'!$E$24:$E$73, 0), MATCH(AD$4, RAB_years, 0)) -> 0 | AE34: =INDEX('RAB input'!$H$24:$XFD$73, MATCH($E34, 'RAB input'!$E$24:$E$73, 0), MATCH(AE$4, RAB_years, 0)) -> 0 | AF34: =INDEX('RAB input'!$H$24:$XFD$73, MATCH($E34, 'RAB input'!$E$24:$E$73, 0), MATCH(AF$4, RAB_years, 0)) -> 0 | AG34: =INDEX('RAB input'!$H$24:$XFD$73, MATCH($E34, 'RAB input'!$E$24:$E$73, 0), MATCH(AG$4, RAB_years, 0)) -> 0 | AH34: =INDEX('RAB input'!$H$24:$XFD$73, MATCH($E34, 'RAB input'!$E$24:$E$73, 0), MATCH(AH$4, RAB_years, 0)) -> 0 | AI34: =INDEX('RAB input'!$H$24:$XFD$73, MATCH($E34, 'RAB input'!$E$24:$E$73, 0), MATCH(AI$4, RAB_years, 0)) -> 0 | AJ34: =INDEX('RAB input'!$H$24:$XFD$73, MATCH($E34, 'RAB input'!$E$24:$E$73, 0), MATCH(AJ$4, RAB_years, 0)) -> 0 | AK34: =INDEX('RAB input'!$H$24:$XFD$73, MATCH($E34, 'RAB input'!$E$24:$E$73, 0), MATCH(AK$4, RAB_years, 0)) -> 0 | AL34: =INDEX('RAB input'!$H$24:$XFD$73, MATCH($E34, 'RAB input'!$E$24:$E$73, 0), MATCH(AL$4, RAB_years, 0)) -> 0 | AM34: =INDEX('RAB input'!$H$24:$XFD$73, MATCH($E34, 'RAB input'!$E$24:$E$73, 0), MATCH(AM$4, RAB_years, 0)) -> 0 | AN34: =INDEX('RAB input'!$H$24:$XFD$73, MATCH($E34, 'RAB input'!$E$24:$E$73, 0), MATCH(AN$4, RAB_years, 0)) -> 0 | AO34: =INDEX('RAB input'!$H$24:$XFD$73, MATCH($E34, 'RAB input'!$E$24:$E$73, 0), MATCH(AO$4, RAB_years, 0)) -> 0 | AP34: =INDEX('RAB input'!$H$24:$XFD$73, MATCH($E34, 'RAB input'!$E$24:$E$73, 0), MATCH(AP$4, RAB_years, 0)) -> 0 | AQ34: =INDEX('RAB input'!$H$24:$XFD$73, MATCH($E34, 'RAB input'!$E$24:$E$73, 0), MATCH(AQ$4, RAB_years, 0)) -> 0 | AR34: =INDEX('RAB input'!$H$24:$XFD$73, MATCH($E34, 'RAB input'!$E$24:$E$73, 0), MATCH(AR$4, RAB_years, 0)) -> 0 | AS34: =INDEX('RAB input'!$H$24:$XFD$73, MATCH($E34, 'RAB input'!$E$24:$E$73, 0), MATCH(AS$4, RAB_years, 0)) -> 0 | AT34: =INDEX('RAB input'!$H$24:$XFD$73, MATCH($E34, 'RAB input'!$E$24:$E$73, 0), MATCH(AT$4, RAB_years, 0)) -> 0 | AU34: =INDEX('RAB input'!$H$24:$XFD$73, MATCH($E34, 'RAB input'!$E$24:$E$73, 0), MATCH(AU$4, RAB_years, 0)) -> 0 | AV34: =INDEX('RAB input'!$H$24:$XFD$73, MATCH($E34, 'RAB input'!$E$24:$E$73, 0), MATCH(AV$4, RAB_years, 0)) -> 0 | AW34: =INDEX('RAB input'!$H$24:$XFD$73, MATCH($E34, 'RAB input'!$E$24:$E$73, 0), MATCH(AW$4, RAB_years, 0)) -> 0 | AX34: =INDEX('RAB input'!$H$24:$XFD$73, MATCH($E34, 'RAB input'!$E$24:$E$73, 0), MATCH(AX$4, RAB_years, 0)) -> 0 | AY34: =INDEX('RAB input'!$H$24:$XFD$73, MATCH($E34, 'RAB input'!$E$24:$E$73, 0), MATCH(AY$4, RAB_years, 0)) -> 0 | AZ34: =INDEX('RAB input'!$H$24:$XFD$73, MATCH($E34, 'RAB input'!$E$24:$E$73, 0), MATCH(AZ$4, RAB_years, 0)) -> 0 | BA34: =INDEX('RAB input'!$H$24:$XFD$73, MATCH($E34, 'RAB input'!$E$24:$E$73, 0), MATCH(BA$4, RAB_years, 0)) -> 0 | BB34: =INDEX('RAB input'!$H$24:$XFD$73, MATCH($E34, 'RAB input'!$E$24:$E$73, 0), MATCH(BB$4, RAB_years, 0)) -> 0 | BC34: =INDEX('RAB input'!$H$24:$XFD$73, MATCH($E34, 'RAB input'!$E$24:$E$73, 0), MATCH(BC$4, RAB_years, 0)) -> 0 | BD34: =INDEX('RAB input'!$H$24:$XFD$73, MATCH($E34, 'RAB input'!$E$24:$E$73, 0), MATCH(BD$4, RAB_years, 0)) -> 0 | BE34: =INDEX('RAB input'!$H$24:$XFD$73, MATCH($E34, 'RAB input'!$E$24:$E$73, 0), MATCH(BE$4, RAB_years, 0)) -> 0 | BF34: =INDEX('RAB input'!$H$24:$XFD$73, MATCH($E34, 'RAB input'!$E$24:$E$73, 0), MATCH(BF$4, RAB_years, 0)) -> 0 | BG34: =INDEX('RAB input'!$H$24:$XFD$73, MATCH($E34, 'RAB input'!$E$24:$E$73, 0), MATCH(BG$4, RAB_years, 0)) -> 0 | BH34: =INDEX('RAB input'!$H$24:$XFD$73, MATCH($E34, 'RAB input'!$E$24:$E$73, 0), MATCH(BH$4, RAB_years, 0)) -> 0 | BI34: =INDEX('RAB input'!$H$24:$XFD$73, MATCH($E34, 'RAB input'!$E$24:$E$73, 0), MATCH(BI$4, RAB_years, 0)) -> 0 | BJ34: =INDEX('RAB input'!$H$24:$XFD$73, MATCH($E34, 'RAB input'!$E$24:$E$73, 0), MATCH(BJ$4, RAB_years, 0)) -> 0 | BK34: =INDEX('RAB input'!$H$24:$XFD$73, MATCH($E34, 'RAB input'!$E$24:$E$73, 0), MATCH(BK$4, RAB_years, 0)) -> 0 | BL34: =INDEX('RAB input'!$H$24:$XFD$73, MATCH($E34, 'RAB input'!$E$24:$E$73, 0), MATCH(BL$4, RAB_years, 0)) -> 0 | BM34: =INDEX('RAB input'!$H$24:$XFD$73, MATCH($E34, 'RAB input'!$E$24:$E$73, 0), MATCH(BM$4, RAB_years, 0)) -> 0 | BN34: =INDEX('RAB input'!$H$24:$XFD$73, MATCH($E34, 'RAB input'!$E$24:$E$73, 0), MATCH(BN$4, RAB_years, 0)) -> 0 | BO34: =INDEX('RAB input'!$H$24:$XFD$73, MATCH($E34, 'RAB input'!$E$24:$E$73, 0), MATCH(BO$4, RAB_years, 0)) -> 0 | BP34: =INDEX('RAB input'!$H$24:$XFD$73, MATCH($E34, 'RAB input'!$E$24:$E$73, 0), MATCH(BP$4, RAB_years, 0)) -> 0 | BQ34: =INDEX('RAB input'!$H$24:$XFD$73, MATCH($E34, 'RAB input'!$E$24:$E$73, 0), MATCH(BQ$4, RAB_years, 0)) -> 0 | BR34: =INDEX('RAB input'!$H$24:$XFD$73, MATCH($E34, 'RAB input'!$E$24:$E$73, 0), MATCH(BR$4, RAB_years, 0)) -> 0 | BS34: =INDEX('RAB input'!$H$24:$XFD$73, MATCH($E34, 'RAB input'!$E$24:$E$73, 0), MATCH(BS$4, RAB_years, 0)) -> 0 | BT34: =INDEX('RAB input'!$H$24:$XFD$73, MATCH($E34, 'RAB input'!$E$24:$E$73, 0), MATCH(BT$4, RAB_years, 0)) -> 0 | BU34: =INDEX('RAB input'!$H$24:$XFD$73, MATCH($E34, 'RAB input'!$E$24:$E$73, 0), MATCH(BU$4, RAB_years, 0)) -> 0 | BV34: =INDEX('RAB input'!$H$24:$XFD$73, MATCH($E34, 'RAB input'!$E$24:$E$73, 0), MATCH(BV$4, RAB_years, 0)) -> 0 | BW34: =INDEX('RAB input'!$H$24:$XFD$73, MATCH($E34, 'RAB input'!$E$24:$E$73, 0), MATCH(BW$4, RAB_years, 0)) -> 0 | BX34: =INDEX('RAB input'!$H$24:$XFD$73, MATCH($E34, 'RAB input'!$E$24:$E$73, 0), MATCH(BX$4, RAB_years, 0)) -> 0 | BY34: =INDEX('RAB input'!$H$24:$XFD$73, MATCH($E34, 'RAB input'!$E$24:$E$73, 0), MATCH(BY$4, RAB_years, 0)) -> 0 | BZ34: =INDEX('RAB input'!$H$24:$XFD$73, MATCH($E34, 'RAB input'!$E$24:$E$73, 0), MATCH(BZ$4, RAB_years, 0)) -> 0
D35: 18 | E35: ='RAB input'!E41 -> Transmission operations - short life (10) | G35: 6.575732554 | H35: =INDEX('RAB input'!$H$24:$XFD$73, MATCH($E35, 'RAB input'!$E$24:$E$73, 0), MATCH(H$4, RAB_years, 0)) -> 0.390616446 | I35: =INDEX('RAB input'!$H$24:$XFD$73, MATCH($E35, 'RAB input'!$E$24:$E$73, 0), MATCH(I$4, RAB_years, 0)) -> 0.7889571329 | J35: =INDEX('RAB input'!$H$24:$XFD$73, MATCH($E35, 'RAB input'!$E$24:$E$73, 0), MATCH(J$4, RAB_years, 0)) -> 8.760774078 | K35: =INDEX('RAB input'!$H$24:$XFD$73, MATCH($E35, 'RAB input'!$E$24:$E$73, 0), MATCH(K$4, RAB_years, 0)) -> 7.21366134 | L35: =INDEX('RAB input'!$H$24:$XFD$73, MATCH($E35, 'RAB input'!$E$24:$E$73, 0), MATCH(L$4, RAB_years, 0)) -> 2.289666343 | M35: =INDEX('RAB input'!$H$24:$XFD$73, MATCH($E35, 'RAB input'!$E$24:$E$73, 0), MATCH(M$4, RAB_years, 0)) -> 0.5157594498 | N35: =INDEX('RAB input'!$H$24:$XFD$73, MATCH($E35, 'RAB input'!$E$24:$E$73, 0), MATCH(N$4, RAB_years, 0)) -> 0.03125 | O35: =INDEX('RAB input'!$H$24:$XFD$73, MATCH($E35, 'RAB input'!$E$24:$E$73, 0), MATCH(O$4, RAB_years, 0)) -> 0 | P35: =INDEX('RAB input'!$H$24:$XFD$73, MATCH($E35, 'RAB input'!$E$24:$E$73, 0), MATCH(P$4, RAB_years, 0)) -> 0 | Q35: =INDEX('RAB input'!$H$24:$XFD$73, MATCH($E35, 'RAB input'!$E$24:$E$73, 0), MATCH(Q$4, RAB_years, 0)) -> 0 | R35: =INDEX('RAB input'!$H$24:$XFD$73, MATCH($E35, 'RAB input'!$E$24:$E$73, 0), MATCH(R$4, RAB_years, 0)) -> 0 | S35: =INDEX('RAB input'!$H$24:$XFD$73, MATCH($E35, 'RAB input'!$E$24:$E$73, 0), MATCH(S$4, RAB_years, 0)) -> 0 | T35: =INDEX('RAB input'!$H$24:$XFD$73, MATCH($E35, 'RAB input'!$E$24:$E$73, 0), MATCH(T$4, RAB_years, 0)) -> 0 | U35: =INDEX('RAB input'!$H$24:$XFD$73, MATCH($E35, 'RAB input'!$E$24:$E$73, 0), MATCH(U$4, RAB_years, 0)) -> 0 | V35: =INDEX('RAB input'!$H$24:$XFD$73, MATCH($E35, 'RAB input'!$E$24:$E$73, 0), MATCH(V$4, RAB_years, 0)) -> 0 | W35: =INDEX('RAB input'!$H$24:$XFD$73, MATCH($E35, 'RAB input'!$E$24:$E$73, 0), MATCH(W$4, RAB_years, 0)) -> 0 | X35: =INDEX('RAB input'!$H$24:$XFD$73, MATCH($E35, 'RAB input'!$E$24:$E$73, 0), MATCH(X$4, RAB_years, 0)) -> 0 | Y35: =INDEX('RAB input'!$H$24:$XFD$73, MATCH($E35, 'RAB input'!$E$24:$E$73, 0), MATCH(Y$4, RAB_years, 0)) -> 0 | Z35: =INDEX('RAB input'!$H$24:$XFD$73, MATCH($E35, 'RAB input'!$E$24:$E$73, 0), MATCH(Z$4, RAB_years, 0)) -> 0 | AA35: =INDEX('RAB input'!$H$24:$XFD$73, MATCH($E35, 'RAB input'!$E$24:$E$73, 0), MATCH(AA$4, RAB_years, 0)) -> 0 | AB35: =INDEX('RAB input'!$H$24:$XFD$73, MATCH($E35, 'RAB input'!$E$24:$E$73, 0), MATCH(AB$4, RAB_years, 0)) -> 0 | AC35: =INDEX('RAB input'!$H$24:$XFD$73, MATCH($E35, 'RAB input'!$E$24:$E$73, 0), MATCH(AC$4, RAB_years, 0)) -> 0 | AD35: =INDEX('RAB input'!$H$24:$XFD$73, MATCH($E35, 'RAB input'!$E$24:$E$73, 0), MATCH(AD$4, RAB_years, 0)) -> 0 | AE35: =INDEX('RAB input'!$H$24:$XFD$73, MATCH($E35, 'RAB input'!$E$24:$E$73, 0), MATCH(AE$4, RAB_years, 0)) -> 0 | AF35: =INDEX('RAB input'!$H$24:$XFD$73, MATCH($E35, 'RAB input'!$E$24:$E$73, 0), MATCH(AF$4, RAB_years, 0)) -> 0 | AG35: =INDEX('RAB input'!$H$24:$XFD$73, MATCH($E35, 'RAB input'!$E$24:$E$73, 0), MATCH(AG$4, RAB_years, 0)) -> 0 | AH35: =INDEX('RAB input'!$H$24:$XFD$73, MATCH($E35, 'RAB input'!$E$24:$E$73, 0), MATCH(AH$4, RAB_years, 0)) -> 0 | AI35: =INDEX('RAB input'!$H$24:$XFD$73, MATCH($E35, 'RAB input'!$E$24:$E$73, 0), MATCH(AI$4, RAB_years, 0)) -> 0 | AJ35: =INDEX('RAB input'!$H$24:$XFD$73, MATCH($E35, 'RAB input'!$E$24:$E$73, 0), MATCH(AJ$4, RAB_years, 0)) -> 0 | AK35: =INDEX('RAB input'!$H$24:$XFD$73, MATCH($E35, 'RAB input'!$E$24:$E$73, 0), MATCH(AK$4, RAB_years, 0)) -> 0 | AL35: =INDEX('RAB input'!$H$24:$XFD$73, MATCH($E35, 'RAB input'!$E$24:$E$73, 0), MATCH(AL$4, RAB_years, 0)) -> 0 | AM35: =INDEX('RAB input'!$H$24:$XFD$73, MATCH($E35, 'RAB input'!$E$24:$E$73, 0), MATCH(AM$4, RAB_years, 0)) -> 0 | AN35: =INDEX('RAB input'!$H$24:$XFD$73, MATCH($E35, 'RAB input'!$E$24:$E$73, 0), MATCH(AN$4, RAB_years, 0)) -> 0 | AO35: =INDEX('RAB input'!$H$24:$XFD$73, MATCH($E35, 'RAB input'!$E$24:$E$73, 0), MATCH(AO$4, RAB_years, 0)) -> 0 | AP35: =INDEX('RAB input'!$H$24:$XFD$73, MATCH($E35, 'RAB input'!$E$24:$E$73, 0), MATCH(AP$4, RAB_years, 0)) -> 0 | AQ35: =INDEX('RAB input'!$H$24:$XFD$73, MATCH($E35, 'RAB input'!$E$24:$E$73, 0), MATCH(AQ$4, RAB_years, 0)) -> 0 | AR35: =INDEX('RAB input'!$H$24:$XFD$73, MATCH($E35, 'RAB input'!$E$24:$E$73, 0), MATCH(AR$4, RAB_years, 0)) -> 0 | AS35: =INDEX('RAB input'!$H$24:$XFD$73, MATCH($E35, 'RAB input'!$E$24:$E$73, 0), MATCH(AS$4, RAB_years, 0)) -> 0 | AT35: =INDEX('RAB input'!$H$24:$XFD$73, MATCH($E35, 'RAB input'!$E$24:$E$73, 0), MATCH(AT$4, RAB_years, 0)) -> 0 | AU35: =INDEX('RAB input'!$H$24:$XFD$73, MATCH($E35, 'RAB input'!$E$24:$E$73, 0), MATCH(AU$4, RAB_years, 0)) -> 0 | AV35: =INDEX('RAB input'!$H$24:$XFD$73, MATCH($E35, 'RAB input'!$E$24:$E$73, 0), MATCH(AV$4, RAB_years, 0)) -> 0 | AW35: =INDEX('RAB input'!$H$24:$XFD$73, MATCH($E35, 'RAB input'!$E$24:$E$73, 0), MATCH(AW$4, RAB_years, 0)) -> 0 | AX35: =INDEX('RAB input'!$H$24:$XFD$73, MATCH($E35, 'RAB input'!$E$24:$E$73, 0), MATCH(AX$4, RAB_years, 0)) -> 0 | AY35: =INDEX('RAB input'!$H$24:$XFD$73, MATCH($E35, 'RAB input'!$E$24:$E$73, 0), MATCH(AY$4, RAB_years, 0)) -> 0 | AZ35: =INDEX('RAB input'!$H$24:$XFD$73, MATCH($E35, 'RAB input'!$E$24:$E$73, 0), MATCH(AZ$4, RAB_years, 0)) -> 0 | BA35: =INDEX('RAB input'!$H$24:$XFD$73, MATCH($E35, 'RAB input'!$E$24:$E$73, 0), MATCH(BA$4, RAB_years, 0)) -> 0 | BB35: =INDEX('RAB input'!$H$24:$XFD$73, MATCH($E35, 'RAB input'!$E$24:$E$73, 0), MATCH(BB$4, RAB_years, 0)) -> 0 | BC35: =INDEX('RAB input'!$H$24:$XFD$73, MATCH($E35, 'RAB input'!$E$24:$E$73, 0), MATCH(BC$4, RAB_years, 0)) -> 0 | BD35: =INDEX('RAB input'!$H$24:$XFD$73, MATCH($E35, 'RAB input'!$E$24:$E$73, 0), MATCH(BD$4, RAB_years, 0)) -> 0 | BE35: =INDEX('RAB input'!$H$24:$XFD$73, MATCH($E35, 'RAB input'!$E$24:$E$73, 0), MATCH(BE$4, RAB_years, 0)) -> 0 | BF35: =INDEX('RAB input'!$H$24:$XFD$73, MATCH($E35, 'RAB input'!$E$24:$E$73, 0), MATCH(BF$4, RAB_years, 0)) -> 0 | BG35: =INDEX('RAB input'!$H$24:$XFD$73, MATCH($E35, 'RAB input'!$E$24:$E$73, 0), MATCH(BG$4, RAB_years, 0)) -> 0 | BH35: =INDEX('RAB input'!$H$24:$XFD$73, MATCH($E35, 'RAB input'!$E$24:$E$73, 0), MATCH(BH$4, RAB_years, 0)) -> 0 | BI35: =INDEX('RAB input'!$H$24:$XFD$73, MATCH($E35, 'RAB input'!$E$24:$E$73, 0), MATCH(BI$4, RAB_years, 0)) -> 0 | BJ35: =INDEX('RAB input'!$H$24:$XFD$73, MATCH($E35, 'RAB input'!$E$24:$E$73, 0), MATCH(BJ$4, RAB_years, 0)) -> 0 | BK35: =INDEX('RAB input'!$H$24:$XFD$73, MATCH($E35, 'RAB input'!$E$24:$E$73, 0), MATCH(BK$4, RAB_years, 0)) -> 0 | BL35: =INDEX('RAB input'!$H$24:$XFD$73, MATCH($E35, 'RAB input'!$E$24:$E$73, 0), MATCH(BL$4, RAB_years, 0)) -> 0 | BM35: =INDEX('RAB input'!$H$24:$XFD$73, MATCH($E35, 'RAB input'!$E$24:$E$73, 0), MATCH(BM$4, RAB_years, 0)) -> 0 | BN35: =INDEX('RAB input'!$H$24:$XFD$73, MATCH($E35, 'RAB input'!$E$24:$E$73, 0), MATCH(BN$4, RAB_years, 0)) -> 0 | BO35: =INDEX('RAB input'!$H$24:$XFD$73, MATCH($E35, 'RAB input'!$E$24:$E$73, 0), MATCH(BO$4, RAB_years, 0)) -> 0 | BP35: =INDEX('RAB input'!$H$24:$XFD$73, MATCH($E35, 'RAB input'!$E$24:$E$73, 0), MATCH(BP$4, RAB_years, 0)) -> 0 | BQ35: =INDEX('RAB input'!$H$24:$XFD$73, MATCH($E35, 'RAB input'!$E$24:$E$73, 0), MATCH(BQ$4, RAB_years, 0)) -> 0 | BR35: =INDEX('RAB input'!$H$24:$XFD$73, MATCH($E35, 'RAB input'!$E$24:$E$73, 0), MATCH(BR$4, RAB_years, 0)) -> 0 | BS35: =INDEX('RAB input'!$H$24:$XFD$73, MATCH($E35, 'RAB input'!$E$24:$E$73, 0), MATCH(BS$4, RAB_years, 0)) -> 0 | BT35: =INDEX('RAB input'!$H$24:$XFD$73, MATCH($E35, 'RAB input'!$E$24:$E$73, 0), MATCH(BT$4, RAB_years, 0)) -> 0 | BU35: =INDEX('RAB input'!$H$24:$XFD$73, MATCH($E35, 'RAB input'!$E$24:$E$73, 0), MATCH(BU$4, RAB_years, 0)) -> 0 | BV35: =INDEX('RAB input'!$H$24:$XFD$73, MATCH($E35, 'RAB input'!$E$24:$E$73, 0), MATCH(BV$4, RAB_years, 0)) -> 0 | BW35: =INDEX('RAB input'!$H$24:$XFD$73, MATCH($E35, 'RAB input'!$E$24:$E$73, 0), MATCH(BW$4, RAB_years, 0)) -> 0 | BX35: =INDEX('RAB input'!$H$24:$XFD$73, MATCH($E35, 'RAB input'!$E$24:$E$73, 0), MATCH(BX$4, RAB_years, 0)) -> 0 | BY35: =INDEX('RAB input'!$H$24:$XFD$73, MATCH($E35, 'RAB input'!$E$24:$E$73, 0), MATCH(BY$4, RAB_years, 0)) -> 0 | BZ35: =INDEX('RAB input'!$H$24:$XFD$73, MATCH($E35, 'RAB input'!$E$24:$E$73, 0), MATCH(BZ$4, RAB_years, 0)) -> 0
D36: 19 | E36: ='RAB input'!E42 -> Transmission operations - short life (4) | G36: 0.3005085724 | H36: =INDEX('RAB input'!$H$24:$XFD$73, MATCH($E36, 'RAB input'!$E$24:$E$73, 0), MATCH(H$4, RAB_years, 0)) -> 0 | I36: =INDEX('RAB input'!$H$24:$XFD$73, MATCH($E36, 'RAB input'!$E$24:$E$73, 0), MATCH(I$4, RAB_years, 0)) -> 0.4357019032 | J36: =INDEX('RAB input'!$H$24:$XFD$73, MATCH($E36, 'RAB input'!$E$24:$E$73, 0), MATCH(J$4, RAB_years, 0)) -> 1.322432886 | K36: =INDEX('RAB input'!$H$24:$XFD$73, MATCH($E36, 'RAB input'!$E$24:$E$73, 0), MATCH(K$4, RAB_years, 0)) -> 5.893935385 | L36: =INDEX('RAB input'!$H$24:$XFD$73, MATCH($E36, 'RAB input'!$E$24:$E$73, 0), MATCH(L$4, RAB_years, 0)) -> 2.289244523 | M36: =INDEX('RAB input'!$H$24:$XFD$73, MATCH($E36, 'RAB input'!$E$24:$E$73, 0), MATCH(M$4, RAB_years, 0)) -> 1.538276695 | N36: =INDEX('RAB input'!$H$24:$XFD$73, MATCH($E36, 'RAB input'!$E$24:$E$73, 0), MATCH(N$4, RAB_years, 0)) -> 1.465622836 | O36: =INDEX('RAB input'!$H$24:$XFD$73, MATCH($E36, 'RAB input'!$E$24:$E$73, 0), MATCH(O$4, RAB_years, 0)) -> 0 | P36: =INDEX('RAB input'!$H$24:$XFD$73, MATCH($E36, 'RAB input'!$E$24:$E$73, 0), MATCH(P$4, RAB_years, 0)) -> 0 | Q36: =INDEX('RAB input'!$H$24:$XFD$73, MATCH($E36, 'RAB input'!$E$24:$E$73, 0), MATCH(Q$4, RAB_years, 0)) -> 0 | R36: =INDEX('RAB input'!$H$24:$XFD$73, MATCH($E36, 'RAB input'!$E$24:$E$73, 0), MATCH(R$4, RAB_years, 0)) -> 0 | S36: =INDEX('RAB input'!$H$24:$XFD$73, MATCH($E36, 'RAB input'!$E$24:$E$73, 0), MATCH(S$4, RAB_years, 0)) -> 0 | T36: =INDEX('RAB input'!$H$24:$XFD$73, MATCH($E36, 'RAB input'!$E$24:$E$73, 0), MATCH(T$4, RAB_years, 0)) -> 0 | U36: =INDEX('RAB input'!$H$24:$XFD$73, MATCH($E36, 'RAB input'!$E$24:$E$73, 0), MATCH(U$4, RAB_years, 0)) -> 0 | V36: =INDEX('RAB input'!$H$24:$XFD$73, MATCH($E36, 'RAB input'!$E$24:$E$73, 0), MATCH(V$4, RAB_years, 0)) -> 0 | W36: =INDEX('RAB input'!$H$24:$XFD$73, MATCH($E36, 'RAB input'!$E$24:$E$73, 0), MATCH(W$4, RAB_years, 0)) -> 0 | X36: =INDEX('RAB input'!$H$24:$XFD$73, MATCH($E36, 'RAB input'!$E$24:$E$73, 0), MATCH(X$4, RAB_years, 0)) -> 0 | Y36: =INDEX('RAB input'!$H$24:$XFD$73, MATCH($E36, 'RAB input'!$E$24:$E$73, 0), MATCH(Y$4, RAB_years, 0)) -> 0 | Z36: =INDEX('RAB input'!$H$24:$XFD$73, MATCH($E36, 'RAB input'!$E$24:$E$73, 0), MATCH(Z$4, RAB_years, 0)) -> 0 | AA36: =INDEX('RAB input'!$H$24:$XFD$73, MATCH($E36, 'RAB input'!$E$24:$E$73, 0), MATCH(AA$4, RAB_years, 0)) -> 0 | AB36: =INDEX('RAB input'!$H$24:$XFD$73, MATCH($E36, 'RAB input'!$E$24:$E$73, 0), MATCH(AB$4, RAB_years, 0)) -> 0 | AC36: =INDEX('RAB input'!$H$24:$XFD$73, MATCH($E36, 'RAB input'!$E$24:$E$73, 0), MATCH(AC$4, RAB_years, 0)) -> 0 | AD36: =INDEX('RAB input'!$H$24:$XFD$73, MATCH($E36, 'RAB input'!$E$24:$E$73, 0), MATCH(AD$4, RAB_years, 0)) -> 0 | AE36: =INDEX('RAB input'!$H$24:$XFD$73, MATCH($E36, 'RAB input'!$E$24:$E$73, 0), MATCH(AE$4, RAB_years, 0)) -> 0 | AF36: =INDEX('RAB input'!$H$24:$XFD$73, MATCH($E36, 'RAB input'!$E$24:$E$73, 0), MATCH(AF$4, RAB_years, 0)) -> 0 | AG36: =INDEX('RAB input'!$H$24:$XFD$73, MATCH($E36, 'RAB input'!$E$24:$E$73, 0), MATCH(AG$4, RAB_years, 0)) -> 0 | AH36: =INDEX('RAB input'!$H$24:$XFD$73, MATCH($E36, 'RAB input'!$E$24:$E$73, 0), MATCH(AH$4, RAB_years, 0)) -> 0 | AI36: =INDEX('RAB input'!$H$24:$XFD$73, MATCH($E36, 'RAB input'!$E$24:$E$73, 0), MATCH(AI$4, RAB_years, 0)) -> 0 | AJ36: =INDEX('RAB input'!$H$24:$XFD$73, MATCH($E36, 'RAB input'!$E$24:$E$73, 0), MATCH(AJ$4, RAB_years, 0)) -> 0 | AK36: =INDEX('RAB input'!$H$24:$XFD$73, MATCH($E36, 'RAB input'!$E$24:$E$73, 0), MATCH(AK$4, RAB_years, 0)) -> 0 | AL36: =INDEX('RAB input'!$H$24:$XFD$73, MATCH($E36, 'RAB input'!$E$24:$E$73, 0), MATCH(AL$4, RAB_years, 0)) -> 0 | AM36: =INDEX('RAB input'!$H$24:$XFD$73, MATCH($E36, 'RAB input'!$E$24:$E$73, 0), MATCH(AM$4, RAB_years, 0)) -> 0 | AN36: =INDEX('RAB input'!$H$24:$XFD$73, MATCH($E36, 'RAB input'!$E$24:$E$73, 0), MATCH(AN$4, RAB_years, 0)) -> 0 | AO36: =INDEX('RAB input'!$H$24:$XFD$73, MATCH($E36, 'RAB input'!$E$24:$E$73, 0), MATCH(AO$4, RAB_years, 0)) -> 0 | AP36: =INDEX('RAB input'!$H$24:$XFD$73, MATCH($E36, 'RAB input'!$E$24:$E$73, 0), MATCH(AP$4, RAB_years, 0)) -> 0 | AQ36: =INDEX('RAB input'!$H$24:$XFD$73, MATCH($E36, 'RAB input'!$E$24:$E$73, 0), MATCH(AQ$4, RAB_years, 0)) -> 0 | AR36: =INDEX('RAB input'!$H$24:$XFD$73, MATCH($E36, 'RAB input'!$E$24:$E$73, 0), MATCH(AR$4, RAB_years, 0)) -> 0 | AS36: =INDEX('RAB input'!$H$24:$XFD$73, MATCH($E36, 'RAB input'!$E$24:$E$73, 0), MATCH(AS$4, RAB_years, 0)) -> 0 | AT36: =INDEX('RAB input'!$H$24:$XFD$73, MATCH($E36, 'RAB input'!$E$24:$E$73, 0), MATCH(AT$4, RAB_years, 0)) -> 0 | AU36: =INDEX('RAB input'!$H$24:$XFD$73, MATCH($E36, 'RAB input'!$E$24:$E$73, 0), MATCH(AU$4, RAB_years, 0)) -> 0 | AV36: =INDEX('RAB input'!$H$24:$XFD$73, MATCH($E36, 'RAB input'!$E$24:$E$73, 0), MATCH(AV$4, RAB_years, 0)) -> 0 | AW36: =INDEX('RAB input'!$H$24:$XFD$73, MATCH($E36, 'RAB input'!$E$24:$E$73, 0), MATCH(AW$4, RAB_years, 0)) -> 0 | AX36: =INDEX('RAB input'!$H$24:$XFD$73, MATCH($E36, 'RAB input'!$E$24:$E$73, 0), MATCH(AX$4, RAB_years, 0)) -> 0 | AY36: =INDEX('RAB input'!$H$24:$XFD$73, MATCH($E36, 'RAB input'!$E$24:$E$73, 0), MATCH(AY$4, RAB_years, 0)) -> 0 | AZ36: =INDEX('RAB input'!$H$24:$XFD$73, MATCH($E36, 'RAB input'!$E$24:$E$73, 0), MATCH(AZ$4, RAB_years, 0)) -> 0 | BA36: =INDEX('RAB input'!$H$24:$XFD$73, MATCH($E36, 'RAB input'!$E$24:$E$73, 0), MATCH(BA$4, RAB_years, 0)) -> 0 | BB36: =INDEX('RAB input'!$H$24:$XFD$73, MATCH($E36, 'RAB input'!$E$24:$E$73, 0), MATCH(BB$4, RAB_years, 0)) -> 0 | BC36: =INDEX('RAB input'!$H$24:$XFD$73, MATCH($E36, 'RAB input'!$E$24:$E$73, 0), MATCH(BC$4, RAB_years, 0)) -> 0 | BD36: =INDEX('RAB input'!$H$24:$XFD$73, MATCH($E36, 'RAB input'!$E$24:$E$73, 0), MATCH(BD$4, RAB_years, 0)) -> 0 | BE36: =INDEX('RAB input'!$H$24:$XFD$73, MATCH($E36, 'RAB input'!$E$24:$E$73, 0), MATCH(BE$4, RAB_years, 0)) -> 0 | BF36: =INDEX('RAB input'!$H$24:$XFD$73, MATCH($E36, 'RAB input'!$E$24:$E$73, 0), MATCH(BF$4, RAB_years, 0)) -> 0 | BG36: =INDEX('RAB input'!$H$24:$XFD$73, MATCH($E36, 'RAB input'!$E$24:$E$73, 0), MATCH(BG$4, RAB_years, 0)) -> 0 | BH36: =INDEX('RAB input'!$H$24:$XFD$73, MATCH($E36, 'RAB input'!$E$24:$E$73, 0), MATCH(BH$4, RAB_years, 0)) -> 0 | BI36: =INDEX('RAB input'!$H$24:$XFD$73, MATCH($E36, 'RAB input'!$E$24:$E$73, 0), MATCH(BI$4, RAB_years, 0)) -> 0 | BJ36: =INDEX('RAB input'!$H$24:$XFD$73, MATCH($E36, 'RAB input'!$E$24:$E$73, 0), MATCH(BJ$4, RAB_years, 0)) -> 0 | BK36: =INDEX('RAB input'!$H$24:$XFD$73, MATCH($E36, 'RAB input'!$E$24:$E$73, 0), MATCH(BK$4, RAB_years, 0)) -> 0 | BL36: =INDEX('RAB input'!$H$24:$XFD$73, MATCH($E36, 'RAB input'!$E$24:$E$73, 0), MATCH(BL$4, RAB_years, 0)) -> 0 | BM36: =INDEX('RAB input'!$H$24:$XFD$73, MATCH($E36, 'RAB input'!$E$24:$E$73, 0), MATCH(BM$4, RAB_years, 0)) -> 0 | BN36: =INDEX('RAB input'!$H$24:$XFD$73, MATCH($E36, 'RAB input'!$E$24:$E$73, 0), MATCH(BN$4, RAB_years, 0)) -> 0 | BO36: =INDEX('RAB input'!$H$24:$XFD$73, MATCH($E36, 'RAB input'!$E$24:$E$73, 0), MATCH(BO$4, RAB_years, 0)) -> 0 | BP36: =INDEX('RAB input'!$H$24:$XFD$73, MATCH($E36, 'RAB input'!$E$24:$E$73, 0), MATCH(BP$4, RAB_years, 0)) -> 0 | BQ36: =INDEX('RAB input'!$H$24:$XFD$73, MATCH($E36, 'RAB input'!$E$24:$E$73, 0), MATCH(BQ$4, RAB_years, 0)) -> 0 | BR36: =INDEX('RAB input'!$H$24:$XFD$73, MATCH($E36, 'RAB input'!$E$24:$E$73, 0), MATCH(BR$4, RAB_years, 0)) -> 0 | BS36: =INDEX('RAB input'!$H$24:$XFD$73, MATCH($E36, 'RAB input'!$E$24:$E$73, 0), MATCH(BS$4, RAB_years, 0)) -> 0 | BT36: =INDEX('RAB input'!$H$24:$XFD$73, MATCH($E36, 'RAB input'!$E$24:$E$73, 0), MATCH(BT$4, RAB_years, 0)) -> 0 | BU36: =INDEX('RAB input'!$H$24:$XFD$73, MATCH($E36, 'RAB input'!$E$24:$E$73, 0), MATCH(BU$4, RAB_years, 0)) -> 0 | BV36: =INDEX('RAB input'!$H$24:$XFD$73, MATCH($E36, 'RAB input'!$E$24:$E$73, 0), MATCH(BV$4, RAB_years, 0)) -> 0 | BW36: =INDEX('RAB input'!$H$24:$XFD$73, MATCH($E36, 'RAB input'!$E$24:$E$73, 0), MATCH(BW$4, RAB_years, 0)) -> 0 | BX36: =INDEX('RAB input'!$H$24:$XFD$73, MATCH($E36, 'RAB input'!$E$24:$E$73, 0), MATCH(BX$4, RAB_years, 0)) -> 0 | BY36: =INDEX('RAB input'!$H$24:$XFD$73, MATCH($E36, 'RAB input'!$E$24:$E$73, 0), MATCH(BY$4, RAB_years, 0)) -> 0 | BZ36: =INDEX('RAB input'!$H$24:$XFD$73, MATCH($E36, 'RAB input'!$E$24:$E$73, 0), MATCH(BZ$4, RAB_years, 0)) -> 0
D37: 20 | E37: ='RAB input'!E43 -> Other - medium life (40) | G37: 23.28723084 | H37: =INDEX('RAB input'!$H$24:$XFD$73, MATCH($E37, 'RAB input'!$E$24:$E$73, 0), MATCH(H$4, RAB_years, 0)) -> 0 | I37: =INDEX('RAB input'!$H$24:$XFD$73, MATCH($E37, 'RAB input'!$E$24:$E$73, 0), MATCH(I$4, RAB_years, 0)) -> 0.175420762 | J37: =INDEX('RAB input'!$H$24:$XFD$73, MATCH($E37, 'RAB input'!$E$24:$E$73, 0), MATCH(J$4, RAB_years, 0)) -> 0.2264003792 | K37: =INDEX('RAB input'!$H$24:$XFD$73, MATCH($E37, 'RAB input'!$E$24:$E$73, 0), MATCH(K$4, RAB_years, 0)) -> 1.155375881 | L37: =INDEX('RAB input'!$H$24:$XFD$73, MATCH($E37, 'RAB input'!$E$24:$E$73, 0), MATCH(L$4, RAB_years, 0)) -> 1.163429963 | M37: =INDEX('RAB input'!$H$24:$XFD$73, MATCH($E37, 'RAB input'!$E$24:$E$73, 0), MATCH(M$4, RAB_years, 0)) -> 0.2265623375 | N37: =INDEX('RAB input'!$H$24:$XFD$73, MATCH($E37, 'RAB input'!$E$24:$E$73, 0), MATCH(N$4, RAB_years, 0)) -> 0.908922603 | O37: =INDEX('RAB input'!$H$24:$XFD$73, MATCH($E37, 'RAB input'!$E$24:$E$73, 0), MATCH(O$4, RAB_years, 0)) -> 0 | P37: =INDEX('RAB input'!$H$24:$XFD$73, MATCH($E37, 'RAB input'!$E$24:$E$73, 0), MATCH(P$4, RAB_years, 0)) -> 0.517420344 | Q37: =INDEX('RAB input'!$H$24:$XFD$73, MATCH($E37, 'RAB input'!$E$24:$E$73, 0), MATCH(Q$4, RAB_years, 0)) -> 0 | R37: =INDEX('RAB input'!$H$24:$XFD$73, MATCH($E37, 'RAB input'!$E$24:$E$73, 0), MATCH(R$4, RAB_years, 0)) -> 0 | S37: =INDEX('RAB input'!$H$24:$XFD$73, MATCH($E37, 'RAB input'!$E$24:$E$73, 0), MATCH(S$4, RAB_years, 0)) -> 0 | T37: =INDEX('RAB input'!$H$24:$XFD$73, MATCH($E37, 'RAB input'!$E$24:$E$73, 0), MATCH(T$4, RAB_years, 0)) -> 0 | U37: =INDEX('RAB input'!$H$24:$XFD$73, MATCH($E37, 'RAB input'!$E$24:$E$73, 0), MATCH(U$4, RAB_years, 0)) -> 0 | V37: =INDEX('RAB input'!$H$24:$XFD$73, MATCH($E37, 'RAB input'!$E$24:$E$73, 0), MATCH(V$4, RAB_years, 0)) -> 0 | W37: =INDEX('RAB input'!$H$24:$XFD$73, MATCH($E37, 'RAB input'!$E$24:$E$73, 0), MATCH(W$4, RAB_years, 0)) -> 0 | X37: =INDEX('RAB input'!$H$24:$XFD$73, MATCH($E37, 'RAB input'!$E$24:$E$73, 0), MATCH(X$4, RAB_years, 0)) -> 0 | Y37: =INDEX('RAB input'!$H$24:$XFD$73, MATCH($E37, 'RAB input'!$E$24:$E$73, 0), MATCH(Y$4, RAB_years, 0)) -> 0 | Z37: =INDEX('RAB input'!$H$24:$XFD$73, MATCH($E37, 'RAB input'!$E$24:$E$73, 0), MATCH(Z$4, RAB_years, 0)) -> 0 | AA37: =INDEX('RAB input'!$H$24:$XFD$73, MATCH($E37, 'RAB input'!$E$24:$E$73, 0), MATCH(AA$4, RAB_years, 0)) -> 0 | AB37: =INDEX('RAB input'!$H$24:$XFD$73, MATCH($E37, 'RAB input'!$E$24:$E$73, 0), MATCH(AB$4, RAB_years, 0)) -> 0 | AC37: =INDEX('RAB input'!$H$24:$XFD$73, MATCH($E37, 'RAB input'!$E$24:$E$73, 0), MATCH(AC$4, RAB_years, 0)) -> 0 | AD37: =INDEX('RAB input'!$H$24:$XFD$73, MATCH($E37, 'RAB input'!$E$24:$E$73, 0), MATCH(AD$4, RAB_years, 0)) -> 0 | AE37: =INDEX('RAB input'!$H$24:$XFD$73, MATCH($E37, 'RAB input'!$E$24:$E$73, 0), MATCH(AE$4, RAB_years, 0)) -> 0 | AF37: =INDEX('RAB input'!$H$24:$XFD$73, MATCH($E37, 'RAB input'!$E$24:$E$73, 0), MATCH(AF$4, RAB_years, 0)) -> 0 | AG37: =INDEX('RAB input'!$H$24:$XFD$73, MATCH($E37, 'RAB input'!$E$24:$E$73, 0), MATCH(AG$4, RAB_years, 0)) -> 0 | AH37: =INDEX('RAB input'!$H$24:$XFD$73, MATCH($E37, 'RAB input'!$E$24:$E$73, 0), MATCH(AH$4, RAB_years, 0)) -> 0 | AI37: =INDEX('RAB input'!$H$24:$XFD$73, MATCH($E37, 'RAB input'!$E$24:$E$73, 0), MATCH(AI$4, RAB_years, 0)) -> 0 | AJ37: =INDEX('RAB input'!$H$24:$XFD$73, MATCH($E37, 'RAB input'!$E$24:$E$73, 0), MATCH(AJ$4, RAB_years, 0)) -> 0 | AK37: =INDEX('RAB input'!$H$24:$XFD$73, MATCH($E37, 'RAB input'!$E$24:$E$73, 0), MATCH(AK$4, RAB_years, 0)) -> 0 | AL37: =INDEX('RAB input'!$H$24:$XFD$73, MATCH($E37, 'RAB input'!$E$24:$E$73, 0), MATCH(AL$4, RAB_years, 0)) -> 0 | AM37: =INDEX('RAB input'!$H$24:$XFD$73, MATCH($E37, 'RAB input'!$E$24:$E$73, 0), MATCH(AM$4, RAB_years, 0)) -> 0 | AN37: =INDEX('RAB input'!$H$24:$XFD$73, MATCH($E37, 'RAB input'!$E$24:$E$73, 0), MATCH(AN$4, RAB_years, 0)) -> 0 | AO37: =INDEX('RAB input'!$H$24:$XFD$73, MATCH($E37, 'RAB input'!$E$24:$E$73, 0), MATCH(AO$4, RAB_years, 0)) -> 0 | AP37: =INDEX('RAB input'!$H$24:$XFD$73, MATCH($E37, 'RAB input'!$E$24:$E$73, 0), MATCH(AP$4, RAB_years, 0)) -> 0 | AQ37: =INDEX('RAB input'!$H$24:$XFD$73, MATCH($E37, 'RAB input'!$E$24:$E$73, 0), MATCH(AQ$4, RAB_years, 0)) -> 0 | AR37: =INDEX('RAB input'!$H$24:$XFD$73, MATCH($E37, 'RAB input'!$E$24:$E$73, 0), MATCH(AR$4, RAB_years, 0)) -> 0 | AS37: =INDEX('RAB input'!$H$24:$XFD$73, MATCH($E37, 'RAB input'!$E$24:$E$73, 0), MATCH(AS$4, RAB_years, 0)) -> 0 | AT37: =INDEX('RAB input'!$H$24:$XFD$73, MATCH($E37, 'RAB input'!$E$24:$E$73, 0), MATCH(AT$4, RAB_years, 0)) -> 0 | AU37: =INDEX('RAB input'!$H$24:$XFD$73, MATCH($E37, 'RAB input'!$E$24:$E$73, 0), MATCH(AU$4, RAB_years, 0)) -> 0 | AV37: =INDEX('RAB input'!$H$24:$XFD$73, MATCH($E37, 'RAB input'!$E$24:$E$73, 0), MATCH(AV$4, RAB_years, 0)) -> 0 | AW37: =INDEX('RAB input'!$H$24:$XFD$73, MATCH($E37, 'RAB input'!$E$24:$E$73, 0), MATCH(AW$4, RAB_years, 0)) -> 0 | AX37: =INDEX('RAB input'!$H$24:$XFD$73, MATCH($E37, 'RAB input'!$E$24:$E$73, 0), MATCH(AX$4, RAB_years, 0)) -> 0 | AY37: =INDEX('RAB input'!$H$24:$XFD$73, MATCH($E37, 'RAB input'!$E$24:$E$73, 0), MATCH(AY$4, RAB_years, 0)) -> 0 | AZ37: =INDEX('RAB input'!$H$24:$XFD$73, MATCH($E37, 'RAB input'!$E$24:$E$73, 0), MATCH(AZ$4, RAB_years, 0)) -> 0 | BA37: =INDEX('RAB input'!$H$24:$XFD$73, MATCH($E37, 'RAB input'!$E$24:$E$73, 0), MATCH(BA$4, RAB_years, 0)) -> 0 | BB37: =INDEX('RAB input'!$H$24:$XFD$73, MATCH($E37, 'RAB input'!$E$24:$E$73, 0), MATCH(BB$4, RAB_years, 0)) -> 0 | BC37: =INDEX('RAB input'!$H$24:$XFD$73, MATCH($E37, 'RAB input'!$E$24:$E$73, 0), MATCH(BC$4, RAB_years, 0)) -> 0 | BD37: =INDEX('RAB input'!$H$24:$XFD$73, MATCH($E37, 'RAB input'!$E$24:$E$73, 0), MATCH(BD$4, RAB_years, 0)) -> 0 | BE37: =INDEX('RAB input'!$H$24:$XFD$73, MATCH($E37, 'RAB input'!$E$24:$E$73, 0), MATCH(BE$4, RAB_years, 0)) -> 0 | BF37: =INDEX('RAB input'!$H$24:$XFD$73, MATCH($E37, 'RAB input'!$E$24:$E$73, 0), MATCH(BF$4, RAB_years, 0)) -> 0 | BG37: =INDEX('RAB input'!$H$24:$XFD$73, MATCH($E37, 'RAB input'!$E$24:$E$73, 0), MATCH(BG$4, RAB_years, 0)) -> 0 | BH37: =INDEX('RAB input'!$H$24:$XFD$73, MATCH($E37, 'RAB input'!$E$24:$E$73, 0), MATCH(BH$4, RAB_years, 0)) -> 0 | BI37: =INDEX('RAB input'!$H$24:$XFD$73, MATCH($E37, 'RAB input'!$E$24:$E$73, 0), MATCH(BI$4, RAB_years, 0)) -> 0 | BJ37: =INDEX('RAB input'!$H$24:$XFD$73, MATCH($E37, 'RAB input'!$E$24:$E$73, 0), MATCH(BJ$4, RAB_years, 0)) -> 0 | BK37: =INDEX('RAB input'!$H$24:$XFD$73, MATCH($E37, 'RAB input'!$E$24:$E$73, 0), MATCH(BK$4, RAB_years, 0)) -> 0 | BL37: =INDEX('RAB input'!$H$24:$XFD$73, MATCH($E37, 'RAB input'!$E$24:$E$73, 0), MATCH(BL$4, RAB_years, 0)) -> 0 | BM37: =INDEX('RAB input'!$H$24:$XFD$73, MATCH($E37, 'RAB input'!$E$24:$E$73, 0), MATCH(BM$4, RAB_years, 0)) -> 0 | BN37: =INDEX('RAB input'!$H$24:$XFD$73, MATCH($E37, 'RAB input'!$E$24:$E$73, 0), MATCH(BN$4, RAB_years, 0)) -> 0 | BO37: =INDEX('RAB input'!$H$24:$XFD$73, MATCH($E37, 'RAB input'!$E$24:$E$73, 0), MATCH(BO$4, RAB_years, 0)) -> 0 | BP37: =INDEX('RAB input'!$H$24:$XFD$73, MATCH($E37, 'RAB input'!$E$24:$E$73, 0), MATCH(BP$4, RAB_years, 0)) -> 0 | BQ37: =INDEX('RAB input'!$H$24:$XFD$73, MATCH($E37, 'RAB input'!$E$24:$E$73, 0), MATCH(BQ$4, RAB_years, 0)) -> 0 | BR37: =INDEX('RAB input'!$H$24:$XFD$73, MATCH($E37, 'RAB input'!$E$24:$E$73, 0), MATCH(BR$4, RAB_years, 0)) -> 0 | BS37: =INDEX('RAB input'!$H$24:$XFD$73, MATCH($E37, 'RAB input'!$E$24:$E$73, 0), MATCH(BS$4, RAB_years, 0)) -> 0 | BT37: =INDEX('RAB input'!$H$24:$XFD$73, MATCH($E37, 'RAB input'!$E$24:$E$73, 0), MATCH(BT$4, RAB_years, 0)) -> 0 | BU37: =INDEX('RAB input'!$H$24:$XFD$73, MATCH($E37, 'RAB input'!$E$24:$E$73, 0), MATCH(BU$4, RAB_years, 0)) -> 0 | BV37: =INDEX('RAB input'!$H$24:$XFD$73, MATCH($E37, 'RAB input'!$E$24:$E$73, 0), MATCH(BV$4, RAB_years, 0)) -> 0 | BW37: =INDEX('RAB input'!$H$24:$XFD$73, MATCH($E37, 'RAB input'!$E$24:$E$73, 0), MATCH(BW$4, RAB_years, 0)) -> 0 | BX37: =INDEX('RAB input'!$H$24:$XFD$73, MATCH($E37, 'RAB input'!$E$24:$E$73, 0), MATCH(BX$4, RAB_years, 0)) -> 0 | BY37: =INDEX('RAB input'!$H$24:$XFD$73, MATCH($E37, 'RAB input'!$E$24:$E$73, 0), MATCH(BY$4, RAB_years, 0)) -> 0 | BZ37: =INDEX('RAB input'!$H$24:$XFD$73, MATCH($E37, 'RAB input'!$E$24:$E$73, 0), MATCH(BZ$4, RAB_years, 0)) -> 0
D38: 21 | E38: ='RAB input'!E44 -> Other - short life (9) | G38: 2.70409813 | H38: =INDEX('RAB input'!$H$24:$XFD$73, MATCH($E38, 'RAB input'!$E$24:$E$73, 0), MATCH(H$4, RAB_years, 0)) -> 1.195736149 | I38: =INDEX('RAB input'!$H$24:$XFD$73, MATCH($E38, 'RAB input'!$E$24:$E$73, 0), MATCH(I$4, RAB_years, 0)) -> 0.09786001173 | J38: =INDEX('RAB input'!$H$24:$XFD$73, MATCH($E38, 'RAB input'!$E$24:$E$73, 0), MATCH(J$4, RAB_years, 0)) -> 0.5403317371 | K38: =INDEX('RAB input'!$H$24:$XFD$73, MATCH($E38, 'RAB input'!$E$24:$E$73, 0), MATCH(K$4, RAB_years, 0)) -> 0.6498733841 | L38: =INDEX('RAB input'!$H$24:$XFD$73, MATCH($E38, 'RAB input'!$E$24:$E$73, 0), MATCH(L$4, RAB_years, 0)) -> 3.494998168 | M38: =INDEX('RAB input'!$H$24:$XFD$73, MATCH($E38, 'RAB input'!$E$24:$E$73, 0), MATCH(M$4, RAB_years, 0)) -> 1.092094659 | N38: =INDEX('RAB input'!$H$24:$XFD$73, MATCH($E38, 'RAB input'!$E$24:$E$73, 0), MATCH(N$4, RAB_years, 0)) -> 1.563929725 | O38: =INDEX('RAB input'!$H$24:$XFD$73, MATCH($E38, 'RAB input'!$E$24:$E$73, 0), MATCH(O$4, RAB_years, 0)) -> 1.672626944 | P38: =INDEX('RAB input'!$H$24:$XFD$73, MATCH($E38, 'RAB input'!$E$24:$E$73, 0), MATCH(P$4, RAB_years, 0)) -> 5.185275808 | Q38: =INDEX('RAB input'!$H$24:$XFD$73, MATCH($E38, 'RAB input'!$E$24:$E$73, 0), MATCH(Q$4, RAB_years, 0)) -> 8.421066663 | R38: =INDEX('RAB input'!$H$24:$XFD$73, MATCH($E38, 'RAB input'!$E$24:$E$73, 0), MATCH(R$4, RAB_years, 0)) -> 0 | S38: =INDEX('RAB input'!$H$24:$XFD$73, MATCH($E38, 'RAB input'!$E$24:$E$73, 0), MATCH(S$4, RAB_years, 0)) -> 0 | T38: =INDEX('RAB input'!$H$24:$XFD$73, MATCH($E38, 'RAB input'!$E$24:$E$73, 0), MATCH(T$4, RAB_years, 0)) -> 0 | U38: =INDEX('RAB input'!$H$24:$XFD$73, MATCH($E38, 'RAB input'!$E$24:$E$73, 0), MATCH(U$4, RAB_years, 0)) -> 0 | V38: =INDEX('RAB input'!$H$24:$XFD$73, MATCH($E38, 'RAB input'!$E$24:$E$73, 0), MATCH(V$4, RAB_years, 0)) -> 0 | W38: =INDEX('RAB input'!$H$24:$XFD$73, MATCH($E38, 'RAB input'!$E$24:$E$73, 0), MATCH(W$4, RAB_years, 0)) -> 0 | X38: =INDEX('RAB input'!$H$24:$XFD$73, MATCH($E38, 'RAB input'!$E$24:$E$73, 0), MATCH(X$4, RAB_years, 0)) -> 0 | Y38: =INDEX('RAB input'!$H$24:$XFD$73, MATCH($E38, 'RAB input'!$E$24:$E$73, 0), MATCH(Y$4, RAB_years, 0)) -> 0 | Z38: =INDEX('RAB input'!$H$24:$XFD$73, MATCH($E38, 'RAB input'!$E$24:$E$73, 0), MATCH(Z$4, RAB_years, 0)) -> 0 | AA38: =INDEX('RAB input'!$H$24:$XFD$73, MATCH($E38, 'RAB input'!$E$24:$E$73, 0), MATCH(AA$4, RAB_years, 0)) -> 0 | AB38: =INDEX('RAB input'!$H$24:$XFD$73, MATCH($E38, 'RAB input'!$E$24:$E$73, 0), MATCH(AB$4, RAB_years, 0)) -> 0 | AC38: =INDEX('RAB input'!$H$24:$XFD$73, MATCH($E38, 'RAB input'!$E$24:$E$73, 0), MATCH(AC$4, RAB_years, 0)) -> 0 | AD38: =INDEX('RAB input'!$H$24:$XFD$73, MATCH($E38, 'RAB input'!$E$24:$E$73, 0), MATCH(AD$4, RAB_years, 0)) -> 0 | AE38: =INDEX('RAB input'!$H$24:$XFD$73, MATCH($E38, 'RAB input'!$E$24:$E$73, 0), MATCH(AE$4, RAB_years, 0)) -> 0 | AF38: =INDEX('RAB input'!$H$24:$XFD$73, MATCH($E38, 'RAB input'!$E$24:$E$73, 0), MATCH(AF$4, RAB_years, 0)) -> 0 | AG38: =INDEX('RAB input'!$H$24:$XFD$73, MATCH($E38, 'RAB input'!$E$24:$E$73, 0), MATCH(AG$4, RAB_years, 0)) -> 0 | AH38: =INDEX('RAB input'!$H$24:$XFD$73, MATCH($E38, 'RAB input'!$E$24:$E$73, 0), MATCH(AH$4, RAB_years, 0)) -> 0 | AI38: =INDEX('RAB input'!$H$24:$XFD$73, MATCH($E38, 'RAB input'!$E$24:$E$73, 0), MATCH(AI$4, RAB_years, 0)) -> 0 | AJ38: =INDEX('RAB input'!$H$24:$XFD$73, MATCH($E38, 'RAB input'!$E$24:$E$73, 0), MATCH(AJ$4, RAB_years, 0)) -> 0 | AK38: =INDEX('RAB input'!$H$24:$XFD$73, MATCH($E38, 'RAB input'!$E$24:$E$73, 0), MATCH(AK$4, RAB_years, 0)) -> 0 | AL38: =INDEX('RAB input'!$H$24:$XFD$73, MATCH($E38, 'RAB input'!$E$24:$E$73, 0), MATCH(AL$4, RAB_years, 0)) -> 0 | AM38: =INDEX('RAB input'!$H$24:$XFD$73, MATCH($E38, 'RAB input'!$E$24:$E$73, 0), MATCH(AM$4, RAB_years, 0)) -> 0 | AN38: =INDEX('RAB input'!$H$24:$XFD$73, MATCH($E38, 'RAB input'!$E$24:$E$73, 0), MATCH(AN$4, RAB_years, 0)) -> 0 | AO38: =INDEX('RAB input'!$H$24:$XFD$73, MATCH($E38, 'RAB input'!$E$24:$E$73, 0), MATCH(AO$4, RAB_years, 0)) -> 0 | AP38: =INDEX('RAB input'!$H$24:$XFD$73, MATCH($E38, 'RAB input'!$E$24:$E$73, 0), MATCH(AP$4, RAB_years, 0)) -> 0 | AQ38: =INDEX('RAB input'!$H$24:$XFD$73, MATCH($E38, 'RAB input'!$E$24:$E$73, 0), MATCH(AQ$4, RAB_years, 0)) -> 0 | AR38: =INDEX('RAB input'!$H$24:$XFD$73, MATCH($E38, 'RAB input'!$E$24:$E$73, 0), MATCH(AR$4, RAB_years, 0)) -> 0 | AS38: =INDEX('RAB input'!$H$24:$XFD$73, MATCH($E38, 'RAB input'!$E$24:$E$73, 0), MATCH(AS$4, RAB_years, 0)) -> 0 | AT38: =INDEX('RAB input'!$H$24:$XFD$73, MATCH($E38, 'RAB input'!$E$24:$E$73, 0), MATCH(AT$4, RAB_years, 0)) -> 0 | AU38: =INDEX('RAB input'!$H$24:$XFD$73, MATCH($E38, 'RAB input'!$E$24:$E$73, 0), MATCH(AU$4, RAB_years, 0)) -> 0 | AV38: =INDEX('RAB input'!$H$24:$XFD$73, MATCH($E38, 'RAB input'!$E$24:$E$73, 0), MATCH(AV$4, RAB_years, 0)) -> 0 | AW38: =INDEX('RAB input'!$H$24:$XFD$73, MATCH($E38, 'RAB input'!$E$24:$E$73, 0), MATCH(AW$4, RAB_years, 0)) -> 0 | AX38: =INDEX('RAB input'!$H$24:$XFD$73, MATCH($E38, 'RAB input'!$E$24:$E$73, 0), MATCH(AX$4, RAB_years, 0)) -> 0 | AY38: =INDEX('RAB input'!$H$24:$XFD$73, MATCH($E38, 'RAB input'!$E$24:$E$73, 0), MATCH(AY$4, RAB_years, 0)) -> 0 | AZ38: =INDEX('RAB input'!$H$24:$XFD$73, MATCH($E38, 'RAB input'!$E$24:$E$73, 0), MATCH(AZ$4, RAB_years, 0)) -> 0 | BA38: =INDEX('RAB input'!$H$24:$XFD$73, MATCH($E38, 'RAB input'!$E$24:$E$73, 0), MATCH(BA$4, RAB_years, 0)) -> 0 | BB38: =INDEX('RAB input'!$H$24:$XFD$73, MATCH($E38, 'RAB input'!$E$24:$E$73, 0), MATCH(BB$4, RAB_years, 0)) -> 0 | BC38: =INDEX('RAB input'!$H$24:$XFD$73, MATCH($E38, 'RAB input'!$E$24:$E$73, 0), MATCH(BC$4, RAB_years, 0)) -> 0 | BD38: =INDEX('RAB input'!$H$24:$XFD$73, MATCH($E38, 'RAB input'!$E$24:$E$73, 0), MATCH(BD$4, RAB_years, 0)) -> 0 | BE38: =INDEX('RAB input'!$H$24:$XFD$73, MATCH($E38, 'RAB input'!$E$24:$E$73, 0), MATCH(BE$4, RAB_years, 0)) -> 0 | BF38: =INDEX('RAB input'!$H$24:$XFD$73, MATCH($E38, 'RAB input'!$E$24:$E$73, 0), MATCH(BF$4, RAB_years, 0)) -> 0 | BG38: =INDEX('RAB input'!$H$24:$XFD$73, MATCH($E38, 'RAB input'!$E$24:$E$73, 0), MATCH(BG$4, RAB_years, 0)) -> 0 | BH38: =INDEX('RAB input'!$H$24:$XFD$73, MATCH($E38, 'RAB input'!$E$24:$E$73, 0), MATCH(BH$4, RAB_years, 0)) -> 0 | BI38: =INDEX('RAB input'!$H$24:$XFD$73, MATCH($E38, 'RAB input'!$E$24:$E$73, 0), MATCH(BI$4, RAB_years, 0)) -> 0 | BJ38: =INDEX('RAB input'!$H$24:$XFD$73, MATCH($E38, 'RAB input'!$E$24:$E$73, 0), MATCH(BJ$4, RAB_years, 0)) -> 0 | BK38: =INDEX('RAB input'!$H$24:$XFD$73, MATCH($E38, 'RAB input'!$E$24:$E$73, 0), MATCH(BK$4, RAB_years, 0)) -> 0 | BL38: =INDEX('RAB input'!$H$24:$XFD$73, MATCH($E38, 'RAB input'!$E$24:$E$73, 0), MATCH(BL$4, RAB_years, 0)) -> 0 | BM38: =INDEX('RAB input'!$H$24:$XFD$73, MATCH($E38, 'RAB input'!$E$24:$E$73, 0), MATCH(BM$4, RAB_years, 0)) -> 0 | BN38: =INDEX('RAB input'!$H$24:$XFD$73, MATCH($E38, 'RAB input'!$E$24:$E$73, 0), MATCH(BN$4, RAB_years, 0)) -> 0 | BO38: =INDEX('RAB input'!$H$24:$XFD$73, MATCH($E38, 'RAB input'!$E$24:$E$73, 0), MATCH(BO$4, RAB_years, 0)) -> 0 | BP38: =INDEX('RAB input'!$H$24:$XFD$73, MATCH($E38, 'RAB input'!$E$24:$E$73, 0), MATCH(BP$4, RAB_years, 0)) -> 0 | BQ38: =INDEX('RAB input'!$H$24:$XFD$73, MATCH($E38, 'RAB input'!$E$24:$E$73, 0), MATCH(BQ$4, RAB_years, 0)) -> 0 | BR38: =INDEX('RAB input'!$H$24:$XFD$73, MATCH($E38, 'RAB input'!$E$24:$E$73, 0), MATCH(BR$4, RAB_years, 0)) -> 0 | BS38: =INDEX('RAB input'!$H$24:$XFD$73, MATCH($E38, 'RAB input'!$E$24:$E$73, 0), MATCH(BS$4, RAB_years, 0)) -> 0 | BT38: =INDEX('RAB input'!$H$24:$XFD$73, MATCH($E38, 'RAB input'!$E$24:$E$73, 0), MATCH(BT$4, RAB_years, 0)) -> 0 | BU38: =INDEX('RAB input'!$H$24:$XFD$73, MATCH($E38, 'RAB input'!$E$24:$E$73, 0), MATCH(BU$4, RAB_years, 0)) -> 0 | BV38: =INDEX('RAB input'!$H$24:$XFD$73, MATCH($E38, 'RAB input'!$E$24:$E$73, 0), MATCH(BV$4, RAB_years, 0)) -> 0 | BW38: =INDEX('RAB input'!$H$24:$XFD$73, MATCH($E38, 'RAB input'!$E$24:$E$73, 0), MATCH(BW$4, RAB_years, 0)) -> 0 | BX38: =INDEX('RAB input'!$H$24:$XFD$73, MATCH($E38, 'RAB input'!$E$24:$E$73, 0), MATCH(BX$4, RAB_years, 0)) -> 0 | BY38: =INDEX('RAB input'!$H$24:$XFD$73, MATCH($E38, 'RAB input'!$E$24:$E$73, 0), MATCH(BY$4, RAB_years, 0)) -> 0 | BZ38: =INDEX('RAB input'!$H$24:$XFD$73, MATCH($E38, 'RAB input'!$E$24:$E$73, 0), MATCH(BZ$4, RAB_years, 0)) -> 0
D39: 22 | E39: ='RAB input'!E45 -> Other - short life (4) | G39: 6.816803085 | H39: =INDEX('RAB input'!$H$24:$XFD$73, MATCH($E39, 'RAB input'!$E$24:$E$73, 0), MATCH(H$4, RAB_years, 0)) -> 3.069095035 | I39: =INDEX('RAB input'!$H$24:$XFD$73, MATCH($E39, 'RAB input'!$E$24:$E$73, 0), MATCH(I$4, RAB_years, 0)) -> 0.8083131583 | J39: =INDEX('RAB input'!$H$24:$XFD$73, MATCH($E39, 'RAB input'!$E$24:$E$73, 0), MATCH(J$4, RAB_years, 0)) -> 0.2499859245 | K39: =INDEX('RAB input'!$H$24:$XFD$73, MATCH($E39, 'RAB input'!$E$24:$E$73, 0), MATCH(K$4, RAB_years, 0)) -> 0.7322887603 | L39: =INDEX('RAB input'!$H$24:$XFD$73, MATCH($E39, 'RAB input'!$E$24:$E$73, 0), MATCH(L$4, RAB_years, 0)) -> 0.3101032576 | M39: =INDEX('RAB input'!$H$24:$XFD$73, MATCH($E39, 'RAB input'!$E$24:$E$73, 0), MATCH(M$4, RAB_years, 0)) -> 1.631661007 | N39: =INDEX('RAB input'!$H$24:$XFD$73, MATCH($E39, 'RAB input'!$E$24:$E$73, 0), MATCH(N$4, RAB_years, 0)) -> 1.229292628 | O39: =INDEX('RAB input'!$H$24:$XFD$73, MATCH($E39, 'RAB input'!$E$24:$E$73, 0), MATCH(O$4, RAB_years, 0)) -> 0 | P39: =INDEX('RAB input'!$H$24:$XFD$73, MATCH($E39, 'RAB input'!$E$24:$E$73, 0), MATCH(P$4, RAB_years, 0)) -> 1.180031512 | Q39: =INDEX('RAB input'!$H$24:$XFD$73, MATCH($E39, 'RAB input'!$E$24:$E$73, 0), MATCH(Q$4, RAB_years, 0)) -> 7.871130407 | R39: =INDEX('RAB input'!$H$24:$XFD$73, MATCH($E39, 'RAB input'!$E$24:$E$73, 0), MATCH(R$4, RAB_years, 0)) -> 0 | S39: =INDEX('RAB input'!$H$24:$XFD$73, MATCH($E39, 'RAB input'!$E$24:$E$73, 0), MATCH(S$4, RAB_years, 0)) -> 0 | T39: =INDEX('RAB input'!$H$24:$XFD$73, MATCH($E39, 'RAB input'!$E$24:$E$73, 0), MATCH(T$4, RAB_years, 0)) -> 0 | U39: =INDEX('RAB input'!$H$24:$XFD$73, MATCH($E39, 'RAB input'!$E$24:$E$73, 0), MATCH(U$4, RAB_years, 0)) -> 0 | V39: =INDEX('RAB input'!$H$24:$XFD$73, MATCH($E39, 'RAB input'!$E$24:$E$73, 0), MATCH(V$4, RAB_years, 0)) -> 0 | W39: =INDEX('RAB input'!$H$24:$XFD$73, MATCH($E39, 'RAB input'!$E$24:$E$73, 0), MATCH(W$4, RAB_years, 0)) -> 0 | X39: =INDEX('RAB input'!$H$24:$XFD$73, MATCH($E39, 'RAB input'!$E$24:$E$73, 0), MATCH(X$4, RAB_years, 0)) -> 0 | Y39: =INDEX('RAB input'!$H$24:$XFD$73, MATCH($E39, 'RAB input'!$E$24:$E$73, 0), MATCH(Y$4, RAB_years, 0)) -> 0 | Z39: =INDEX('RAB input'!$H$24:$XFD$73, MATCH($E39, 'RAB input'!$E$24:$E$73, 0), MATCH(Z$4, RAB_years, 0)) -> 0 | AA39: =INDEX('RAB input'!$H$24:$XFD$73, MATCH($E39, 'RAB input'!$E$24:$E$73, 0), MATCH(AA$4, RAB_years, 0)) -> 0 | AB39: =INDEX('RAB input'!$H$24:$XFD$73, MATCH($E39, 'RAB input'!$E$24:$E$73, 0), MATCH(AB$4, RAB_years, 0)) -> 0 | AC39: =INDEX('RAB input'!$H$24:$XFD$73, MATCH($E39, 'RAB input'!$E$24:$E$73, 0), MATCH(AC$4, RAB_years, 0)) -> 0 | AD39: =INDEX('RAB input'!$H$24:$XFD$73, MATCH($E39, 'RAB input'!$E$24:$E$73, 0), MATCH(AD$4, RAB_years, 0)) -> 0 | AE39: =INDEX('RAB input'!$H$24:$XFD$73, MATCH($E39, 'RAB input'!$E$24:$E$73, 0), MATCH(AE$4, RAB_years, 0)) -> 0 | AF39: =INDEX('RAB input'!$H$24:$XFD$73, MATCH($E39, 'RAB input'!$E$24:$E$73, 0), MATCH(AF$4, RAB_years, 0)) -> 0 | AG39: =INDEX('RAB input'!$H$24:$XFD$73, MATCH($E39, 'RAB input'!$E$24:$E$73, 0), MATCH(AG$4, RAB_years, 0)) -> 0 | AH39: =INDEX('RAB input'!$H$24:$XFD$73, MATCH($E39, 'RAB input'!$E$24:$E$73, 0), MATCH(AH$4, RAB_years, 0)) -> 0 | AI39: =INDEX('RAB input'!$H$24:$XFD$73, MATCH($E39, 'RAB input'!$E$24:$E$73, 0), MATCH(AI$4, RAB_years, 0)) -> 0 | AJ39: =INDEX('RAB input'!$H$24:$XFD$73, MATCH($E39, 'RAB input'!$E$24:$E$73, 0), MATCH(AJ$4, RAB_years, 0)) -> 0 | AK39: =INDEX('RAB input'!$H$24:$XFD$73, MATCH($E39, 'RAB input'!$E$24:$E$73, 0), MATCH(AK$4, RAB_years, 0)) -> 0 | AL39: =INDEX('RAB input'!$H$24:$XFD$73, MATCH($E39, 'RAB input'!$E$24:$E$73, 0), MATCH(AL$4, RAB_years, 0)) -> 0 | AM39: =INDEX('RAB input'!$H$24:$XFD$73, MATCH($E39, 'RAB input'!$E$24:$E$73, 0), MATCH(AM$4, RAB_years, 0)) -> 0 | AN39: =INDEX('RAB input'!$H$24:$XFD$73, MATCH($E39, 'RAB input'!$E$24:$E$73, 0), MATCH(AN$4, RAB_years, 0)) -> 0 | AO39: =INDEX('RAB input'!$H$24:$XFD$73, MATCH($E39, 'RAB input'!$E$24:$E$73, 0), MATCH(AO$4, RAB_years, 0)) -> 0 | AP39: =INDEX('RAB input'!$H$24:$XFD$73, MATCH($E39, 'RAB input'!$E$24:$E$73, 0), MATCH(AP$4, RAB_years, 0)) -> 0 | AQ39: =INDEX('RAB input'!$H$24:$XFD$73, MATCH($E39, 'RAB input'!$E$24:$E$73, 0), MATCH(AQ$4, RAB_years, 0)) -> 0 | AR39: =INDEX('RAB input'!$H$24:$XFD$73, MATCH($E39, 'RAB input'!$E$24:$E$73, 0), MATCH(AR$4, RAB_years, 0)) -> 0 | AS39: =INDEX('RAB input'!$H$24:$XFD$73, MATCH($E39, 'RAB input'!$E$24:$E$73, 0), MATCH(AS$4, RAB_years, 0)) -> 0 | AT39: =INDEX('RAB input'!$H$24:$XFD$73, MATCH($E39, 'RAB input'!$E$24:$E$73, 0), MATCH(AT$4, RAB_years, 0)) -> 0 | AU39: =INDEX('RAB input'!$H$24:$XFD$73, MATCH($E39, 'RAB input'!$E$24:$E$73, 0), MATCH(AU$4, RAB_years, 0)) -> 0 | AV39: =INDEX('RAB input'!$H$24:$XFD$73, MATCH($E39, 'RAB input'!$E$24:$E$73, 0), MATCH(AV$4, RAB_years, 0)) -> 0 | AW39: =INDEX('RAB input'!$H$24:$XFD$73, MATCH($E39, 'RAB input'!$E$24:$E$73, 0), MATCH(AW$4, RAB_years, 0)) -> 0 | AX39: =INDEX('RAB input'!$H$24:$XFD$73, MATCH($E39, 'RAB input'!$E$24:$E$73, 0), MATCH(AX$4, RAB_years, 0)) -> 0 | AY39: =INDEX('RAB input'!$H$24:$XFD$73, MATCH($E39, 'RAB input'!$E$24:$E$73, 0), MATCH(AY$4, RAB_years, 0)) -> 0 | AZ39: =INDEX('RAB input'!$H$24:$XFD$73, MATCH($E39, 'RAB input'!$E$24:$E$73, 0), MATCH(AZ$4, RAB_years, 0)) -> 0 | BA39: =INDEX('RAB input'!$H$24:$XFD$73, MATCH($E39, 'RAB input'!$E$24:$E$73, 0), MATCH(BA$4, RAB_years, 0)) -> 0 | BB39: =INDEX('RAB input'!$H$24:$XFD$73, MATCH($E39, 'RAB input'!$E$24:$E$73, 0), MATCH(BB$4, RAB_years, 0)) -> 0 | BC39: =INDEX('RAB input'!$H$24:$XFD$73, MATCH($E39, 'RAB input'!$E$24:$E$73, 0), MATCH(BC$4, RAB_years, 0)) -> 0 | BD39: =INDEX('RAB input'!$H$24:$XFD$73, MATCH($E39, 'RAB input'!$E$24:$E$73, 0), MATCH(BD$4, RAB_years, 0)) -> 0 | BE39: =INDEX('RAB input'!$H$24:$XFD$73, MATCH($E39, 'RAB input'!$E$24:$E$73, 0), MATCH(BE$4, RAB_years, 0)) -> 0 | BF39: =INDEX('RAB input'!$H$24:$XFD$73, MATCH($E39, 'RAB input'!$E$24:$E$73, 0), MATCH(BF$4, RAB_years, 0)) -> 0 | BG39: =INDEX('RAB input'!$H$24:$XFD$73, MATCH($E39, 'RAB input'!$E$24:$E$73, 0), MATCH(BG$4, RAB_years, 0)) -> 0 | BH39: =INDEX('RAB input'!$H$24:$XFD$73, MATCH($E39, 'RAB input'!$E$24:$E$73, 0), MATCH(BH$4, RAB_years, 0)) -> 0 | BI39: =INDEX('RAB input'!$H$24:$XFD$73, MATCH($E39, 'RAB input'!$E$24:$E$73, 0), MATCH(BI$4, RAB_years, 0)) -> 0 | BJ39: =INDEX('RAB input'!$H$24:$XFD$73, MATCH($E39, 'RAB input'!$E$24:$E$73, 0), MATCH(BJ$4, RAB_years, 0)) -> 0 | BK39: =INDEX('RAB input'!$H$24:$XFD$73, MATCH($E39, 'RAB input'!$E$24:$E$73, 0), MATCH(BK$4, RAB_years, 0)) -> 0 | BL39: =INDEX('RAB input'!$H$24:$XFD$73, MATCH($E39, 'RAB input'!$E$24:$E$73, 0), MATCH(BL$4, RAB_years, 0)) -> 0 | BM39: =INDEX('RAB input'!$H$24:$XFD$73, MATCH($E39, 'RAB input'!$E$24:$E$73, 0), MATCH(BM$4, RAB_years, 0)) -> 0 | BN39: =INDEX('RAB input'!$H$24:$XFD$73, MATCH($E39, 'RAB input'!$E$24:$E$73, 0), MATCH(BN$4, RAB_years, 0)) -> 0 | BO39: =INDEX('RAB input'!$H$24:$XFD$73, MATCH($E39, 'RAB input'!$E$24:$E$73, 0), MATCH(BO$4, RAB_years, 0)) -> 0 | BP39: =INDEX('RAB input'!$H$24:$XFD$73, MATCH($E39, 'RAB input'!$E$24:$E$73, 0), MATCH(BP$4, RAB_years, 0)) -> 0 | BQ39: =INDEX('RAB input'!$H$24:$XFD$73, MATCH($E39, 'RAB input'!$E$24:$E$73, 0), MATCH(BQ$4, RAB_years, 0)) -> 0 | BR39: =INDEX('RAB input'!$H$24:$XFD$73, MATCH($E39, 'RAB input'!$E$24:$E$73, 0), MATCH(BR$4, RAB_years, 0)) -> 0 | BS39: =INDEX('RAB input'!$H$24:$XFD$73, MATCH($E39, 'RAB input'!$E$24:$E$73, 0), MATCH(BS$4, RAB_years, 0)) -> 0 | BT39: =INDEX('RAB input'!$H$24:$XFD$73, MATCH($E39, 'RAB input'!$E$24:$E$73, 0), MATCH(BT$4, RAB_years, 0)) -> 0 | BU39: =INDEX('RAB input'!$H$24:$XFD$73, MATCH($E39, 'RAB input'!$E$24:$E$73, 0), MATCH(BU$4, RAB_years, 0)) -> 0 | BV39: =INDEX('RAB input'!$H$24:$XFD$73, MATCH($E39, 'RAB input'!$E$24:$E$73, 0), MATCH(BV$4, RAB_years, 0)) -> 0 | BW39: =INDEX('RAB input'!$H$24:$XFD$73, MATCH($E39, 'RAB input'!$E$24:$E$73, 0), MATCH(BW$4, RAB_years, 0)) -> 0 | BX39: =INDEX('RAB input'!$H$24:$XFD$73, MATCH($E39, 'RAB input'!$E$24:$E$73, 0), MATCH(BX$4, RAB_years, 0)) -> 0 | BY39: =INDEX('RAB input'!$H$24:$XFD$73, MATCH($E39, 'RAB input'!$E$24:$E$73, 0), MATCH(BY$4, RAB_years, 0)) -> 0 | BZ39: =INDEX('RAB input'!$H$24:$XFD$73, MATCH($E39, 'RAB input'!$E$24:$E$73, 0), MATCH(BZ$4, RAB_years, 0)) -> 0
D40: 23 | E40: ='RAB input'!E46 -> Land and Easements | G40: 3.17833 | H40: =INDEX('RAB input'!$H$24:$XFD$73, MATCH($E40, 'RAB input'!$E$24:$E$73, 0), MATCH(H$4, RAB_years, 0)) -> 0 | I40: =INDEX('RAB input'!$H$24:$XFD$73, MATCH($E40, 'RAB input'!$E$24:$E$73, 0), MATCH(I$4, RAB_years, 0)) -> 0.2783793442 | J40: =INDEX('RAB input'!$H$24:$XFD$73, MATCH($E40, 'RAB input'!$E$24:$E$73, 0), MATCH(J$4, RAB_years, 0)) -> 0 | K40: =INDEX('RAB input'!$H$24:$XFD$73, MATCH($E40, 'RAB input'!$E$24:$E$73, 0), MATCH(K$4, RAB_years, 0)) -> 0.2497362347 | L40: =INDEX('RAB input'!$H$24:$XFD$73, MATCH($E40, 'RAB input'!$E$24:$E$73, 0), MATCH(L$4, RAB_years, 0)) -> 0 | M40: =INDEX('RAB input'!$H$24:$XFD$73, MATCH($E40, 'RAB input'!$E$24:$E$73, 0), MATCH(M$4, RAB_years, 0)) -> 0 | N40: =INDEX('RAB input'!$H$24:$XFD$73, MATCH($E40, 'RAB input'!$E$24:$E$73, 0), MATCH(N$4, RAB_years, 0)) -> 0 | O40: =INDEX('RAB input'!$H$24:$XFD$73, MATCH($E40, 'RAB input'!$E$24:$E$73, 0), MATCH(O$4, RAB_years, 0)) -> 0.30194309 | P40: =INDEX('RAB input'!$H$24:$XFD$73, MATCH($E40, 'RAB input'!$E$24:$E$73, 0), MATCH(P$4, RAB_years, 0)) -> 4.030729187 | Q40: =INDEX('RAB input'!$H$24:$XFD$73, MATCH($E40, 'RAB input'!$E$24:$E$73, 0), MATCH(Q$4, RAB_years, 0)) -> 3.949858893 | R40: =INDEX('RAB input'!$H$24:$XFD$73, MATCH($E40, 'RAB input'!$E$24:$E$73, 0), MATCH(R$4, RAB_years, 0)) -> 0 | S40: =INDEX('RAB input'!$H$24:$XFD$73, MATCH($E40, 'RAB input'!$E$24:$E$73, 0), MATCH(S$4, RAB_years, 0)) -> 0 | T40: =INDEX('RAB input'!$H$24:$XFD$73, MATCH($E40, 'RAB input'!$E$24:$E$73, 0), MATCH(T$4, RAB_years, 0)) -> 0 | U40: =INDEX('RAB input'!$H$24:$XFD$73, MATCH($E40, 'RAB input'!$E$24:$E$73, 0), MATCH(U$4, RAB_years, 0)) -> 0 | V40: =INDEX('RAB input'!$H$24:$XFD$73, MATCH($E40, 'RAB input'!$E$24:$E$73, 0), MATCH(V$4, RAB_years, 0)) -> 0 | W40: =INDEX('RAB input'!$H$24:$XFD$73, MATCH($E40, 'RAB input'!$E$24:$E$73, 0), MATCH(W$4, RAB_years, 0)) -> 0 | X40: =INDEX('RAB input'!$H$24:$XFD$73, MATCH($E40, 'RAB input'!$E$24:$E$73, 0), MATCH(X$4, RAB_years, 0)) -> 0 | Y40: =INDEX('RAB input'!$H$24:$XFD$73, MATCH($E40, 'RAB input'!$E$24:$E$73, 0), MATCH(Y$4, RAB_years, 0)) -> 0 | Z40: =INDEX('RAB input'!$H$24:$XFD$73, MATCH($E40, 'RAB input'!$E$24:$E$73, 0), MATCH(Z$4, RAB_years, 0)) -> 0 | AA40: =INDEX('RAB input'!$H$24:$XFD$73, MATCH($E40, 'RAB input'!$E$24:$E$73, 0), MATCH(AA$4, RAB_years, 0)) -> 0 | AB40: =INDEX('RAB input'!$H$24:$XFD$73, MATCH($E40, 'RAB input'!$E$24:$E$73, 0), MATCH(AB$4, RAB_years, 0)) -> 0 | AC40: =INDEX('RAB input'!$H$24:$XFD$73, MATCH($E40, 'RAB input'!$E$24:$E$73, 0), MATCH(AC$4, RAB_years, 0)) -> 0 | AD40: =INDEX('RAB input'!$H$24:$XFD$73, MATCH($E40, 'RAB input'!$E$24:$E$73, 0), MATCH(AD$4, RAB_years, 0)) -> 0 | AE40: =INDEX('RAB input'!$H$24:$XFD$73, MATCH($E40, 'RAB input'!$E$24:$E$73, 0), MATCH(AE$4, RAB_years, 0)) -> 0 | AF40: =INDEX('RAB input'!$H$24:$XFD$73, MATCH($E40, 'RAB input'!$E$24:$E$73, 0), MATCH(AF$4, RAB_years, 0)) -> 0 | AG40: =INDEX('RAB input'!$H$24:$XFD$73, MATCH($E40, 'RAB input'!$E$24:$E$73, 0), MATCH(AG$4, RAB_years, 0)) -> 0 | AH40: =INDEX('RAB input'!$H$24:$XFD$73, MATCH($E40, 'RAB input'!$E$24:$E$73, 0), MATCH(AH$4, RAB_years, 0)) -> 0 | AI40: =INDEX('RAB input'!$H$24:$XFD$73, MATCH($E40, 'RAB input'!$E$24:$E$73, 0), MATCH(AI$4, RAB_years, 0)) -> 0 | AJ40: =INDEX('RAB input'!$H$24:$XFD$73, MATCH($E40, 'RAB input'!$E$24:$E$73, 0), MATCH(AJ$4, RAB_years, 0)) -> 0 | AK40: =INDEX('RAB input'!$H$24:$XFD$73, MATCH($E40, 'RAB input'!$E$24:$E$73, 0), MATCH(AK$4, RAB_years, 0)) -> 0 | AL40: =INDEX('RAB input'!$H$24:$XFD$73, MATCH($E40, 'RAB input'!$E$24:$E$73, 0), MATCH(AL$4, RAB_years, 0)) -> 0 | AM40: =INDEX('RAB input'!$H$24:$XFD$73, MATCH($E40, 'RAB input'!$E$24:$E$73, 0), MATCH(AM$4, RAB_years, 0)) -> 0 | AN40: =INDEX('RAB input'!$H$24:$XFD$73, MATCH($E40, 'RAB input'!$E$24:$E$73, 0), MATCH(AN$4, RAB_years, 0)) -> 0 | AO40: =INDEX('RAB input'!$H$24:$XFD$73, MATCH($E40, 'RAB input'!$E$24:$E$73, 0), MATCH(AO$4, RAB_years, 0)) -> 0 | AP40: =INDEX('RAB input'!$H$24:$XFD$73, MATCH($E40, 'RAB input'!$E$24:$E$73, 0), MATCH(AP$4, RAB_years, 0)) -> 0 | AQ40: =INDEX('RAB input'!$H$24:$XFD$73, MATCH($E40, 'RAB input'!$E$24:$E$73, 0), MATCH(AQ$4, RAB_years, 0)) -> 0 | AR40: =INDEX('RAB input'!$H$24:$XFD$73, MATCH($E40, 'RAB input'!$E$24:$E$73, 0), MATCH(AR$4, RAB_years, 0)) -> 0 | AS40: =INDEX('RAB input'!$H$24:$XFD$73, MATCH($E40, 'RAB input'!$E$24:$E$73, 0), MATCH(AS$4, RAB_years, 0)) -> 0 | AT40: =INDEX('RAB input'!$H$24:$XFD$73, MATCH($E40, 'RAB input'!$E$24:$E$73, 0), MATCH(AT$4, RAB_years, 0)) -> 0 | AU40: =INDEX('RAB input'!$H$24:$XFD$73, MATCH($E40, 'RAB input'!$E$24:$E$73, 0), MATCH(AU$4, RAB_years, 0)) -> 0 | AV40: =INDEX('RAB input'!$H$24:$XFD$73, MATCH($E40, 'RAB input'!$E$24:$E$73, 0), MATCH(AV$4, RAB_years, 0)) -> 0 | AW40: =INDEX('RAB input'!$H$24:$XFD$73, MATCH($E40, 'RAB input'!$E$24:$E$73, 0), MATCH(AW$4, RAB_years, 0)) -> 0 | AX40: =INDEX('RAB input'!$H$24:$XFD$73, MATCH($E40, 'RAB input'!$E$24:$E$73, 0), MATCH(AX$4, RAB_years, 0)) -> 0 | AY40: =INDEX('RAB input'!$H$24:$XFD$73, MATCH($E40, 'RAB input'!$E$24:$E$73, 0), MATCH(AY$4, RAB_years, 0)) -> 0 | AZ40: =INDEX('RAB input'!$H$24:$XFD$73, MATCH($E40, 'RAB input'!$E$24:$E$73, 0), MATCH(AZ$4, RAB_years, 0)) -> 0 | BA40: =INDEX('RAB input'!$H$24:$XFD$73, MATCH($E40, 'RAB input'!$E$24:$E$73, 0), MATCH(BA$4, RAB_years, 0)) -> 0 | BB40: =INDEX('RAB input'!$H$24:$XFD$73, MATCH($E40, 'RAB input'!$E$24:$E$73, 0), MATCH(BB$4, RAB_years, 0)) -> 0 | BC40: =INDEX('RAB input'!$H$24:$XFD$73, MATCH($E40, 'RAB input'!$E$24:$E$73, 0), MATCH(BC$4, RAB_years, 0)) -> 0 | BD40: =INDEX('RAB input'!$H$24:$XFD$73, MATCH($E40, 'RAB input'!$E$24:$E$73, 0), MATCH(BD$4, RAB_years, 0)) -> 0 | BE40: =INDEX('RAB input'!$H$24:$XFD$73, MATCH($E40, 'RAB input'!$E$24:$E$73, 0), MATCH(BE$4, RAB_years, 0)) -> 0 | BF40: =INDEX('RAB input'!$H$24:$XFD$73, MATCH($E40, 'RAB input'!$E$24:$E$73, 0), MATCH(BF$4, RAB_years, 0)) -> 0 | BG40: =INDEX('RAB input'!$H$24:$XFD$73, MATCH($E40, 'RAB input'!$E$24:$E$73, 0), MATCH(BG$4, RAB_years, 0)) -> 0 | BH40: =INDEX('RAB input'!$H$24:$XFD$73, MATCH($E40, 'RAB input'!$E$24:$E$73, 0), MATCH(BH$4, RAB_years, 0)) -> 0 | BI40: =INDEX('RAB input'!$H$24:$XFD$73, MATCH($E40, 'RAB input'!$E$24:$E$73, 0), MATCH(BI$4, RAB_years, 0)) -> 0 | BJ40: =INDEX('RAB input'!$H$24:$XFD$73, MATCH($E40, 'RAB input'!$E$24:$E$73, 0), MATCH(BJ$4, RAB_years, 0)) -> 0 | BK40: =INDEX('RAB input'!$H$24:$XFD$73, MATCH($E40, 'RAB input'!$E$24:$E$73, 0), MATCH(BK$4, RAB_years, 0)) -> 0 | BL40: =INDEX('RAB input'!$H$24:$XFD$73, MATCH($E40, 'RAB input'!$E$24:$E$73, 0), MATCH(BL$4, RAB_years, 0)) -> 0 | BM40: =INDEX('RAB input'!$H$24:$XFD$73, MATCH($E40, 'RAB input'!$E$24:$E$73, 0), MATCH(BM$4, RAB_years, 0)) -> 0 | BN40: =INDEX('RAB input'!$H$24:$XFD$73, MATCH($E40, 'RAB input'!$E$24:$E$73, 0), MATCH(BN$4, RAB_years, 0)) -> 0 | BO40: =INDEX('RAB input'!$H$24:$XFD$73, MATCH($E40, 'RAB input'!$E$24:$E$73, 0), MATCH(BO$4, RAB_years, 0)) -> 0 | BP40: =INDEX('RAB input'!$H$24:$XFD$73, MATCH($E40, 'RAB input'!$E$24:$E$73, 0), MATCH(BP$4, RAB_years, 0)) -> 0 | BQ40: =INDEX('RAB input'!$H$24:$XFD$73, MATCH($E40, 'RAB input'!$E$24:$E$73, 0), MATCH(BQ$4, RAB_years, 0)) -> 0 | BR40: =INDEX('RAB input'!$H$24:$XFD$73, MATCH($E40, 'RAB input'!$E$24:$E$73, 0), MATCH(BR$4, RAB_years, 0)) -> 0 | BS40: =INDEX('RAB input'!$H$24:$XFD$73, MATCH($E40, 'RAB input'!$E$24:$E$73, 0), MATCH(BS$4, RAB_years, 0)) -> 0 | BT40: =INDEX('RAB input'!$H$24:$XFD$73, MATCH($E40, 'RAB input'!$E$24:$E$73, 0), MATCH(BT$4, RAB_years, 0)) -> 0 | BU40: =INDEX('RAB input'!$H$24:$XFD$73, MATCH($E40, 'RAB input'!$E$24:$E$73, 0), MATCH(BU$4, RAB_years, 0)) -> 0 | BV40: =INDEX('RAB input'!$H$24:$XFD$73, MATCH($E40, 'RAB input'!$E$24:$E$73, 0), MATCH(BV$4, RAB_years, 0)) -> 0 | BW40: =INDEX('RAB input'!$H$24:$XFD$73, MATCH($E40, 'RAB input'!$E$24:$E$73, 0), MATCH(BW$4, RAB_years, 0)) -> 0 | BX40: =INDEX('RAB input'!$H$24:$XFD$73, MATCH($E40, 'RAB input'!$E$24:$E$73, 0), MATCH(BX$4, RAB_years, 0)) -> 0 | BY40: =INDEX('RAB input'!$H$24:$XFD$73, MATCH($E40, 'RAB input'!$E$24:$E$73, 0), MATCH(BY$4, RAB_years, 0)) -> 0 | BZ40: =INDEX('RAB input'!$H$24:$XFD$73, MATCH($E40, 'RAB input'!$E$24:$E$73, 0), MATCH(BZ$4, RAB_years, 0)) -> 0
D41: 24 | E41: ='RAB input'!E47 -> Communication assets - long life (45) | G41: 0 | H41: =INDEX('RAB input'!$H$24:$XFD$73, MATCH($E41, 'RAB input'!$E$24:$E$73, 0), MATCH(H$4, RAB_years, 0)) -> 0 | I41: =INDEX('RAB input'!$H$24:$XFD$73, MATCH($E41, 'RAB input'!$E$24:$E$73, 0), MATCH(I$4, RAB_years, 0)) -> 0 | J41: =INDEX('RAB input'!$H$24:$XFD$73, MATCH($E41, 'RAB input'!$E$24:$E$73, 0), MATCH(J$4, RAB_years, 0)) -> 0.02220085579 | K41: =INDEX('RAB input'!$H$24:$XFD$73, MATCH($E41, 'RAB input'!$E$24:$E$73, 0), MATCH(K$4, RAB_years, 0)) -> 0.1967187022 | L41: =INDEX('RAB input'!$H$24:$XFD$73, MATCH($E41, 'RAB input'!$E$24:$E$73, 0), MATCH(L$4, RAB_years, 0)) -> 0.02277699 | M41: =INDEX('RAB input'!$H$24:$XFD$73, MATCH($E41, 'RAB input'!$E$24:$E$73, 0), MATCH(M$4, RAB_years, 0)) -> 0.47793046 | N41: =INDEX('RAB input'!$H$24:$XFD$73, MATCH($E41, 'RAB input'!$E$24:$E$73, 0), MATCH(N$4, RAB_years, 0)) -> 0.02970796 | O41: =INDEX('RAB input'!$H$24:$XFD$73, MATCH($E41, 'RAB input'!$E$24:$E$73, 0), MATCH(O$4, RAB_years, 0)) -> 0.1655736093 | P41: =INDEX('RAB input'!$H$24:$XFD$73, MATCH($E41, 'RAB input'!$E$24:$E$73, 0), MATCH(P$4, RAB_years, 0)) -> 0.6670823218 | Q41: =INDEX('RAB input'!$H$24:$XFD$73, MATCH($E41, 'RAB input'!$E$24:$E$73, 0), MATCH(Q$4, RAB_years, 0)) -> 0.3206117767 | R41: =INDEX('RAB input'!$H$24:$XFD$73, MATCH($E41, 'RAB input'!$E$24:$E$73, 0), MATCH(R$4, RAB_years, 0)) -> 0 | S41: =INDEX('RAB input'!$H$24:$XFD$73, MATCH($E41, 'RAB input'!$E$24:$E$73, 0), MATCH(S$4, RAB_years, 0)) -> 0 | T41: =INDEX('RAB input'!$H$24:$XFD$73, MATCH($E41, 'RAB input'!$E$24:$E$73, 0), MATCH(T$4, RAB_years, 0)) -> 0 | U41: =INDEX('RAB input'!$H$24:$XFD$73, MATCH($E41, 'RAB input'!$E$24:$E$73, 0), MATCH(U$4, RAB_years, 0)) -> 0 | V41: =INDEX('RAB input'!$H$24:$XFD$73, MATCH($E41, 'RAB input'!$E$24:$E$73, 0), MATCH(V$4, RAB_years, 0)) -> 0 | W41: =INDEX('RAB input'!$H$24:$XFD$73, MATCH($E41, 'RAB input'!$E$24:$E$73, 0), MATCH(W$4, RAB_years, 0)) -> 0 | X41: =INDEX('RAB input'!$H$24:$XFD$73, MATCH($E41, 'RAB input'!$E$24:$E$73, 0), MATCH(X$4, RAB_years, 0)) -> 0 | Y41: =INDEX('RAB input'!$H$24:$XFD$73, MATCH($E41, 'RAB input'!$E$24:$E$73, 0), MATCH(Y$4, RAB_years, 0)) -> 0 | Z41: =INDEX('RAB input'!$H$24:$XFD$73, MATCH($E41, 'RAB input'!$E$24:$E$73, 0), MATCH(Z$4, RAB_years, 0)) -> 0 | AA41: =INDEX('RAB input'!$H$24:$XFD$73, MATCH($E41, 'RAB input'!$E$24:$E$73, 0), MATCH(AA$4, RAB_years, 0)) -> 0 | AB41: =INDEX('RAB input'!$H$24:$XFD$73, MATCH($E41, 'RAB input'!$E$24:$E$73, 0), MATCH(AB$4, RAB_years, 0)) -> 0 | AC41: =INDEX('RAB input'!$H$24:$XFD$73, MATCH($E41, 'RAB input'!$E$24:$E$73, 0), MATCH(AC$4, RAB_years, 0)) -> 0 | AD41: =INDEX('RAB input'!$H$24:$XFD$73, MATCH($E41, 'RAB input'!$E$24:$E$73, 0), MATCH(AD$4, RAB_years, 0)) -> 0 | AE41: =INDEX('RAB input'!$H$24:$XFD$73, MATCH($E41, 'RAB input'!$E$24:$E$73, 0), MATCH(AE$4, RAB_years, 0)) -> 0 | AF41: =INDEX('RAB input'!$H$24:$XFD$73, MATCH($E41, 'RAB input'!$E$24:$E$73, 0), MATCH(AF$4, RAB_years, 0)) -> 0 | AG41: =INDEX('RAB input'!$H$24:$XFD$73, MATCH($E41, 'RAB input'!$E$24:$E$73, 0), MATCH(AG$4, RAB_years, 0)) -> 0 | AH41: =INDEX('RAB input'!$H$24:$XFD$73, MATCH($E41, 'RAB input'!$E$24:$E$73, 0), MATCH(AH$4, RAB_years, 0)) -> 0 | AI41: =INDEX('RAB input'!$H$24:$XFD$73, MATCH($E41, 'RAB input'!$E$24:$E$73, 0), MATCH(AI$4, RAB_years, 0)) -> 0 | AJ41: =INDEX('RAB input'!$H$24:$XFD$73, MATCH($E41, 'RAB input'!$E$24:$E$73, 0), MATCH(AJ$4, RAB_years, 0)) -> 0 | AK41: =INDEX('RAB input'!$H$24:$XFD$73, MATCH($E41, 'RAB input'!$E$24:$E$73, 0), MATCH(AK$4, RAB_years, 0)) -> 0 | AL41: =INDEX('RAB input'!$H$24:$XFD$73, MATCH($E41, 'RAB input'!$E$24:$E$73, 0), MATCH(AL$4, RAB_years, 0)) -> 0 | AM41: =INDEX('RAB input'!$H$24:$XFD$73, MATCH($E41, 'RAB input'!$E$24:$E$73, 0), MATCH(AM$4, RAB_years, 0)) -> 0 | AN41: =INDEX('RAB input'!$H$24:$XFD$73, MATCH($E41, 'RAB input'!$E$24:$E$73, 0), MATCH(AN$4, RAB_years, 0)) -> 0 | AO41: =INDEX('RAB input'!$H$24:$XFD$73, MATCH($E41, 'RAB input'!$E$24:$E$73, 0), MATCH(AO$4, RAB_years, 0)) -> 0 | AP41: =INDEX('RAB input'!$H$24:$XFD$73, MATCH($E41, 'RAB input'!$E$24:$E$73, 0), MATCH(AP$4, RAB_years, 0)) -> 0 | AQ41: =INDEX('RAB input'!$H$24:$XFD$73, MATCH($E41, 'RAB input'!$E$24:$E$73, 0), MATCH(AQ$4, RAB_years, 0)) -> 0 | AR41: =INDEX('RAB input'!$H$24:$XFD$73, MATCH($E41, 'RAB input'!$E$24:$E$73, 0), MATCH(AR$4, RAB_years, 0)) -> 0 | AS41: =INDEX('RAB input'!$H$24:$XFD$73, MATCH($E41, 'RAB input'!$E$24:$E$73, 0), MATCH(AS$4, RAB_years, 0)) -> 0 | AT41: =INDEX('RAB input'!$H$24:$XFD$73, MATCH($E41, 'RAB input'!$E$24:$E$73, 0), MATCH(AT$4, RAB_years, 0)) -> 0 | AU41: =INDEX('RAB input'!$H$24:$XFD$73, MATCH($E41, 'RAB input'!$E$24:$E$73, 0), MATCH(AU$4, RAB_years, 0)) -> 0 | AV41: =INDEX('RAB input'!$H$24:$XFD$73, MATCH($E41, 'RAB input'!$E$24:$E$73, 0), MATCH(AV$4, RAB_years, 0)) -> 0 | AW41: =INDEX('RAB input'!$H$24:$XFD$73, MATCH($E41, 'RAB input'!$E$24:$E$73, 0), MATCH(AW$4, RAB_years, 0)) -> 0 | AX41: =INDEX('RAB input'!$H$24:$XFD$73, MATCH($E41, 'RAB input'!$E$24:$E$73, 0), MATCH(AX$4, RAB_years, 0)) -> 0 | AY41: =INDEX('RAB input'!$H$24:$XFD$73, MATCH($E41, 'RAB input'!$E$24:$E$73, 0), MATCH(AY$4, RAB_years, 0)) -> 0 | AZ41: =INDEX('RAB input'!$H$24:$XFD$73, MATCH($E41, 'RAB input'!$E$24:$E$73, 0), MATCH(AZ$4, RAB_years, 0)) -> 0 | BA41: =INDEX('RAB input'!$H$24:$XFD$73, MATCH($E41, 'RAB input'!$E$24:$E$73, 0), MATCH(BA$4, RAB_years, 0)) -> 0 | BB41: =INDEX('RAB input'!$H$24:$XFD$73, MATCH($E41, 'RAB input'!$E$24:$E$73, 0), MATCH(BB$4, RAB_years, 0)) -> 0 | BC41: =INDEX('RAB input'!$H$24:$XFD$73, MATCH($E41, 'RAB input'!$E$24:$E$73, 0), MATCH(BC$4, RAB_years, 0)) -> 0 | BD41: =INDEX('RAB input'!$H$24:$XFD$73, MATCH($E41, 'RAB input'!$E$24:$E$73, 0), MATCH(BD$4, RAB_years, 0)) -> 0 | BE41: =INDEX('RAB input'!$H$24:$XFD$73, MATCH($E41, 'RAB input'!$E$24:$E$73, 0), MATCH(BE$4, RAB_years, 0)) -> 0 | BF41: =INDEX('RAB input'!$H$24:$XFD$73, MATCH($E41, 'RAB input'!$E$24:$E$73, 0), MATCH(BF$4, RAB_years, 0)) -> 0 | BG41: =INDEX('RAB input'!$H$24:$XFD$73, MATCH($E41, 'RAB input'!$E$24:$E$73, 0), MATCH(BG$4, RAB_years, 0)) -> 0 | BH41: =INDEX('RAB input'!$H$24:$XFD$73, MATCH($E41, 'RAB input'!$E$24:$E$73, 0), MATCH(BH$4, RAB_years, 0)) -> 0 | BI41: =INDEX('RAB input'!$H$24:$XFD$73, MATCH($E41, 'RAB input'!$E$24:$E$73, 0), MATCH(BI$4, RAB_years, 0)) -> 0 | BJ41: =INDEX('RAB input'!$H$24:$XFD$73, MATCH($E41, 'RAB input'!$E$24:$E$73, 0), MATCH(BJ$4, RAB_years, 0)) -> 0 | BK41: =INDEX('RAB input'!$H$24:$XFD$73, MATCH($E41, 'RAB input'!$E$24:$E$73, 0), MATCH(BK$4, RAB_years, 0)) -> 0 | BL41: =INDEX('RAB input'!$H$24:$XFD$73, MATCH($E41, 'RAB input'!$E$24:$E$73, 0), MATCH(BL$4, RAB_years, 0)) -> 0 | BM41: =INDEX('RAB input'!$H$24:$XFD$73, MATCH($E41, 'RAB input'!$E$24:$E$73, 0), MATCH(BM$4, RAB_years, 0)) -> 0 | BN41: =INDEX('RAB input'!$H$24:$XFD$73, MATCH($E41, 'RAB input'!$E$24:$E$73, 0), MATCH(BN$4, RAB_years, 0)) -> 0 | BO41: =INDEX('RAB input'!$H$24:$XFD$73, MATCH($E41, 'RAB input'!$E$24:$E$73, 0), MATCH(BO$4, RAB_years, 0)) -> 0 | BP41: =INDEX('RAB input'!$H$24:$XFD$73, MATCH($E41, 'RAB input'!$E$24:$E$73, 0), MATCH(BP$4, RAB_years, 0)) -> 0 | BQ41: =INDEX('RAB input'!$H$24:$XFD$73, MATCH($E41, 'RAB input'!$E$24:$E$73, 0), MATCH(BQ$4, RAB_years, 0)) -> 0 | BR41: =INDEX('RAB input'!$H$24:$XFD$73, MATCH($E41, 'RAB input'!$E$24:$E$73, 0), MATCH(BR$4, RAB_years, 0)) -> 0 | BS41: =INDEX('RAB input'!$H$24:$XFD$73, MATCH($E41, 'RAB input'!$E$24:$E$73, 0), MATCH(BS$4, RAB_years, 0)) -> 0 | BT41: =INDEX('RAB input'!$H$24:$XFD$73, MATCH($E41, 'RAB input'!$E$24:$E$73, 0), MATCH(BT$4, RAB_years, 0)) -> 0 | BU41: =INDEX('RAB input'!$H$24:$XFD$73, MATCH($E41, 'RAB input'!$E$24:$E$73, 0), MATCH(BU$4, RAB_years, 0)) -> 0 | BV41: =INDEX('RAB input'!$H$24:$XFD$73, MATCH($E41, 'RAB input'!$E$24:$E$73, 0), MATCH(BV$4, RAB_years, 0)) -> 0 | BW41: =INDEX('RAB input'!$H$24:$XFD$73, MATCH($E41, 'RAB input'!$E$24:$E$73, 0), MATCH(BW$4, RAB_years, 0)) -> 0 | BX41: =INDEX('RAB input'!$H$24:$XFD$73, MATCH($E41, 'RAB input'!$E$24:$E$73, 0), MATCH(BX$4, RAB_years, 0)) -> 0 | BY41: =INDEX('RAB input'!$H$24:$XFD$73, MATCH($E41, 'RAB input'!$E$24:$E$73, 0), MATCH(BY$4, RAB_years, 0)) -> 0 | BZ41: =INDEX('RAB input'!$H$24:$XFD$73, MATCH($E41, 'RAB input'!$E$24:$E$73, 0), MATCH(BZ$4, RAB_years, 0)) -> 0
D42: 25 | E42: ='RAB input'!E48 -> Communication assets - medium life (10) | G42: 0 | H42: =INDEX('RAB input'!$H$24:$XFD$73, MATCH($E42, 'RAB input'!$E$24:$E$73, 0), MATCH(H$4, RAB_years, 0)) -> 0 | I42: =INDEX('RAB input'!$H$24:$XFD$73, MATCH($E42, 'RAB input'!$E$24:$E$73, 0), MATCH(I$4, RAB_years, 0)) -> 0 | J42: =INDEX('RAB input'!$H$24:$XFD$73, MATCH($E42, 'RAB input'!$E$24:$E$73, 0), MATCH(J$4, RAB_years, 0)) -> 2.632293892 | K42: =INDEX('RAB input'!$H$24:$XFD$73, MATCH($E42, 'RAB input'!$E$24:$E$73, 0), MATCH(K$4, RAB_years, 0)) -> 2.134272524 | L42: =INDEX('RAB input'!$H$24:$XFD$73, MATCH($E42, 'RAB input'!$E$24:$E$73, 0), MATCH(L$4, RAB_years, 0)) -> 1.28944219 | M42: =INDEX('RAB input'!$H$24:$XFD$73, MATCH($E42, 'RAB input'!$E$24:$E$73, 0), MATCH(M$4, RAB_years, 0)) -> 0.90988797 | N42: =INDEX('RAB input'!$H$24:$XFD$73, MATCH($E42, 'RAB input'!$E$24:$E$73, 0), MATCH(N$4, RAB_years, 0)) -> 0.61517319 | O42: =INDEX('RAB input'!$H$24:$XFD$73, MATCH($E42, 'RAB input'!$E$24:$E$73, 0), MATCH(O$4, RAB_years, 0)) -> 0.4762576202 | P42: =INDEX('RAB input'!$H$24:$XFD$73, MATCH($E42, 'RAB input'!$E$24:$E$73, 0), MATCH(P$4, RAB_years, 0)) -> 1.688646888 | Q42: =INDEX('RAB input'!$H$24:$XFD$73, MATCH($E42, 'RAB input'!$E$24:$E$73, 0), MATCH(Q$4, RAB_years, 0)) -> 0.5814425786 | R42: =INDEX('RAB input'!$H$24:$XFD$73, MATCH($E42, 'RAB input'!$E$24:$E$73, 0), MATCH(R$4, RAB_years, 0)) -> 0 | S42: =INDEX('RAB input'!$H$24:$XFD$73, MATCH($E42, 'RAB input'!$E$24:$E$73, 0), MATCH(S$4, RAB_years, 0)) -> 0 | T42: =INDEX('RAB input'!$H$24:$XFD$73, MATCH($E42, 'RAB input'!$E$24:$E$73, 0), MATCH(T$4, RAB_years, 0)) -> 0 | U42: =INDEX('RAB input'!$H$24:$XFD$73, MATCH($E42, 'RAB input'!$E$24:$E$73, 0), MATCH(U$4, RAB_years, 0)) -> 0 | V42: =INDEX('RAB input'!$H$24:$XFD$73, MATCH($E42, 'RAB input'!$E$24:$E$73, 0), MATCH(V$4, RAB_years, 0)) -> 0 | W42: =INDEX('RAB input'!$H$24:$XFD$73, MATCH($E42, 'RAB input'!$E$24:$E$73, 0), MATCH(W$4, RAB_years, 0)) -> 0 | X42: =INDEX('RAB input'!$H$24:$XFD$73, MATCH($E42, 'RAB input'!$E$24:$E$73, 0), MATCH(X$4, RAB_years, 0)) -> 0 | Y42: =INDEX('RAB input'!$H$24:$XFD$73, MATCH($E42, 'RAB input'!$E$24:$E$73, 0), MATCH(Y$4, RAB_years, 0)) -> 0 | Z42: =INDEX('RAB input'!$H$24:$XFD$73, MATCH($E42, 'RAB input'!$E$24:$E$73, 0), MATCH(Z$4, RAB_years, 0)) -> 0 | AA42: =INDEX('RAB input'!$H$24:$XFD$73, MATCH($E42, 'RAB input'!$E$24:$E$73, 0), MATCH(AA$4, RAB_years, 0)) -> 0 | AB42: =INDEX('RAB input'!$H$24:$XFD$73, MATCH($E42, 'RAB input'!$E$24:$E$73, 0), MATCH(AB$4, RAB_years, 0)) -> 0 | AC42: =INDEX('RAB input'!$H$24:$XFD$73, MATCH($E42, 'RAB input'!$E$24:$E$73, 0), MATCH(AC$4, RAB_years, 0)) -> 0 | AD42: =INDEX('RAB input'!$H$24:$XFD$73, MATCH($E42, 'RAB input'!$E$24:$E$73, 0), MATCH(AD$4, RAB_years, 0)) -> 0 | AE42: =INDEX('RAB input'!$H$24:$XFD$73, MATCH($E42, 'RAB input'!$E$24:$E$73, 0), MATCH(AE$4, RAB_years, 0)) -> 0 | AF42: =INDEX('RAB input'!$H$24:$XFD$73, MATCH($E42, 'RAB input'!$E$24:$E$73, 0), MATCH(AF$4, RAB_years, 0)) -> 0 | AG42: =INDEX('RAB input'!$H$24:$XFD$73, MATCH($E42, 'RAB input'!$E$24:$E$73, 0), MATCH(AG$4, RAB_years, 0)) -> 0 | AH42: =INDEX('RAB input'!$H$24:$XFD$73, MATCH($E42, 'RAB input'!$E$24:$E$73, 0), MATCH(AH$4, RAB_years, 0)) -> 0 | AI42: =INDEX('RAB input'!$H$24:$XFD$73, MATCH($E42, 'RAB input'!$E$24:$E$73, 0), MATCH(AI$4, RAB_years, 0)) -> 0 | AJ42: =INDEX('RAB input'!$H$24:$XFD$73, MATCH($E42, 'RAB input'!$E$24:$E$73, 0), MATCH(AJ$4, RAB_years, 0)) -> 0 | AK42: =INDEX('RAB input'!$H$24:$XFD$73, MATCH($E42, 'RAB input'!$E$24:$E$73, 0), MATCH(AK$4, RAB_years, 0)) -> 0 | AL42: =INDEX('RAB input'!$H$24:$XFD$73, MATCH($E42, 'RAB input'!$E$24:$E$73, 0), MATCH(AL$4, RAB_years, 0)) -> 0 | AM42: =INDEX('RAB input'!$H$24:$XFD$73, MATCH($E42, 'RAB input'!$E$24:$E$73, 0), MATCH(AM$4, RAB_years, 0)) -> 0 | AN42: =INDEX('RAB input'!$H$24:$XFD$73, MATCH($E42, 'RAB input'!$E$24:$E$73, 0), MATCH(AN$4, RAB_years, 0)) -> 0 | AO42: =INDEX('RAB input'!$H$24:$XFD$73, MATCH($E42, 'RAB input'!$E$24:$E$73, 0), MATCH(AO$4, RAB_years, 0)) -> 0 | AP42: =INDEX('RAB input'!$H$24:$XFD$73, MATCH($E42, 'RAB input'!$E$24:$E$73, 0), MATCH(AP$4, RAB_years, 0)) -> 0 | AQ42: =INDEX('RAB input'!$H$24:$XFD$73, MATCH($E42, 'RAB input'!$E$24:$E$73, 0), MATCH(AQ$4, RAB_years, 0)) -> 0 | AR42: =INDEX('RAB input'!$H$24:$XFD$73, MATCH($E42, 'RAB input'!$E$24:$E$73, 0), MATCH(AR$4, RAB_years, 0)) -> 0 | AS42: =INDEX('RAB input'!$H$24:$XFD$73, MATCH($E42, 'RAB input'!$E$24:$E$73, 0), MATCH(AS$4, RAB_years, 0)) -> 0 | AT42: =INDEX('RAB input'!$H$24:$XFD$73, MATCH($E42, 'RAB input'!$E$24:$E$73, 0), MATCH(AT$4, RAB_years, 0)) -> 0 | AU42: =INDEX('RAB input'!$H$24:$XFD$73, MATCH($E42, 'RAB input'!$E$24:$E$73, 0), MATCH(AU$4, RAB_years, 0)) -> 0 | AV42: =INDEX('RAB input'!$H$24:$XFD$73, MATCH($E42, 'RAB input'!$E$24:$E$73, 0), MATCH(AV$4, RAB_years, 0)) -> 0 | AW42: =INDEX('RAB input'!$H$24:$XFD$73, MATCH($E42, 'RAB input'!$E$24:$E$73, 0), MATCH(AW$4, RAB_years, 0)) -> 0 | AX42: =INDEX('RAB input'!$H$24:$XFD$73, MATCH($E42, 'RAB input'!$E$24:$E$73, 0), MATCH(AX$4, RAB_years, 0)) -> 0 | AY42: =INDEX('RAB input'!$H$24:$XFD$73, MATCH($E42, 'RAB input'!$E$24:$E$73, 0), MATCH(AY$4, RAB_years, 0)) -> 0 | AZ42: =INDEX('RAB input'!$H$24:$XFD$73, MATCH($E42, 'RAB input'!$E$24:$E$73, 0), MATCH(AZ$4, RAB_years, 0)) -> 0 | BA42: =INDEX('RAB input'!$H$24:$XFD$73, MATCH($E42, 'RAB input'!$E$24:$E$73, 0), MATCH(BA$4, RAB_years, 0)) -> 0 | BB42: =INDEX('RAB input'!$H$24:$XFD$73, MATCH($E42, 'RAB input'!$E$24:$E$73, 0), MATCH(BB$4, RAB_years, 0)) -> 0 | BC42: =INDEX('RAB input'!$H$24:$XFD$73, MATCH($E42, 'RAB input'!$E$24:$E$73, 0), MATCH(BC$4, RAB_years, 0)) -> 0 | BD42: =INDEX('RAB input'!$H$24:$XFD$73, MATCH($E42, 'RAB input'!$E$24:$E$73, 0), MATCH(BD$4, RAB_years, 0)) -> 0 | BE42: =INDEX('RAB input'!$H$24:$XFD$73, MATCH($E42, 'RAB input'!$E$24:$E$73, 0), MATCH(BE$4, RAB_years, 0)) -> 0 | BF42: =INDEX('RAB input'!$H$24:$XFD$73, MATCH($E42, 'RAB input'!$E$24:$E$73, 0), MATCH(BF$4, RAB_years, 0)) -> 0 | BG42: =INDEX('RAB input'!$H$24:$XFD$73, MATCH($E42, 'RAB input'!$E$24:$E$73, 0), MATCH(BG$4, RAB_years, 0)) -> 0 | BH42: =INDEX('RAB input'!$H$24:$XFD$73, MATCH($E42, 'RAB input'!$E$24:$E$73, 0), MATCH(BH$4, RAB_years, 0)) -> 0 | BI42: =INDEX('RAB input'!$H$24:$XFD$73, MATCH($E42, 'RAB input'!$E$24:$E$73, 0), MATCH(BI$4, RAB_years, 0)) -> 0 | BJ42: =INDEX('RAB input'!$H$24:$XFD$73, MATCH($E42, 'RAB input'!$E$24:$E$73, 0), MATCH(BJ$4, RAB_years, 0)) -> 0 | BK42: =INDEX('RAB input'!$H$24:$XFD$73, MATCH($E42, 'RAB input'!$E$24:$E$73, 0), MATCH(BK$4, RAB_years, 0)) -> 0 | BL42: =INDEX('RAB input'!$H$24:$XFD$73, MATCH($E42, 'RAB input'!$E$24:$E$73, 0), MATCH(BL$4, RAB_years, 0)) -> 0 | BM42: =INDEX('RAB input'!$H$24:$XFD$73, MATCH($E42, 'RAB input'!$E$24:$E$73, 0), MATCH(BM$4, RAB_years, 0)) -> 0 | BN42: =INDEX('RAB input'!$H$24:$XFD$73, MATCH($E42, 'RAB input'!$E$24:$E$73, 0), MATCH(BN$4, RAB_years, 0)) -> 0 | BO42: =INDEX('RAB input'!$H$24:$XFD$73, MATCH($E42, 'RAB input'!$E$24:$E$73, 0), MATCH(BO$4, RAB_years, 0)) -> 0 | BP42: =INDEX('RAB input'!$H$24:$XFD$73, MATCH($E42, 'RAB input'!$E$24:$E$73, 0), MATCH(BP$4, RAB_years, 0)) -> 0 | BQ42: =INDEX('RAB input'!$H$24:$XFD$73, MATCH($E42, 'RAB input'!$E$24:$E$73, 0), MATCH(BQ$4, RAB_years, 0)) -> 0 | BR42: =INDEX('RAB input'!$H$24:$XFD$73, MATCH($E42, 'RAB input'!$E$24:$E$73, 0), MATCH(BR$4, RAB_years, 0)) -> 0 | BS42: =INDEX('RAB input'!$H$24:$XFD$73, MATCH($E42, 'RAB input'!$E$24:$E$73, 0), MATCH(BS$4, RAB_years, 0)) -> 0 | BT42: =INDEX('RAB input'!$H$24:$XFD$73, MATCH($E42, 'RAB input'!$E$24:$E$73, 0), MATCH(BT$4, RAB_years, 0)) -> 0 | BU42: =INDEX('RAB input'!$H$24:$XFD$73, MATCH($E42, 'RAB input'!$E$24:$E$73, 0), MATCH(BU$4, RAB_years, 0)) -> 0 | BV42: =INDEX('RAB input'!$H$24:$XFD$73, MATCH($E42, 'RAB input'!$E$24:$E$73, 0), MATCH(BV$4, RAB_years, 0)) -> 0 | BW42: =INDEX('RAB input'!$H$24:$XFD$73, MATCH($E42, 'RAB input'!$E$24:$E$73, 0), MATCH(BW$4, RAB_years, 0)) -> 0 | BX42: =INDEX('RAB input'!$H$24:$XFD$73, MATCH($E42, 'RAB input'!$E$24:$E$73, 0), MATCH(BX$4, RAB_years, 0)) -> 0 | BY42: =INDEX('RAB input'!$H$24:$XFD$73, MATCH($E42, 'RAB input'!$E$24:$E$73, 0), MATCH(BY$4, RAB_years, 0)) -> 0 | BZ42: =INDEX('RAB input'!$H$24:$XFD$73, MATCH($E42, 'RAB input'!$E$24:$E$73, 0), MATCH(BZ$4, RAB_years, 0)) -> 0
D43: 26 | E43: ='RAB input'!E49 -> Communication assets - short life (5) | G43: 0 | H43: =INDEX('RAB input'!$H$24:$XFD$73, MATCH($E43, 'RAB input'!$E$24:$E$73, 0), MATCH(H$4, RAB_years, 0)) -> 0 | I43: =INDEX('RAB input'!$H$24:$XFD$73, MATCH($E43, 'RAB input'!$E$24:$E$73, 0), MATCH(I$4, RAB_years, 0)) -> 0 | J43: =INDEX('RAB input'!$H$24:$XFD$73, MATCH($E43, 'RAB input'!$E$24:$E$73, 0), MATCH(J$4, RAB_years, 0)) -> 0 | K43: =INDEX('RAB input'!$H$24:$XFD$73, MATCH($E43, 'RAB input'!$E$24:$E$73, 0), MATCH(K$4, RAB_years, 0)) -> 1.048368387 | L43: =INDEX('RAB input'!$H$24:$XFD$73, MATCH($E43, 'RAB input'!$E$24:$E$73, 0), MATCH(L$4, RAB_years, 0)) -> 1.30118724 | M43: =INDEX('RAB input'!$H$24:$XFD$73, MATCH($E43, 'RAB input'!$E$24:$E$73, 0), MATCH(M$4, RAB_years, 0)) -> 0.41465995 | N43: =INDEX('RAB input'!$H$24:$XFD$73, MATCH($E43, 'RAB input'!$E$24:$E$73, 0), MATCH(N$4, RAB_years, 0)) -> 0.1033646 | O43: =INDEX('RAB input'!$H$24:$XFD$73, MATCH($E43, 'RAB input'!$E$24:$E$73, 0), MATCH(O$4, RAB_years, 0)) -> 1.0237631 | P43: =INDEX('RAB input'!$H$24:$XFD$73, MATCH($E43, 'RAB input'!$E$24:$E$73, 0), MATCH(P$4, RAB_years, 0)) -> 0.62303579 | Q43: =INDEX('RAB input'!$H$24:$XFD$73, MATCH($E43, 'RAB input'!$E$24:$E$73, 0), MATCH(Q$4, RAB_years, 0)) -> 0.06695232 | R43: =INDEX('RAB input'!$H$24:$XFD$73, MATCH($E43, 'RAB input'!$E$24:$E$73, 0), MATCH(R$4, RAB_years, 0)) -> 0 | S43: =INDEX('RAB input'!$H$24:$XFD$73, MATCH($E43, 'RAB input'!$E$24:$E$73, 0), MATCH(S$4, RAB_years, 0)) -> 0 | T43: =INDEX('RAB input'!$H$24:$XFD$73, MATCH($E43, 'RAB input'!$E$24:$E$73, 0), MATCH(T$4, RAB_years, 0)) -> 0 | U43: =INDEX('RAB input'!$H$24:$XFD$73, MATCH($E43, 'RAB input'!$E$24:$E$73, 0), MATCH(U$4, RAB_years, 0)) -> 0 | V43: =INDEX('RAB input'!$H$24:$XFD$73, MATCH($E43, 'RAB input'!$E$24:$E$73, 0), MATCH(V$4, RAB_years, 0)) -> 0 | W43: =INDEX('RAB input'!$H$24:$XFD$73, MATCH($E43, 'RAB input'!$E$24:$E$73, 0), MATCH(W$4, RAB_years, 0)) -> 0 | X43: =INDEX('RAB input'!$H$24:$XFD$73, MATCH($E43, 'RAB input'!$E$24:$E$73, 0), MATCH(X$4, RAB_years, 0)) -> 0 | Y43: =INDEX('RAB input'!$H$24:$XFD$73, MATCH($E43, 'RAB input'!$E$24:$E$73, 0), MATCH(Y$4, RAB_years, 0)) -> 0 | Z43: =INDEX('RAB input'!$H$24:$XFD$73, MATCH($E43, 'RAB input'!$E$24:$E$73, 0), MATCH(Z$4, RAB_years, 0)) -> 0 | AA43: =INDEX('RAB input'!$H$24:$XFD$73, MATCH($E43, 'RAB input'!$E$24:$E$73, 0), MATCH(AA$4, RAB_years, 0)) -> 0 | AB43: =INDEX('RAB input'!$H$24:$XFD$73, MATCH($E43, 'RAB input'!$E$24:$E$73, 0), MATCH(AB$4, RAB_years, 0)) -> 0 | AC43: =INDEX('RAB input'!$H$24:$XFD$73, MATCH($E43, 'RAB input'!$E$24:$E$73, 0), MATCH(AC$4, RAB_years, 0)) -> 0 | AD43: =INDEX('RAB input'!$H$24:$XFD$73, MATCH($E43, 'RAB input'!$E$24:$E$73, 0), MATCH(AD$4, RAB_years, 0)) -> 0 | AE43: =INDEX('RAB input'!$H$24:$XFD$73, MATCH($E43, 'RAB input'!$E$24:$E$73, 0), MATCH(AE$4, RAB_years, 0)) -> 0 | AF43: =INDEX('RAB input'!$H$24:$XFD$73, MATCH($E43, 'RAB input'!$E$24:$E$73, 0), MATCH(AF$4, RAB_years, 0)) -> 0 | AG43: =INDEX('RAB input'!$H$24:$XFD$73, MATCH($E43, 'RAB input'!$E$24:$E$73, 0), MATCH(AG$4, RAB_years, 0)) -> 0 | AH43: =INDEX('RAB input'!$H$24:$XFD$73, MATCH($E43, 'RAB input'!$E$24:$E$73, 0), MATCH(AH$4, RAB_years, 0)) -> 0 | AI43: =INDEX('RAB input'!$H$24:$XFD$73, MATCH($E43, 'RAB input'!$E$24:$E$73, 0), MATCH(AI$4, RAB_years, 0)) -> 0 | AJ43: =INDEX('RAB input'!$H$24:$XFD$73, MATCH($E43, 'RAB input'!$E$24:$E$73, 0), MATCH(AJ$4, RAB_years, 0)) -> 0 | AK43: =INDEX('RAB input'!$H$24:$XFD$73, MATCH($E43, 'RAB input'!$E$24:$E$73, 0), MATCH(AK$4, RAB_years, 0)) -> 0 | AL43: =INDEX('RAB input'!$H$24:$XFD$73, MATCH($E43, 'RAB input'!$E$24:$E$73, 0), MATCH(AL$4, RAB_years, 0)) -> 0 | AM43: =INDEX('RAB input'!$H$24:$XFD$73, MATCH($E43, 'RAB input'!$E$24:$E$73, 0), MATCH(AM$4, RAB_years, 0)) -> 0 | AN43: =INDEX('RAB input'!$H$24:$XFD$73, MATCH($E43, 'RAB input'!$E$24:$E$73, 0), MATCH(AN$4, RAB_years, 0)) -> 0 | AO43: =INDEX('RAB input'!$H$24:$XFD$73, MATCH($E43, 'RAB input'!$E$24:$E$73, 0), MATCH(AO$4, RAB_years, 0)) -> 0 | AP43: =INDEX('RAB input'!$H$24:$XFD$73, MATCH($E43, 'RAB input'!$E$24:$E$73, 0), MATCH(AP$4, RAB_years, 0)) -> 0 | AQ43: =INDEX('RAB input'!$H$24:$XFD$73, MATCH($E43, 'RAB input'!$E$24:$E$73, 0), MATCH(AQ$4, RAB_years, 0)) -> 0 | AR43: =INDEX('RAB input'!$H$24:$XFD$73, MATCH($E43, 'RAB input'!$E$24:$E$73, 0), MATCH(AR$4, RAB_years, 0)) -> 0 | AS43: =INDEX('RAB input'!$H$24:$XFD$73, MATCH($E43, 'RAB input'!$E$24:$E$73, 0), MATCH(AS$4, RAB_years, 0)) -> 0 | AT43: =INDEX('RAB input'!$H$24:$XFD$73, MATCH($E43, 'RAB input'!$E$24:$E$73, 0), MATCH(AT$4, RAB_years, 0)) -> 0 | AU43: =INDEX('RAB input'!$H$24:$XFD$73, MATCH($E43, 'RAB input'!$E$24:$E$73, 0), MATCH(AU$4, RAB_years, 0)) -> 0 | AV43: =INDEX('RAB input'!$H$24:$XFD$73, MATCH($E43, 'RAB input'!$E$24:$E$73, 0), MATCH(AV$4, RAB_years, 0)) -> 0 | AW43: =INDEX('RAB input'!$H$24:$XFD$73, MATCH($E43, 'RAB input'!$E$24:$E$73, 0), MATCH(AW$4, RAB_years, 0)) -> 0 | AX43: =INDEX('RAB input'!$H$24:$XFD$73, MATCH($E43, 'RAB input'!$E$24:$E$73, 0), MATCH(AX$4, RAB_years, 0)) -> 0 | AY43: =INDEX('RAB input'!$H$24:$XFD$73, MATCH($E43, 'RAB input'!$E$24:$E$73, 0), MATCH(AY$4, RAB_years, 0)) -> 0 | AZ43: =INDEX('RAB input'!$H$24:$XFD$73, MATCH($E43, 'RAB input'!$E$24:$E$73, 0), MATCH(AZ$4, RAB_years, 0)) -> 0 | BA43: =INDEX('RAB input'!$H$24:$XFD$73, MATCH($E43, 'RAB input'!$E$24:$E$73, 0), MATCH(BA$4, RAB_years, 0)) -> 0 | BB43: =INDEX('RAB input'!$H$24:$XFD$73, MATCH($E43, 'RAB input'!$E$24:$E$73, 0), MATCH(BB$4, RAB_years, 0)) -> 0 | BC43: =INDEX('RAB input'!$H$24:$XFD$73, MATCH($E43, 'RAB input'!$E$24:$E$73, 0), MATCH(BC$4, RAB_years, 0)) -> 0 | BD43: =INDEX('RAB input'!$H$24:$XFD$73, MATCH($E43, 'RAB input'!$E$24:$E$73, 0), MATCH(BD$4, RAB_years, 0)) -> 0 | BE43: =INDEX('RAB input'!$H$24:$XFD$73, MATCH($E43, 'RAB input'!$E$24:$E$73, 0), MATCH(BE$4, RAB_years, 0)) -> 0 | BF43: =INDEX('RAB input'!$H$24:$XFD$73, MATCH($E43, 'RAB input'!$E$24:$E$73, 0), MATCH(BF$4, RAB_years, 0)) -> 0 | BG43: =INDEX('RAB input'!$H$24:$XFD$73, MATCH($E43, 'RAB input'!$E$24:$E$73, 0), MATCH(BG$4, RAB_years, 0)) -> 0 | BH43: =INDEX('RAB input'!$H$24:$XFD$73, MATCH($E43, 'RAB input'!$E$24:$E$73, 0), MATCH(BH$4, RAB_years, 0)) -> 0 | BI43: =INDEX('RAB input'!$H$24:$XFD$73, MATCH($E43, 'RAB input'!$E$24:$E$73, 0), MATCH(BI$4, RAB_years, 0)) -> 0 | BJ43: =INDEX('RAB input'!$H$24:$XFD$73, MATCH($E43, 'RAB input'!$E$24:$E$73, 0), MATCH(BJ$4, RAB_years, 0)) -> 0 | BK43: =INDEX('RAB input'!$H$24:$XFD$73, MATCH($E43, 'RAB input'!$E$24:$E$73, 0), MATCH(BK$4, RAB_years, 0)) -> 0 | BL43: =INDEX('RAB input'!$H$24:$XFD$73, MATCH($E43, 'RAB input'!$E$24:$E$73, 0), MATCH(BL$4, RAB_years, 0)) -> 0 | BM43: =INDEX('RAB input'!$H$24:$XFD$73, MATCH($E43, 'RAB input'!$E$24:$E$73, 0), MATCH(BM$4, RAB_years, 0)) -> 0 | BN43: =INDEX('RAB input'!$H$24:$XFD$73, MATCH($E43, 'RAB input'!$E$24:$E$73, 0), MATCH(BN$4, RAB_years, 0)) -> 0 | BO43: =INDEX('RAB input'!$H$24:$XFD$73, MATCH($E43, 'RAB input'!$E$24:$E$73, 0), MATCH(BO$4, RAB_years, 0)) -> 0 | BP43: =INDEX('RAB input'!$H$24:$XFD$73, MATCH($E43, 'RAB input'!$E$24:$E$73, 0), MATCH(BP$4, RAB_years, 0)) -> 0 | BQ43: =INDEX('RAB input'!$H$24:$XFD$73, MATCH($E43, 'RAB input'!$E$24:$E$73, 0), MATCH(BQ$4, RAB_years, 0)) -> 0 | BR43: =INDEX('RAB input'!$H$24:$XFD$73, MATCH($E43, 'RAB input'!$E$24:$E$73, 0), MATCH(BR$4, RAB_years, 0)) -> 0 | BS43: =INDEX('RAB input'!$H$24:$XFD$73, MATCH($E43, 'RAB input'!$E$24:$E$73, 0), MATCH(BS$4, RAB_years, 0)) -> 0 | BT43: =INDEX('RAB input'!$H$24:$XFD$73, MATCH($E43, 'RAB input'!$E$24:$E$73, 0), MATCH(BT$4, RAB_years, 0)) -> 0 | BU43: =INDEX('RAB input'!$H$24:$XFD$73, MATCH($E43, 'RAB input'!$E$24:$E$73, 0), MATCH(BU$4, RAB_years, 0)) -> 0 | BV43: =INDEX('RAB input'!$H$24:$XFD$73, MATCH($E43, 'RAB input'!$E$24:$E$73, 0), MATCH(BV$4, RAB_years, 0)) -> 0 | BW43: =INDEX('RAB input'!$H$24:$XFD$73, MATCH($E43, 'RAB input'!$E$24:$E$73, 0), MATCH(BW$4, RAB_years, 0)) -> 0 | BX43: =INDEX('RAB input'!$H$24:$XFD$73, MATCH($E43, 'RAB input'!$E$24:$E$73, 0), MATCH(BX$4, RAB_years, 0)) -> 0 | BY43: =INDEX('RAB input'!$H$24:$XFD$73, MATCH($E43, 'RAB input'!$E$24:$E$73, 0), MATCH(BY$4, RAB_years, 0)) -> 0 | BZ43: =INDEX('RAB input'!$H$24:$XFD$73, MATCH($E43, 'RAB input'!$E$24:$E$73, 0), MATCH(BZ$4, RAB_years, 0)) -> 0
